Workbook

Sheet CV Rotina <2A - procedência
E1: AO NASCER | I1: MENOR DE 1 ANO | U1: 1 ANO | AB1: MENOR DE 1 ANO
A2: Regional | B2: Município | C2: ¹População < 1 ano e 1 ano anual | D2: ²População < 1 ano e 1 ano proporcional | E2: Doses Aplicadas HB < 30 dias | F2: Cobertura Vacinal HB até 30 dias | G2: Doses Aplicadas BCG | H2: Cobertura Vacinal BCG | I2: Doses Aplicadas Pentavalente | J2: Cobertura Vacinal Pentavalente | K2: Doses Aplicadas Poliomielite | L2: Cobertura Vacinal Poliomielite | M2: Doses Aplicadas Pneumo 10 | N2: Cobertura Vacinal Pneumo 10 | O2: Doses Aplicadas Rotavírus | P2: Cobertura Vacinal Rotavírus | Q2: Doses Aplicadas Meningo C | R2: Cobertura Vacinal Meningo C | S2: Doses Aplicadas Febre Amarela | T2: Cobertura Vacinal Febre Amarela | U2: Doses Aplicadas Hepatite A | V2: Cobertura Vacinal Hepatite A | W2: Doses Aplicadas de Tríplice Viral | X2: Cobertura Vacinal Tríplice Viral | Y2: Doses Aplicadas Varicela | Z2: Cobertura Varicela | AB2: Doses Aplicadas COVID-19 | AC2: Cobertura Vacinal COVID-19 | AE2: VACINAS QUE ATINGIRAM A META DE CV | AF2: HOMOGENEIDADE ENTRE AS 10 VACINAS | AG2: VACINAS DO PQA-VS QUE ATINGIRAM A META DE CV | AH2: HOMOGENEIDADE ENTRE AS VACINAS DO PQA-VS
A3: Metropolitana | B3: Afonso Cláudio | C3: 359 | D3: 151 | E3: 147 | F3: =E3/D3 -> 0.9735099338 | G3: 153 | H3: =G3/D3 -> 1.013245033 | I3: 137 | J3: =I3/D3 -> 0.9072847682 | K3: 134 | L3: =K3/D3 -> 0.8874172185 | M3: 120 | N3: =M3/D3 -> 0.7947019868 | O3: 128 | P3: =O3/D3 -> 0.8476821192 | Q3: 132 | R3: =Q3/D3 -> 0.8741721854 | S3: 128 | T3: =S3/D3 -> 0.8476821192 | U3: 149 | V3: =U3/D3 -> 0.9867549669 | W3: 152 | X3: =W3/D3 -> 1.006622517 | Y3: 179 | Z3: =Y3/D3 -> 1.185430464 | AB3: 1 | AC3: =AB3/D3 -> 0.006622516556 | AE3: =cálculos1!O3 -> 4 | AF3: =AE3*0.1 -> 0.4 | AG3: =cálculos1!P3 -> 1 | AH3: =AG3*0.25 -> 0.25 | AJ3: LEGENDA / HOMOGENEIDADE PQA-VS
A4: Norte | B4: Água Doce do Norte | C4: 172 | D4: 85 | E4: 19 | F4: =E4/D4 -> 0.2235294118 | G4: 18 | H4: 0.2117647059 | I4: 64 | J4: 0.7529411765 | K4: 61 | L4: 0.7176470588 | M4: 53 | N4: 0.6235294118 | O4: 51 | P4: 0.6 | Q4: 62 | R4: 0.7294117647 | S4: 73 | T4: 0.8588235294 | U4: 54 | V4: 0.6352941176 | W4: 68 | X4: 0.8 | Y4: 30 | Z4: 0.3529411765 | AB4: 1 | AC4: =AB4/D4 -> 0.01176470588 | AE4: =cálculos1!O4 -> 0 | AF4: =AE4*0.1 -> 0 | AG4: =cálculos1!P4 -> 0 | AH4: =AG4*0.25 -> 0 | AJ4: PERCENTUAL | AK4: Nº DE MUNICÍPIOS
A5: Central | B5: Águia Branca | C5: 151 | D5: 79 | E5: 30 | F5: 0.3797468354 | G5: 36 | H5: 0.4556962025 | I5: 51 | J5: 0.6455696203 | K5: 53 | L5: 0.6708860759 | M5: 43 | N5: 0.5443037975 | O5: 42 | P5: 0.5316455696 | Q5: 55 | R5: 0.6962025316 | S5: 71 | T5: 0.8987341772 | U5: 55 | V5: 0.6962025316 | W5: 70 | X5: 0.8860759494 | Y5: 63 | Z5: 0.7974683544 | AB5: 0 | AC5: 0 | AE5: =cálculos1!O5 -> 0 | AF5: 0 | AG5: =cálculos1!P5 -> 0 | AH5: 0 | AJ5: 0 | AK5: =COUNTIF($AH$3:$AH$80,"=0") -> 31
A6: Sul | B6: Alegre | C6: 298 | D6: 127 | E6: 53 | F6: 0.4173228346 | G6: 56 | H6: 0.4409448819 | I6: 116 | J6: 0.9133858268 | K6: 106 | L6: 0.8346456693 | M6: 91 | N6: 0.7165354331 | O6: 109 | P6: 0.8582677165 | Q6: 120 | R6: 0.9448818898 | S6: 121 | T6: 0.9527559055 | U6: 140 | V6: 1.102362205 | W6: 146 | X6: 1.149606299 | Y6: 167 | Z6: 1.31496063 | AB6: 5 | AC6: 0.03937007874 | AE6: =cálculos1!O6 -> 4 | AF6: 0.4 | AG6: =cálculos1!P6 -> 1 | AH6: 0.25 | AJ6: 0.25 | AK6: =COUNTIF($AH$3:$AH$80,"=0,25") -> 21
A7: Sul | B7: Alfredo Chaves | C7: 122 | D7: 58 | E7: 5 | F7: 0.08620689655 | G7: 22 | H7: 0.3793103448 | I7: 40 | J7: 0.6896551724 | K7: 37 | L7: 0.6379310345 | M7: 32 | N7: 0.5517241379 | O7: 38 | P7: 0.6551724138 | Q7: 36 | R7: 0.6206896552 | S7: 43 | T7: 0.7413793103 | U7: 61 | V7: 1.051724138 | W7: 55 | X7: 0.9482758621 | Y7: 54 | Z7: 0.9310344828 | AB7: 0 | AC7: 0 | AE7: =cálculos1!O7 -> 1 | AF7: 0.1 | AG7: =cálculos1!P7 -> 0 | AH7: 0 | AJ7: 0.5 | AK7: =COUNTIF($AH$3:$AH$80,"=0,5") -> 6
A8: Central | B8: Alto Rio Novo | C8: 93 | D8: 42 | E8: 13 | F8: 0.3095238095 | G8: 15 | H8: 0.3571428571 | I8: 38 | J8: 0.9047619048 | K8: 38 | L8: 0.9047619048 | M8: 39 | N8: 0.9285714286 | O8: 40 | P8: 0.9523809524 | Q8: 40 | R8: 0.9523809524 | S8: 38 | T8: 0.9047619048 | U8: 40 | V8: 0.9523809524 | W8: 40 | X8: 0.9523809524 | Y8: 42 | Z8: 1 | AB8: 0 | AC8: 0 | AE8: =cálculos1!O8 -> 5 | AF8: 0.5 | AG8: =cálculos1!P8 -> 1 | AH8: 0.25 | AJ8: 0.75 | AK8: =COUNTIF($AH$3:$AH$80,"=0,75") -> 13
A9: Sul | B9: Anchieta | C9: 352 | D9: 154 | E9: 17 | F9: 0.1103896104 | G9: 63 | H9: 0.4090909091 | I9: 163 | J9: 1.058441558 | K9: 161 | L9: 1.045454545 | M9: 141 | N9: 0.9155844156 | O9: 150 | P9: 0.974025974 | Q9: 137 | R9: 0.8896103896 | S9: 129 | T9: 0.8376623377 | U9: 150 | V9: 0.974025974 | W9: 159 | X9: 1.032467532 | Y9: 160 | Z9: 1.038961039 | AB9: 15 | AC9: 0.0974025974 | AE9: =cálculos1!O9 -> 6 | AF9: 0.6 | AG9: =cálculos1!P9 -> 3 | AH9: 0.75 | AJ9: 1 | AK9: =COUNTIF($AH$3:$AH$80,"=1,0") -> 7
A10: Sul | B10: Apiacá | C10: 72 | D10: 31 | E10: 2 | F10: 0.06451612903 | G10: 28 | H10: 0.9032258065 | I10: 27 | J10: 0.8709677419 | K10: 24 | L10: 0.7741935484 | M10: 34 | N10: 1.096774194 | O10: 35 | P10: 1.129032258 | Q10: 30 | R10: 0.9677419355 | S10: 25 | T10: 0.8064516129 | U10: 25 | V10: 0.8064516129 | W10: 30 | X10: 0.9677419355 | Y10: 25 | Z10: 0.8064516129 | AB10: 0 | AC10: 0 | AE10: =cálculos1!O10 -> 5 | AF10: 0.5 | AG10: =cálculos1!P10 -> 2 | AH10: 0.5
A11: Metropolitana | B11: Aracruz | C11: 1392 | D11: 650 | E11: 523 | F11: 0.8046153846 | G11: 534 | H11: 0.8215384615 | I11: 505 | J11: 0.7769230769 | K11: 499 | L11: 0.7676923077 | M11: 432 | N11: 0.6646153846 | O11: 492 | P11: 0.7569230769 | Q11: 480 | R11: 0.7384615385 | S11: 457 | T11: 0.7030769231 | U11: 599 | V11: 0.9215384615 | W11: 617 | X11: 0.9492307692 | Y11: 610 | Z11: 0.9384615385 | AB11: 40 | AC11: 0.06153846154 | AE11: =cálculos1!O11 -> 0 | AF11: 0 | AG11: =cálculos1!P11 -> 0 | AH11: 0
A12: Sul | B12: Atilio Vivacqua | C12: 173 | D12: 72 | E12: 2 | F12: 0.02777777778 | G12: 6 | H12: 0.08333333333 | I12: 67 | J12: 0.9305555556 | K12: 66 | L12: 0.9166666667 | M12: 66 | N12: 0.9166666667 | O12: 68 | P12: 0.9444444444 | Q12: 72 | R12: 1 | S12: 56 | T12: 0.7777777778 | U12: 55 | V12: 0.7638888889 | W12: 57 | X12: 0.7916666667 | Y12: 35 | Z12: 0.4861111111 | AB12: 3 | AC12: 0.04166666667 | AE12: =cálculos1!O12 -> 2 | AF12: 0.2 | AG12: =cálculos1!P12 -> 0 | AH12: 0 | AJ12: LEGENDA / HOMOGENEIDADE 10 VACINAS
A13: Central | B13: Baixo Guandu | C13: 349 | D13: 168 | E13: 44 | F13: 0.2619047619 | G13: 70 | H13: 0.4166666667 | I13: 118 | J13: 0.7023809524 | K13: 117 | L13: 0.6964285714 | M13: 112 | N13: 0.6666666667 | O13: 117 | P13: 0.6964285714 | Q13: 115 | R13: 0.6845238095 | S13: 142 | T13: 0.8452380952 | U13: 154 | V13: 0.9166666667 | W13: 156 | X13: 0.9285714286 | Y13: 141 | Z13: 0.8392857143 | AB13: 0 | AC13: 0 | AE13: =cálculos1!O13 -> 0 | AF13: 0 | AG13: =cálculos1!P13 -> 0 | AH13: 0 | AJ13: PERCENTUAL | AK13: Nº DE MUNICÍPIOS
A14: Norte | B14: Barra de São Francisco | C14: 595 | D14: 247 | E14: 184 | F14: 0.7449392713 | G14: 198 | H14: 0.8016194332 | I14: 219 | J14: 0.8866396761 | K14: 198 | L14: 0.8016194332 | M14: 186 | N14: 0.7530364372 | O14: 186 | P14: 0.7530364372 | Q14: 190 | R14: 0.7692307692 | S14: 174 | T14: 0.7044534413 | U14: 186 | V14: 0.7530364372 | W14: 216 | X14: 0.8744939271 | Y14: 218 | Z14: 0.8825910931 | AB14: 0 | AC14: 0 | AE14: =cálculos1!O14 -> 0 | AF14: 0 | AG14: =cálculos1!P14 -> 0 | AH14: 0 | AJ14: 0 | AK14: =COUNTIF($AF$3:$AF$80,"=0") -> 22
A15: Norte | B15: Boa Esperança | C15: 207 | D15: 97 | E15: 4 | F15: 0.0412371134 | G15: 35 | H15: 0.3608247423 | I15: 83 | J15: 0.8556701031 | K15: 79 | L15: 0.8144329897 | M15: 76 | N15: 0.7835051546 | O15: 77 | P15: 0.793814433 | Q15: 76 | R15: 0.7835051546 | S15: 79 | T15: 0.8144329897 | U15: 79 | V15: 0.8144329897 | W15: 81 | X15: 0.8350515464 | Y15: 76 | Z15: 0.7835051546 | AB15: 0 | AC15: 0 | AE15: =cálculos1!O15 -> 0 | AF15: 0 | AG15: =cálculos1!P15 -> 0 | AH15: 0 | AJ15: 0.1 | AK15: =COUNTIFS($AF$3:$AF$80,">=0,10",$AF$3:$AF$80,"<0,20") -> 13
A16: Sul | B16: Bom Jesus do Norte | C16: 69 | D16: 29 | E16: 15 | F16: 0.5172413793 | G16: 40 | H16: 1.379310345 | I16: 42 | J16: 1.448275862 | K16: 42 | L16: 1.448275862 | M16: 44 | N16: 1.517241379 | O16: 44 | P16: 1.517241379 | Q16: 36 | R16: 1.24137931 | S16: 46 | T16: 1.586206897 | U16: 43 | V16: 1.482758621 | W16: 43 | X16: 1.482758621 | Y16: 32 | Z16: 1.103448276 | AB16: 1 | AC16: 0.03448275862 | AE16: =cálculos1!O16 -> 10 | AF16: 1 | AG16: =cálculos1!P16 -> 4 | AH16: 1 | AJ16: 0.2 | AK16: =COUNTIFS($AF$3:$AF$80,">=0,20",$AF$3:$AF$80,"<0,30") -> 7
A17: Metropolitana | B17: Brejetuba | C17: 199 | D17: 75 | E17: 6 | F17: 0.08 | G17: 52 | H17: 0.6933333333 | I17: 68 | J17: 0.9066666667 | K17: 76 | L17: 1.013333333 | M17: 83 | N17: 1.106666667 | O17: 94 | P17: 1.253333333 | Q17: 89 | R17: 1.186666667 | S17: 60 | T17: 0.8 | U17: 93 | V17: 1.24 | W17: 89 | X17: 1.186666667 | Y17: 95 | Z17: 1.266666667 | AB17: 0 | AC17: 0 | AE17: =cálculos1!O17 -> 7 | AF17: 0.7 | AG17: =cálculos1!P17 -> 3 | AH17: 0.75 | AJ17: 0.3 | AK17: =COUNTIFS($AF$3:$AF$80,">=0,30",$AF$3:$AF$80,"<0,40") -> 6
A18: Sul | B18: Cachoeiro de Itapemirim | C18: 2337 | D18: 1046 | E18: 2249 | F18: 2.150095602 | G18: 2245 | H18: 2.146271511 | I18: 903 | J18: 0.8632887189 | K18: 891 | L18: 0.8518164436 | M18: 781 | N18: 0.7466539197 | O18: 903 | P18: 0.8632887189 | Q18: 889 | R18: 0.8499043977 | S18: 709 | T18: 0.6778202677 | U18: 888 | V18: 0.8489483748 | W18: 1022 | X18: 0.9770554493 | Y18: 865 | Z18: 0.826959847 | AB18: 28 | AC18: 0.02676864245 | AE18: =cálculos1!O18 -> 2 | AF18: 0.2 | AG18: =cálculos1!P18 -> 1 | AH18: 0.25 | AJ18: 0.4 | AK18: =COUNTIFS($AF$3:$AF$80,">=0,40",$AF$3:$AF$80,"<0,50") -> 5
A19: Metropolitana | B19: Cariacica | C19: 4824 | D19: 2178 | E19: 1190 | F19: 0.5463728191 | G19: 1144 | H19: 0.5252525253 | I19: 1678 | J19: 0.7704315886 | K19: 1652 | L19: 0.7584940312 | M19: 1442 | N19: 0.6620752984 | O19: 1667 | P19: 0.7653810836 | Q19: 1644 | R19: 0.7548209366 | S19: 1385 | T19: 0.6359044995 | U19: 1835 | V19: 0.8425160698 | W19: 1883 | X19: 0.8645546373 | Y19: 1482 | Z19: 0.6804407713 | AB19: 97 | AC19: 0.04453627181 | AE19: =cálculos1!O19 -> 0 | AF19: 0 | AG19: =cálculos1!P19 -> 0 | AH19: 0 | AJ19: 0.5 | AK19: =COUNTIFS($AF$3:$AF$80,">=0,50",$AF$3:$AF$80,"<0,60") -> 7
A20: Sul | B20: Castelo | C20: 415 | D20: 186 | E20: 103 | F20: 0.5537634409 | G20: 110 | H20: 0.5913978495 | I20: 160 | J20: 0.8602150538 | K20: 156 | L20: 0.8387096774 | M20: 120 | N20: 0.6451612903 | O20: 167 | P20: 0.8978494624 | Q20: 164 | R20: 0.8817204301 | S20: 157 | T20: 0.8440860215 | U20: 186 | V20: 1 | W20: 201 | X20: 1.080645161 | Y20: 153 | Z20: 0.8225806452 | AB20: 3 | AC20: 0.01612903226 | AE20: =cálculos1!O20 -> 2 | AF20: 0.2 | AG20: =cálculos1!P20 -> 1 | AH20: 0.25 | AJ20: 0.6 | AK20: =COUNTIFS($AF$3:$AF$80,">=0,60",$AF$3:$AF$80,"<0,70") -> 5
A21: Central | B21: Colatina | C21: 1441 | D21: 606 | E21: 1505 | F21: 2.48349835 | G21: 1469 | H21: 2.424092409 | I21: 590 | J21: 0.9735973597 | K21: 591 | L21: 0.9752475248 | M21: 429 | N21: 0.7079207921 | O21: 528 | P21: 0.8712871287 | Q21: 593 | R21: 0.9785478548 | S21: 461 | T21: 0.7607260726 | U21: 559 | V21: 0.9224422442 | W21: 590 | X21: 0.9735973597 | Y21: 482 | Z21: 0.795379538 | AB21: 18 | AC21: 0.0297029703 | AE21: =cálculos1!O21 -> 5 | AF21: 0.5 | AG21: =cálculos1!P21 -> 3 | AH21: 0.75 | AJ21: 0.7 | AK21: =COUNTIFS($AF$3:$AF$80,">=0,70",$AF$3:$AF$80,"<0,80") -> 4
A22: Norte | B22: Conceição da Barra | C22: 353 | D22: 161 | E22: 4 | F22: 0.0248447205 | G22: 9 | H22: 0.05590062112 | I22: 140 | J22: 0.8695652174 | K22: 137 | L22: 0.850931677 | M22: 118 | N22: 0.7329192547 | O22: 123 | P22: 0.7639751553 | Q22: 127 | R22: 0.7888198758 | S22: 149 | T22: 0.9254658385 | U22: 165 | V22: 1.02484472 | W22: 182 | X22: 1.130434783 | Y22: 153 | Z22: 0.950310559 | AB22: 3 | AC22: 0.01863354037 | AE22: =cálculos1!O22 -> 3 | AF22: 0.3 | AG22: =cálculos1!P22 -> 1 | AH22: 0.25 | AJ22: 0.8 | AK22: =COUNTIFS($AF$3:$AF$80,">=0,80",$AF$3:$AF$80,"<0,90") -> 6
A23: Metropolitana | B23: Conceição do Castelo | C23: 161 | D23: 50 | E23: 0 | F23: 0 | G23: 0 | H23: 0 | I23: 65 | J23: 1.3 | K23: 64 | L23: 1.28 | M23: 50 | N23: 1 | O23: 70 | P23: 1.4 | Q23: 62 | R23: 1.24 | S23: 61 | T23: 1.22 | U23: 51 | V23: 1.02 | W23: 56 | X23: 1.12 | Y23: 44 | Z23: 0.88 | AB23: 1 | AC23: 0.02 | AE23: =cálculos1!O23 -> 8 | AF23: 0.8 | AG23: =cálculos1!P23 -> 4 | AH23: 1 | AJ23: 0.9 | AK23: =COUNTIFS($AF$3:$AF$80,">=0,90",$AF$3:$AF$80,"<1,0") -> 2
A24: Sul | B24: Divino de São Lourenço | C24: 53 | D24: 29 | E24: 15 | F24: 0.5172413793 | G24: 17 | H24: 0.5862068966 | I24: 15 | J24: 0.5172413793 | K24: 15 | L24: 0.5172413793 | M24: 15 | N24: 0.5172413793 | O24: 16 | P24: 0.5517241379 | Q24: 15 | R24: 0.5172413793 | S24: 31 | T24: 1.068965517 | U24: 27 | V24: 0.9310344828 | W24: 40 | X24: 1.379310345 | Y24: 31 | Z24: 1.068965517 | AB24: 1 | AC24: 0.03448275862 | AE24: =cálculos1!O24 -> 3 | AF24: 0.3 | AG24: =cálculos1!P24 -> 1 | AH24: 0.25 | AJ24: 1 | AK24: =COUNTIF($AF$3:$AF$80,">=1,0") -> 1
A25: Metropolitana | B25: Domingos Martins | C25: 421 | D25: 178 | E25: 13 | F25: 0.07303370787 | G25: 33 | H25: 0.1853932584 | I25: 173 | J25: 0.9719101124 | K25: 170 | L25: 0.9550561798 | M25: 149 | N25: 0.8370786517 | O25: 173 | P25: 0.9719101124 | Q25: 173 | R25: 0.9719101124 | S25: 161 | T25: 0.904494382 | U25: 178 | V25: 1 | W25: 172 | X25: 0.9662921348 | Y25: 196 | Z25: 1.101123596 | AB25: 16 | AC25: 0.08988764045 | AE25: =cálculos1!O25 -> 7 | AF25: 0.7 | AG25: =cálculos1!P25 -> 3 | AH25: 0.75
A26: Sul | B26: Dores do Rio Preto | C26: 108 | D26: 57 | E26: 22 | F26: 0.3859649123 | G26: 31 | H26: 0.5438596491 | I26: 49 | J26: 0.8596491228 | K26: 49 | L26: 0.8596491228 | M26: 30 | N26: 0.5263157895 | O26: 44 | P26: 0.7719298246 | Q26: 34 | R26: 0.5964912281 | S26: 41 | T26: 0.7192982456 | U26: 42 | V26: 0.7368421053 | W26: 46 | X26: 0.8070175439 | Y26: 33 | Z26: 0.5789473684 | AB26: 0 | AC26: 0 | AE26: =cálculos1!O26 -> 0 | AF26: 0 | AG26: =cálculos1!P26 -> 0 | AH26: 0
A27: Norte | B27: Ecoporanga | C27: 250 | D27: 124 | E27: 36 | F27: 0.2903225806 | G27: 34 | H27: 0.2741935484 | I27: 90 | J27: 0.7258064516 | K27: 86 | L27: 0.6935483871 | M27: 92 | N27: 0.7419354839 | O27: 95 | P27: 0.7661290323 | Q27: 90 | R27: 0.7258064516 | S27: 90 | T27: 0.7258064516 | U27: 88 | V27: 0.7096774194 | W27: 113 | X27: 0.9112903226 | Y27: 75 | Z27: 0.6048387097 | AB27: 1 | AC27: 0.008064516129 | AE27: =cálculos1!O27 -> 0 | AF27: 0 | AG27: =cálculos1!P27 -> 0 | AH27: 0
A28: Metropolitana | B28: Fundão | C28: 228 | D28: 109 | E28: 13 | F28: 0.119266055 | G28: 18 | H28: 0.1651376147 | I28: 95 | J28: 0.871559633 | K28: 94 | L28: 0.8623853211 | M28: 83 | N28: 0.7614678899 | O28: 100 | P28: 0.9174311927 | Q28: 90 | R28: 0.8256880734 | S28: 52 | T28: 0.4770642202 | U28: 91 | V28: 0.8348623853 | W28: 98 | X28: 0.8990825688 | Y28: 90 | Z28: 0.8256880734 | AB28: 1 | AC28: 0.009174311927 | AE28: =cálculos1!O28 -> 1 | AF28: 0.1 | AG28: =cálculos1!P28 -> 0 | AH28: 0
A29: Central | B29: Governador Lindenberg | C29: 115 | D29: 54 | E29: 22 | F29: 0.4074074074 | G29: 15 | H29: 0.2777777778 | I29: 37 | J29: 0.6851851852 | K29: 38 | L29: 0.7037037037 | M29: 32 | N29: 0.5925925926 | O29: 38 | P29: 0.7037037037 | Q29: 37 | R29: 0.6851851852 | S29: 37 | T29: 0.6851851852 | U29: 47 | V29: 0.8703703704 | W29: 53 | X29: 0.9814814815 | Y29: 38 | Z29: 0.7037037037 | AB29: 0 | AC29: 0 | AE29: =cálculos1!O29 -> 1 | AF29: 0.1 | AG29: =cálculos1!P29 -> 1 | AH29: 0.25
A30: Sul | B30: Guaçuí | C30: 358 | D30: 129 | E30: 128 | F30: 0.992248062 | G30: 126 | H30: 0.976744186 | I30: 125 | J30: 0.9689922481 | K30: 120 | L30: 0.9302325581 | M30: 141 | N30: 1.093023256 | O30: 143 | P30: 1.108527132 | Q30: 135 | R30: 1.046511628 | S30: 111 | T30: 0.8604651163 | U30: 128 | V30: 0.992248062 | W30: 153 | X30: 1.186046512 | Y30: 129 | Z30: 1 | AB30: 8 | AC30: 0.06201550388 | AE30: =cálculos1!O30 -> 8 | AF30: 0.8 | AG30: =cálculos1!P30 -> 3 | AH30: 0.75
A31: Metropolitana | B31: Guarapari | C31: 1722 | D31: 758 | E31: 609 | F31: 0.8034300792 | G31: 682 | H31: 0.8997361478 | I31: 562 | J31: 0.7414248021 | K31: 555 | L31: 0.7321899736 | M31: 561 | N31: 0.7401055409 | O31: 586 | P31: 0.7730870712 | Q31: 580 | R31: 0.765171504 | S31: 431 | T31: 0.5686015831 | U31: 563 | V31: 0.7427440633 | W31: 580 | X31: 0.765171504 | Y31: 481 | Z31: 0.6345646438 | AB31: 31 | AC31: 0.04089709763 | AE31: =cálculos1!O31 -> 0 | AF31: 0 | AG31: =cálculos1!P31 -> 0 | AH31: 0
A32: Metropolitana | B32: Ibatiba | C32: 383 | D32: 164 | E32: 113 | F32: 0.6890243902 | G32: 140 | H32: 0.8536585366 | I32: 156 | J32: 0.9512195122 | K32: 149 | L32: 0.9085365854 | M32: 144 | N32: 0.8780487805 | O32: 159 | P32: 0.9695121951 | Q32: 156 | R32: 0.9512195122 | S32: 138 | T32: 0.8414634146 | U32: 161 | V32: 0.9817073171 | W32: 160 | X32: 0.9756097561 | Y32: 153 | Z32: 0.9329268293 | AB32: 13 | AC32: 0.07926829268 | AE32: =cálculos1!O32 -> 5 | AF32: 0.5 | AG32: =cálculos1!P32 -> 2 | AH32: 0.5
A33: Metropolitana | B33: Ibiraçu | C33: 140 | D33: 60 | E33: 11 | F33: 0.1833333333 | G33: 11 | H33: 0.1833333333 | I33: 56 | J33: 0.9333333333 | K33: 56 | L33: 0.9333333333 | M33: 47 | N33: 0.7833333333 | O33: 49 | P33: 0.8166666667 | Q33: 56 | R33: 0.9333333333 | S33: 50 | T33: 0.8333333333 | U33: 43 | V33: 0.7166666667 | W33: 62 | X33: 1.033333333 | Y33: 41 | Z33: 0.6833333333 | AB33: 0 | AC33: 0 | AE33: =cálculos1!O33 -> 1 | AF33: 0.1 | AG33: =cálculos1!P33 -> 1 | AH33: 0.25
A34: Sul | B34: Ibitirama | C34: 146 | D34: 63 | E34: 34 | F34: 0.5396825397 | G34: 45 | H34: 0.7142857143 | I34: 69 | J34: 1.095238095 | K34: 63 | L34: 1 | M34: 63 | N34: 1 | O34: 66 | P34: 1.047619048 | Q34: 65 | R34: 1.031746032 | S34: 48 | T34: 0.7619047619 | U34: 54 | V34: 0.8571428571 | W34: 62 | X34: 0.9841269841 | Y34: 58 | Z34: 0.9206349206 | AB34: 4 | AC34: 0.06349206349 | AE34: =cálculos1!O34 -> 6 | AF34: 0.6 | AG34: =cálculos1!P34 -> 4 | AH34: 1
A35: Sul | B35: Iconha | C35: 120 | D35: 46 | E35: 10 | F35: 0.2173913043 | G35: 29 | H35: =G35/D35 -> 0.6304347826 | I35: 46 | J35: =I35/D35 -> 1 | K35: 46 | L35: =K35/D35 -> 1 | M35: 37 | N35: =M35/D35 -> 0.8043478261 | O35: 43 | P35: =O35/D35 -> 0.9347826087 | Q35: 51 | R35: =Q35/D35 -> 1.108695652 | S35: 39 | T35: =S35/D35 -> 0.847826087 | U35: 45 | V35: =U35/D35 -> 0.9782608696 | W35: 47 | X35: =W35/D35 -> 1.02173913 | Y35: 66 | Z35: =Y35/D35 -> 1.434782609 | AB35: 0 | AC35: 0 | AE35: =cálculos1!O35 -> 7 | AF35: 0.7 | AG35: =cálculos1!P35 -> 3 | AH35: 0.75
A36: Sul | B36: Irupi | C36: 171 | D36: 76 | E36: 32 | F36: 0.4210526316 | G36: 45 | H36: 0.5921052632 | I36: 75 | J36: 0.9868421053 | K36: 77 | L36: 1.013157895 | M36: 59 | N36: 0.7763157895 | O36: 65 | P36: 0.8552631579 | Q36: 71 | R36: 0.9342105263 | S36: 93 | T36: 1.223684211 | U36: 86 | V36: 1.131578947 | W36: 87 | X36: 1.144736842 | Y36: 78 | Z36: 1.026315789 | AB36: 12 | AC36: 0.1578947368 | AE36: =cálculos1!O36 -> 6 | AF36: 0.6 | AG36: =cálculos1!P36 -> 3 | AH36: 0.75
A37: Metropolitana | B37: Itaguaçu | C37: 135 | D37: 72 | E37: 9 | F37: 0.125 | G37: 12 | H37: 0.1666666667 | I37: 51 | J37: 0.7083333333 | K37: 51 | L37: 0.7083333333 | M37: 38 | N37: 0.5277777778 | O37: 49 | P37: 0.6805555556 | Q37: 42 | R37: 0.5833333333 | S37: 66 | T37: 0.9166666667 | U37: 46 | V37: 0.6388888889 | W37: 68 | X37: 0.9444444444 | Y37: 49 | Z37: 0.6805555556 | AB37: 10 | AC37: 0.1388888889 | AE37: =cálculos1!O37 -> 0 | AF37: 0 | AG37: =cálculos1!P37 -> 0 | AH37: 0
A38: Sul | B38: Itapemirim | C38: 536 | D38: 229 | E38: 358 | F38: 1.563318777 | G38: 88 | H38: 0.384279476 | I38: 151 | J38: 0.6593886463 | K38: 138 | L38: 0.6026200873 | M38: 180 | N38: 0.7860262009 | O38: 175 | P38: 0.7641921397 | Q38: 172 | R38: 0.7510917031 | S38: 126 | T38: 0.5502183406 | U38: 176 | V38: 0.768558952 | W38: 179 | X38: 0.7816593886 | Y38: 134 | Z38: 0.5851528384 | AB38: 2 | AC38: 0.008733624454 | AE38: =cálculos1!O38 -> 0 | AF38: 0 | AG38: =cálculos1!P38 -> 0 | AH38: 0
A39: Metropolitana | B39: Itarana | C39: 128 | D39: 60 | E39: 7 | F39: 0.1166666667 | G39: 11 | H39: 0.1833333333 | I39: 44 | J39: 0.7333333333 | K39: 44 | L39: 0.7333333333 | M39: 29 | N39: 0.4833333333 | O39: 34 | P39: 0.5666666667 | Q39: 40 | R39: 0.6666666667 | S39: 56 | T39: 0.9333333333 | U39: 52 | V39: 0.8666666667 | W39: 58 | X39: 0.9666666667 | Y39: 52 | Z39: 0.8666666667 | AB39: 1 | AC39: 0.01666666667 | AE39: =cálculos1!O39 -> 1 | AF39: 0.1 | AG39: =cálculos1!P39 -> 1 | AH39: 0.25
A40: Sul | B40: Iúna | C40: 402 | D40: 170 | E40: 115 | F40: 0.6764705882 | G40: 123 | H40: 0.7235294118 | I40: 153 | J40: 0.9 | K40: 149 | L40: 0.8764705882 | M40: 130 | N40: 0.7647058824 | O40: 143 | P40: 0.8411764706 | Q40: 146 | R40: 0.8588235294 | S40: 158 | T40: 0.9294117647 | U40: 181 | V40: 1.064705882 | W40: 180 | X40: 1.058823529 | Y40: 167 | Z40: 0.9823529412 | AB40: 1 | AC40: 0.005882352941 | AE40: =cálculos1!O40 -> 3 | AF40: 0.3 | AG40: =cálculos1!P40 -> 1 | AH40: 0.25
A41: Norte | B41: Jaguaré | C41: 479 | D41: 239 | E41: 157 | F41: 0.6569037657 | G41: 145 | H41: 0.6066945607 | I41: 167 | J41: 0.6987447699 | K41: 162 | L41: 0.6778242678 | M41: 151 | N41: 0.6317991632 | O41: 151 | P41: 0.6317991632 | Q41: 163 | R41: 0.6820083682 | S41: 148 | T41: 0.6192468619 | U41: 181 | V41: 0.7573221757 | W41: 189 | X41: 0.7907949791 | Y41: 131 | Z41: 0.5481171548 | AB41: 0 | AC41: 0 | AE41: =cálculos1!O41 -> 0 | AF41: 0 | AG41: =cálculos1!P41 -> 0 | AH41: 0
A42: Sul | B42: Jerônimo Monteiro | C42: 133 | D42: 64 | E42: 1 | F42: 0.015625 | G42: 3 | H42: 0.046875 | I42: 51 | J42: 0.796875 | K42: 52 | L42: 0.8125 | M42: 44 | N42: 0.6875 | O42: 48 | P42: 0.75 | Q42: 47 | R42: 0.734375 | S42: 44 | T42: 0.6875 | U42: 59 | V42: 0.921875 | W42: 64 | X42: 1 | Y42: 52 | Z42: 0.8125 | AB42: 5 | AC42: 0.078125 | AE42: =cálculos1!O42 -> 1 | AF42: 0.1 | AG42: =cálculos1!P42 -> 1 | AH42: 0.25
A43: Metropolitana | B43: João Neiva | C43: 150 | D43: 53 | E43: 15 | F43: 0.2830188679 | G43: 12 | H43: 0.2264150943 | I43: 68 | J43: 1.283018868 | K43: 64 | L43: 1.20754717 | M43: 53 | N43: 1 | O43: 56 | P43: 1.056603774 | Q43: 59 | R43: 1.113207547 | S43: 59 | T43: 1.113207547 | U43: 53 | V43: 1 | W43: 61 | X43: 1.150943396 | Y43: 60 | Z43: 1.132075472 | AB43: 2 | AC43: 0.03773584906 | AE43: =cálculos1!O43 -> 9 | AF43: 0.9 | AG43: =cálculos1!P43 -> 4 | AH43: 1
A44: Metropolitana | B44: Laranja da Terra | C44: 103 | D44: 43 | E44: 3 | F44: 0.06976744186 | G44: 10 | H44: 0.2325581395 | I44: 48 | J44: 1.11627907 | K44: 49 | L44: 1.139534884 | M44: 53 | N44: 1.23255814 | O44: 54 | P44: 1.255813953 | Q44: 51 | R44: 1.186046512 | S44: 34 | T44: 0.7906976744 | U44: 42 | V44: 0.976744186 | W44: 46 | X44: 1.069767442 | Y44: 51 | Z44: 1.186046512 | AB44: 4 | AC44: 0.09302325581 | AE44: =cálculos1!O44 -> 8 | AF44: 0.8 | AG44: =cálculos1!P44 -> 4 | AH44: 1
A45: Central | B45: Linhares | C45: 2615 | D45: 1134 | E45: 1407 | F45: 1.240740741 | G45: 1417 | H45: 1.249559083 | I45: 944 | J45: 0.8324514991 | K45: 916 | L45: 0.8077601411 | M45: 811 | N45: 0.7151675485 | O45: 985 | P45: 0.8686067019 | Q45: 981 | R45: 0.8650793651 | S45: 803 | T45: 0.7081128748 | U45: 841 | V45: 0.741622575 | W45: 915 | X45: 0.8068783069 | Y45: 748 | Z45: 0.6596119929 | AB45: 8 | AC45: 0.007054673721 | AE45: =cálculos1!O45 -> 1 | AF45: 0.1 | AG45: =cálculos1!P45 -> 0 | AH45: 0
A46: Central | B46: Mantenópolis | C46: 136 | D46: 68 | E46: 11 | F46: 0.1617647059 | G46: 14 | H46: 0.2058823529 | I46: 54 | J46: 0.7941176471 | K46: 52 | L46: 0.7647058824 | M46: 36 | N46: 0.5294117647 | O46: 42 | P46: 0.6176470588 | Q46: 56 | R46: 0.8235294118 | S46: 67 | T46: 0.9852941176 | U46: 44 | V46: 0.6470588235 | W46: 67 | X46: 0.9852941176 | Y46: 58 | Z46: 0.8529411765 | AB46: 1 | AC46: 0.01470588235 | AE46: =cálculos1!O46 -> 2 | AF46: 0.2 | AG46: =cálculos1!P46 -> 1 | AH46: 0.25
A47: Sul | B47: Marataízes | C47: 556 | D47: 241 | E47: 15 | F47: 0.0622406639 | G47: 102 | H47: 0.4232365145 | I47: 219 | J47: 0.9087136929 | K47: 187 | L47: 0.77593361 | M47: 232 | N47: 0.9626556017 | O47: 244 | P47: 1.012448133 | Q47: 230 | R47: 0.9543568465 | S47: 151 | T47: 0.6265560166 | U47: 217 | V47: 0.9004149378 | W47: 247 | X47: 1.024896266 | Y47: 175 | Z47: 0.7261410788 | AB47: 2 | AC47: 0.008298755187 | AE47: =cálculos1!O47 -> 4 | AF47: 0.4 | AG47: =cálculos1!P47 -> 2 | AH47: 0.5
A48: Metropolitana | B48: Marechal Floriano | C48: 195 | D48: 99 | E48: 15 | F48: 0.1515151515 | G48: 10 | H48: 0.101010101 | I48: 72 | J48: 0.7272727273 | K48: 72 | L48: 0.7272727273 | M48: 68 | N48: 0.6868686869 | O48: 71 | P48: 0.7171717172 | Q48: 76 | R48: 0.7676767677 | S48: 73 | T48: 0.7373737374 | U48: 99 | V48: 1 | W48: 82 | X48: 0.8282828283 | Y48: 102 | Z48: 1.03030303 | AB48: 9 | AC48: 0.09090909091 | AE48: =cálculos1!O48 -> 2 | AF48: 0.2 | AG48: =cálculos1!P48 -> 0 | AH48: 0
A49: Central | B49: Marilândia | C49: 150 | D49: 68 | E49: 19 | F49: 0.2794117647 | G49: 27 | H49: 0.3970588235 | I49: 54 | J49: 0.7941176471 | K49: 54 | L49: 0.7941176471 | M49: 45 | N49: 0.6617647059 | O49: 55 | P49: 0.8088235294 | Q49: 46 | R49: 0.6764705882 | S49: 65 | T49: 0.9558823529 | U49: 55 | V49: 0.8088235294 | W49: 71 | X49: 1.044117647 | Y49: 60 | Z49: 0.8823529412 | AB49: 4 | AC49: 0.05882352941 | AE49: =cálculos1!O49 -> 2 | AF49: 0.2 | AG49: =cálculos1!P49 -> 1 | AH49: 0.25
A50: Sul | B50: Mimoso do Sul | C50: 291 | D50: 139 | E50: 16 | F50: 0.1151079137 | G50: 20 | H50: 0.1438848921 | I50: 91 | J50: 0.654676259 | K50: 78 | L50: 0.5611510791 | M50: 90 | N50: 0.6474820144 | O50: 96 | P50: 0.690647482 | Q50: 88 | R50: 0.6330935252 | S50: 83 | T50: 0.5971223022 | U50: 70 | V50: 0.5035971223 | W50: 86 | X50: 0.618705036 | Y50: 80 | Z50: 0.5755395683 | AB50: 3 | AC50: 0.02158273381 | AE50: =cálculos1!O50 -> 0 | AF50: 0 | AG50: =cálculos1!P50 -> 0 | AH50: 0
A51: Norte | B51: Montanha | C51: 226 | D51: 97 | E51: 28 | F51: 0.2886597938 | G51: 41 | H51: 0.4226804124 | I51: 108 | J51: 1.113402062 | K51: 106 | L51: 1.092783505 | M51: 86 | N51: 0.8865979381 | O51: 101 | P51: 1.041237113 | Q51: 104 | R51: 1.072164948 | S51: 96 | T51: 0.9896907216 | U51: 95 | V51: 0.9793814433 | W51: 105 | X51: 1.082474227 | Y51: 114 | Z51: 1.175257732 | AB51: 3 | AC51: 0.03092783505 | AE51: =cálculos1!O51 -> 8 | AF51: 0.8 | AG51: =cálculos1!P51 -> 3 | AH51: 0.75
A52: Norte | B52: Mucurici | C52: 69 | D52: 29 | E52: 5 | F52: 0.1724137931 | G52: 2 | H52: 0.06896551724 | I52: 25 | J52: 0.8620689655 | K52: 26 | L52: 0.8965517241 | M52: 24 | N52: 0.8275862069 | O52: 24 | P52: 0.8275862069 | Q52: 25 | R52: 0.8620689655 | S52: 33 | T52: 1.137931034 | U52: 36 | V52: 1.24137931 | W52: 26 | X52: 0.8965517241 | Y52: 37 | Z52: 1.275862069 | AB52: 1 | AC52: 0.03448275862 | AE52: =cálculos1!O52 -> 3 | AF52: 0.3 | AG52: =cálculos1!P52 -> 0 | AH52: 0
A53: Sul | B53: Muniz Freire | C53: 213 | D53: 85 | E53: 44 | F53: 0.5176470588 | G53: 57 | H53: 0.6705882353 | I53: 97 | J53: 1.141176471 | K53: 94 | L53: 1.105882353 | M53: 96 | N53: 1.129411765 | O53: 98 | P53: 1.152941176 | Q53: 90 | R53: 1.058823529 | S53: 96 | T53: 1.129411765 | U53: 93 | V53: 1.094117647 | W53: 112 | X53: 1.317647059 | Y53: 112 | Z53: 1.317647059 | AB53: 3 | AC53: 0.03529411765 | AE53: =cálculos1!O53 -> 9 | AF53: 0.9 | AG53: =cálculos1!P53 -> 4 | AH53: 1
A54: Sul | B54: Muqui | C54: 144 | D54: 62 | E54: 10 | F54: 0.1612903226 | G54: 10 | H54: 0.1612903226 | I54: 61 | J54: 0.9838709677 | K54: 61 | L54: 0.9838709677 | M54: 59 | N54: 0.9516129032 | O54: 60 | P54: 0.9677419355 | Q54: 51 | R54: 0.8225806452 | S54: 69 | T54: 1.112903226 | U54: 54 | V54: 0.8709677419 | W54: 66 | X54: 1.064516129 | Y54: 57 | Z54: 0.9193548387 | AB54: 6 | AC54: 0.09677419355 | AE54: =cálculos1!O54 -> 6 | AF54: 0.6 | AG54: =cálculos1!P54 -> 4 | AH54: 1
A55: Norte | B55: Nova Venécia | C55: 664 | D55: 296 | E55: 210 | F55: 0.7094594595 | G55: 184 | H55: 0.6216216216 | I55: 251 | J55: 0.847972973 | K55: 246 | L55: 0.8310810811 | M55: 215 | N55: 0.7263513514 | O55: 263 | P55: 0.8885135135 | Q55: 271 | R55: 0.9155405405 | S55: 226 | T55: 0.7635135135 | U55: 242 | V55: 0.8175675676 | W55: 288 | X55: 0.972972973 | Y55: 203 | Z55: 0.6858108108 | AB55: 6 | AC55: 0.02027027027 | AE55: =cálculos1!O55 -> 1 | AF55: 0.1 | AG55: =cálculos1!P55 -> 1 | AH55: 0.25
A56: Central | B56: Pancas | C56: 208 | D56: 101 | E56: 43 | F56: 0.4257425743 | G56: 50 | H56: 0.495049505 | I56: 74 | J56: 0.7326732673 | K56: 75 | L56: 0.7425742574 | M56: 77 | N56: 0.7623762376 | O56: 77 | P56: 0.7623762376 | Q56: 79 | R56: 0.7821782178 | S56: 80 | T56: 0.7920792079 | U56: 88 | V56: 0.8712871287 | W56: 92 | X56: 0.9108910891 | Y56: 95 | Z56: 0.9405940594 | AB56: 3 | AC56: 0.0297029703 | AE56: =cálculos1!O56 -> 0 | AF56: 0 | AG56: =cálculos1!P56 -> 0 | AH56: 0
A57: Norte | B57: Pedro Canário | C57: 325 | D57: 145 | E57: 7 | F57: 0.04827586207 | G57: 15 | H57: 0.1034482759 | I57: 124 | J57: 0.8551724138 | K57: 123 | L57: 0.8482758621 | M57: 115 | N57: 0.7931034483 | O57: 115 | P57: 0.7931034483 | Q57: 114 | R57: 0.7862068966 | S57: 103 | T57: 0.7103448276 | U57: 132 | V57: 0.9103448276 | W57: 164 | X57: 1.131034483 | Y57: 103 | Z57: 0.7103448276 | AB57: 6 | AC57: 0.04137931034 | AE57: =cálculos1!O57 -> 1 | AF57: 0.1 | AG57: =cálculos1!P57 -> 1 | AH57: 0.25
A58: Norte | B58: Pinheiros | C58: 333 | D58: 156 | E58: 2 | F58: 0.01282051282 | G58: 7 | H58: 0.04487179487 | I58: 115 | J58: 0.7371794872 | K58: 116 | L58: 0.7435897436 | M58: 97 | N58: 0.6217948718 | O58: 105 | P58: 0.6730769231 | Q58: 108 | R58: 0.6923076923 | S58: 107 | T58: 0.6858974359 | U58: 115 | V58: 0.7371794872 | W58: 112 | X58: 0.7179487179 | Y58: 105 | Z58: 0.6730769231 | AB58: 1 | AC58: 0.00641025641 | AE58: =cálculos1!O58 -> 0 | AF58: 0 | AG58: =cálculos1!P58 -> 0 | AH58: 0
A59: Sul | B59: Piúma | C59: 313 | D59: 141 | E59: 8 | F59: 0.05673758865 | G59: 63 | H59: 0.4468085106 | I59: 117 | J59: 0.829787234 | K59: 108 | L59: 0.7659574468 | M59: 114 | N59: 0.8085106383 | O59: 124 | P59: 0.8794326241 | Q59: 118 | R59: 0.8368794326 | S59: 90 | T59: 0.6382978723 | U59: 126 | V59: 0.8936170213 | W59: 137 | X59: 0.9716312057 | Y59: 99 | Z59: 0.7021276596 | AB59: 4 | AC59: 0.02836879433 | AE59: =cálculos1!O59 -> 1 | AF59: 0.1 | AG59: =cálculos1!P59 -> 1 | AH59: 0.25
A60: Norte | B60: Ponto Belo | C60: 86 | D60: 37 | E60: 4 | F60: 0.1081081081 | G60: 4 | H60: 0.1081081081 | I60: 39 | J60: 1.054054054 | K60: 39 | L60: 1.054054054 | M60: 34 | N60: 0.9189189189 | O60: 36 | P60: 0.972972973 | Q60: 34 | R60: 0.9189189189 | S60: 40 | T60: 1.081081081 | U60: 37 | V60: 1 | W60: 35 | X60: 0.9459459459 | Y60: 30 | Z60: 0.8108108108 | AB60: 0 | AC60: 0 | AE60: =cálculos1!O60 -> 5 | AF60: 0.5 | AG60: =cálculos1!P60 -> 2 | AH60: 0.5
A61: Sul | B61: Presidente Kennedy | C61: 207 | D61: 89 | E61: 6 | F61: 0.06741573034 | G61: 10 | H61: 0.1123595506 | I61: 71 | J61: 0.797752809 | K61: 71 | L61: 0.797752809 | M61: 80 | N61: 0.8988764045 | O61: 83 | P61: 0.9325842697 | Q61: 80 | R61: 0.8988764045 | S61: 89 | T61: 1 | U61: 71 | V61: 0.797752809 | W61: 103 | X61: 1.157303371 | Y61: 80 | Z61: 0.8988764045 | AB61: 4 | AC61: 0.04494382022 | AE61: =cálculos1!O61 -> 3 | AF61: 0.3 | AG61: =cálculos1!P61 -> 1 | AH61: 0.25
A62: Central | B62: Rio Bananal | C62: 305 | D62: 134 | E62: 25 | F62: 0.1865671642 | G62: 24 | H62: 0.1791044776 | I62: 109 | J62: 0.8134328358 | K62: 108 | L62: 0.8059701493 | M62: 96 | N62: 0.7164179104 | O62: 108 | P62: 0.8059701493 | Q62: 112 | R62: 0.8358208955 | S62: 114 | T62: 0.8507462687 | U62: 111 | V62: 0.828358209 | W62: 126 | X62: 0.9402985075 | Y62: 91 | Z62: 0.6791044776 | AB62: 6 | AC62: 0.0447761194 | AE62: =cálculos1!O62 -> 0 | AF62: 0 | AG62: =cálculos1!P62 -> 0 | AH62: 0
A63: Sul | B63: Rio Novo do Sul | C63: 110 | D63: 48 | E63: 1 | F63: 0.02083333333 | G63: 17 | H63: 0.3541666667 | I63: 45 | J63: 0.9375 | K63: 45 | L63: 0.9375 | M63: 39 | N63: 0.8125 | O63: 42 | P63: 0.875 | Q63: 40 | R63: 0.8333333333 | S63: 33 | T63: 0.6875 | U63: 41 | V63: 0.8541666667 | W63: 37 | X63: 0.7708333333 | Y63: 38 | Z63: 0.7916666667 | AB63: 1 | AC63: 0.02083333333 | AE63: =cálculos1!O63 -> 0 | AF63: 0 | AG63: =cálculos1!P63 -> 0 | AH63: 0
A64: Metropolitana | B64: Santa Leopoldina | C64: 92 | D64: 50 | E64: 5 | F64: 0.1 | G64: 8 | H64: 0.16 | I64: 31 | J64: 0.62 | K64: 30 | L64: 0.6 | M64: 27 | N64: 0.54 | O64: 30 | P64: 0.6 | Q64: 28 | R64: 0.56 | S64: 33 | T64: 0.66 | U64: 38 | V64: 0.76 | W64: 25 | X64: 0.5 | Y64: 27 | Z64: 0.54 | AB64: 0 | AC64: 0 | AE64: =cálculos1!O64 -> 0 | AF64: 0 | AG64: =cálculos1!P64 -> 0 | AH64: 0
A65: Metropolitana | B65: Santa Maria de Jetibá | C65: 658 | D65: 255 | E65: 202 | F65: 0.7921568627 | G65: 195 | H65: 0.7647058824 | I65: 230 | J65: 0.9019607843 | K65: 229 | L65: 0.8980392157 | M65: 262 | N65: 1.02745098 | O65: 276 | P65: 1.082352941 | Q65: 269 | R65: 1.054901961 | S65: 199 | T65: 0.7803921569 | U65: 255 | V65: 1 | W65: 258 | X65: 1.011764706 | Y65: 216 | Z65: 0.8470588235 | AB65: 0 | AC65: 0 | AE65: =cálculos1!O65 -> 5 | AF65: 0.5 | AG65: =cálculos1!P65 -> 2 | AH65: 0.5
A66: Metropolitana | B66: Santa Teresa | C66: 296 | D66: 131 | E66: 333 | F66: 2.541984733 | G66: 330 | H66: 2.519083969 | I66: 104 | J66: 0.7938931298 | K66: 104 | L66: 0.7938931298 | M66: 85 | N66: 0.6488549618 | O66: 99 | P66: 0.7557251908 | Q66: 108 | R66: 0.8244274809 | S66: 93 | T66: 0.7099236641 | U66: 105 | V66: 0.8015267176 | W66: 105 | X66: 0.8015267176 | Y66: 105 | Z66: 0.8015267176 | AB66: 1 | AC66: 0.007633587786 | AE66: =cálculos1!O66 -> 1 | AF66: 0.1 | AG66: =cálculos1!P66 -> 0 | AH66: 0
A67: Central | B67: São Domingos do Norte | C67: 109 | D67: 43 | E67: 15 | F67: 0.3488372093 | G67: 18 | H67: =G67/D67 -> 0.4186046512 | I67: 37 | J67: =I67/D67 -> 0.8604651163 | K67: 39 | L67: =K67/D67 -> 0.9069767442 | M67: 35 | N67: =M67/D67 -> 0.8139534884 | O67: 36 | P67: =O67/D67 -> 0.8372093023 | Q67: 33 | R67: =Q67/D67 -> 0.7674418605 | S67: 44 | T67: =S67/D67 -> 1.023255814 | U67: 54 | V67: =U67/D67 -> 1.255813953 | W67: 44 | X67: =W67/D67 -> 1.023255814 | Y67: 44 | Z67: =Y67/D67 -> 1.023255814 | AB67: 0 | AC67: 0 | AE67: =cálculos1!O67 -> 4 | AF67: 0.4 | AG67: =cálculos1!P67 -> 1 | AH67: 0.25
A68: Central | B68: São Gabriel da Palha | C68: 408 | D68: 190 | E68: 53 | F68: =E68/D68 -> 0.2789473684 | G68: 65 | H68: 0.3421052632 | I68: 159 | J68: 0.8368421053 | K68: 159 | L68: 0.8368421053 | M68: 123 | N68: 0.6473684211 | O68: 145 | P68: 0.7631578947 | Q68: 155 | R68: 0.8157894737 | S68: 172 | T68: 0.9052631579 | U68: 149 | V68: 0.7842105263 | W68: 167 | X68: 0.8789473684 | Y68: 146 | Z68: 0.7684210526 | AB68: 5 | AC68: =AB68/D68 -> 0.02631578947 | AE68: =cálculos1!O68 -> 0 | AF68: =AE68*0.1 -> 0 | AG68: =cálculos1!P68 -> 0 | AH68: =AG68*0.25 -> 0
A69: Sul | B69: São José do Calçado | C69: 95 | D69: 38 | E69: 29 | F69: 0.7631578947 | G69: 35 | H69: 0.9210526316 | I69: 40 | J69: 1.052631579 | K69: 40 | L69: 1.052631579 | M69: 35 | N69: 0.9210526316 | O69: 35 | P69: 0.9210526316 | Q69: 35 | R69: 0.9210526316 | S69: 28 | T69: 0.7368421053 | U69: 44 | V69: 1.157894737 | W69: 38 | X69: 1 | Y69: 45 | Z69: 1.184210526 | AB69: 3 | AC69: 0.07894736842 | AE69: =cálculos1!O69 -> 7 | AF69: 0.7 | AG69: =cálculos1!P69 -> 3 | AH69: 0.75
A70: Norte | B70: São Mateus | C70: 1801 | D70: 799 | E70: 1134 | F70: 1.419274093 | G70: 1045 | H70: 1.307884856 | I70: 626 | J70: 0.7834793492 | K70: 616 | L70: 0.7709637046 | M70: 538 | N70: 0.6733416771 | O70: 612 | P70: 0.7659574468 | Q70: 619 | R70: 0.774718398 | S70: 531 | T70: 0.6645807259 | U70: 634 | V70: 0.7934918648 | W70: 693 | X70: 0.8673341677 | Y70: 534 | Z70: 0.6683354193 | AB70: 40 | AC70: 0.05006257822 | AE70: =cálculos1!O70 -> 1 | AF70: 0.1 | AG70: =cálculos1!P70 -> 0 | AH70: 0
A71: Central | B71: São Roque do Canaã | C71: 113 | D71: 48 | E71: 23 | F71: 0.4791666667 | G71: 20 | H71: 0.4166666667 | I71: 45 | J71: 0.9375 | K71: 42 | L71: 0.875 | M71: 43 | N71: 0.8958333333 | O71: 50 | P71: 1.041666667 | Q71: 40 | R71: 0.8333333333 | S71: 43 | T71: 0.8958333333 | U71: 42 | V71: 0.875 | W71: 58 | X71: 1.208333333 | Y71: 48 | Z71: 1 | AB71: 4 | AC71: 0.08333333333 | AE71: =cálculos1!O71 -> 3 | AF71: 0.3 | AG71: =cálculos1!P71 -> 1 | AH71: 0.25
A72: Metropolitana | B72: Serra | C72: 7280 | D72: 3131 | E72: 3780 | F72: 1.207282019 | G72: 3606 | H72: 1.151708719 | I72: 2512 | J72: 0.8022995848 | K72: 2444 | L72: 0.7805812839 | M72: 2389 | N72: 0.7630150112 | O72: 2576 | P72: 0.8227403385 | Q72: 2498 | R72: 0.7978281699 | S72: 2086 | T72: 0.6662408176 | U72: 2634 | V72: 0.8412647716 | W72: 2695 | X72: 0.8607473651 | Y72: 2244 | Z72: 0.7167039285 | AB72: 67 | AC72: 0.02139891408 | AE72: =cálculos1!O72 -> 1 | AF72: 0.1 | AG72: =cálculos1!P72 -> 0 | AH72: 0
A73: Central | B73: Sooretama | C73: 419 | D73: 163 | E73: 13 | F73: 0.07975460123 | G73: 18 | H73: 0.1104294479 | I73: 166 | J73: 1.018404908 | K73: 160 | L73: 0.981595092 | M73: 140 | N73: 0.8588957055 | O73: 147 | P73: 0.9018404908 | Q73: 163 | R73: 1 | S73: 150 | T73: 0.9202453988 | U73: 150 | V73: 0.9202453988 | W73: 180 | X73: 1.104294479 | Y73: 121 | Z73: 0.7423312883 | AB73: 1 | AC73: 0.006134969325 | AE73: =cálculos1!O73 -> 5 | AF73: 0.5 | AG73: =cálculos1!P73 -> 3 | AH73: 0.75
A74: Sul | B74: Vargem Alta | C74: 267 | D74: 120 | E74: 9 | F74: 0.075 | G74: 17 | H74: 0.1416666667 | I74: 95 | J74: 0.7916666667 | K74: 90 | L74: 0.75 | M74: 102 | N74: 0.85 | O74: 100 | P74: 0.8333333333 | Q74: 99 | R74: 0.825 | S74: 91 | T74: 0.7583333333 | U74: 93 | V74: 0.775 | W74: 104 | X74: 0.8666666667 | Y74: 112 | Z74: 0.9333333333 | AB74: 5 | AC74: 0.04166666667 | AE74: =cálculos1!O74 -> 0 | AF74: 0 | AG74: =cálculos1!P74 -> 0 | AH74: 0
A75: Metropolitana | B75: Venda Nova do Imigrante | C75: 335 | D75: 138 | E75: 266 | F75: 1.927536232 | G75: 192 | H75: 1.391304348 | I75: 151 | J75: 1.094202899 | K75: 151 | L75: 1.094202899 | M75: 131 | N75: 0.9492753623 | O75: 155 | P75: 1.123188406 | Q75: 142 | R75: 1.028985507 | S75: 118 | T75: 0.8550724638 | U75: 169 | V75: 1.224637681 | W75: 166 | X75: 1.202898551 | Y75: 188 | Z75: 1.362318841 | AB75: 6 | AC75: 0.04347826087 | AE75: =cálculos1!O75 -> 8 | AF75: 0.8 | AG75: =cálculos1!P75 -> 3 | AH75: 0.75
A76: Metropolitana | B76: Viana | C76: 887 | D76: 386 | E76: 87 | F76: 0.225388601 | G76: 73 | H76: 0.189119171 | I76: 354 | J76: 0.9170984456 | K76: 323 | L76: 0.8367875648 | M76: 343 | N76: 0.8886010363 | O76: 354 | P76: 0.9170984456 | Q76: 343 | R76: 0.8886010363 | S76: 232 | T76: 0.6010362694 | U76: 340 | V76: 0.8808290155 | W76: 407 | X76: 1.054404145 | Y76: 234 | Z76: 0.6062176166 | AB76: 12 | AC76: 0.0310880829 | AE76: =cálculos1!O76 -> 2 | AF76: 0.2 | AG76: =cálculos1!P76 -> 1 | AH76: 0.25
A77: Norte | B77: Vila Pavão | C77: 115 | D77: 56 | E77: 10 | F77: 0.1785714286 | G77: 22 | H77: 0.3928571429 | I77: 60 | J77: 1.071428571 | K77: 57 | L77: 1.017857143 | M77: 44 | N77: 0.7857142857 | O77: 45 | P77: 0.8035714286 | Q77: 56 | R77: 1 | S77: 55 | T77: 0.9821428571 | U77: 34 | V77: 0.6071428571 | W77: 48 | X77: 0.8571428571 | Y77: 41 | Z77: 0.7321428571 | AB77: 4 | AC77: 0.07142857143 | AE77: =cálculos1!O77 -> 4 | AF77: 0.4 | AG77: =cálculos1!P77 -> 2 | AH77: 0.5
A78: Central | B78: Vila Valério | C78: 220 | D78: 88 | E78: 20 | F78: 0.2272727273 | G78: 27 | H78: 0.3068181818 | I78: 88 | J78: 1 | K78: 87 | L78: 0.9886363636 | M78: 68 | N78: 0.7727272727 | O78: 65 | P78: 0.7386363636 | Q78: 83 | R78: 0.9431818182 | S78: 92 | T78: 1.045454545 | U78: 111 | V78: 1.261363636 | W78: 108 | X78: 1.227272727 | Y78: 104 | Z78: 1.181818182 | AB78: 0 | AC78: 0 | AE78: =cálculos1!O78 -> 6 | AF78: 0.6 | AG78: =cálculos1!P78 -> 3 | AH78: 0.75
A79: Metropolitana | B79: Vila Velha | C79: 5478 | D79: 2421 | E79: 1870 | F79: 0.7724080958 | G79: 1819 | H79: 0.7513424205 | I79: 1778 | J79: 0.7344072697 | K79: 1782 | L79: 0.7360594796 | M79: 1575 | N79: 0.6505576208 | O79: 1842 | P79: 0.760842627 | Q79: 1830 | R79: 0.7558859975 | S79: 1384 | T79: 0.5716646014 | U79: 1882 | V79: 0.7773647253 | W79: 1935 | X79: 0.7992565056 | Y79: 1799 | Z79: 0.7430813713 | AB79: 74 | AC79: 0.03056588187 | AE79: =cálculos1!O79 -> 0 | AF79: 0 | AG79: =cálculos1!P79 -> 0 | AH79: 0
A80: Metropolitana | B80: Vitória | C80: 3431 | D80: 1477 | E80: 2270 | F80: 1.53689912 | G80: 2637 | H80: 1.785375762 | I80: 1690 | J80: 1.144211239 | K80: 1688 | L80: 1.142857143 | M80: 1145 | N80: 0.7752200406 | O80: 1608 | P80: 1.088693297 | Q80: 1667 | R80: 1.128639133 | S80: 1004 | T80: 0.6797562627 | U80: 1616 | V80: 1.094109682 | W80: 1816 | X80: 1.229519296 | Y80: 1618 | Z80: 1.095463778 | AB80: 79 | AC80: 0.05348679756 | AE80: =cálculos1!O80 -> 8 | AF80: 0.8 | AG80: =cálculos1!P80 -> 3 | AH80: 0.75
B82: Total Norte | C82: =SUMIF($A$3:$A$80,"Norte",C$3:C$80) -> 5675 | D82: =SUMIF($A$3:$A$80,"Norte",D$3:D$80) -> 2568 | E82: =SUMIF($A$3:$A$80,"Norte",E$3:E$80) -> 1804 | F82: =E82/D82 -> 0.7024922118 | G82: =SUMIF($A$3:$A$80,"Norte",G$3:G$80) -> 1759 | H82: =G82/D82 -> 0.6849688474 | I82: =SUMIF($A$3:$A$80,"Norte",I$3:I$80) -> 2111 | J82: =I82/D82 -> 0.8220404984 | K82: =SUMIF($A$3:$A$80,"Norte",K$3:K$80) -> 2052 | L82: =K82/D82 -> 0.7990654206 | M82: =SUMIF($A$3:$A$80,"Norte",M$3:M$80) -> 1829 | N82: =M82/D82 -> 0.7122274143 | O82: =SUMIF($A$3:$A$80,"Norte",O$3:O$80) -> 1984 | P82: =O82/D82 -> 0.7725856698 | Q82: =SUMIF($A$3:$A$80,"Norte",Q$3:Q$80) -> 2039 | R82: =Q82/D82 -> 0.7940031153 | S82: =SUMIF($A$3:$A$80,"Norte",S$3:S$80) -> 1904 | T82: =S82/D82 -> 0.7414330218 | U82: =SUMIF($A$3:$A$80,"Norte",U$3:U$80) -> 2078 | V82: =U82/D82 -> 0.8091900312 | W82: =SUMIF($A$3:$A$80,"Norte",W$3:W$80) -> 2320 | X82: =W82/D82 -> 0.9034267913 | Y82: =SUMIF($A$3:$A$80,"Norte",Y$3:Y$80) -> 1850 | Z82: =Y82/D82 -> 0.7204049844 | AB82: =SUMIF($A$3:$A$80,"Norte",AB$3:AB$80) -> 66 | AC82: =AB82/D82 -> 0.02570093458 | AE82: =cálculos1!O82 -> 0 | AF82: =AE82*0.1 -> 0 | AG82: =cálculos1!P82 -> 0 | AH82: 0
B83: Total Central | C83: =SUMIF($A$3:$A$80,"Central",C$3:C$80) -> 6832 | D83: =SUMIF($A$3:$A$80,"Central",D$3:D$80) -> 2986 | E83: =SUMIF($A$3:$A$80,"Central",E$3:E$80) -> 3243 | F83: =E83/D83 -> 1.086068319 | G83: =SUMIF($A$3:$A$80,"Central",G$3:G$80) -> 3285 | H83: =G83/D83 -> 1.100133958 | I83: =SUMIF($A$3:$A$80,"Central",I$3:I$80) -> 2564 | J83: =I83/D83 -> 0.8586738111 | K83: =SUMIF($A$3:$A$80,"Central",K$3:K$80) -> 2529 | L83: =K83/D83 -> 0.8469524447 | M83: =SUMIF($A$3:$A$80,"Central",M$3:M$80) -> 2129 | N83: =M83/D83 -> 0.7129939719 | O83: =SUMIF($A$3:$A$80,"Central",O$3:O$80) -> 2475 | P83: =O83/D83 -> 0.8288680509 | Q83: =SUMIF($A$3:$A$80,"Central",Q$3:Q$80) -> 2588 | R83: =Q83/D83 -> 0.8667113195 | S83: =SUMIF($A$3:$A$80,"Central",S$3:S$80) -> 2379 | T83: =S83/D83 -> 0.7967180174 | U83: =SUMIF($A$3:$A$80,"Central",U$3:U$80) -> 2500 | V83: =U83/D83 -> 0.8372404555 | W83: =SUMIF($A$3:$A$80,"Central",W$3:W$80) -> 2737 | X83: =W83/D83 -> 0.9166108506 | Y83: =SUMIF($A$3:$A$80,"Central",Y$3:Y$80) -> 2281 | Z83: =Y83/D83 -> 0.7638981916 | AB83: =SUMIF($A$3:$A$80,"Central",AB$3:AB$80) -> 50 | AC83: =AB83/D83 -> 0.01674480911 | AE83: =cálculos1!O83 -> 1 | AF83: =AE83*0.1 -> 0.1 | AG83: =cálculos1!P83 -> 0 | AH83: 0
B84: Total Metropolitana | C84: =SUMIF($A$3:$A$80,"Metropolitana",C$3:C$80) -> 28997 | D84: =SUMIF($A$3:$A$80,"Metropolitana",D$3:D$80) -> 12689 | E84: =SUMIF($A$3:$A$80,"Metropolitana",E$3:E$80) -> 11487 | F84: =E84/D84 -> 0.9052722831 | G84: =SUMIF($A$3:$A$80,"Metropolitana",G$3:G$80) -> 11682 | H84: =G84/D84 -> 0.9206399243 | I84: =SUMIF($A$3:$A$80,"Metropolitana",I$3:I$80) -> 10628 | J84: =I84/D84 -> 0.8375758531 | K84: =SUMIF($A$3:$A$80,"Metropolitana",K$3:K$80) -> 10480 | L84: =K84/D84 -> 0.8259122074 | M84: =SUMIF($A$3:$A$80,"Metropolitana",M$3:M$80) -> 9309 | N84: =M84/D84 -> 0.7336275514 | O84: =SUMIF($A$3:$A$80,"Metropolitana",O$3:O$80) -> 10722 | P84: =O84/D84 -> 0.8449838443 | Q84: =SUMIF($A$3:$A$80,"Metropolitana",Q$3:Q$80) -> 10615 | R84: =Q84/D84 -> 0.8365513437 | S84: =SUMIF($A$3:$A$80,"Metropolitana",S$3:S$80) -> 8360 | T84: =S84/D84 -> 0.6588383639 | U84: =SUMIF($A$3:$A$80,"Metropolitana",U$3:U$80) -> 11094 | V84: =U84/D84 -> 0.8743005753 | W84: =SUMIF($A$3:$A$80,"Metropolitana",W$3:W$80) -> 11591 | X84: =W84/D84 -> 0.9134683584 | Y84: =SUMIF($A$3:$A$80,"Metropolitana",Y$3:Y$80) -> 10116 | Z84: =Y84/D84 -> 0.7972259437 | AB84: =SUMIF($A$3:$A$80,"Metropolitana",AB$3:AB$80) -> 465 | AC84: 0.03664591378 | AE84: =cálculos1!O84 -> 1 | AF84: 0.1 | AG84: =cálculos1!P84 -> 0 | AH84: 0
B85: Total Sul | C85: =SUMIF($A$3:$A$80,"sul",C$3:C$80) -> 8061 | D85: =SUMIF($A$3:$A$80,"sul",D$3:D$80) -> 3529 | E85: =SUMIF($A$3:$A$80,"Sul",E$3:E$80) -> 3299 | F85: =E85/D85 -> 0.9348257297 | G85: =SUMIF($A$3:$A$80,"Sul",G$3:G$80) -> 3408 | H85: =G85/D85 -> 0.9657126665 | I85: =SUMIF($A$3:$A$80,"Sul",I$3:I$80) -> 3088 | J85: =I85/D85 -> 0.8750354208 | K85: =SUMIF($A$3:$A$80,"Sul",K$3:K$80) -> 2966 | L85: =K85/D85 -> 0.8404647209 | M85: =SUMIF($A$3:$A$80,"Sul",M$3:M$80) -> 2855 | N85: =M85/D85 -> 0.8090110513 | O85: =SUMIF($A$3:$A$80,"Sul",O$3:O$80) -> 3139 | P85: =O85/D85 -> 0.8894871068 | Q85: =SUMIF($A$3:$A$80,"Sul",Q$3:Q$80) -> 3051 | R85: =Q85/D85 -> 0.8645508643 | S85: =SUMIF($A$3:$A$80,"Sul",S$3:S$80) -> 2707 | T85: =S85/D85 -> 0.7670728252 | U85: =SUMIF($A$3:$A$80,"Sul",U$3:U$80) -> 3155 | V85: =U85/D85 -> 0.8940209691 | W85: =SUMIF($A$3:$A$80,"Sul",W$3:W$80) -> 3501 | X85: =W85/D85 -> 0.992065741 | Y85: =SUMIF($A$3:$A$80,"Sul",Y$3:Y$80) -> 3037 | Z85: =Y85/D85 -> 0.8605837348 | AB85: =SUMIF($A$3:$A$80,"Sul",AB$3:AB$80) -> 119 | AC85: 0.03372060074 | AE85: =cálculos1!O85 -> 2 | AF85: 0.2 | AG85: =cálculos1!P85 -> 1 | AH85: 0.25
B86: Total Espírito Santo | C86: =SUM(C3:C80) -> 49565 | D86: =SUM(D3:D80) -> 21772 | E86: =SUM(E82:E85) -> 19833 | F86: =E86/D86 -> 0.9109406577 | G86: =SUM(G82:G85) -> 20134 | H86: =G86/D86 -> 0.9247657542 | I86: =SUM(I82:I85) -> 18391 | J86: =I86/D86 -> 0.8447088003 | K86: =SUM(K82:K85) -> 18027 | L86: =K86/D86 -> 0.827990079 | M86: =SUM(M82:M85) -> 16122 | N86: =M86/D86 -> 0.7404923755 | O86: =SUM(O82:O85) -> 18320 | P86: =O86/D86 -> 0.841447731 | Q86: =SUM(Q82:Q85) -> 18293 | R86: =Q86/D86 -> 0.8402076061 | S86: =SUM(S82:S85) -> 15350 | T86: =S86/D86 -> 0.7050339886 | U86: =SUM(U82:U85) -> 18827 | V86: =U86/D86 -> 0.8647345214 | W86: =SUM(W82:W85) -> 20149 | X86: =W86/D86 -> 0.9254547125 | Y86: =SUM(Y82:Y85) -> 17284 | Z86: =Y86/D86 -> 0.7938636781 | AB86: =SUM(AB82:AB85) -> 700 | AC86: 0.0321513871 | AE86: =cálculos1!O86 -> 1 | AF86: 0.1 | AG86: =cálculos1!P86 -> 0 | AH86: 0
E87: =COUNTIF(F3:F80,">=0,95") -> 11 | G87: =COUNTIF(H3:H80,">=0,9") -> 13 | I87: =COUNTIF(J3:J80,">=0,95") -> 22 | K87: =COUNTIF(L3:L80,">=0,95") -> 21 | M87: =COUNTIF(N3:N80,">=0,95") -> 12 | O87: =COUNTIF(P3:P80,">=0,9") -> 28 | Q87: =COUNTIF(R3:R80,">=0,95") -> 22 | S87: =COUNTIF(T3:T80,">=0,95") -> 17 | U87: =COUNTIF(V3:V80,">=0,95") -> 29 | W87: =COUNTIF(X3:X80,">=0,95") -> 45 | Y87: =COUNTIF(Z3:Z80,">=0,95") -> 25 | AB87: =COUNTIF(AC3:AC80,">=0,9") -> 0
B88: HOMOGENEIDADE ENTRE MUNICÍPIOS | E88: =E87/78 -> 0.141025641 | G88: =G87/78 -> 0.1666666667 | I88: =I87/78 -> 0.2820512821 | K88: =K87/78 -> 0.2692307692 | M88: =M87/78 -> 0.1538461538 | O88: =O87/78 -> 0.358974359 | Q88: =Q87/78 -> 0.2820512821 | S88: =S87/78 -> 0.2179487179 | U88: =U87/78 -> 0.3717948718 | W88: =W87/78 -> 0.5769230769 | Y88: =Y87/78 -> 0.3205128205 | AB88: =AB87/78 -> 0
A90: Fonte: Vacina e Confia, em 11 de Junho de 2025.**<https://vacinaeconfia.saude.es.gov.br/>
A91: **Dados referente às doses aplicadas no período de Janeiro a Maio 2025
A92: Cobertura Calculada por município de procedência/ocorrência da vacinação
A93: 1 População anual extraída do MS/SVS/DASIS - SINASC/DASIS/SVS/MS 2024 (hoje preliminares) referente ao período de Abril a Dezembro de 2024 e SINASC/DASIS/SVS/MS referente ao período de Janeiro e Março de 2025.
A94: ² População proporcional extraída do MS/SVS/DASIS - SINASC/DASIS/SVS/MS 2024 (hoje preliminares) referente ao período de Abril e Maio 2024 e Janeiro a Março/ 2025.
A95: Sinasc, atualizado em 10/06/25.
A96: Homogeineidade: O cálculo da Homogeineidade entre vacinas é feito de acordo com a pactuação estabelecida no Plano Plurianual (PPA) vigente no período 2024-2027.
A98: Observações:
A99: 1. Imunobiológicos que foram recebidos parcialmente pelo estado no mês de Maio/2025, sendo distribuídos em quantidades reduzidas às regionais e municípios:
A100: SORO ANTIRRÁBICO HUMANO, IMUNOGLOBULINA ANTIRRÁBICA HUMANA, VACINA COVID-19 MODERNA (SPIKEVAX),VACINA COVID-19 PFIZER PEDIÁTRICA
A101: 2. Imunobiológicos indisponíveis no mês de Maio/2025, não sendo possível a distribuição às regionais e municípios:
A102: VACINA TRÍPLICE ACELULAR (DTPa) - CRIE e VACINA COVID-19 RECOMBINANTE SERUM/ZALIKA

Sheet CV Rotina <2A - residência
E1: AO NASCER | I1: MENOR DE 1 ANO | U1: 1 ANO | AB1: MENOR DE 1 ANO
A2: Regional | B2: Município | C2: ¹População < 1 ano e 1 ano anual | D2: ²População < 1 ano e 1 ano proporcional | E2: Doses Aplicadas HB < 30 dias | F2: Cobertura Vacinal HB até 30 dias | G2: Doses Aplicadas BCG | H2: Cobertura Vacinal BCG | I2: Doses Aplicadas Pentavalente | J2: Cobertura Vacinal Pentavalente | K2: Doses Aplicadas Poliomielite | L2: Cobertura Vacinal Poliomielite | M2: Doses Aplicadas Pneumo 10 | N2: Cobertura Vacinal Pneumo 10 | O2: Doses Aplicadas Rotavírus | P2: Cobertura Vacinal Rotavírus | Q2: Doses Aplicadas Meningo C | R2: Cobertura Vacinal Meningo C | S2: Doses Aplicadas Febre Amarela | T2: Cobertura Vacinal Febre Amarela | U2: Doses Aplicadas Hepatite A | V2: Cobertura Vacinal Hepatite A | W2: Doses Aplicadas de Tríplice Viral | X2: Cobertura Vacinal Tríplice Viral | Y2: Doses Aplicadas Varicela | Z2: Cobertura Varicela | AB2: Doses Aplicadas COVID-19 | AC2: Cobertura Vacinal COVID-19 D1 | AE2: VACINAS QUE ATINGIRAM A META DE CV | AF2: HOMOGENEIDADE ENTRE AS 10 VACINAS | AG2: VACINAS DO PQA-VS QUE ATINGIRAM A META DE CV | AH2: HOMOGENEIDADE ENTRE AS VACINAS DO PQA-VS
A3: Metropolitana | B3: Afonso Cláudio | C3: 359 | D3: 151 | E3: 156 | F3: =E3/D3 -> 1.033112583 | G3: 158 | H3: =G3/D3 -> 1.046357616 | I3: 136 | J3: =I3/D3 -> 0.9006622517 | K3: 134 | L3: =K3/D3 -> 0.8874172185 | M3: 130 | N3: =M3/D3 -> 0.8609271523 | O3: 135 | P3: =O3/D3 -> 0.8940397351 | Q3: 135 | R3: =Q3/D3 -> 0.8940397351 | S3: 136 | T3: =S3/D3 -> 0.9006622517 | U3: 169 | V3: =U3/D3 -> 1.119205298 | W3: 163 | X3: =W3/D3 -> 1.079470199 | Y3: 192 | Z3: =Y3/D3 -> 1.271523179 | AB3: 1 | AC3: =AB3/D3 -> 0.006622516556 | AE3: =cálculos2!O3 -> 4 | AF3: =AE3*0.1 -> 0.4 | AG3: =cálculos2!P3 -> 1 | AH3: =AG3*0.25 -> 0.25 | AJ3: LEGENDA / HOMOGENEIDADE PQA-VS
A4: Norte | B4: Água Doce do Norte | C4: 172 | D4: 85 | E4: 57 | F4: =E4/D4 -> 0.6705882353 | G4: 59 | H4: =G4/D4 -> 0.6941176471 | I4: 62 | J4: 0.7294117647 | K4: 61 | L4: 0.7176470588 | M4: 52 | N4: 0.6117647059 | O4: 49 | P4: 0.5764705882 | Q4: 59 | R4: 0.6941176471 | S4: 73 | T4: 0.8588235294 | U4: 51 | V4: 0.6 | W4: 66 | X4: 0.7764705882 | Y4: 30 | Z4: 0.3529411765 | AB4: 1 | AC4: =AB4/D4 -> 0.01176470588 | AE4: =cálculos2!O4 -> 0 | AF4: =AE4*0.1 -> 0 | AG4: =cálculos2!P4 -> 0 | AH4: =AG4*0.25 -> 0 | AJ4: PERCENTUAL | AK4: Nº DE MUNICÍPIOS
A5: Central | B5: Águia Branca | C5: 151 | D5: 79 | E5: 77 | F5: 0.9746835443 | G5: 77 | H5: 0.9746835443 | I5: 52 | J5: 0.6582278481 | K5: 54 | L5: 0.6835443038 | M5: 43 | N5: 0.5443037975 | O5: 41 | P5: 0.5189873418 | Q5: 53 | R5: 0.6708860759 | S5: 68 | T5: 0.8607594937 | U5: 55 | V5: 0.6962025316 | W5: 69 | X5: 0.8734177215 | Y5: 61 | Z5: 0.7721518987 | AB5: 0 | AC5: 0 | AE5: =cálculos2!O5 -> 1 | AF5: 0.1 | AG5: =cálculos2!P5 -> 0 | AH5: 0 | AJ5: 0 | AK5: =COUNTIF($AH$3:$AH$80,"=0") -> 29
A6: Sul | B6: Alegre | C6: 298 | D6: 127 | E6: 114 | F6: 0.8976377953 | G6: 113 | H6: 0.8897637795 | I6: 113 | J6: 0.8897637795 | K6: 103 | L6: 0.811023622 | M6: 92 | N6: 0.7244094488 | O6: 102 | P6: 0.8031496063 | Q6: 115 | R6: 0.905511811 | S6: 116 | T6: 0.9133858268 | U6: 139 | V6: 1.094488189 | W6: 143 | X6: 1.125984252 | Y6: 162 | Z6: 1.275590551 | AB6: 5 | AC6: 0.03937007874 | AE6: =cálculos2!O6 -> 3 | AF6: 0.3 | AG6: =cálculos2!P6 -> 1 | AH6: 0.25 | AJ6: 0.25 | AK6: =COUNTIF($AH$3:$AH$80,"=0,25") -> 23
A7: Sul | B7: Alfredo Chaves | C7: 122 | D7: 58 | E7: 45 | F7: 0.775862069 | G7: 46 | H7: 0.7931034483 | I7: 44 | J7: 0.7586206897 | K7: 43 | L7: 0.7413793103 | M7: 37 | N7: 0.6379310345 | O7: 39 | P7: 0.6724137931 | Q7: 42 | R7: 0.724137931 | S7: 42 | T7: 0.724137931 | U7: 54 | V7: 0.9310344828 | W7: 51 | X7: 0.8793103448 | Y7: 54 | Z7: 0.9310344828 | AB7: 0 | AC7: 0 | AE7: =cálculos2!O7 -> 0 | AF7: 0 | AG7: =cálculos2!P7 -> 0 | AH7: 0 | AJ7: 0.5 | AK7: =COUNTIF($AH$3:$AH$80,"=0,5") -> 4
A8: Central | B8: Alto Rio Novo | C8: 93 | D8: 42 | E8: 35 | F8: 0.8333333333 | G8: 38 | H8: 0.9047619048 | I8: 37 | J8: 0.880952381 | K8: 38 | L8: 0.9047619048 | M8: 37 | N8: 0.880952381 | O8: 37 | P8: 0.880952381 | Q8: 42 | R8: 1 | S8: 38 | T8: 0.9047619048 | U8: 38 | V8: 0.9047619048 | W8: 40 | X8: 0.9523809524 | Y8: 40 | Z8: 0.9523809524 | AB8: 0 | AC8: 0 | AE8: =cálculos2!O8 -> 4 | AF8: 0.4 | AG8: =cálculos2!P8 -> 1 | AH8: 0.25 | AJ8: 0.75 | AK8: =COUNTIF($AH$3:$AH$80,"=0,75") -> 8
A9: Sul | B9: Anchieta | C9: 352 | D9: 154 | E9: 150 | F9: 0.974025974 | G9: 157 | H9: 1.019480519 | I9: 164 | J9: 1.064935065 | K9: 161 | L9: 1.045454545 | M9: 148 | N9: 0.961038961 | O9: 150 | P9: 0.974025974 | Q9: 145 | R9: 0.9415584416 | S9: 128 | T9: 0.8311688312 | U9: 157 | V9: 1.019480519 | W9: 169 | X9: 1.097402597 | Y9: 169 | Z9: 1.097402597 | AB9: 12 | AC9: 0.07792207792 | AE9: =cálculos2!O9 -> 8 | AF9: 0.8 | AG9: =cálculos2!P9 -> 4 | AH9: 1 | AJ9: 1 | AK9: =COUNTIF($AH$3:$AH$80,"=1,0") -> 14
A10: Sul | B10: Apiacá | C10: 72 | D10: 31 | E10: 7 | F10: 0.2258064516 | G10: 32 | H10: 1.032258065 | I10: 27 | J10: 0.8709677419 | K10: 24 | L10: 0.7741935484 | M10: 29 | N10: 0.935483871 | O10: 30 | P10: 0.9677419355 | Q10: 26 | R10: 0.8387096774 | S10: 25 | T10: 0.8064516129 | U10: 21 | V10: 0.6774193548 | W10: 28 | X10: 0.9032258065 | Y10: 23 | Z10: 0.7419354839 | AB10: 0 | AC10: 0 | AE10: =cálculos2!O10 -> 2 | AF10: 0.2 | AG10: =cálculos2!P10 -> 0 | AH10: 0
A11: Metropolitana | B11: Aracruz | C11: 1392 | D11: 650 | E11: 599 | F11: 0.9215384615 | G11: 611 | H11: 0.94 | I11: 500 | J11: 0.7692307692 | K11: 498 | L11: 0.7661538462 | M11: 458 | N11: 0.7046153846 | O11: 497 | P11: 0.7646153846 | Q11: 487 | R11: 0.7492307692 | S11: 462 | T11: 0.7107692308 | U11: 582 | V11: 0.8953846154 | W11: 618 | X11: 0.9507692308 | Y11: 589 | Z11: 0.9061538462 | AB11: 38 | AC11: 0.05846153846 | AE11: =cálculos2!O11 -> 2 | AF11: 0.2 | AG11: =cálculos2!P11 -> 1 | AH11: 0.25
A12: Sul | B12: Atilio Vivacqua | C12: 173 | D12: 72 | E12: 64 | F12: 0.8888888889 | G12: 63 | H12: 0.875 | I12: 78 | J12: 1.083333333 | K12: 77 | L12: 1.069444444 | M12: 78 | N12: 1.083333333 | O12: 80 | P12: 1.111111111 | Q12: 80 | R12: 1.111111111 | S12: 59 | T12: 0.8194444444 | U12: 57 | V12: 0.7916666667 | W12: 60 | X12: 0.8333333333 | Y12: 42 | Z12: 0.5833333333 | AB12: 3 | AC12: 0.04166666667 | AE12: =cálculos2!O12 -> 5 | AF12: 0.5 | AG12: =cálculos2!P12 -> 3 | AH12: 0.75 | AJ12: LEGENDA / HOMOGENEIDADE 10 VACINAS
A13: Central | B13: Baixo Guandu | C13: 349 | D13: 168 | E13: 143 | F13: 0.8511904762 | G13: 165 | H13: 0.9821428571 | I13: 112 | J13: 0.6666666667 | K13: 111 | L13: 0.6607142857 | M13: 108 | N13: 0.6428571429 | O13: 113 | P13: 0.6726190476 | Q13: 110 | R13: 0.6547619048 | S13: 137 | T13: 0.8154761905 | U13: 151 | V13: 0.8988095238 | W13: 154 | X13: 0.9166666667 | Y13: 130 | Z13: 0.7738095238 | AB13: 0 | AC13: 0 | AE13: =cálculos2!O13 -> 1 | AF13: 0.1 | AG13: =cálculos2!P13 -> 0 | AH13: 0 | AJ13: PERCENTUAL | AK13: Nº DE MUNICÍPIOS
A14: Norte | B14: Barra de São Francisco | C14: 595 | D14: 247 | E14: 228 | F14: 0.9230769231 | G14: 239 | H14: 0.967611336 | I14: 216 | J14: 0.8744939271 | K14: 194 | L14: 0.7854251012 | M14: 185 | N14: 0.7489878543 | O14: 184 | P14: 0.7449392713 | Q14: 190 | R14: 0.7692307692 | S14: 177 | T14: 0.7165991903 | U14: 185 | V14: 0.7489878543 | W14: 216 | X14: 0.8744939271 | Y14: 210 | Z14: 0.8502024291 | AB14: 0 | AC14: 0 | AE14: =cálculos2!O14 -> 1 | AF14: 0.1 | AG14: =cálculos2!P14 -> 0 | AH14: 0 | AJ14: 0 | AK14: =COUNTIF($AF$3:$AF$80,"=0") -> 14
A15: Norte | B15: Boa Esperança | C15: 207 | D15: 97 | E15: 75 | F15: 0.7731958763 | G15: 79 | H15: 0.8144329897 | I15: 81 | J15: 0.8350515464 | K15: 78 | L15: 0.8041237113 | M15: 79 | N15: 0.8144329897 | O15: 74 | P15: 0.7628865979 | Q15: 76 | R15: 0.7835051546 | S15: 76 | T15: 0.7835051546 | U15: 77 | V15: 0.793814433 | W15: 78 | X15: 0.8041237113 | Y15: 73 | Z15: 0.7525773196 | AB15: 0 | AC15: 0 | AE15: =cálculos2!O15 -> 0 | AF15: 0 | AG15: =cálculos2!P15 -> 0 | AH15: 0 | AJ15: 0.1 | AK15: =COUNTIFS($AF$3:$AF$80,">=0,10",$AF$3:$AF$80,"<0,20") -> 16
A16: Sul | B16: Bom Jesus do Norte | C16: 69 | D16: 29 | E16: 19 | F16: 0.6551724138 | G16: 44 | H16: 1.517241379 | I16: 38 | J16: 1.310344828 | K16: 38 | L16: 1.310344828 | M16: 43 | N16: 1.482758621 | O16: 43 | P16: 1.482758621 | Q16: 34 | R16: 1.172413793 | S16: 38 | T16: 1.310344828 | U16: 43 | V16: 1.482758621 | W16: 40 | X16: 1.379310345 | Y16: 32 | Z16: 1.103448276 | AB16: 1 | AC16: 0.03448275862 | AE16: =cálculos2!O16 -> 10 | AF16: 1 | AG16: =cálculos2!P16 -> 4 | AH16: 1 | AJ16: 0.2 | AK16: =COUNTIFS($AF$3:$AF$80,">=0,20",$AF$3:$AF$80,"<0,30") -> 10
A17: Metropolitana | B17: Brejetuba | C17: 199 | D17: 75 | E17: 64 | F17: 0.8533333333 | G17: 71 | H17: 0.9466666667 | I17: 74 | J17: 0.9866666667 | K17: 80 | L17: 1.066666667 | M17: 85 | N17: 1.133333333 | O17: 96 | P17: 1.28 | Q17: 91 | R17: 1.213333333 | S17: 62 | T17: 0.8266666667 | U17: 88 | V17: 1.173333333 | W17: 89 | X17: 1.186666667 | Y17: 91 | Z17: 1.213333333 | AB17: 0 | AC17: 0 | AE17: =cálculos2!O17 -> 9 | AF17: 0.9 | AG17: =cálculos2!P17 -> 4 | AH17: 1 | AJ17: 0.3 | AK17: =COUNTIFS($AF$3:$AF$80,">=0,30",$AF$3:$AF$80,"<0,40") -> 7
A18: Sul | B18: Cachoeiro de Itapemirim | C18: 2337 | D18: 1046 | E18: 1068 | F18: 1.021032505 | G18: 1077 | H18: 1.029636711 | I18: 855 | J18: 0.8173996176 | K18: 845 | L18: 0.8078393881 | M18: 826 | N18: 0.7896749522 | O18: 868 | P18: 0.8298279159 | Q18: 836 | R18: 0.7992351816 | S18: 721 | T18: 0.689292543 | U18: 894 | V18: 0.8546845124 | W18: 1020 | X18: 0.9751434034 | Y18: 856 | Z18: 0.8183556405 | AB18: 28 | AC18: 0.02676864245 | AE18: =cálculos2!O18 -> 2 | AF18: 0.2 | AG18: =cálculos2!P18 -> 1 | AH18: 0.25 | AJ18: 0.4 | AK18: =COUNTIFS($AF$3:$AF$80,">=0,40",$AF$3:$AF$80,"<0,50") -> 8
A19: Metropolitana | B19: Cariacica | C19: 4824 | D19: 2178 | E19: 1930 | F19: 0.886134068 | G19: 1947 | H19: 0.8939393939 | I19: 1678 | J19: 0.7704315886 | K19: 1651 | L19: 0.7580348944 | M19: 1471 | N19: 0.6753902663 | O19: 1652 | P19: 0.7584940312 | Q19: 1664 | R19: 0.7640036731 | S19: 1354 | T19: 0.621671258 | U19: 1804 | V19: 0.8282828283 | W19: 1869 | X19: 0.8581267218 | Y19: 1472 | Z19: 0.6758494031 | AB19: 94 | AC19: 0.04315886134 | AE19: =cálculos2!O19 -> 0 | AF19: 0 | AG19: =cálculos2!P19 -> 0 | AH19: 0 | AJ19: 0.5 | AK19: =COUNTIFS($AF$3:$AF$80,">=0,50",$AF$3:$AF$80,"<0,60") -> 2
A20: Sul | B20: Castelo | C20: 415 | D20: 186 | E20: 178 | F20: 0.9569892473 | G20: 180 | H20: 0.9677419355 | I20: 150 | J20: 0.8064516129 | K20: 145 | L20: 0.7795698925 | M20: 137 | N20: 0.7365591398 | O20: 157 | P20: 0.8440860215 | Q20: 152 | R20: 0.8172043011 | S20: 152 | T20: 0.8172043011 | U20: 181 | V20: 0.9731182796 | W20: 192 | X20: 1.032258065 | Y20: 154 | Z20: 0.8279569892 | AB20: 3 | AC20: 0.01612903226 | AE20: =cálculos2!O20 -> 3 | AF20: 0.3 | AG20: =cálculos2!P20 -> 1 | AH20: 0.25 | AJ20: 0.6 | AK20: =COUNTIFS($AF$3:$AF$80,">=0,60",$AF$3:$AF$80,"<0,70") -> 2
A21: Central | B21: Colatina | C21: 1441 | D21: 606 | E21: 618 | F21: 1.01980198 | G21: 631 | H21: 1.041254125 | I21: 554 | J21: 0.9141914191 | K21: 555 | L21: 0.9158415842 | M21: 464 | N21: 0.7656765677 | O21: 510 | P21: 0.8415841584 | Q21: 552 | R21: 0.9108910891 | S21: 455 | T21: 0.7508250825 | U21: 546 | V21: 0.900990099 | W21: 577 | X21: 0.9521452145 | Y21: 479 | Z21: 0.7904290429 | AB21: 19 | AC21: 0.03135313531 | AE21: =cálculos2!O21 -> 2 | AF21: 0.2 | AG21: =cálculos2!P21 -> 1 | AH21: 0.25 | AJ21: 0.7 | AK21: =COUNTIFS($AF$3:$AF$80,">=0,70",$AF$3:$AF$80,"<0,80") -> 3
A22: Norte | B22: Conceição da Barra | C22: 353 | D22: 161 | E22: 131 | F22: 0.8136645963 | G22: 122 | H22: 0.7577639752 | I22: 151 | J22: 0.9378881988 | K22: 148 | L22: 0.9192546584 | M22: 131 | N22: 0.8136645963 | O22: 132 | P22: 0.8198757764 | Q22: 141 | R22: 0.8757763975 | S22: 154 | T22: 0.9565217391 | U22: 165 | V22: 1.02484472 | W22: 188 | X22: 1.167701863 | Y22: 150 | Z22: 0.9316770186 | AB22: 3 | AC22: 0.01863354037 | AE22: =cálculos2!O22 -> 3 | AF22: 0.3 | AG22: =cálculos2!P22 -> 1 | AH22: 0.25 | AJ22: 0.8 | AK22: =COUNTIFS($AF$3:$AF$80,">=0,80",$AF$3:$AF$80,"<0,90") -> 7
A23: Metropolitana | B23: Conceição do Castelo | C23: 161 | D23: 50 | E23: 61 | F23: 1.22 | G23: 66 | H23: 1.32 | I23: 65 | J23: 1.3 | K23: 64 | L23: 1.28 | M23: 54 | N23: 1.08 | O23: 71 | P23: 1.42 | Q23: 65 | R23: 1.3 | S23: 54 | T23: 1.08 | U23: 41 | V23: 0.82 | W23: 47 | X23: 0.94 | Y23: 41 | Z23: 0.82 | AB23: 0 | AC23: 0 | AE23: =cálculos2!O23 -> 7 | AF23: 0.7 | AG23: =cálculos2!P23 -> 3 | AH23: 0.75 | AJ23: 0.9 | AK23: =COUNTIFS($AF$3:$AF$80,">=0,90",$AF$3:$AF$80,"<1,0") -> 7
A24: Sul | B24: Divino de São Lourenço | C24: 53 | D24: 29 | E24: 22 | F24: 0.7586206897 | G24: 23 | H24: 0.7931034483 | I24: 16 | J24: 0.5517241379 | K24: 16 | L24: 0.5517241379 | M24: 16 | N24: 0.5517241379 | O24: 16 | P24: 0.5517241379 | Q24: 15 | R24: 0.5172413793 | S24: 31 | T24: 1.068965517 | U24: 29 | V24: 1 | W24: 38 | X24: 1.310344828 | Y24: 33 | Z24: 1.137931034 | AB24: 0 | AC24: 0 | AE24: =cálculos2!O24 -> 4 | AF24: 0.4 | AG24: =cálculos2!P24 -> 1 | AH24: 0.25 | AJ24: 1 | AK24: =COUNTIF($AF$3:$AF$80,">=1,0") -> 2
A25: Metropolitana | B25: Domingos Martins | C25: 421 | D25: 178 | E25: 160 | F25: 0.8988764045 | G25: 175 | H25: 0.9831460674 | I25: 176 | J25: 0.9887640449 | K25: 173 | L25: 0.9719101124 | M25: 164 | N25: 0.9213483146 | O25: 176 | P25: 0.9887640449 | Q25: 188 | R25: 1.056179775 | S25: 156 | T25: 0.8764044944 | U25: 179 | V25: 1.005617978 | W25: 179 | X25: 1.005617978 | Y25: 189 | Z25: 1.061797753 | AB25: 16 | AC25: 0.08988764045 | AE25: =cálculos2!O25 -> 8 | AF25: 0.8 | AG25: =cálculos2!P25 -> 3 | AH25: 0.75
A26: Sul | B26: Dores do Rio Preto | C26: 108 | D26: 57 | E26: 34 | F26: 0.5964912281 | G26: 32 | H26: 0.5614035088 | I26: 45 | J26: 0.7894736842 | K26: 44 | L26: 0.7719298246 | M26: 27 | N26: 0.4736842105 | O26: 39 | P26: 0.6842105263 | Q26: 29 | R26: 0.5087719298 | S26: 41 | T26: 0.7192982456 | U26: 31 | V26: 0.5438596491 | W26: 39 | X26: 0.6842105263 | Y26: 26 | Z26: 0.4561403509 | AB26: 0 | AC26: 0 | AE26: =cálculos2!O26 -> 0 | AF26: 0 | AG26: =cálculos2!P26 -> 0 | AH26: 0
A27: Norte | B27: Ecoporanga | C27: 250 | D27: 124 | E27: 118 | F27: 0.9516129032 | G27: 114 | H27: 0.9193548387 | I27: 98 | J27: 0.7903225806 | K27: 93 | L27: 0.75 | M27: 95 | N27: 0.7661290323 | O27: 100 | P27: 0.8064516129 | Q27: 96 | R27: 0.7741935484 | S27: 91 | T27: 0.7338709677 | U27: 93 | V27: 0.75 | W27: 118 | X27: 0.9516129032 | Y27: 82 | Z27: 0.6612903226 | AB27: 1 | AC27: 0.008064516129 | AE27: =cálculos2!O27 -> 2 | AF27: 0.2 | AG27: =cálculos2!P27 -> 1 | AH27: 0.25
A28: Metropolitana | B28: Fundão | C28: 228 | D28: 109 | E28: 101 | F28: 0.9266055046 | G28: 108 | H28: 0.9908256881 | I28: 89 | J28: 0.8165137615 | K28: 89 | L28: 0.8165137615 | M28: 82 | N28: 0.752293578 | O28: 94 | P28: 0.8623853211 | Q28: 80 | R28: 0.7339449541 | S28: 59 | T28: 0.5412844037 | U28: 80 | V28: 0.7339449541 | W28: 94 | X28: 0.8623853211 | Y28: 83 | Z28: 0.7614678899 | AB28: 1 | AC28: 0.009174311927 | AE28: =cálculos2!O28 -> 1 | AF28: 0.1 | AG28: =cálculos2!P28 -> 0 | AH28: 0
A29: Central | B29: Governador Lindenberg | C29: 115 | D29: 54 | E29: 56 | F29: 1.037037037 | G29: 58 | H29: 1.074074074 | I29: 43 | J29: 0.7962962963 | K29: 44 | L29: 0.8148148148 | M29: 36 | N29: 0.6666666667 | O29: 40 | P29: 0.7407407407 | Q29: 42 | R29: 0.7777777778 | S29: 37 | T29: 0.6851851852 | U29: 49 | V29: 0.9074074074 | W29: 50 | X29: 0.9259259259 | Y29: 44 | Z29: 0.8148148148 | AB29: 0 | AC29: 0 | AE29: =cálculos2!O29 -> 1 | AF29: 0.1 | AG29: =cálculos2!P29 -> 0 | AH29: 0
A30: Sul | B30: Guaçuí | C30: 358 | D30: 129 | E30: 128 | F30: 0.992248062 | G30: 126 | H30: 0.976744186 | I30: 136 | J30: 1.054263566 | K30: 131 | L30: 1.015503876 | M30: 144 | N30: 1.11627907 | O30: 146 | P30: 1.131782946 | Q30: 146 | R30: 1.131782946 | S30: 118 | T30: 0.9147286822 | U30: 137 | V30: 1.062015504 | W30: 159 | X30: 1.23255814 | Y30: 134 | Z30: 1.03875969 | AB30: 9 | AC30: 0.06976744186 | AE30: =cálculos2!O30 -> 9 | AF30: 0.9 | AG30: =cálculos2!P30 -> 4 | AH30: 1
A31: Metropolitana | B31: Guarapari | C31: 1722 | D31: 758 | E31: 649 | F31: 0.8562005277 | G31: 726 | H31: 0.9577836412 | I31: 568 | J31: 0.7493403694 | K31: 562 | L31: 0.7414248021 | M31: 564 | N31: 0.7440633245 | O31: 587 | P31: 0.7744063325 | Q31: 588 | R31: 0.7757255937 | S31: 434 | T31: 0.5725593668 | U31: 589 | V31: 0.7770448549 | W31: 616 | X31: 0.8126649077 | Y31: 512 | Z31: 0.6754617414 | AB31: 32 | AC31: 0.04221635884 | AE31: =cálculos2!O31 -> 1 | AF31: 0.1 | AG31: =cálculos2!P31 -> 0 | AH31: 0
A32: Metropolitana | B32: Ibatiba | C32: 383 | D32: 164 | E32: 148 | F32: 0.9024390244 | G32: 169 | H32: 1.030487805 | I32: 153 | J32: 0.9329268293 | K32: 146 | L32: 0.8902439024 | M32: 134 | N32: 0.8170731707 | O32: 144 | P32: 0.8780487805 | Q32: 144 | R32: 0.8780487805 | S32: 130 | T32: 0.7926829268 | U32: 152 | V32: 0.9268292683 | W32: 153 | X32: 0.9329268293 | Y32: 147 | Z32: 0.8963414634 | AB32: 15 | AC32: 0.09146341463 | AE32: =cálculos2!O32 -> 1 | AF32: 0.1 | AG32: =cálculos2!P32 -> 0 | AH32: 0
A33: Metropolitana | B33: Ibiraçu | C33: 140 | D33: 60 | E33: 49 | F33: 0.8166666667 | G33: 46 | H33: 0.7666666667 | I33: 56 | J33: 0.9333333333 | K33: 55 | L33: 0.9166666667 | M33: 51 | N33: 0.85 | O33: 52 | P33: 0.8666666667 | Q33: 54 | R33: 0.9 | S33: 54 | T33: 0.9 | U33: 49 | V33: 0.8166666667 | W33: 54 | X33: 0.9 | Y33: 50 | Z33: 0.8333333333 | AB33: 0 | AC33: 0 | AE33: =cálculos2!O33 -> 0 | AF33: 0 | AG33: =cálculos2!P33 -> 0 | AH33: 0
A34: Sul | B34: Ibitirama | C34: 146 | D34: 63 | E34: 62 | F34: 0.9841269841 | G34: 69 | H34: 1.095238095 | I34: 75 | J34: 1.19047619 | K34: 69 | L34: 1.095238095 | M34: 72 | N34: 1.142857143 | O34: 76 | P34: 1.206349206 | Q34: 69 | R34: 1.095238095 | S34: 53 | T34: 0.8412698413 | U34: 57 | V34: 0.9047619048 | W34: 67 | X34: 1.063492063 | Y34: 60 | Z34: 0.9523809524 | AB34: 5 | AC34: 0.07936507937 | AE34: =cálculos2!O34 -> 8 | AF34: 0.8 | AG34: =cálculos2!P34 -> 4 | AH34: 1
A35: Sul | B35: Iconha | C35: 120 | D35: 46 | E35: 50 | F35: 1.086956522 | G35: 55 | H35: 1.195652174 | I35: 55 | J35: =I35/D35 -> 1.195652174 | K35: 55 | L35: =K35/D35 -> 1.195652174 | M35: 42 | N35: =M35/D35 -> 0.9130434783 | O35: 48 | P35: =O35/D35 -> 1.043478261 | Q35: 56 | R35: =Q35/D35 -> 1.217391304 | S35: 36 | T35: =S35/D35 -> 0.7826086957 | U35: 43 | V35: =U35/D35 -> 0.9347826087 | W35: 48 | X35: =W35/D35 -> 1.043478261 | Y35: 61 | Z35: =Y35/D35 -> 1.326086957 | AB35: 0 | AC35: 0 | AE35: =cálculos2!O35 -> 7 | AF35: 0.7 | AG35: =cálculos2!P35 -> 3 | AH35: 0.75
A36: Sul | B36: Irupi | C36: 171 | D36: 76 | E36: 52 | F36: 0.6842105263 | G36: 64 | H36: 0.8421052632 | I36: 68 | J36: 0.8947368421 | K36: 70 | L36: 0.9210526316 | M36: 53 | N36: 0.6973684211 | O36: 61 | P36: 0.8026315789 | Q36: 66 | R36: 0.8684210526 | S36: 85 | T36: 1.118421053 | U36: 83 | V36: 1.092105263 | W36: 87 | X36: 1.144736842 | Y36: 74 | Z36: 0.9736842105 | AB36: 9 | AC36: 0.1184210526 | AE36: =cálculos2!O36 -> 4 | AF36: 0.4 | AG36: =cálculos2!P36 -> 1 | AH36: 0.25
A37: Metropolitana | B37: Itaguaçu | C37: 135 | D37: 72 | E37: 60 | F37: 0.8333333333 | G37: 62 | H37: 0.8611111111 | I37: 51 | J37: 0.7083333333 | K37: 51 | L37: 0.7083333333 | M37: 43 | N37: 0.5972222222 | O37: 44 | P37: 0.6111111111 | Q37: 43 | R37: 0.5972222222 | S37: 63 | T37: 0.875 | U37: 48 | V37: 0.6666666667 | W37: 70 | X37: 0.9722222222 | Y37: 48 | Z37: 0.6666666667 | AB37: 9 | AC37: 0.125 | AE37: =cálculos2!O37 -> 1 | AF37: 0.1 | AG37: =cálculos2!P37 -> 1 | AH37: 0.25
A38: Sul | B38: Itapemirim | C38: 536 | D38: 229 | E38: 201 | F38: 0.8777292576 | G38: 184 | H38: 0.8034934498 | I38: 164 | J38: 0.7161572052 | K38: 149 | L38: 0.6506550218 | M38: 190 | N38: 0.8296943231 | O38: 187 | P38: 0.8165938865 | Q38: 196 | R38: 0.8558951965 | S38: 131 | T38: 0.5720524017 | U38: 180 | V38: 0.7860262009 | W38: 190 | X38: 0.8296943231 | Y38: 139 | Z38: 0.6069868996 | AB38: 3 | AC38: 0.01310043668 | AE38: =cálculos2!O38 -> 0 | AF38: 0 | AG38: =cálculos2!P38 -> 0 | AH38: 0
A39: Metropolitana | B39: Itarana | C39: 128 | D39: 60 | E39: 56 | F39: 0.9333333333 | G39: 59 | H39: 0.9833333333 | I39: 58 | J39: 0.9666666667 | K39: 59 | L39: 0.9833333333 | M39: 44 | N39: 0.7333333333 | O39: 44 | P39: 0.7333333333 | Q39: 55 | R39: 0.9166666667 | S39: 60 | T39: 1 | U39: 52 | V39: 0.8666666667 | W39: 63 | X39: 1.05 | Y39: 53 | Z39: 0.8833333333 | AB39: 1 | AC39: 0.01666666667 | AE39: =cálculos2!O39 -> 5 | AF39: 0.5 | AG39: =cálculos2!P39 -> 3 | AH39: 0.75
A40: Sul | B40: Iúna | C40: 402 | D40: 170 | E40: 132 | F40: 0.7764705882 | G40: 141 | H40: 0.8294117647 | I40: 157 | J40: 0.9235294118 | K40: 153 | L40: 0.9 | M40: 139 | N40: 0.8176470588 | O40: 148 | P40: 0.8705882353 | Q40: 154 | R40: 0.9058823529 | S40: 160 | T40: 0.9411764706 | U40: 175 | V40: 1.029411765 | W40: 178 | X40: 1.047058824 | Y40: 166 | Z40: 0.9764705882 | AB40: 3 | AC40: 0.01764705882 | AE40: =cálculos2!O40 -> 3 | AF40: 0.3 | AG40: =cálculos2!P40 -> 1 | AH40: 0.25
A41: Norte | B41: Jaguaré | C41: 479 | D41: 239 | E41: 208 | F41: 0.870292887 | G41: 195 | H41: 0.8158995816 | I41: 174 | J41: 0.7280334728 | K41: 167 | L41: 0.6987447699 | M41: 164 | N41: 0.6861924686 | O41: 152 | P41: 0.6359832636 | Q41: 173 | R41: 0.7238493724 | S41: 143 | T41: 0.5983263598 | U41: 184 | V41: 0.769874477 | W41: 186 | X41: 0.7782426778 | Y41: 143 | Z41: 0.5983263598 | AB41: 0 | AC41: 0 | AE41: =cálculos2!O41 -> 0 | AF41: 0 | AG41: =cálculos2!P41 -> 0 | AH41: 0
A42: Sul | B42: Jerônimo Monteiro | C42: 133 | D42: 64 | E42: 46 | F42: 0.71875 | G42: 44 | H42: 0.6875 | I42: 53 | J42: 0.828125 | K42: 54 | L42: 0.84375 | M42: 48 | N42: 0.75 | O42: 49 | P42: 0.765625 | Q42: 49 | R42: 0.765625 | S42: 46 | T42: 0.71875 | U42: 58 | V42: 0.90625 | W42: 63 | X42: 0.984375 | Y42: 53 | Z42: 0.828125 | AB42: 5 | AC42: 0.078125 | AE42: =cálculos2!O42 -> 1 | AF42: 0.1 | AG42: =cálculos2!P42 -> 1 | AH42: 0.25
A43: Metropolitana | B43: João Neiva | C43: 150 | D43: 53 | E43: 41 | F43: 0.7735849057 | G43: 44 | H43: 0.8301886792 | I43: 68 | J43: 1.283018868 | K43: 65 | L43: 1.226415094 | M43: 56 | N43: 1.056603774 | O43: 55 | P43: 1.037735849 | Q43: 56 | R43: 1.056603774 | S43: 51 | T43: 0.9622641509 | U43: 59 | V43: 1.113207547 | W43: 64 | X43: 1.20754717 | Y43: 63 | Z43: 1.188679245 | AB43: 2 | AC43: 0.03773584906 | AE43: =cálculos2!O43 -> 9 | AF43: 0.9 | AG43: =cálculos2!P43 -> 4 | AH43: 1
A44: Metropolitana | B44: Laranja da Terra | C44: 103 | D44: 43 | E44: 57 | F44: 1.325581395 | G44: 61 | H44: 1.418604651 | I44: 53 | J44: 1.23255814 | K44: 54 | L44: 1.255813953 | M44: 55 | N44: 1.279069767 | O44: 55 | P44: 1.279069767 | Q44: 55 | R44: 1.279069767 | S44: 32 | T44: 0.7441860465 | U44: 37 | V44: 0.8604651163 | W44: 42 | X44: 0.976744186 | Y44: 45 | Z44: 1.046511628 | AB44: 4 | AC44: 0.09302325581 | AE44: =cálculos2!O44 -> 8 | AF44: 0.8 | AG44: =cálculos2!P44 -> 4 | AH44: 1
A45: Central | B45: Linhares | C45: 2615 | D45: 1134 | E45: 1130 | F45: 0.9964726631 | G45: 1129 | H45: 0.9955908289 | I45: 946 | J45: 0.8342151675 | K45: 922 | L45: 0.8130511464 | M45: 924 | N45: 0.8148148148 | O45: 979 | P45: 0.8633156966 | Q45: 962 | R45: 0.848324515 | S45: 793 | T45: 0.6992945326 | U45: 838 | V45: 0.7389770723 | W45: 927 | X45: 0.8174603175 | Y45: 768 | Z45: 0.6772486772 | AB45: 8 | AC45: 0.007054673721 | AE45: =cálculos2!O45 -> 1 | AF45: 0.1 | AG45: =cálculos2!P45 -> 0 | AH45: 0
A46: Central | B46: Mantenópolis | C46: 136 | D46: 68 | E46: 53 | F46: 0.7794117647 | G46: 54 | H46: 0.7941176471 | I46: 52 | J46: 0.7647058824 | K46: 51 | L46: 0.75 | M46: 36 | N46: 0.5294117647 | O46: 42 | P46: 0.6176470588 | Q46: 54 | R46: 0.7941176471 | S46: 65 | T46: 0.9558823529 | U46: 45 | V46: 0.6617647059 | W46: 64 | X46: 0.9411764706 | Y46: 56 | Z46: 0.8235294118 | AB46: 1 | AC46: 0.01470588235 | AE46: =cálculos2!O46 -> 1 | AF46: 0.1 | AG46: =cálculos2!P46 -> 0 | AH46: 0
A47: Sul | B47: Marataízes | C47: 556 | D47: 241 | E47: 217 | F47: 0.9004149378 | G47: 223 | H47: 0.9253112033 | I47: 209 | J47: 0.867219917 | K47: 179 | L47: 0.7427385892 | M47: 220 | N47: 0.9128630705 | O47: 227 | P47: 0.9419087137 | Q47: 218 | R47: 0.9045643154 | S47: 150 | T47: 0.622406639 | U47: 207 | V47: 0.8589211618 | W47: 237 | X47: 0.9834024896 | Y47: 175 | Z47: 0.7261410788 | AB47: 2 | AC47: 0.008298755187 | AE47: =cálculos2!O47 -> 3 | AF47: 0.3 | AG47: =cálculos2!P47 -> 1 | AH47: 0.25
A48: Metropolitana | B48: Marechal Floriano | C48: 195 | D48: 99 | E48: 85 | F48: 0.8585858586 | G48: 81 | H48: 0.8181818182 | I48: 72 | J48: 0.7272727273 | K48: 73 | L48: 0.7373737374 | M48: 68 | N48: 0.6868686869 | O48: 72 | P48: 0.7272727273 | Q48: 75 | R48: 0.7575757576 | S48: 68 | T48: 0.6868686869 | U48: 98 | V48: 0.9898989899 | W48: 82 | X48: 0.8282828283 | Y48: 102 | Z48: 1.03030303 | AB48: 9 | AC48: 0.09090909091 | AE48: =cálculos2!O48 -> 2 | AF48: 0.2 | AG48: =cálculos2!P48 -> 0 | AH48: 0
A49: Central | B49: Marilândia | C49: 150 | D49: 68 | E49: 57 | F49: 0.8382352941 | G49: 59 | H49: 0.8676470588 | I49: 54 | J49: 0.7941176471 | K49: 54 | L49: 0.7941176471 | M49: 57 | N49: 0.8382352941 | O49: 59 | P49: 0.8676470588 | Q49: 60 | R49: 0.8823529412 | S49: 60 | T49: 0.8823529412 | U49: 51 | V49: 0.75 | W49: 73 | X49: 1.073529412 | Y49: 53 | Z49: 0.7794117647 | AB49: 3 | AC49: 0.04411764706 | AE49: =cálculos2!O49 -> 1 | AF49: 0.1 | AG49: =cálculos2!P49 -> 1 | AH49: 0.25
A50: Sul | B50: Mimoso do Sul | C50: 291 | D50: 139 | E50: 129 | F50: 0.928057554 | G50: 131 | H50: 0.9424460432 | I50: 96 | J50: 0.690647482 | K50: 83 | L50: 0.5971223022 | M50: 95 | N50: 0.6834532374 | O50: 99 | P50: 0.7122302158 | Q50: 93 | R50: 0.6690647482 | S50: 90 | T50: 0.6474820144 | U50: 80 | V50: 0.5755395683 | W50: 94 | X50: 0.6762589928 | Y50: 87 | Z50: 0.6258992806 | AB50: 4 | AC50: 0.02877697842 | AE50: =cálculos2!O50 -> 1 | AF50: 0.1 | AG50: =cálculos2!P50 -> 0 | AH50: 0
A51: Norte | B51: Montanha | C51: 226 | D51: 97 | E51: 88 | F51: 0.9072164948 | G51: 86 | H51: 0.8865979381 | I51: 106 | J51: 1.092783505 | K51: 104 | L51: 1.072164948 | M51: 93 | N51: 0.9587628866 | O51: 98 | P51: 1.010309278 | Q51: 97 | R51: 1 | S51: 95 | T51: 0.9793814433 | U51: 93 | V51: 0.9587628866 | W51: 109 | X51: 1.12371134 | Y51: 116 | Z51: 1.195876289 | AB51: 3 | AC51: 0.03092783505 | AE51: =cálculos2!O51 -> 9 | AF51: 0.9 | AG51: =cálculos2!P51 -> 4 | AH51: 1
A52: Norte | B52: Mucurici | C52: 69 | D52: 29 | E52: 18 | F52: 0.6206896552 | G52: 18 | H52: 0.6206896552 | I52: 26 | J52: 0.8965517241 | K52: 27 | L52: 0.9310344828 | M52: 23 | N52: 0.7931034483 | O52: 23 | P52: 0.7931034483 | Q52: 25 | R52: 0.8620689655 | S52: 32 | T52: 1.103448276 | U52: 42 | V52: 1.448275862 | W52: 28 | X52: 0.9655172414 | Y52: 41 | Z52: 1.413793103 | AB52: 1 | AC52: 0.03448275862 | AE52: =cálculos2!O52 -> 4 | AF52: 0.4 | AG52: =cálculos2!P52 -> 1 | AH52: 0.25
A53: Sul | B53: Muniz Freire | C53: 213 | D53: 85 | E53: 91 | F53: 1.070588235 | G53: 96 | H53: 1.129411765 | I53: 96 | J53: 1.129411765 | K53: 93 | L53: 1.094117647 | M53: 95 | N53: 1.117647059 | O53: 99 | P53: 1.164705882 | Q53: 94 | R53: 1.105882353 | S53: 91 | T53: 1.070588235 | U53: 91 | V53: 1.070588235 | W53: 106 | X53: 1.247058824 | Y53: 107 | Z53: 1.258823529 | AB53: 3 | AC53: 0.03529411765 | AE53: =cálculos2!O53 -> 10 | AF53: 1 | AG53: =cálculos2!P53 -> 4 | AH53: 1
A54: Sul | B54: Muqui | C54: 144 | D54: 62 | E54: 70 | F54: 1.129032258 | G54: 70 | H54: 1.129032258 | I54: 59 | J54: 0.9516129032 | K54: 59 | L54: 0.9516129032 | M54: 62 | N54: 1 | O54: 61 | P54: 0.9838709677 | Q54: 56 | R54: 0.9032258065 | S54: 60 | T54: 0.9677419355 | U54: 48 | V54: 0.7741935484 | W54: 61 | X54: 0.9838709677 | Y54: 51 | Z54: 0.8225806452 | AB54: 6 | AC54: 0.09677419355 | AE54: =cálculos2!O54 -> 7 | AF54: 0.7 | AG54: =cálculos2!P54 -> 4 | AH54: 1
A55: Norte | B55: Nova Venécia | C55: 664 | D55: 296 | E55: 257 | F55: 0.8682432432 | G55: 264 | H55: 0.8918918919 | I55: 252 | J55: 0.8513513514 | K55: 252 | L55: 0.8513513514 | M55: 242 | N55: 0.8175675676 | O55: 280 | P55: 0.9459459459 | Q55: 281 | R55: 0.9493243243 | S55: 224 | T55: 0.7567567568 | U55: 247 | V55: 0.8344594595 | W55: 282 | X55: 0.9527027027 | Y55: 207 | Z55: 0.6993243243 | AB55: 8 | AC55: 0.02702702703 | AE55: =cálculos2!O55 -> 2 | AF55: 0.2 | AG55: =cálculos2!P55 -> 1 | AH55: 0.25
A56: Central | B56: Pancas | C56: 208 | D56: 101 | E56: 99 | F56: 0.9801980198 | G56: 99 | H56: 0.9801980198 | I56: 71 | J56: 0.702970297 | K56: 72 | L56: 0.7128712871 | M56: 80 | N56: 0.7920792079 | O56: 78 | P56: 0.7722772277 | Q56: 76 | R56: 0.7524752475 | S56: 77 | T56: 0.7623762376 | U56: 90 | V56: 0.8910891089 | W56: 90 | X56: 0.8910891089 | Y56: 99 | Z56: 0.9801980198 | AB56: 3 | AC56: 0.0297029703 | AE56: =cálculos2!O56 -> 2 | AF56: 0.2 | AG56: =cálculos2!P56 -> 0 | AH56: 0
A57: Norte | B57: Pedro Canário | C57: 325 | D57: 145 | E57: 121 | F57: 0.8344827586 | G57: 126 | H57: 0.8689655172 | I57: 115 | J57: 0.7931034483 | K57: 114 | L57: 0.7862068966 | M57: 112 | N57: 0.7724137931 | O57: 111 | P57: 0.7655172414 | Q57: 107 | R57: 0.7379310345 | S57: 87 | T57: 0.6 | U57: 128 | V57: 0.8827586207 | W57: 144 | X57: 0.9931034483 | Y57: 106 | Z57: 0.7310344828 | AB57: 3 | AC57: 0.02068965517 | AE57: =cálculos2!O57 -> 1 | AF57: 0.1 | AG57: =cálculos2!P57 -> 1 | AH57: 0.25
A58: Norte | B58: Pinheiros | C58: 333 | D58: 156 | E58: 129 | F58: 0.8269230769 | G58: 120 | H58: 0.7692307692 | I58: 137 | J58: 0.8782051282 | K58: 138 | L58: 0.8846153846 | M58: 121 | N58: 0.7756410256 | O58: 124 | P58: 0.7948717949 | Q58: 131 | R58: 0.8397435897 | S58: 123 | T58: 0.7884615385 | U58: 139 | V58: 0.891025641 | W58: 136 | X58: 0.8717948718 | Y58: 123 | Z58: 0.7884615385 | AB58: 3 | AC58: 0.01923076923 | AE58: =cálculos2!O58 -> 0 | AF58: 0 | AG58: =cálculos2!P58 -> 0 | AH58: 0
A59: Sul | B59: Piúma | C59: 313 | D59: 141 | E59: 131 | F59: 0.9290780142 | G59: 120 | H59: 0.8510638298 | I59: 116 | J59: 0.8226950355 | K59: 108 | L59: 0.7659574468 | M59: 114 | N59: 0.8085106383 | O59: 123 | P59: 0.8723404255 | Q59: 120 | R59: 0.8510638298 | S59: 86 | T59: 0.609929078 | U59: 126 | V59: 0.8936170213 | W59: 125 | X59: 0.8865248227 | Y59: 100 | Z59: 0.7092198582 | AB59: 6 | AC59: 0.04255319149 | AE59: =cálculos2!O59 -> 0 | AF59: 0 | AG59: =cálculos2!P59 -> 0 | AH59: 0
A60: Norte | B60: Ponto Belo | C60: 86 | D60: 37 | E60: 20 | F60: 0.5405405405 | G60: 21 | H60: 0.5675675676 | I60: 40 | J60: 1.081081081 | K60: 40 | L60: 1.081081081 | M60: 34 | N60: 0.9189189189 | O60: 34 | P60: 0.9189189189 | Q60: 34 | R60: 0.9189189189 | S60: 40 | T60: 1.081081081 | U60: 35 | V60: 0.9459459459 | W60: 35 | X60: 0.9459459459 | Y60: 26 | Z60: 0.7027027027 | AB60: 0 | AC60: 0 | AE60: =cálculos2!O60 -> 4 | AF60: 0.4 | AG60: =cálculos2!P60 -> 2 | AH60: 0.5
A61: Sul | B61: Presidente Kennedy | C61: 207 | D61: 89 | E61: 86 | F61: 0.9662921348 | G61: 87 | H61: 0.9775280899 | I61: 77 | J61: 0.8651685393 | K61: 76 | L61: 0.8539325843 | M61: 85 | N61: 0.9550561798 | O61: 88 | P61: 0.9887640449 | Q61: 89 | R61: 1 | S61: 85 | T61: 0.9550561798 | U61: 68 | V61: 0.7640449438 | W61: 101 | X61: 1.134831461 | Y61: 76 | Z61: 0.8539325843 | AB61: 4 | AC61: 0.04494382022 | AE61: =cálculos2!O61 -> 6 | AF61: 0.6 | AG61: =cálculos2!P61 -> 2 | AH61: 0.5
A62: Central | B62: Rio Bananal | C62: 305 | D62: 134 | E62: 113 | F62: 0.8432835821 | G62: 115 | H62: 0.8582089552 | I62: 115 | J62: 0.8582089552 | K62: 115 | L62: 0.8582089552 | M62: 112 | N62: 0.8358208955 | O62: 117 | P62: 0.8731343284 | Q62: 128 | R62: 0.9552238806 | S62: 114 | T62: 0.8507462687 | U62: 108 | V62: 0.8059701493 | W62: 128 | X62: 0.9552238806 | Y62: 95 | Z62: 0.7089552239 | AB62: 6 | AC62: 0.0447761194 | AE62: =cálculos2!O62 -> 2 | AF62: 0.2 | AG62: =cálculos2!P62 -> 1 | AH62: 0.25
A63: Sul | B63: Rio Novo do Sul | C63: 110 | D63: 48 | E63: 44 | F63: 0.9166666667 | G63: 46 | H63: 0.9583333333 | I63: 52 | J63: 1.083333333 | K63: 51 | L63: 1.0625 | M63: 42 | N63: 0.875 | O63: 42 | P63: 0.875 | Q63: 48 | R63: 1 | S63: 30 | T63: 0.625 | U63: 40 | V63: 0.8333333333 | W63: 35 | X63: 0.7291666667 | Y63: 38 | Z63: 0.7916666667 | AB63: 0 | AC63: 0 | AE63: =cálculos2!O63 -> 4 | AF63: 0.4 | AG63: =cálculos2!P63 -> 2 | AH63: 0.5
A64: Metropolitana | B64: Santa Leopoldina | C64: 92 | D64: 50 | E64: 40 | F64: 0.8 | G64: 40 | H64: 0.8 | I64: 39 | J64: 0.78 | K64: 38 | L64: 0.76 | M64: 39 | N64: 0.78 | O64: 41 | P64: 0.82 | Q64: 36 | R64: 0.72 | S64: 38 | T64: 0.76 | U64: 45 | V64: 0.9 | W64: 33 | X64: 0.66 | Y64: 38 | Z64: 0.76 | AB64: 0 | AC64: 0 | AE64: =cálculos2!O64 -> 0 | AF64: 0 | AG64: =cálculos2!P64 -> 0 | AH64: 0
A65: Metropolitana | B65: Santa Maria de Jetibá | C65: 658 | D65: 255 | E65: 278 | F65: 1.090196078 | G65: 275 | H65: 1.078431373 | I65: 232 | J65: 0.9098039216 | K65: 232 | L65: 0.9098039216 | M65: 259 | N65: 1.015686275 | O65: 269 | P65: 1.054901961 | Q65: 262 | R65: 1.02745098 | S65: 192 | T65: 0.7529411765 | U65: 239 | V65: 0.937254902 | W65: 242 | X65: 0.9490196078 | Y65: 205 | Z65: 0.8039215686 | AB65: 0 | AC65: 0 | AE65: =cálculos2!O65 -> 4 | AF65: 0.4 | AG65: =cálculos2!P65 -> 1 | AH65: 0.25
A66: Metropolitana | B66: Santa Teresa | C66: 296 | D66: 131 | E66: 120 | F66: 0.9160305344 | G66: 125 | H66: 0.9541984733 | I66: 105 | J66: 0.8015267176 | K66: 103 | L66: 0.786259542 | M66: 100 | N66: 0.7633587786 | O66: 101 | P66: 0.7709923664 | Q66: 102 | R66: 0.7786259542 | S66: 103 | T66: 0.786259542 | U66: 114 | V66: 0.8702290076 | W66: 113 | X66: 0.8625954198 | Y66: 112 | Z66: 0.8549618321 | AB66: 2 | AC66: 0.01526717557 | AE66: =cálculos2!O66 -> 1 | AF66: 0.1 | AG66: =cálculos2!P66 -> 0 | AH66: 0
A67: Central | B67: São Domingos do Norte | C67: 109 | D67: 43 | E67: 35 | F67: 0.8139534884 | G67: 37 | H67: 0.8604651163 | I67: 45 | J67: =I67/D67 -> 1.046511628 | K67: 47 | L67: =K67/D67 -> 1.093023256 | M67: 43 | N67: =M67/D67 -> 1 | O67: 44 | P67: =O67/D67 -> 1.023255814 | Q67: 44 | R67: =Q67/D67 -> 1.023255814 | S67: 46 | T67: =S67/D67 -> 1.069767442 | U67: 54 | V67: =U67/D67 -> 1.255813953 | W67: 49 | X67: =W67/D67 -> 1.139534884 | Y67: 48 | Z67: =Y67/D67 -> 1.11627907 | AB67: 0 | AC67: 0 | AE67: =cálculos2!O67 -> 9 | AF67: 0.9 | AG67: =cálculos2!P67 -> 4 | AH67: 1
A68: Central | B68: São Gabriel da Palha | C68: 408 | D68: 190 | E68: 147 | F68: =E68/D68 -> 0.7736842105 | G68: 147 | H68: =G68/D68 -> 0.7736842105 | I68: 154 | J68: 0.8105263158 | K68: 155 | L68: 0.8157894737 | M68: 121 | N68: 0.6368421053 | O68: 134 | P68: 0.7052631579 | Q68: 150 | R68: 0.7894736842 | S68: 170 | T68: 0.8947368421 | U68: 153 | V68: 0.8052631579 | W68: 165 | X68: 0.8684210526 | Y68: 144 | Z68: 0.7578947368 | AB68: 3 | AC68: =AB68/D68 -> 0.01578947368 | AE68: =cálculos2!O68 -> 0 | AF68: =AE68*0.1 -> 0 | AG68: =cálculos2!P68 -> 0 | AH68: =AG68*0.25 -> 0
A69: Sul | B69: São José do Calçado | C69: 95 | D69: 38 | E69: 42 | F69: 1.105263158 | G69: 47 | H69: 1.236842105 | I69: 40 | J69: 1.052631579 | K69: 40 | L69: 1.052631579 | M69: 37 | N69: 0.9736842105 | O69: 37 | P69: 0.9736842105 | Q69: 34 | R69: 0.8947368421 | S69: 25 | T69: 0.6578947368 | U69: 39 | V69: 1.026315789 | W69: 37 | X69: 0.9736842105 | Y69: 42 | Z69: 1.105263158 | AB69: 2 | AC69: 0.05263157895 | AE69: =cálculos2!O69 -> 8 | AF69: 0.8 | AG69: =cálculos2!P69 -> 4 | AH69: 1
A70: Norte | B70: São Mateus | C70: 1801 | D70: 799 | E70: 620 | F70: 0.7759699625 | G70: 581 | H70: 0.7271589487 | I70: 612 | J70: 0.7659574468 | K70: 597 | L70: 0.74718398 | M70: 569 | N70: 0.7121401752 | O70: 594 | P70: 0.7434292866 | Q70: 594 | R70: 0.7434292866 | S70: 552 | T70: 0.6908635795 | U70: 633 | V70: 0.7922403004 | W70: 716 | X70: 0.8961201502 | Y70: 528 | Z70: 0.6608260325 | AB70: 43 | AC70: 0.05381727159 | AE70: =cálculos2!O70 -> 0 | AF70: 0 | AG70: =cálculos2!P70 -> 0 | AH70: 0
A71: Central | B71: São Roque do Canaã | C71: 113 | D71: 48 | E71: 65 | F71: 1.354166667 | G71: 64 | H71: 1.333333333 | I71: 49 | J71: 1.020833333 | K71: 47 | L71: 0.9791666667 | M71: 45 | N71: 0.9375 | O71: 47 | P71: 0.9791666667 | Q71: 46 | R71: 0.9583333333 | S71: 47 | T71: 0.9791666667 | U71: 45 | V71: 0.9375 | W71: 61 | X71: 1.270833333 | Y71: 50 | Z71: 1.041666667 | AB71: 5 | AC71: 0.1041666667 | AE71: =cálculos2!O71 -> 8 | AF71: 0.8 | AG71: =cálculos2!P71 -> 3 | AH71: 0.75
A72: Metropolitana | B72: Serra | C72: 7280 | D72: 3131 | E72: 2882 | F72: 0.9204726924 | G72: 2872 | H72: 0.9172788247 | I72: 2578 | J72: 0.8233791121 | K72: 2513 | L72: 0.8026189716 | M72: 2516 | N72: 0.8035771319 | O72: 2627 | P72: 0.8390290642 | Q72: 2582 | R72: 0.8246566592 | S72: 2071 | T72: 0.661450016 | U72: 2679 | V72: 0.8556371766 | W72: 2727 | X72: 0.8709677419 | Y72: 2274 | Z72: 0.7262855318 | AB72: 69 | AC72: 0.02203768764 | AE72: =cálculos2!O72 -> 1 | AF72: 0.1 | AG72: =cálculos2!P72 -> 0 | AH72: 0
A73: Central | B73: Sooretama | C73: 419 | D73: 163 | E73: 171 | F73: 1.049079755 | G73: 177 | H73: 1.085889571 | I73: 174 | J73: 1.067484663 | K73: 167 | L73: 1.024539877 | M73: 147 | N73: 0.9018404908 | O73: 152 | P73: 0.9325153374 | Q73: 166 | R73: 1.018404908 | S73: 144 | T73: 0.8834355828 | U73: 144 | V73: 0.8834355828 | W73: 171 | X73: 1.049079755 | Y73: 115 | Z73: 0.7055214724 | AB73: 1 | AC73: 0.006134969325 | AE73: =cálculos2!O73 -> 6 | AF73: 0.6 | AG73: =cálculos2!P73 -> 3 | AH73: 0.75
A74: Sul | B74: Vargem Alta | C74: 267 | D74: 120 | E74: 124 | F74: 1.033333333 | G74: 123 | H74: 1.025 | I74: 90 | J74: 0.75 | K74: 86 | L74: 0.7166666667 | M74: 103 | N74: 0.8583333333 | O74: 99 | P74: 0.825 | Q74: 94 | R74: 0.7833333333 | S74: 89 | T74: 0.7416666667 | U74: 102 | V74: 0.85 | W74: 118 | X74: 0.9833333333 | Y74: 116 | Z74: 0.9666666667 | AB74: 4 | AC74: 0.03333333333 | AE74: =cálculos2!O74 -> 3 | AF74: 0.3 | AG74: =cálculos2!P74 -> 1 | AH74: 0.25
A75: Metropolitana | B75: Venda Nova do Imigrante | C75: 335 | D75: 138 | E75: 134 | F75: 0.9710144928 | G75: 143 | H75: 1.036231884 | I75: 148 | J75: 1.072463768 | K75: 148 | L75: 1.072463768 | M75: 150 | N75: 1.086956522 | O75: 154 | P75: 1.115942029 | Q75: 140 | R75: 1.014492754 | S75: 124 | T75: 0.8985507246 | U75: 164 | V75: 1.188405797 | W75: 162 | X75: 1.173913043 | Y75: 187 | Z75: 1.355072464 | AB75: 7 | AC75: 0.05072463768 | AE75: =cálculos2!O75 -> 9 | AF75: 0.9 | AG75: =cálculos2!P75 -> 4 | AH75: 1
A76: Metropolitana | B76: Viana | C76: 887 | D76: 386 | E76: 357 | F76: 0.9248704663 | G76: 356 | H76: 0.9222797927 | I76: 354 | J76: 0.9170984456 | K76: 328 | L76: 0.8497409326 | M76: 356 | N76: 0.9222797927 | O76: 357 | P76: 0.9248704663 | Q76: 339 | R76: 0.878238342 | S76: 243 | T76: 0.6295336788 | U76: 344 | V76: 0.8911917098 | W76: 402 | X76: 1.041450777 | Y76: 250 | Z76: 0.6476683938 | AB76: 13 | AC76: 0.03367875648 | AE76: =cálculos2!O76 -> 3 | AF76: 0.3 | AG76: =cálculos2!P76 -> 1 | AH76: 0.25
A77: Norte | B77: Vila Pavão | C77: 115 | D77: 56 | E77: 41 | F77: 0.7321428571 | G77: 44 | H77: 0.7857142857 | I77: 58 | J77: 1.035714286 | K77: 54 | L77: 0.9642857143 | M77: 43 | N77: 0.7678571429 | O77: 40 | P77: 0.7142857143 | Q77: 52 | R77: 0.9285714286 | S77: 50 | T77: 0.8928571429 | U77: 33 | V77: 0.5892857143 | W77: 47 | X77: 0.8392857143 | Y77: 43 | Z77: 0.7678571429 | AB77: 3 | AC77: 0.05357142857 | AE77: =cálculos2!O77 -> 2 | AF77: 0.2 | AG77: =cálculos2!P77 -> 2 | AH77: 0.5
A78: Central | B78: Vila Valério | C78: 220 | D78: 88 | E78: 86 | F78: 0.9772727273 | G78: 88 | H78: 1 | I78: 88 | J78: 1 | K78: 87 | L78: 0.9886363636 | M78: 76 | N78: 0.8636363636 | O78: 70 | P78: 0.7954545455 | Q78: 85 | R78: 0.9659090909 | S78: 97 | T78: 1.102272727 | U78: 114 | V78: 1.295454545 | W78: 110 | X78: 1.25 | Y78: 114 | Z78: 1.295454545 | AB78: 1 | AC78: 0.01136363636 | AE78: =cálculos2!O78 -> 8 | AF78: 0.8 | AG78: =cálculos2!P78 -> 3 | AH78: 0.75
A79: Metropolitana | B79: Vila Velha | C79: 5478 | D79: 2421 | E79: 2114 | F79: 0.8731928955 | G79: 2111 | H79: 0.8719537381 | I79: 1806 | J79: 0.7459727385 | K79: 1802 | L79: 0.7443205287 | M79: 1752 | N79: 0.7236679058 | O79: 1823 | P79: 0.7529946303 | Q79: 1810 | R79: 0.7476249484 | S79: 1361 | T79: 0.5621643949 | U79: 1868 | V79: 0.7715819909 | W79: 1912 | X79: 0.789756299 | Y79: 1776 | Z79: 0.7335811648 | AB79: 70 | AC79: 0.02891367204 | AE79: =cálculos2!O79 -> 0 | AF79: 0 | AG79: =cálculos2!P79 -> 0 | AH79: 0
A80: Metropolitana | B80: Vitória | C80: 3431 | D80: 1477 | E80: 1313 | F80: 0.8889641165 | G80: 1353 | H80: 0.9160460393 | I80: 1496 | J80: 1.012863913 | K80: 1484 | L80: 1.004739336 | M80: 1448 | N80: 0.980365606 | O80: 1513 | P80: 1.024373731 | Q80: 1473 | R80: 0.9972918077 | S80: 1022 | T80: 0.691943128 | U80: 1543 | V80: 1.044685173 | W80: 1699 | X80: 1.150304672 | Y80: 1488 | Z80: 1.007447529 | AB80: 80 | AC80: 0.05416384563 | AE80: =cálculos2!O80 -> 9 | AF80: 0.9 | AG80: =cálculos2!P80 -> 4 | AH80: 1
B82: Total Norte | C82: =SUMIF($A$3:$A$80,"Norte",C$3:C$80) -> 5675 | D82: =SUMIF($A$3:$A$80,"Norte",D$3:D$80) -> 2568 | E82: =SUMIF($A$3:$A$80,"Norte",E$3:E$80) -> 2111 | F82: =E82/D82 -> 0.8220404984 | G82: =SUMIF($A$3:$A$80,"Norte",G$3:G$80) -> 2068 | H82: =G82/D82 -> 0.8052959502 | I82: =SUMIF($A$3:$A$80,"Norte",I$3:I$80) -> 2128 | J82: =I82/D82 -> 0.8286604361 | K82: =SUMIF($A$3:$A$80,"Norte",K$3:K$80) -> 2067 | L82: =K82/D82 -> 0.8049065421 | M82: =SUMIF($A$3:$A$80,"Norte",M$3:M$80) -> 1943 | N82: =M82/D82 -> 0.7566199377 | O82: =SUMIF($A$3:$A$80,"Norte",O$3:O$80) -> 1995 | P82: =O82/D82 -> 0.7768691589 | Q82: =SUMIF($A$3:$A$80,"Norte",Q$3:Q$80) -> 2056 | R82: =Q82/D82 -> 0.800623053 | S82: =SUMIF($A$3:$A$80,"Norte",S$3:S$80) -> 1917 | T82: =S82/D82 -> 0.7464953271 | U82: =SUMIF($A$3:$A$80,"Norte",U$3:U$80) -> 2105 | V82: =U82/D82 -> 0.8197040498 | W82: =SUMIF($A$3:$A$80,"Norte",W$3:W$80) -> 2349 | X82: =W82/D82 -> 0.9147196262 | Y82: =SUMIF($A$3:$A$80,"Norte",Y$3:Y$80) -> 1878 | Z82: =Y82/D82 -> 0.7313084112 | AB82: =SUMIF($A$3:$A$80,"Norte",AB$3:AB$80) -> 69 | AC82: =AB82/D82 -> 0.02686915888 | AE82: =cálculos2!O82 -> 0 | AF82: =AE82*0.1 -> 0 | AG82: =cálculos2!P82 -> 0 | AH82: 0
B83: Total Central | C83: =SUMIF($A$3:$A$80,"Central",C$3:C$80) -> 6832 | D83: =SUMIF($A$3:$A$80,"Central",D$3:D$80) -> 2986 | E83: =SUMIF($A$3:$A$80,"Central",E$3:E$80) -> 2885 | F83: =E83/D83 -> 0.9661754856 | G83: =SUMIF($A$3:$A$80,"Central",G$3:G$80) -> 2938 | H83: =G83/D83 -> 0.9839249833 | I83: =SUMIF($A$3:$A$80,"Central",I$3:I$80) -> 2546 | J83: =I83/D83 -> 0.8526456798 | K83: =SUMIF($A$3:$A$80,"Central",K$3:K$80) -> 2519 | L83: =K83/D83 -> 0.8436034829 | M83: =SUMIF($A$3:$A$80,"Central",M$3:M$80) -> 2329 | N83: =M83/D83 -> 0.7799732083 | O83: =SUMIF($A$3:$A$80,"Central",O$3:O$80) -> 2463 | P83: =O83/D83 -> 0.8248492967 | Q83: =SUMIF($A$3:$A$80,"Central",Q$3:Q$80) -> 2570 | R83: =Q83/D83 -> 0.8606831882 | S83: =SUMIF($A$3:$A$80,"Central",S$3:S$80) -> 2348 | T83: =S83/D83 -> 0.7863362358 | U83: =SUMIF($A$3:$A$80,"Central",U$3:U$80) -> 2481 | V83: =U83/D83 -> 0.830877428 | W83: =SUMIF($A$3:$A$80,"Central",W$3:W$80) -> 2728 | X83: =W83/D83 -> 0.913596785 | Y83: =SUMIF($A$3:$A$80,"Central",Y$3:Y$80) -> 2296 | Z83: =Y83/D83 -> 0.7689216343 | AB83: =SUMIF($A$3:$A$80,"Central",AB$3:AB$80) -> 50 | AC83: =AB83/D83 -> 0.01674480911 | AE83: =cálculos2!O83 -> 1 | AF83: =AE83*0.1 -> 0.1 | AG83: =cálculos2!P83 -> 0 | AH83: 0
B84: Total Metropolitana | C84: =SUMIF($A$3:$A$80,"Metropolitana",C$3:C$80) -> 28997 | D84: =SUMIF($A$3:$A$80,"Metropolitana",D$3:D$80) -> 12689 | E84: =SUMIF($A$3:$A$80,"Metropolitana",E$3:E$80) -> 11454 | F84: =E84/D84 -> 0.9026716053 | G84: =SUMIF($A$3:$A$80,"Metropolitana",G$3:G$80) -> 11659 | H84: =G84/D84 -> 0.9188273308 | I84: =SUMIF($A$3:$A$80,"Metropolitana",I$3:I$80) -> 10555 | J84: =I84/D84 -> 0.8318228387 | K84: =SUMIF($A$3:$A$80,"Metropolitana",K$3:K$80) -> 10402 | L84: =K84/D84 -> 0.8197651509 | M84: =SUMIF($A$3:$A$80,"Metropolitana",M$3:M$80) -> 10079 | N84: =M84/D84 -> 0.7943100323 | O84: =SUMIF($A$3:$A$80,"Metropolitana",O$3:O$80) -> 10659 | P84: =O84/D84 -> 0.840018914 | Q84: =SUMIF($A$3:$A$80,"Metropolitana",Q$3:Q$80) -> 10524 | R84: =Q84/D84 -> 0.8293797778 | S84: =SUMIF($A$3:$A$80,"Metropolitana",S$3:S$80) -> 8329 | T84: =S84/D84 -> 0.656395303 | U84: =SUMIF($A$3:$A$80,"Metropolitana",U$3:U$80) -> 11023 | V84: =U84/D84 -> 0.8687051777 | W84: =SUMIF($A$3:$A$80,"Metropolitana",W$3:W$80) -> 11493 | X84: =W84/D84 -> 0.9057451336 | Y84: =SUMIF($A$3:$A$80,"Metropolitana",Y$3:Y$80) -> 10007 | Z84: =Y84/D84 -> 0.7886358263 | AB84: =SUMIF($A$3:$A$80,"Metropolitana",AB$3:AB$80) -> 463 | AC84: 0.03648829695 | AE84: =cálculos2!O84 -> 1 | AF84: 0.1 | AG84: =cálculos2!P84 -> 0 | AH84: 0
B85: Total Sul | C85: =SUMIF($A$3:$A$80,"sul",C$3:C$80) -> 8061 | D85: =SUMIF($A$3:$A$80,"sul",D$3:D$80) -> 3529 | E85: =SUMIF($A$3:$A$80,"Sul",E$3:E$80) -> 3306 | F85: =E85/D85 -> 0.9368092944 | G85: =SUMIF($A$3:$A$80,"Sul",G$3:G$80) -> 3393 | H85: =G85/D85 -> 0.9614621706 | I85: =SUMIF($A$3:$A$80,"Sul",I$3:I$80) -> 3073 | J85: =I85/D85 -> 0.8707849249 | K85: =SUMIF($A$3:$A$80,"Sul",K$3:K$80) -> 2952 | L85: =K85/D85 -> 0.8364975914 | M85: =SUMIF($A$3:$A$80,"Sul",M$3:M$80) -> 2974 | N85: =M85/D85 -> 0.842731652 | O85: =SUMIF($A$3:$A$80,"Sul",O$3:O$80) -> 3114 | P85: =O85/D85 -> 0.882402947 | Q85: =SUMIF($A$3:$A$80,"Sul",Q$3:Q$80) -> 3056 | R85: =Q85/D85 -> 0.8659676962 | S85: =SUMIF($A$3:$A$80,"Sul",S$3:S$80) -> 2688 | T85: =S85/D85 -> 0.7616888637 | U85: =SUMIF($A$3:$A$80,"Sul",U$3:U$80) -> 3140 | V85: =U85/D85 -> 0.8897704732 | W85: =SUMIF($A$3:$A$80,"Sul",W$3:W$80) -> 3486 | X85: =W85/D85 -> 0.9878152451 | Y85: =SUMIF($A$3:$A$80,"Sul",Y$3:Y$80) -> 3030 | Z85: =Y85/D85 -> 0.85860017 | AB85: =SUMIF($A$3:$A$80,"Sul",AB$3:AB$80) -> 117 | AC85: 0.03315386795 | AE85: =cálculos2!O85 -> 2 | AF85: 0.2 | AG85: =cálculos2!P85 -> 1 | AH85: 0.25
B86: Total Espírito Santo | C86: =SUM(C3:C80) -> 49565 | D86: =SUM(D3:D80) -> 21772 | E86: =SUM(E82:E85) -> 19756 | F86: =E86/D86 -> 0.9074040051 | G86: =SUM(G82:G85) -> 20058 | H86: =G86/D86 -> 0.9212750322 | I86: =SUM(I82:I85) -> 18302 | J86: =I86/D86 -> 0.8406209811 | K86: =SUM(K82:K85) -> 17940 | L86: =K86/D86 -> 0.8239941209 | M86: =SUM(M82:M85) -> 17325 | N86: =M86/D86 -> 0.7957468308 | O86: =SUM(O82:O85) -> 18231 | P86: =O86/D86 -> 0.8373599118 | Q86: =SUM(Q82:Q85) -> 18206 | R86: =Q86/D86 -> 0.836211648 | S86: =SUM(S82:S85) -> 15282 | T86: =S86/D86 -> 0.701910711 | U86: =SUM(U82:U85) -> 18749 | V86: =U86/D86 -> 0.8611519383 | W86: =SUM(W82:W85) -> 20056 | X86: =W86/D86 -> 0.921183171 | Y86: =SUM(Y82:Y85) -> 17211 | Z86: =Y86/D86 -> 0.7905107477 | AB86: =SUM(AB82:AB85) -> 699 | AC86: 0.03210545655 | AE86: =cálculos2!O86 -> 1 | AF86: 0.1 | AG86: =cálculos2!P86 -> 0 | AH86: 0
E87: =COUNTIF(F3:F80,">=0,95") -> 25 | G87: =COUNTIF(H3:H80,">=0,9") -> 44 | I87: =COUNTIF(J3:J80,">=0,95") -> 25 | K87: =COUNTIF(L3:L80,">=0,95") -> 25 | M87: =COUNTIF(N3:N80,">=0,95") -> 18 | O87: =COUNTIF(P3:P80,">=0,9") -> 27 | Q87: =COUNTIF(R3:R80,">=0,95") -> 23 | S87: =COUNTIF(T3:T80,">=0,95") -> 17 | U87: =COUNTIF(V3:V80,">=0,95") -> 22 | W87: =COUNTIF(X3:X80,">=0,95") -> 43 | Y87: =COUNTIF(Z3:Z80,">=0,95") -> 27 | AB87: =COUNTIF(AC3:AC80,">=0,9") -> 0
B88: HOMOGENEIDADE ENTRE MUNICÍPIOS | E88: =E87/78 -> 0.3205128205 | G88: =G87/78 -> 0.5641025641 | I88: =I87/78 -> 0.3205128205 | K88: =K87/78 -> 0.3205128205 | M88: =M87/78 -> 0.2307692308 | O88: =O87/78 -> 0.3461538462 | Q88: =Q87/78 -> 0.2948717949 | S88: =S87/78 -> 0.2179487179 | U88: =U87/78 -> 0.2820512821 | W88: =W87/78 -> 0.5512820513 | Y88: =Y87/78 -> 0.3461538462 | AB88: =AB87/78 -> 0
A90: Fonte: Vacina e Confia, em 11 de Junho de 2025.**<https://vacinaeconfia.saude.es.gov.br/>
A91: **Dados referente às doses aplicadas no período de Janeiro a Maio 2025
A92: Cobertura Calculada por município de residência da vacinação
A93: 1 População anual extraída do MS/SVS/DASIS - SINASC/DASIS/SVS/MS 2024 (hoje preliminares) referente ao período de Abril a Dezembro de 2024 e SINASC/DASIS/SVS/MS referente ao período de Janeiro e Março de 2025.
A94: ² População proporcional extraída do MS/SVS/DASIS - SINASC/DASIS/SVS/MS 2024 (hoje preliminares) referente ao período de Abril e Maio 2024 e Janeiro a Março/ 2025.
A95: Sinasc, atualizado em 10/06/25.
A96: Homogeineidade: O cálculo da Homogeineidade entre vacinas é feito de acordo com a pactuação estabelecida no Plano Plurianual (PPA) vigente no período 2024-2027.
A98: Observações:
A99: 1. Imunobiológicos que foram recebidos parcialmente pelo estado no mês de Maio/2025, sendo distribuídos em quantidades reduzidas às regionais e municípios:
A100: SORO ANTIRRÁBICO HUMANO, IMUNOGLOBULINA ANTIRRÁBICA HUMANA, VACINA COVID-19 MODERNA (SPIKEVAX),VACINA COVID-19 PFIZER PEDIÁTRICA
A101: 2. Imunobiológicos indisponíveis no mês de Maio/2025, não sendo possível a distribuição às regionais e municípios:
A102: VACINA TRÍPLICE ACELULAR (DTPa) - CRIE, VACINA COVID-19 RECOMBINANTE SERUM/ZALIKA

Sheet CV REF 1A e 4A - procedência
G1: D2 | K1: REFORÇOS 1 ANO | S1: REFORÇOS 4 ANOS
A2: Regional | B2: Município | C2: ¹População 1 ano anual | D2: ²População 1 ano proporcional | E2: ³População 4 anos anual | F2: ³População 4 anos proporcional | G2: DOSES APLICADAS D2 TRÍPLICE VIRAL | H2: COBERTURA D2 TRÍPLICE VIRAL | I2: DOSES APLICADAS D2 VARICELA | J2: COBERTURA D2 VARICELA | K2: DOSES APLICADAS REF PNEUMO | L2: COBERTURA REF PNEUMO | M2: DOSES APLICADAS REF MENINGO | N2: COBERTURA REF MENINGO | O2: DOSES APLICADAS REF POLIO | P2: COBERTURA REF POLIO | Q2: DOSES APLICADAS R1 TRÍPLICE BACTERIANA | R2: COBERTURA R1 TRÍPLICE BACTERIANA | S2: DOSES APLICADAS REF FEBRE AMARELA | T2: COBERTURA REF FEBRE AMARELA | U2: DOSES APLICADAS R2 TRÍPLICE BACTERIANA | V2: COBERTURA R2 TRÍPLICE BACTERIANA
A3: Metropolitana | B3: Afonso Cláudio | C3: 359 | D3: 151 | E3: 416 | F3: =($E3/12)*5 -> 173.3333333 | G3: 143 | H3: =G3/D3 -> 0.9470198675 | I3: 9 | J3: =I3/F3 -> 0.05192307692 | K3: 145 | L3: =K3/D3 -> 0.9602649007 | M3: 144 | N3: =M3/D3 -> 0.9536423841 | O3: 173 | P3: =O3/D3 -> 1.145695364 | Q3: 143 | R3: =Q3/D3 -> 0.9470198675 | S3: 156 | T3: =S3/F3 -> 0.9 | U3: 149 | V3: =U3/F3 -> 0.8596153846
A4: Norte | B4: Água Doce do Norte | C4: 172 | D4: 85 | E4: 151 | F4: =($E4/12)*5 -> 62.91666667 | G4: 51 | H4: 0.6 | I4: 21 | J4: 0.3337748344 | K4: 78 | L4: 0.9176470588 | M4: 76 | N4: 0.8941176471 | O4: 53 | P4: 0.6235294118 | Q4: 54 | R4: 0.6352941176 | S4: 29 | T4: 0.4609271523 | U4: 42 | V4: 0.6675496689
A5: Central | B5: Águia Branca | C5: 151 | D5: 79 | E5: 129 | F5: 53.75 | G5: 60 | H5: 0.7594936709 | I5: 28 | J5: 0.5209302326 | K5: 66 | L5: 0.835443038 | M5: 66 | N5: 0.835443038 | O5: 59 | P5: 0.746835443 | Q5: 53 | R5: 0.6708860759 | S5: 41 | T5: 0.7627906977 | U5: 39 | V5: 0.7255813953
A6: Sul | B6: Alegre | C6: 298 | D6: 127 | E6: 372 | F6: 155 | G6: 152 | H6: 1.196850394 | I6: 122 | J6: 0.7870967742 | K6: 131 | L6: 1.031496063 | M6: 123 | N6: 0.968503937 | O6: 154 | P6: 1.212598425 | Q6: 139 | R6: 1.094488189 | S6: 124 | T6: 0.8 | U6: 118 | V6: 0.7612903226
A7: Sul | B7: Alfredo Chaves | C7: 122 | D7: 58 | E7: 138 | F7: 57.5 | G7: 58 | H7: 1 | I7: 47 | J7: 0.8173913043 | K7: 53 | L7: 0.9137931034 | M7: 54 | N7: 0.9310344828 | O7: 67 | P7: 1.155172414 | Q7: 63 | R7: 1.086206897 | S7: 51 | T7: 0.8869565217 | U7: 54 | V7: 0.9391304348
A8: Central | B8: Alto Rio Novo | C8: 93 | D8: 42 | E8: 102 | F8: 42.5 | G8: 41 | H8: 0.9761904762 | I8: 45 | J8: 1.058823529 | K8: 38 | L8: 0.9047619048 | M8: 37 | N8: 0.880952381 | O8: 38 | P8: 0.9047619048 | Q8: 37 | R8: 0.880952381 | S8: 39 | T8: 0.9176470588 | U8: 40 | V8: 0.9411764706
A9: Sul | B9: Anchieta | C9: 352 | D9: 154 | E9: 390 | F9: 162.5 | G9: 157 | H9: 1.019480519 | I9: 136 | J9: 0.8369230769 | K9: 138 | L9: 0.8961038961 | M9: 142 | N9: 0.9220779221 | O9: 172 | P9: 1.116883117 | Q9: 145 | R9: 0.9415584416 | S9: 166 | T9: 1.021538462 | U9: 161 | V9: 0.9907692308
A10: Sul | B10: Apiacá | C10: 72 | D10: 31 | E10: 90 | F10: 37.5 | G10: 28 | H10: 0.9032258065 | I10: 18 | J10: 0.48 | K10: 41 | L10: 1.322580645 | M10: 40 | N10: 1.290322581 | O10: 23 | P10: 0.7419354839 | Q10: 27 | R10: 0.8709677419 | S10: 5 | T10: 0.1333333333 | U10: 27 | V10: 0.72
A11: Metropolitana | B11: Aracruz | C11: 1392 | D11: 650 | E11: 1420 | F11: 591.6666667 | G11: 608 | H11: 0.9353846154 | I11: 611 | J11: 1.032676056 | K11: 586 | L11: 0.9015384615 | M11: 583 | N11: 0.8969230769 | O11: 660 | P11: 1.015384615 | Q11: 558 | R11: 0.8584615385 | S11: 500 | T11: 0.8450704225 | U11: 590 | V11: 0.9971830986
A12: Sul | B12: Atilio Vivacqua | C12: 173 | D12: 72 | E12: 138 | F12: 57.5 | G12: 58 | H12: 0.8055555556 | I12: 29 | J12: 0.5043478261 | K12: 54 | L12: 0.75 | M12: 53 | N12: 0.7361111111 | O12: 57 | P12: 0.7916666667 | Q12: 50 | R12: 0.6944444444 | S12: 63 | T12: 1.095652174 | U12: 63 | V12: 1.095652174
A13: Central | B13: Baixo Guandu | C13: 349 | D13: 168 | E13: 427 | F13: 177.9166667 | G13: 144 | H13: 0.8571428571 | I13: 138 | J13: 0.7756440281 | K13: 171 | L13: 1.017857143 | M13: 168 | N13: 1 | O13: 161 | P13: 0.9583333333 | Q13: 150 | R13: 0.8928571429 | S13: 138 | T13: 0.7756440281 | U13: 149 | V13: 0.837470726
A14: Norte | B14: Barra de São Francisco | C14: 595 | D14: 247 | E14: 589 | F14: 245.4166667 | G14: 205 | H14: 0.8299595142 | I14: 119 | J14: 0.4848896435 | K14: 208 | L14: 0.8421052632 | M14: 210 | N14: 0.8502024291 | O14: 198 | P14: 0.8016194332 | Q14: 190 | R14: 0.7692307692 | S14: 138 | T14: 0.5623089983 | U14: 160 | V14: 0.6519524618
A15: Norte | B15: Boa Esperança | C15: 207 | D15: 97 | E15: 200 | F15: 83.33333333 | G15: 70 | H15: 0.7216494845 | I15: 31 | J15: 0.372 | K15: 75 | L15: 0.7731958763 | M15: 76 | N15: 0.7835051546 | O15: 69 | P15: 0.7113402062 | Q15: 55 | R15: 0.5670103093 | S15: 34 | T15: 0.408 | U15: 54 | V15: 0.648
A16: Sul | B16: Bom Jesus do Norte | C16: 69 | D16: 29 | E16: 146 | F16: 60.83333333 | G16: 36 | H16: 1.24137931 | I16: 38 | J16: 0.6246575342 | K16: 43 | L16: 1.482758621 | M16: 41 | N16: 1.413793103 | O16: 47 | P16: 1.620689655 | Q16: 39 | R16: 1.344827586 | S16: 33 | T16: 0.5424657534 | U16: 55 | V16: 0.904109589
A17: Metropolitana | B17: Brejetuba | C17: 199 | D17: 75 | E17: 169 | F17: 70.41666667 | G17: 130 | H17: 1.733333333 | I17: 44 | J17: 0.624852071 | K17: 84 | L17: 1.12 | M17: 83 | N17: 1.106666667 | O17: 83 | P17: 1.106666667 | Q17: 86 | R17: 1.146666667 | S17: 80 | T17: 1.136094675 | U17: 82 | V17: 1.164497041
A18: Sul | B18: Cachoeiro de Itapemirim | C18: 2337 | D18: 1046 | E18: 2417 | F18: 1007.083333 | G18: 860 | H18: 0.8221797323 | I18: 472 | J18: 0.468680182 | K18: 903 | L18: 0.8632887189 | M18: 996 | N18: 0.9521988528 | O18: 1007 | P18: 0.9627151052 | Q18: 860 | R18: 0.8221797323 | S18: 843 | T18: 0.8370707489 | U18: 924 | V18: 0.9175010343
A19: Metropolitana | B19: Cariacica | C19: 4824 | D19: 2178 | E19: 5005 | F19: 2085.416667 | G19: 1507 | H19: 0.6919191919 | I19: 1046 | J19: 0.5015784216 | K19: 1794 | L19: 0.8236914601 | M19: 1854 | N19: 0.8512396694 | O19: 1993 | P19: 0.9150596878 | Q19: 1689 | R19: 0.7754820937 | S19: 1463 | T19: 0.7015384615 | U19: 1866 | V19: 0.8947852148
A20: Sul | B20: Castelo | C20: 415 | D20: 186 | E20: 399 | F20: 166.25 | G20: 169 | H20: 0.9086021505 | I20: 175 | J20: 1.052631579 | K20: 180 | L20: 0.9677419355 | M20: 190 | N20: 1.021505376 | O20: 188 | P20: 1.010752688 | Q20: 184 | R20: 0.9892473118 | S20: 143 | T20: 0.8601503759 | U20: 153 | V20: 0.9203007519
A21: Central | B21: Colatina | C21: 1441 | D21: 606 | E21: 1561 | F21: 650.4166667 | G21: 517 | H21: 0.8531353135 | I21: 321 | J21: 0.4935297886 | K21: 552 | L21: 0.9108910891 | M21: 590 | N21: 0.9735973597 | O21: 582 | P21: 0.9603960396 | Q21: 489 | R21: 0.8069306931 | S21: 360 | T21: 0.5534913517 | U21: 436 | V21: 0.6703395259
A22: Norte | B22: Conceição da Barra | C22: 353 | D22: 161 | E22: 391 | F22: 162.9166667 | G22: 154 | H22: 0.9565217391 | I22: 66 | J22: 0.4051150895 | K22: 169 | L22: 1.049689441 | M22: 175 | N22: 1.086956522 | O22: 177 | P22: 1.099378882 | Q22: 145 | R22: 0.900621118 | S22: 146 | T22: 0.8961636829 | U22: 165 | V22: 1.012787724
A23: Metropolitana | B23: Conceição do Castelo | C23: 161 | D23: 50 | E23: 144 | F23: 60 | G23: 68 | H23: 1.36 | I23: 82 | J23: 1.366666667 | K23: 49 | L23: 0.98 | M23: 50 | N23: 1 | O23: 46 | P23: 0.92 | Q23: 49 | R23: 0.98 | S23: 69 | T23: 1.15 | U23: 61 | V23: 1.016666667
A24: Sul | B24: Divino de São Lourenço | C24: 53 | D24: 29 | E24: 68 | F24: 28.33333333 | G24: 31 | H24: 1.068965517 | I24: 43 | J24: 1.517647059 | K24: 39 | L24: 1.344827586 | M24: 38 | N24: 1.310344828 | O24: 28 | P24: 0.9655172414 | Q24: 27 | R24: 0.9310344828 | S24: 19 | T24: 0.6705882353 | U24: 24 | V24: 0.8470588235
A25: Metropolitana | B25: Domingos Martins | C25: 421 | D25: 178 | E25: 411 | F25: 171.25 | G25: 178 | H25: 1 | I25: 179 | J25: 1.045255474 | K25: 156 | L25: 0.8764044944 | M25: 164 | N25: 0.9213483146 | O25: 198 | P25: 1.112359551 | Q25: 177 | R25: 0.9943820225 | S25: 141 | T25: 0.8233576642 | U25: 148 | V25: 0.8642335766
A26: Sul | B26: Dores do Rio Preto | C26: 108 | D26: 57 | E26: 92 | F26: 38.33333333 | G26: 33 | H26: 0.5789473684 | I26: 41 | J26: 1.069565217 | K26: 42 | L26: 0.7368421053 | M26: 45 | N26: 0.7894736842 | O26: 46 | P26: 0.8070175439 | Q26: 43 | R26: 0.7543859649 | S26: 37 | T26: 0.9652173913 | U26: 34 | V26: 0.8869565217
A27: Norte | B27: Ecoporanga | C27: 250 | D27: 124 | E27: 283 | F27: 117.9166667 | G27: 78 | H27: 0.6290322581 | I27: 80 | J27: 0.6784452297 | K27: 109 | L27: 0.8790322581 | M27: 106 | N27: 0.8548387097 | O27: 86 | P27: 0.6935483871 | Q27: 74 | R27: 0.5967741935 | S27: 80 | T27: 0.6784452297 | U27: 97 | V27: 0.822614841
A28: Metropolitana | B28: Fundão | C28: 228 | D28: 109 | E28: 218 | F28: 90.83333333 | G28: 84 | H28: 0.7706422018 | I28: 70 | J28: 0.7706422018 | K28: 94 | L28: 0.8623853211 | M28: 101 | N28: 0.9266055046 | O28: 90 | P28: 0.8256880734 | Q28: 80 | R28: 0.7339449541 | S28: 66 | T28: 0.7266055046 | U28: 95 | V28: 1.04587156
A29: Central | B29: Governador Lindenberg | C29: 115 | D29: 54 | E29: 142 | F29: 59.16666667 | G29: 52 | H29: 0.962962963 | I29: 47 | J29: 0.7943661972 | K29: 50 | L29: 0.9259259259 | M29: 50 | N29: 0.9259259259 | O29: 51 | P29: 0.9444444444 | Q29: 46 | R29: 0.8518518519 | S29: 59 | T29: 0.9971830986 | U29: 60 | V29: 1.014084507
A30: Sul | B30: Guaçuí | C30: 358 | D30: 129 | E30: 407 | F30: 169.5833333 | G30: 131 | H30: 1.015503876 | I30: 70 | J30: 0.4127764128 | K30: 139 | L30: 1.07751938 | M30: 152 | N30: 1.178294574 | O30: 139 | P30: 1.07751938 | Q30: 125 | R30: 0.9689922481 | S30: 156 | T30: 0.9199017199 | U30: 135 | V30: 0.7960687961
A31: Metropolitana | B31: Guarapari | C31: 1722 | D31: 758 | E31: 1557 | F31: 648.75 | G31: 466 | H31: 0.6147757256 | I31: 447 | J31: 0.689017341 | K31: 600 | L31: 0.7915567282 | M31: 595 | N31: 0.7849604222 | O31: 663 | P31: 0.8746701847 | Q31: 547 | R31: 0.7216358839 | S31: 395 | T31: 0.6088631985 | U31: 507 | V31: 0.7815028902
A32: Metropolitana | B32: Ibatiba | C32: 383 | D32: 164 | E32: 354 | F32: 147.5 | G32: 196 | H32: 1.195121951 | I32: 52 | J32: 0.3525423729 | K32: 142 | L32: 0.8658536585 | M32: 148 | N32: 0.9024390244 | O32: 180 | P32: 1.097560976 | Q32: 146 | R32: 0.8902439024 | S32: 119 | T32: 0.806779661 | U32: 133 | V32: 0.9016949153
A33: Metropolitana | B33: Ibiraçu | C33: 140 | D33: 60 | E33: 160 | F33: 66.66666667 | G33: 45 | H33: 0.75 | I33: 60 | J33: 0.9 | K33: 60 | L33: 1 | M33: 59 | N33: 0.9833333333 | O33: 43 | P33: 0.7166666667 | Q33: 43 | R33: 0.7166666667 | S33: 42 | T33: 0.63 | U33: 47 | V33: 0.705
A34: Sul | B34: Ibitirama | C34: 146 | D34: 63 | E34: 148 | F34: 61.66666667 | G34: 61 | H34: 0.9682539683 | I34: 38 | J34: 0.6162162162 | K34: 66 | L34: 1.047619048 | M34: 65 | N34: 1.031746032 | O34: 66 | P34: 1.047619048 | Q34: 46 | R34: 0.7301587302 | S34: 62 | T34: 1.005405405 | U34: 57 | V34: 0.9243243243
A35: Sul | B35: Iconha | C35: 120 | D35: 46 | E35: 156 | F35: 65 | G35: 67 | H35: =G35/D35 -> 1.456521739 | I35: 42 | J35: =I35/F35 -> 0.6461538462 | K35: 47 | L35: =K35/D35 -> 1.02173913 | M35: 46 | N35: =M35/D35 -> 1 | O35: 50 | P35: =O35/D35 -> 1.086956522 | Q35: 44 | R35: =Q35/D35 -> 0.9565217391 | S35: 53 | T35: =S35/F35 -> 0.8153846154 | U35: 55 | V35: =U35/F35 -> 0.8461538462
A36: Sul | B36: Irupi | C36: 171 | D36: 76 | E36: 200 | F36: 83.33333333 | G36: 75 | H36: 0.9868421053 | I36: 45 | J36: 0.54 | K36: 92 | L36: 1.210526316 | M36: 95 | N36: 1.25 | O36: 89 | P36: 1.171052632 | Q36: 85 | R36: 1.118421053 | S36: 68 | T36: 0.816 | U36: 71 | V36: 0.852
A37: Metropolitana | B37: Itaguaçu | C37: 135 | D37: 72 | E37: 154 | F37: 64.16666667 | G37: 46 | H37: 0.6388888889 | I37: 20 | J37: 0.3116883117 | K37: 61 | L37: 0.8472222222 | M37: 63 | N37: 0.875 | O37: 58 | P37: 0.8055555556 | Q37: 43 | R37: 0.5972222222 | S37: 48 | T37: 0.7480519481 | U37: 46 | V37: 0.7168831169
A38: Sul | B38: Itapemirim | C38: 536 | D38: 229 | E38: 556 | F38: 231.6666667 | G38: 137 | H38: 0.5982532751 | I38: 162 | J38: 0.6992805755 | K38: 189 | L38: 0.8253275109 | M38: 187 | N38: 0.8165938865 | O38: 171 | P38: 0.7467248908 | Q38: 160 | R38: 0.6986899563 | S38: 137 | T38: 0.5913669065 | U38: 196 | V38: 0.8460431655
A39: Metropolitana | B39: Itarana | C39: 128 | D39: 60 | E39: 128 | F39: 53.33333333 | G39: 52 | H39: 0.8666666667 | I39: 21 | J39: 0.39375 | K39: 55 | L39: 0.9166666667 | M39: 53 | N39: 0.8833333333 | O39: 58 | P39: 0.9666666667 | Q39: 51 | R39: 0.85 | S39: 37 | T39: 0.69375 | U39: 33 | V39: 0.61875
A40: Sul | B40: Iúna | C40: 402 | D40: 170 | E40: 410 | F40: 170.8333333 | G40: 175 | H40: 1.029411765 | I40: 61 | J40: 0.3570731707 | K40: 170 | L40: 1 | M40: 181 | N40: 1.064705882 | O40: 208 | P40: 1.223529412 | Q40: 170 | R40: 1 | S40: 141 | T40: 0.8253658537 | U40: 153 | V40: 0.8956097561
A41: Norte | B41: Jaguaré | C41: 479 | D41: 239 | E41: 445 | F41: 185.4166667 | G41: 139 | H41: 0.5815899582 | I41: 114 | J41: 0.6148314607 | K41: 173 | L41: 0.7238493724 | M41: 177 | N41: 0.7405857741 | O41: 166 | P41: 0.6945606695 | Q41: 155 | R41: 0.6485355649 | S41: 125 | T41: 0.6741573034 | U41: 163 | V41: 0.8791011236
A42: Sul | B42: Jerônimo Monteiro | C42: 133 | D42: 64 | E42: 157 | F42: 65.41666667 | G42: 59 | H42: 0.921875 | I42: 44 | J42: 0.672611465 | K42: 61 | L42: 0.953125 | M42: 58 | N42: 0.90625 | O42: 69 | P42: 1.078125 | Q42: 59 | R42: 0.921875 | S42: 38 | T42: 0.5808917197 | U42: 60 | V42: 0.9171974522
A43: Metropolitana | B43: João Neiva | C43: 150 | D43: 53 | E43: 142 | F43: 59.16666667 | G43: 53 | H43: 1 | I43: 67 | J43: 1.132394366 | K43: 59 | L43: 1.113207547 | M43: 59 | N43: 1.113207547 | O43: 57 | P43: 1.075471698 | Q43: 55 | R43: 1.037735849 | S43: 43 | T43: 0.7267605634 | U43: 62 | V43: 1.047887324
A44: Metropolitana | B44: Laranja da Terra | C44: 103 | D44: 43 | E44: 133 | F44: 55.41666667 | G44: 53 | H44: 1.23255814 | I44: 58 | J44: 1.046616541 | K44: 44 | L44: 1.023255814 | M44: 47 | N44: 1.093023256 | O44: 43 | P44: 1 | Q44: 36 | R44: 0.8372093023 | S44: 45 | T44: 0.8120300752 | U44: 51 | V44: 0.9203007519
A45: Central | B45: Linhares | C45: 2615 | D45: 1134 | E45: 2452 | F45: 1021.666667 | G45: 758 | H45: 0.6684303351 | I45: 663 | J45: 0.6489396411 | K45: 863 | L45: 0.7610229277 | M45: 928 | N45: 0.8183421517 | O45: 879 | P45: 0.7751322751 | Q45: 842 | R45: 0.7425044092 | S45: 641 | T45: 0.627406199 | U45: 767 | V45: 0.7507340946
A46: Central | B46: Mantenópolis | C46: 136 | D46: 68 | E46: 166 | F46: 69.16666667 | G46: 57 | H46: 0.8382352941 | I46: 21 | J46: 0.3036144578 | K46: 62 | L46: 0.9117647059 | M46: 67 | N46: 0.9852941176 | O46: 54 | P46: 0.7941176471 | Q46: 46 | R46: 0.6764705882 | S46: 61 | T46: 0.8819277108 | U46: 65 | V46: 0.9397590361
A47: Sul | B47: Marataízes | C47: 556 | D47: 241 | E47: 579 | F47: 241.25 | G47: 176 | H47: 0.7302904564 | I47: 211 | J47: 0.874611399 | K47: 228 | L47: 0.9460580913 | M47: 241 | N47: 1 | O47: 206 | P47: 0.8547717842 | Q47: 200 | R47: 0.8298755187 | S47: 151 | T47: 0.6259067358 | U47: 224 | V47: 0.9284974093
A48: Metropolitana | B48: Marechal Floriano | C48: 195 | D48: 99 | E48: 236 | F48: 98.33333333 | G48: 103 | H48: 1.04040404 | I48: 79 | J48: 0.8033898305 | K48: 80 | L48: 0.8080808081 | M48: 76 | N48: 0.7676767677 | O48: 105 | P48: 1.060606061 | Q48: 95 | R48: 0.9595959596 | S48: 57 | T48: 0.5796610169 | U48: 83 | V48: 0.8440677966
A49: Central | B49: Marilândia | C49: 150 | D49: 68 | E49: 164 | F49: 68.33333333 | G49: 60 | H49: 0.8823529412 | I49: 88 | J49: 1.287804878 | K49: 56 | L49: 0.8235294118 | M49: 51 | N49: 0.75 | O49: 58 | P49: 0.8529411765 | Q49: 52 | R49: 0.7647058824 | S49: 65 | T49: 0.9512195122 | U49: 60 | V49: 0.8780487805
A50: Sul | B50: Mimoso do Sul | C50: 291 | D50: 139 | E50: 276 | F50: 115 | G50: 85 | H50: 0.6115107914 | I50: 59 | J50: 0.5130434783 | K50: 91 | L50: 0.654676259 | M50: 87 | N50: 0.6258992806 | O50: 91 | P50: 0.654676259 | Q50: 87 | R50: 0.6258992806 | S50: 78 | T50: 0.6782608696 | U50: 87 | V50: 0.7565217391
A51: Norte | B51: Montanha | C51: 226 | D51: 97 | E51: 278 | F51: 115.8333333 | G51: 115 | H51: 1.18556701 | I51: 74 | J51: 0.6388489209 | K51: 116 | L51: 1.195876289 | M51: 117 | N51: 1.206185567 | O51: 99 | P51: 1.020618557 | Q51: 97 | R51: 1 | S51: 70 | T51: 0.6043165468 | U51: 78 | V51: 0.673381295
A52: Norte | B52: Mucurici | C52: 69 | D52: 29 | E52: 97 | F52: 40.41666667 | G52: 36 | H52: 1.24137931 | I52: 25 | J52: 0.618556701 | K52: 25 | L52: 0.8620689655 | M52: 22 | N52: 0.7586206897 | O52: 39 | P52: 1.344827586 | Q52: 35 | R52: 1.206896552 | S52: 26 | T52: 0.6432989691 | U52: 24 | V52: 0.593814433
A53: Sul | B53: Muniz Freire | C53: 213 | D53: 85 | E53: 275 | F53: 114.5833333 | G53: 135 | H53: 1.588235294 | I53: 1 | J53: 0.008727272727 | K53: 101 | L53: 1.188235294 | M53: 101 | N53: 1.188235294 | O53: 94 | P53: 1.105882353 | Q53: 90 | R53: 1.058823529 | S53: 78 | T53: 0.6807272727 | U53: 90 | V53: 0.7854545455
A54: Sul | B54: Muqui | C54: 144 | D54: 62 | E54: 152 | F54: 63.33333333 | G54: 54 | H54: 0.8709677419 | I54: 45 | J54: 0.7105263158 | K54: 64 | L54: 1.032258065 | M54: 65 | N54: 1.048387097 | O54: 61 | P54: 0.9838709677 | Q54: 54 | R54: 0.8709677419 | S54: 66 | T54: 1.042105263 | U54: 66 | V54: 1.042105263
A55: Norte | B55: Nova Venécia | C55: 664 | D55: 296 | E55: 656 | F55: 273.3333333 | G55: 209 | H55: 0.7060810811 | I55: 198 | J55: 0.7243902439 | K55: 275 | L55: 0.9290540541 | M55: 283 | N55: 0.9560810811 | O55: 290 | P55: 0.9797297297 | Q55: 246 | R55: 0.8310810811 | S55: 140 | T55: 0.512195122 | U55: 213 | V55: 0.7792682927
A56: Central | B56: Pancas | C56: 208 | D56: 101 | E56: 244 | F56: 101.6666667 | G56: 87 | H56: 0.8613861386 | I56: 100 | J56: 0.9836065574 | K56: 84 | L56: 0.8316831683 | M56: 90 | N56: 0.8910891089 | O56: 97 | P56: 0.9603960396 | Q56: 88 | R56: 0.8712871287 | S56: 69 | T56: 0.6786885246 | U56: 73 | V56: 0.7180327869
A57: Norte | B57: Pedro Canário | C57: 325 | D57: 145 | E57: 338 | F57: 140.8333333 | G57: 112 | H57: 0.7724137931 | I57: 117 | J57: 0.8307692308 | K57: 152 | L57: 1.048275862 | M57: 151 | N57: 1.04137931 | O57: 141 | P57: 0.9724137931 | Q57: 115 | R57: 0.7931034483 | S57: 97 | T57: 0.6887573964 | U57: 133 | V57: 0.9443786982
A58: Norte | B58: Pinheiros | C58: 333 | D58: 156 | E58: 383 | F58: 159.5833333 | G58: 128 | H58: 0.8205128205 | I58: 97 | J58: 0.6078328982 | K58: 109 | L58: 0.6987179487 | M58: 110 | N58: 0.7051282051 | O58: 125 | P58: 0.8012820513 | Q58: 114 | R58: 0.7307692308 | S58: 84 | T58: 0.5263707572 | U58: 115 | V58: 0.7206266319
A59: Sul | B59: Piúma | C59: 313 | D59: 141 | E59: 311 | F59: 129.5833333 | G59: 109 | H59: 0.7730496454 | I59: 92 | J59: 0.7099678457 | K59: 131 | L59: 0.9290780142 | M59: 137 | N59: 0.9716312057 | O59: 115 | P59: 0.8156028369 | Q59: 100 | R59: 0.7092198582 | S59: 84 | T59: 0.6482315113 | U59: 114 | V59: 0.8797427653
A60: Norte | B60: Ponto Belo | C60: 86 | D60: 37 | E60: 85 | F60: 35.41666667 | G60: 32 | H60: 0.8648648649 | I60: 25 | J60: 0.7058823529 | K60: 35 | L60: 0.9459459459 | M60: 35 | N60: 0.9459459459 | O60: 29 | P60: 0.7837837838 | Q60: 31 | R60: 0.8378378378 | S60: 34 | T60: 0.96 | U60: 32 | V60: 0.9035294118
A61: Sul | B61: Presidente Kennedy | C61: 207 | D61: 89 | E61: 239 | F61: 99.58333333 | G61: 72 | H61: 0.808988764 | I61: 67 | J61: 0.6728033473 | K61: 95 | L61: 1.06741573 | M61: 93 | N61: 1.04494382 | O61: 86 | P61: 0.9662921348 | Q61: 72 | R61: 0.808988764 | S61: 92 | T61: 0.9238493724 | U61: 81 | V61: 0.8133891213
A62: Central | B62: Rio Bananal | C62: 305 | D62: 134 | E62: 229 | F62: 95.41666667 | G62: 146 | H62: 1.089552239 | I62: 61 | J62: 0.63930131 | K62: 111 | L62: 0.828358209 | M62: 112 | N62: 0.8358208955 | O62: 115 | P62: 0.8582089552 | Q62: 109 | R62: 0.8134328358 | S62: 109 | T62: 1.142358079 | U62: 108 | V62: 1.131877729
A63: Sul | B63: Rio Novo do Sul | C63: 110 | D63: 48 | E63: 144 | F63: 60 | G63: 38 | H63: 0.7916666667 | I63: 54 | J63: 0.9 | K63: 44 | L63: 0.9166666667 | M63: 42 | N63: 0.875 | O63: 51 | P63: 1.0625 | Q63: 44 | R63: 0.9166666667 | S63: 27 | T63: 0.45 | U63: 37 | V63: 0.6166666667
A64: Metropolitana | B64: Santa Leopoldina | C64: 92 | D64: 50 | E64: 155 | F64: 64.58333333 | G64: 36 | H64: 0.72 | I64: 48 | J64: 0.7432258065 | K64: 33 | L64: 0.66 | M64: 33 | N64: 0.66 | O64: 37 | P64: 0.74 | Q64: 36 | R64: 0.72 | S64: 39 | T64: 0.6038709677 | U64: 48 | V64: 0.7432258065
A65: Metropolitana | B65: Santa Maria de Jetibá | C65: 658 | D65: 255 | E65: 685 | F65: 285.4166667 | G65: 266 | H65: 1.043137255 | I65: 149 | J65: 0.5220437956 | K65: 249 | L65: 0.9764705882 | M65: 249 | N65: 0.9764705882 | O65: 267 | P65: 1.047058824 | Q65: 246 | R65: 0.9647058824 | S65: 155 | T65: 0.5430656934 | U65: 203 | V65: 0.7112408759
A66: Metropolitana | B66: Santa Teresa | C66: 296 | D66: 131 | E66: 260 | F66: 108.3333333 | G66: 104 | H66: 0.7938931298 | I66: 116 | J66: 1.070769231 | K66: 113 | L66: 0.8625954198 | M66: 119 | N66: 0.9083969466 | O66: 119 | P66: 0.9083969466 | Q66: 103 | R66: 0.786259542 | S66: 71 | T66: 0.6553846154 | U66: 87 | V66: 0.8030769231
A67: Central | B67: São Domingos do Norte | C67: 109 | D67: 43 | E67: 117 | F67: 48.75 | G67: 38 | H67: =G67/D67 -> 0.8837209302 | I67: 29 | J67: =I67/F67 -> 0.5948717949 | K67: 47 | L67: =K67/D67 -> 1.093023256 | M67: 46 | N67: =M67/D67 -> 1.069767442 | O67: 55 | P67: =O67/D67 -> 1.279069767 | Q67: 44 | R67: =Q67/D67 -> 1.023255814 | S67: 31 | T67: =S67/F67 -> 0.6358974359 | U67: 33 | V67: =U67/F67 -> 0.6769230769
A68: Central | B68: São Gabriel da Palha | C68: 408 | D68: 190 | E68: 426 | F68: =($E68/12)*5 -> 177.5 | G68: 178 | H68: 0.9368421053 | I68: 156 | J68: 0.8788732394 | K68: 159 | L68: 0.8368421053 | M68: 161 | N68: 0.8473684211 | O68: 143 | P68: 0.7526315789 | Q68: 143 | R68: 0.7526315789 | S68: 130 | T68: 0.7323943662 | U68: 123 | V68: 0.6929577465
A69: Sul | B69: São José do Calçado | C69: 95 | D69: 38 | E69: 150 | F69: 62.5 | G69: 41 | H69: 1.078947368 | I69: 41 | J69: 0.656 | K69: 37 | L69: 0.9736842105 | M69: 39 | N69: 1.026315789 | O69: 46 | P69: 1.210526316 | Q69: 41 | R69: 1.078947368 | S69: 35 | T69: 0.56 | U69: 57 | V69: 0.912
A70: Norte | B70: São Mateus | C70: 1801 | D70: 799 | E70: 1766 | F70: 735.8333333 | G70: 540 | H70: 0.675844806 | I70: 316 | J70: 0.4294450736 | K70: 704 | L70: 0.8811013767 | M70: 694 | N70: 0.8685857322 | O70: 706 | P70: 0.8836045056 | Q70: 607 | R70: 0.7596996245 | S70: 463 | T70: 0.629218573 | U70: 558 | V70: 0.7583238958
A71: Central | B71: São Roque do Canaã | C71: 113 | D71: 48 | E71: 100 | F71: 41.66666667 | G71: 46 | H71: 0.9583333333 | I71: 43 | J71: 1.032 | K71: 48 | L71: 1 | M71: 48 | N71: 1 | O71: 39 | P71: 0.8125 | Q71: 38 | R71: 0.7916666667 | S71: 22 | T71: 0.528 | U71: 36 | V71: 0.864
A72: Metropolitana | B72: Serra | C72: 7280 | D72: 3131 | E72: 7550 | F72: 3145.833333 | G72: 2238 | H72: 0.7147876078 | I72: 1869 | J72: 0.5941192053 | K72: 2667 | L72: 0.8518045353 | M72: 2685 | N72: 0.8575534973 | O72: 2610 | P72: 0.833599489 | Q72: 2320 | R72: 0.7409773235 | S72: 2342 | T72: 0.7444768212 | U72: 2654 | V72: 0.8436556291
A73: Central | B73: Sooretama | C73: 419 | D73: 163 | E73: 415 | F73: 172.9166667 | G73: 129 | H73: 0.7914110429 | I73: 89 | J73: 0.5146987952 | K73: 178 | L73: 1.09202454 | M73: 179 | N73: 1.098159509 | O73: 174 | P73: 1.067484663 | Q73: 141 | R73: 0.8650306748 | S73: 119 | T73: 0.6881927711 | U73: 154 | V73: 0.8906024096
A74: Sul | B74: Vargem Alta | C74: 267 | D74: 120 | E74: 278 | F74: 115.8333333 | G74: 98 | H74: 0.8166666667 | I74: 43 | J74: 0.3712230216 | K74: 99 | L74: 0.825 | M74: 97 | N74: 0.8083333333 | O74: 107 | P74: 0.8916666667 | Q74: 93 | R74: 0.775 | S74: 71 | T74: 0.6129496403 | U74: 87 | V74: 0.7510791367
A75: Metropolitana | B75: Venda Nova do Imigrante | C75: 335 | D75: 138 | E75: 328 | F75: 136.6666667 | G75: 188 | H75: 1.362318841 | I75: 57 | J75: 0.4170731707 | K75: 156 | L75: 1.130434783 | M75: 127 | N75: 0.9202898551 | O75: 178 | P75: 1.289855072 | Q75: 164 | R75: 1.188405797 | S75: 110 | T75: 0.8048780488 | U75: 120 | V75: 0.8780487805
A76: Metropolitana | B76: Viana | C76: 887 | D76: 386 | E76: 1064 | F76: 443.3333333 | G76: 255 | H76: 0.6606217617 | I76: 261 | J76: 0.5887218045 | K76: 373 | L76: 0.9663212435 | M76: 373 | N76: 0.9663212435 | O76: 335 | P76: 0.8678756477 | Q76: 329 | R76: 0.8523316062 | S76: 246 | T76: 0.554887218 | U76: 383 | V76: 0.8639097744
A77: Norte | B77: Vila Pavão | C77: 115 | D77: 56 | E77: 127 | F77: 52.91666667 | G77: 44 | H77: 0.7857142857 | I77: 13 | J77: 0.2456692913 | K77: 45 | L77: 0.8035714286 | M77: 48 | N77: 0.8571428571 | O77: 42 | P77: 0.75 | Q77: 34 | R77: 0.6071428571 | S77: 22 | T77: 0.4157480315 | U77: 32 | V77: 0.6047244094
A78: Central | B78: Vila Valério | C78: 220 | D78: 88 | E78: 169 | F78: 70.41666667 | G78: 120 | H78: 1.363636364 | I78: 88 | J78: 1.249704142 | K78: 98 | L78: 1.113636364 | M78: 93 | N78: 1.056818182 | O78: 98 | P78: 1.113636364 | Q78: 98 | R78: 1.113636364 | S78: 61 | T78: 0.8662721893 | U78: 72 | V78: 1.022485207
A79: Metropolitana | B79: Vila Velha | C79: 5478 | D79: 2421 | E79: 5675 | F79: 2364.583333 | G79: 1718 | H79: 0.7096241223 | I79: 1766 | J79: 0.7468546256 | K79: 1897 | L79: 0.7835605122 | M79: 1764 | N79: 0.7286245353 | O79: 1962 | P79: 0.8104089219 | Q79: 1695 | R79: 0.7001239157 | S79: 1389 | T79: 0.5874185022 | U79: 1657 | V79: 0.7007577093
A80: Metropolitana | B80: Vitória | C80: 3431 | D80: 1477 | E80: 3833 | F80: 1597.083333 | G80: 1546 | H80: 1.046716317 | I80: 1206 | J80: 0.7551265327 | K80: 1510 | L80: 1.022342586 | M80: 1245 | N80: 0.8429248477 | O80: 1779 | P80: 1.204468517 | Q80: 1561 | R80: 1.056872038 | S80: 911 | T80: 0.5704148187 | U80: 1405 | V80: 0.8797286721
B82: Total Norte | C82: =SUMIF($A$3:$A$80,"Norte",C$3:C$80) -> 5675 | D82: =SUMIF($A$3:$A$80,"Norte",D$3:D$80) -> 2568 | E82: =SUMIF($A$3:$A$80,"Norte",E$3:E$80) -> 5789 | F82: =SUMIF($A$3:$A$80,"Norte",F$3:F$80) -> 2412.083333 | G82: =SUMIF($A$3:$A$80,"Norte",G$3:G$80) -> 1913 | H82: =G82/D82 -> 0.7449376947 | I82: =SUMIF($A$3:$A$80,"Norte",I$3:I$80) -> 1296 | J82: =I82/F82 -> 0.5372948696 | K82: =SUMIF($A$3:$A$80,"Norte",K$3:K$80) -> 2273 | L82: =K82/D82 -> 0.8851246106 | M82: =SUMIF($A$3:$A$80,"Norte",M$3:M$80) -> 2280 | N82: =M82/D82 -> 0.8878504673 | O82: =SUMIF($A$3:$A$80,"Norte",O$3:O$80) -> 2220 | P82: =O82/D82 -> 0.8644859813 | Q82: =SUMIF($A$3:$A$80,"Norte",Q$3:Q$80) -> 1952 | R82: =Q82/D82 -> 0.7601246106 | S82: =SUMIF($A$3:$A$80,"Norte",S$3:S$80) -> 1488 | T82: =S82/F82 -> 0.6168941095 | U82: =SUMIF($A$3:$A$80,"Norte",U$3:U$80) -> 1866 | V82: =U82/F82 -> 0.7736051131
B83: Total Central | C83: =SUMIF($A$3:$A$80,"Central",C$3:C$80) -> 6832 | D83: =SUMIF($A$3:$A$80,"Central",D$3:D$80) -> 2986 | E83: =SUMIF($A$3:$A$80,"Central",E$3:E$80) -> 6843 | F83: =SUMIF($A$3:$A$80,"Central",F$3:F$80) -> 2851.25 | G83: =SUMIF($A$3:$A$80,"Central",G$3:G$80) -> 2433 | H83: =G83/D83 -> 0.8148024113 | I83: =SUMIF($A$3:$A$80,"Central",I$3:I$80) -> 1917 | J83: =I83/F83 -> 0.6723366944 | K83: =SUMIF($A$3:$A$80,"Central",K$3:K$80) -> 2583 | L83: =K83/D83 -> 0.8650368386 | M83: =SUMIF($A$3:$A$80,"Central",M$3:M$80) -> 2686 | N83: =M83/D83 -> 0.8995311453 | O83: =SUMIF($A$3:$A$80,"Central",O$3:O$80) -> 2603 | P83: =O83/D83 -> 0.8717347622 | Q83: =SUMIF($A$3:$A$80,"Central",Q$3:Q$80) -> 2376 | R83: =Q83/D83 -> 0.7957133289 | S83: =SUMIF($A$3:$A$80,"Central",S$3:S$80) -> 1945 | T83: =S83/F83 -> 0.6821569487 | U83: =SUMIF($A$3:$A$80,"Central",U$3:U$80) -> 2215 | V83: =U83/F83 -> 0.7768522578
B84: Total Metropolitana | C84: =SUMIF($A$3:$A$80,"Metropolitana",C$3:C$80) -> 28997 | D84: =SUMIF($A$3:$A$80,"Metropolitana",D$3:D$80) -> 12689 | E84: =SUMIF($A$3:$A$80,"Metropolitana",E$3:E$80) -> 30197 | F84: =SUMIF($A$3:$A$80,"Metropolitana",F$3:F$80) -> 12582.08333 | G84: =SUMIF($A$3:$A$80,"Metropolitana",G$3:G$80) -> 10083 | H84: =G84/D84 -> 0.794625266 | I84: =SUMIF($A$3:$A$80,"Metropolitana",I$3:I$80) -> 8317 | J84: =I84/F84 -> 0.6610193066 | K84: =SUMIF($A$3:$A$80,"Metropolitana",K$3:K$80) -> 11007 | L84: =K84/D84 -> 0.867444243 | M84: =SUMIF($A$3:$A$80,"Metropolitana",M$3:M$80) -> 10674 | N84: =M84/D84 -> 0.8412010403 | O84: =SUMIF($A$3:$A$80,"Metropolitana",O$3:O$80) -> 11737 | P84: =O84/D84 -> 0.9249743873 | Q84: =SUMIF($A$3:$A$80,"Metropolitana",Q$3:Q$80) -> 10252 | R84: =Q84/D84 -> 0.8079438884 | S84: =SUMIF($A$3:$A$80,"Metropolitana",S$3:S$80) -> 8524 | T84: =S84/F84 -> 0.677471272 | U84: =SUMIF($A$3:$A$80,"Metropolitana",U$3:U$80) -> 10510 | V84: =U84/F84 -> 0.8353147664
B85: Total Sul | C85: =SUMIF($A$3:$A$80,"sul",C$3:C$80) -> 8061 | D85: =SUMIF($A$3:$A$80,"sul",D$3:D$80) -> 3529 | E85: =SUMIF($A$3:$A$80,"sul",E$3:E$80) -> 8688 | F85: =SUMIF($A$3:$A$80,"sul",F$3:F$80) -> 3620 | G85: =SUMIF($A$3:$A$80,"sul",G$3:G$80) -> 3095 | H85: =G85/D85 -> 0.8770189855 | I85: =SUMIF($A$3:$A$80,"sul",I$3:I$80) -> 2196 | J85: =I85/F85 -> 0.6066298343 | K85: =SUMIF($A$3:$A$80,"Sul",K$3:K$80) -> 3278 | L85: =K85/D85 -> 0.9288750354 | M85: =SUMIF($A$3:$A$80,"Sul",M$3:M$80) -> 3408 | N85: =M85/D85 -> 0.9657126665 | O85: =SUMIF($A$3:$A$80,"Sul",O$3:O$80) -> 3438 | P85: =O85/D85 -> 0.9742136583 | Q85: =SUMIF($A$3:$A$80,"Sul",Q$3:Q$80) -> 3047 | R85: =Q85/D85 -> 0.8634173987 | S85: =SUMIF($A$3:$A$80,"Sul",S$3:S$80) -> 2821 | T85: =S85/F85 -> 0.779281768 | U85: =SUMIF($A$3:$A$80,"Sul",U$3:U$80) -> 3183 | V85: =U85/F85 -> 0.879281768
B86: Total Espírito Santo | C86: =SUM(C3:C80) -> 49565 | D86: =SUM(D3:D80) -> 21772 | E86: =SUM(E3:E80) -> 51517 | F86: =SUM(F3:F80) -> 21465.41667 | G86: =SUM(G3:G80) -> 17524 | H86: =G86/D86 -> 0.8048870108 | I86: =SUM(I3:I80) -> 13726 | J86: =I86/F86 -> 0.6394471728 | K86: =SUM(K3:K80) -> 19141 | L86: =K86/D86 -> 0.879156715 | M86: =SUM(M3:M80) -> 19048 | N86: =M86/D86 -> 0.8748851736 | O86: =SUM(O3:O80) -> 19998 | P86: =O86/D86 -> 0.918519199 | Q86: =SUM(Q3:Q80) -> 17627 | R86: =Q86/D86 -> 0.8096178578 | S86: =SUM(S3:S80) -> 14778 | T86: =S86/F86 -> 0.6884562377 | U86: =SUM(U3:U80) -> 17774 | V86: =U86/F86 -> 0.8280295825
A90: Fonte: Vacina e Confia, em 11 de Junho de 2025.** <https://vacinaeconfia.saude.es.gov.br/>
A91: **Dados referente às doses aplicadas no período de Janeiro a Maio 2025
A92: Cobertura Calculada por município de procedência/ocorrência da vacinação
A93: 1 População anual extraída do MS/SVS/DASIS - SINASC/DASIS/SVS/MS 2024 (hoje preliminares) referente ao período de Abril a Dezembro de 2024 e SINASC/DASIS/SVS/MS referente ao período de Janeiro e Março de 2025.
A94: ² População proporcional extraída do MS/SVS/DASIS - SINASC/DASIS/SVS/MS 2024 (hoje preliminares) referente ao período de Abril e Maio de 2024 e Janeiro a Março de 2025.
A95: Sinasc, atualizado em 10/06/2025.
A96: Homogeineidade: O cálculo da Homogeineidade entre vacinas é feito de acordo com a pactuação estabelecida no Plano Plurianual (PPA) vigente no período 2024-2027.
A98: Observações:
A99: 1. Imunobiológicos que foram recebidos parcialmente pelo estado no mês de Maio/2025, sendo distribuídos em quantidades reduzidas às regionais e municípios:
A100: SORO ANTIRRÁBICO HUMANO, IMUNOGLOBULINA ANTIRRÁBICA HUMANA, VACINA COVID-19 MODERNA (SPIKEVAX), VACINA COVID-19 PFIZER PEDIÁTRICA
A101: 2. Imunobiológicos indisponíveis no mês de Maio/2025, não sendo possível a distribuição às regionais e municípios:
A102: VACINA TRÍPLICE ACELULAR (DTPa) - CRIE, VACINA COVID-19 RECOMBINANTE SERUM/ZALIKA

Sheet CV REF 1A e 4A - residência
G1: D2 | K1: REFORÇOS 1 ANO | S1: REFORÇOS 4 ANOS
A2: Regional | B2: Município | C2: ¹População 1 ano anual | D2: ²População 1 ano proporcional | E2: ³População 4 anos anual | F2: ³População 4 anos proporcional | G2: DOSES APLICADAS D2 TRÍPLICE VIRAL | H2: COBERTURA D2 TRÍPLICE VIRAL | I2: DOSES APLICADAS D2 VARICELA | J2: COBERTURA D2 VARICELA | K2: DOSES APLICADAS REF PNEUMO | L2: COBERTURA REF PNEUMO | M2: DOSES APLICADAS REF MENINGO | N2: COBERTURA REF MENINGO | O2: DOSES APLICADAS REF POLIO | P2: COBERTURA REF POLIO | Q2: DOSES APLICADAS R1 TRÍPLICE BACTERIANA | R2: COBERTURA R1 TRÍPLICE BACTERIANA | S2: DOSES APLICADAS REF FEBRE AMARELA | T2: COBERTURA REF FEBRE AMARELA | U2: DOSES APLICADAS R2 TRÍPLICE BACTERIANA | V2: COBERTURA R2 TRÍPLICE BACTERIANA
A3: Metropolitana | B3: Afonso Cláudio | C3: 359 | D3: 151 | E3: 416 | F3: =($E3/12)*5 -> 173.3333333 | G3: 168 | H3: =G3/D3 -> 1.112582781 | I3: 19 | J3: =I3/F3 -> 0.1096153846 | K3: 155 | L3: =K3/D3 -> 1.026490066 | M3: 153 | N3: =M3/D3 -> 1.013245033 | O3: 190 | P3: =O3/D3 -> 1.258278146 | Q3: 164 | R3: =Q3/D3 -> 1.086092715 | S3: 165 | T3: =S3/F3 -> 0.9519230769 | U3: 164 | V3: =U3/F3 -> 0.9461538462
A4: Norte | B4: Água Doce do Norte | C4: 172 | D4: 85 | E4: 151 | F4: =($E4/12)*5 -> 62.91666667 | G4: 50 | H4: 0.5882352941 | I4: 24 | J4: 0.3814569536 | K4: 74 | L4: 0.8705882353 | M4: 72 | N4: 0.8470588235 | O4: 52 | P4: 0.6117647059 | Q4: 52 | R4: 0.6117647059 | S4: 31 | T4: 0.4927152318 | U4: 41 | V4: 0.6516556291
A5: Central | B5: Águia Branca | C5: 151 | D5: 79 | E5: 129 | F5: 53.75 | G5: 59 | H5: 0.746835443 | I5: 27 | J5: 0.5023255814 | K5: 66 | L5: 0.835443038 | M5: 67 | N5: 0.8481012658 | O5: 62 | P5: 0.7848101266 | Q5: 57 | R5: 0.7215189873 | S5: 36 | T5: 0.6697674419 | U5: 39 | V5: 0.7255813953
A6: Sul | B6: Alegre | C6: 298 | D6: 127 | E6: 372 | F6: 155 | G6: 150 | H6: 1.181102362 | I6: 116 | J6: 0.7483870968 | K6: 129 | L6: 1.015748031 | M6: 118 | N6: 0.9291338583 | O6: 150 | P6: 1.181102362 | Q6: 137 | R6: 1.078740157 | S6: 124 | T6: 0.8 | U6: 124 | V6: 0.8
A7: Sul | B7: Alfredo Chaves | C7: 122 | D7: 58 | E7: 138 | F7: 57.5 | G7: 56 | H7: 0.9655172414 | I7: 41 | J7: 0.7130434783 | K7: 52 | L7: 0.8965517241 | M7: 47 | N7: 0.8103448276 | O7: 67 | P7: 1.155172414 | Q7: 59 | R7: 1.017241379 | S7: 42 | T7: 0.7304347826 | U7: 47 | V7: 0.8173913043
A8: Central | B8: Alto Rio Novo | C8: 93 | D8: 42 | E8: 102 | F8: 42.5 | G8: 39 | H8: 0.9285714286 | I8: 35 | J8: 0.8235294118 | K8: 37 | L8: 0.880952381 | M8: 37 | N8: 0.880952381 | O8: 37 | P8: 0.880952381 | Q8: 36 | R8: 0.8571428571 | S8: 34 | T8: 0.8 | U8: 33 | V8: 0.7764705882
A9: Sul | B9: Anchieta | C9: 352 | D9: 154 | E9: 390 | F9: 162.5 | G9: 162 | H9: 1.051948052 | I9: 132 | J9: 0.8123076923 | K9: 140 | L9: 0.9090909091 | M9: 145 | N9: 0.9415584416 | O9: 171 | P9: 1.11038961 | Q9: 145 | R9: 0.9415584416 | S9: 157 | T9: 0.9661538462 | U9: 161 | V9: 0.9907692308
A10: Sul | B10: Apiacá | C10: 72 | D10: 31 | E10: 90 | F10: 37.5 | G10: 26 | H10: 0.8387096774 | I10: 20 | J10: 0.5333333333 | K10: 34 | L10: 1.096774194 | M10: 35 | N10: 1.129032258 | O10: 23 | P10: 0.7419354839 | Q10: 24 | R10: 0.7741935484 | S10: 8 | T10: 0.2133333333 | U10: 26 | V10: 0.6933333333
A11: Metropolitana | B11: Aracruz | C11: 1392 | D11: 650 | E11: 1420 | F11: 591.6666667 | G11: 592 | H11: 0.9107692308 | I11: 592 | J11: 1.00056338 | K11: 584 | L11: 0.8984615385 | M11: 586 | N11: 0.9015384615 | O11: 640 | P11: 0.9846153846 | Q11: 544 | R11: 0.8369230769 | S11: 487 | T11: 0.8230985915 | U11: 568 | V11: 0.96
A12: Sul | B12: Atilio Vivacqua | C12: 173 | D12: 72 | E12: 138 | F12: 57.5 | G12: 62 | H12: 0.8611111111 | I12: 28 | J12: 0.4869565217 | K12: 58 | L12: 0.8055555556 | M12: 59 | N12: 0.8194444444 | O12: 59 | P12: 0.8194444444 | Q12: 54 | R12: 0.75 | S12: 60 | T12: 1.043478261 | U12: 70 | V12: 1.217391304
A13: Central | B13: Baixo Guandu | C13: 349 | D13: 168 | E13: 427 | F13: 177.9166667 | G13: 136 | H13: 0.8095238095 | I13: 128 | J13: 0.7194379391 | K13: 162 | L13: 0.9642857143 | M13: 164 | N13: 0.9761904762 | O13: 155 | P13: 0.9226190476 | Q13: 144 | R13: 0.8571428571 | S13: 118 | T13: 0.6632318501 | U13: 132 | V13: 0.7419203747
A14: Norte | B14: Barra de São Francisco | C14: 595 | D14: 247 | E14: 589 | F14: 245.4166667 | G14: 199 | H14: 0.8056680162 | I14: 121 | J14: 0.4930390492 | K14: 206 | L14: 0.8340080972 | M14: 207 | N14: 0.8380566802 | O14: 198 | P14: 0.8016194332 | Q14: 186 | R14: 0.7530364372 | S14: 134 | T14: 0.5460101868 | U14: 159 | V14: 0.6478777589
A15: Norte | B15: Boa Esperança | C15: 207 | D15: 97 | E15: 200 | F15: 83.33333333 | G15: 70 | H15: 0.7216494845 | I15: 34 | J15: 0.408 | K15: 75 | L15: 0.7731958763 | M15: 75 | N15: 0.7731958763 | O15: 74 | P15: 0.7628865979 | Q15: 59 | R15: 0.6082474227 | S15: 39 | T15: 0.468 | U15: 60 | V15: 0.72
A16: Sul | B16: Bom Jesus do Norte | C16: 69 | D16: 29 | E16: 146 | F16: 60.83333333 | G16: 34 | H16: 1.172413793 | I16: 35 | J16: 0.5753424658 | K16: 42 | L16: 1.448275862 | M16: 40 | N16: 1.379310345 | O16: 48 | P16: 1.655172414 | Q16: 42 | R16: 1.448275862 | S16: 26 | T16: 0.4273972603 | U16: 45 | V16: 0.7397260274
A17: Metropolitana | B17: Brejetuba | C17: 199 | D17: 75 | E17: 169 | F17: 70.41666667 | G17: 121 | H17: 1.613333333 | I17: 46 | J17: 0.6532544379 | K17: 85 | L17: 1.133333333 | M17: 82 | N17: 1.093333333 | O17: 79 | P17: 1.053333333 | Q17: 79 | R17: 1.053333333 | S17: 74 | T17: 1.050887574 | U17: 82 | V17: 1.164497041
A18: Sul | B18: Cachoeiro de Itapemirim | C18: 2337 | D18: 1046 | E18: 2417 | F18: 1007.083333 | G18: 864 | H18: 0.8260038241 | I18: 482 | J18: 0.4786098469 | K18: 902 | L18: 0.862332696 | M18: 960 | N18: 0.9177820268 | O18: 1004 | P18: 0.9598470363 | Q18: 866 | R18: 0.82791587 | S18: 854 | T18: 0.8479933802 | U18: 935 | V18: 0.9284236657
A19: Metropolitana | B19: Cariacica | C19: 4824 | D19: 2178 | E19: 5005 | F19: 2085.416667 | G19: 1495 | H19: 0.68640955 | I19: 1095 | J19: 0.5250749251 | K19: 1799 | L19: 0.8259871442 | M19: 1810 | N19: 0.8310376492 | O19: 1968 | P19: 0.9035812672 | Q19: 1670 | R19: 0.766758494 | S19: 1424 | T19: 0.6828371628 | U19: 1850 | V19: 0.8871128871
A20: Sul | B20: Castelo | C20: 415 | D20: 186 | E20: 399 | F20: 166.25 | G20: 169 | H20: 0.9086021505 | I20: 171 | J20: 1.028571429 | K20: 170 | L20: 0.9139784946 | M20: 180 | N20: 0.9677419355 | O20: 184 | P20: 0.9892473118 | Q20: 179 | R20: 0.9623655914 | S20: 134 | T20: 0.8060150376 | U20: 143 | V20: 0.8601503759
A21: Central | B21: Colatina | C21: 1441 | D21: 606 | E21: 1561 | F21: 650.4166667 | G21: 520 | H21: 0.8580858086 | I21: 326 | J21: 0.5012171685 | K21: 539 | L21: 0.8894389439 | M21: 557 | N21: 0.9191419142 | O21: 572 | P21: 0.9438943894 | Q21: 477 | R21: 0.7871287129 | S21: 363 | T21: 0.5581037796 | U21: 432 | V21: 0.664189622
A22: Norte | B22: Conceição da Barra | C22: 353 | D22: 161 | E22: 391 | F22: 162.9166667 | G22: 152 | H22: 0.9440993789 | I22: 72 | J22: 0.441943734 | K22: 177 | L22: 1.099378882 | M22: 180 | N22: 1.118012422 | O22: 180 | P22: 1.118012422 | Q22: 146 | R22: 0.9068322981 | S22: 156 | T22: 0.957544757 | U22: 173 | V22: 1.061892583
A23: Metropolitana | B23: Conceição do Castelo | C23: 161 | D23: 50 | E23: 144 | F23: 60 | G23: 55 | H23: 1.1 | I23: 78 | J23: 1.3 | K23: 43 | L23: 0.86 | M23: 42 | N23: 0.84 | O23: 41 | P23: 0.82 | Q23: 42 | R23: 0.84 | S23: 68 | T23: 1.133333333 | U23: 60 | V23: 1
A24: Sul | B24: Divino de São Lourenço | C24: 53 | D24: 29 | E24: 68 | F24: 28.33333333 | G24: 32 | H24: 1.103448276 | I24: 39 | J24: 1.376470588 | K24: 38 | L24: 1.310344828 | M24: 37 | N24: 1.275862069 | O24: 29 | P24: 1 | Q24: 28 | R24: 0.9655172414 | S24: 18 | T24: 0.6352941176 | U24: 22 | V24: 0.7764705882
A25: Metropolitana | B25: Domingos Martins | C25: 421 | D25: 178 | E25: 411 | F25: 171.25 | G25: 171 | H25: 0.9606741573 | I25: 186 | J25: 1.086131387 | K25: 166 | L25: 0.9325842697 | M25: 170 | N25: 0.9550561798 | O25: 193 | P25: 1.084269663 | Q25: 175 | R25: 0.9831460674 | S25: 154 | T25: 0.899270073 | U25: 152 | V25: 0.8875912409
A26: Sul | B26: Dores do Rio Preto | C26: 108 | D26: 57 | E26: 92 | F26: 38.33333333 | G26: 27 | H26: 0.4736842105 | I26: 29 | J26: 0.7565217391 | K26: 36 | L26: 0.6315789474 | M26: 39 | N26: 0.6842105263 | O26: 32 | P26: 0.5614035088 | Q26: 32 | R26: 0.5614035088 | S26: 30 | T26: 0.7826086957 | U26: 26 | V26: 0.6782608696
A27: Norte | B27: Ecoporanga | C27: 250 | D27: 124 | E27: 283 | F27: 117.9166667 | G27: 81 | H27: 0.6532258065 | I27: 79 | J27: 0.6699646643 | K27: 116 | L27: 0.935483871 | M27: 114 | N27: 0.9193548387 | O27: 88 | P27: 0.7096774194 | Q27: 77 | R27: 0.6209677419 | S27: 83 | T27: 0.7038869258 | U27: 100 | V27: 0.8480565371
A28: Metropolitana | B28: Fundão | C28: 228 | D28: 109 | E28: 218 | F28: 90.83333333 | G28: 75 | H28: 0.6880733945 | I28: 65 | J28: 0.7155963303 | K28: 89 | L28: 0.8165137615 | M28: 94 | N28: 0.8623853211 | O28: 84 | P28: 0.7706422018 | Q28: 71 | R28: 0.6513761468 | S28: 64 | T28: 0.704587156 | U28: 86 | V28: 0.9467889908
A29: Central | B29: Governador Lindenberg | C29: 115 | D29: 54 | E29: 142 | F29: 59.16666667 | G29: 52 | H29: 0.962962963 | I29: 47 | J29: 0.7943661972 | K29: 46 | L29: 0.8518518519 | M29: 47 | N29: 0.8703703704 | O29: 47 | P29: 0.8703703704 | Q29: 45 | R29: 0.8333333333 | S29: 56 | T29: 0.9464788732 | U29: 60 | V29: 1.014084507
A30: Sul | B30: Guaçuí | C30: 358 | D30: 129 | E30: 407 | F30: 169.5833333 | G30: 134 | H30: 1.03875969 | I30: 76 | J30: 0.4481572482 | K30: 145 | L30: 1.124031008 | M30: 159 | N30: 1.23255814 | O30: 147 | P30: 1.139534884 | Q30: 133 | R30: 1.031007752 | S30: 149 | T30: 0.8786240786 | U30: 130 | V30: 0.7665847666
A31: Metropolitana | B31: Guarapari | C31: 1722 | D31: 758 | E31: 1557 | F31: 648.75 | G31: 495 | H31: 0.6530343008 | I31: 432 | J31: 0.6658959538 | K31: 624 | L31: 0.8232189974 | M31: 612 | N31: 0.8073878628 | O31: 683 | P31: 0.901055409 | Q31: 572 | R31: 0.7546174142 | S31: 391 | T31: 0.6026974952 | U31: 499 | V31: 0.7691714836
A32: Metropolitana | B32: Ibatiba | C32: 383 | D32: 164 | E32: 354 | F32: 147.5 | G32: 189 | H32: 1.152439024 | I32: 50 | J32: 0.3389830508 | K32: 137 | L32: 0.8353658537 | M32: 142 | N32: 0.8658536585 | O32: 173 | P32: 1.054878049 | Q32: 142 | R32: 0.8658536585 | S32: 118 | T32: 0.8 | U32: 127 | V32: 0.8610169492
A33: Metropolitana | B33: Ibiraçu | C33: 140 | D33: 60 | E33: 160 | F33: 66.66666667 | G33: 54 | H33: 0.9 | I33: 57 | J33: 0.855 | K33: 57 | L33: 0.95 | M33: 55 | N33: 0.9166666667 | O33: 48 | P33: 0.8 | Q33: 48 | R33: 0.8 | S33: 35 | T33: 0.525 | U33: 40 | V33: 0.6
A34: Sul | B34: Ibitirama | C34: 146 | D34: 63 | E34: 148 | F34: 61.66666667 | G34: 65 | H34: 1.031746032 | I34: 42 | J34: 0.6810810811 | K34: 69 | L34: 1.095238095 | M34: 68 | N34: 1.079365079 | O34: 70 | P34: 1.111111111 | Q34: 51 | R34: 0.8095238095 | S34: 74 | T34: 1.2 | U34: 68 | V34: 1.102702703
A35: Sul | B35: Iconha | C35: 120 | D35: 46 | E35: 156 | F35: 65 | G35: 65 | H35: =G35/D35 -> 1.413043478 | I35: 44 | J35: =I35/F35 -> 0.6769230769 | K35: 49 | L35: =K35/D35 -> 1.065217391 | M35: 48 | N35: =M35/D35 -> 1.043478261 | O35: 48 | P35: =O35/D35 -> 1.043478261 | Q35: 42 | R35: =Q35/D35 -> 0.9130434783 | S35: 47 | T35: =S35/F35 -> 0.7230769231 | U35: 51 | V35: =U35/F35 -> 0.7846153846
A36: Sul | B36: Irupi | C36: 171 | D36: 76 | E36: 200 | F36: 83.33333333 | G36: 75 | H36: 0.9868421053 | I36: 44 | J36: 0.528 | K36: 90 | L36: 1.184210526 | M36: 92 | N36: 1.210526316 | O36: 84 | P36: 1.105263158 | Q36: 81 | R36: 1.065789474 | S36: 68 | T36: 0.816 | U36: 66 | V36: 0.792
A37: Metropolitana | B37: Itaguaçu | C37: 135 | D37: 72 | E37: 154 | F37: 64.16666667 | G37: 51 | H37: 0.7083333333 | I37: 24 | J37: 0.374025974 | K37: 63 | L37: 0.875 | M37: 66 | N37: 0.9166666667 | O37: 59 | P37: 0.8194444444 | Q37: 44 | R37: 0.6111111111 | S37: 45 | T37: 0.7012987013 | U37: 41 | V37: 0.638961039
A38: Sul | B38: Itapemirim | C38: 536 | D38: 229 | E38: 556 | F38: 231.6666667 | G38: 137 | H38: 0.5982532751 | I38: 168 | J38: 0.7251798561 | K38: 194 | L38: 0.8471615721 | M38: 199 | N38: 0.8689956332 | O38: 180 | P38: 0.7860262009 | Q38: 162 | R38: 0.7074235808 | S38: 151 | T38: 0.6517985612 | U38: 202 | V38: 0.871942446
A39: Metropolitana | B39: Itarana | C39: 128 | D39: 60 | E39: 128 | F39: 53.33333333 | G39: 52 | H39: 0.8666666667 | I39: 22 | J39: 0.4125 | K39: 66 | L39: 1.1 | M39: 62 | N39: 1.033333333 | O39: 58 | P39: 0.9666666667 | Q39: 53 | R39: 0.8833333333 | S39: 39 | T39: 0.73125 | U39: 39 | V39: 0.73125
A40: Sul | B40: Iúna | C40: 402 | D40: 170 | E40: 410 | F40: 170.8333333 | G40: 174 | H40: 1.023529412 | I40: 60 | J40: 0.3512195122 | K40: 172 | L40: 1.011764706 | M40: 184 | N40: 1.082352941 | O40: 206 | P40: 1.211764706 | Q40: 164 | R40: 0.9647058824 | S40: 129 | T40: 0.7551219512 | U40: 143 | V40: 0.8370731707
A41: Norte | B41: Jaguaré | C41: 479 | D41: 239 | E41: 445 | F41: 185.4166667 | G41: 154 | H41: 0.6443514644 | I41: 112 | J41: 0.6040449438 | K41: 174 | L41: 0.7280334728 | M41: 175 | N41: 0.7322175732 | O41: 173 | P41: 0.7238493724 | Q41: 163 | R41: 0.6820083682 | S41: 122 | T41: 0.6579775281 | U41: 152 | V41: 0.8197752809
A42: Sul | B42: Jerônimo Monteiro | C42: 133 | D42: 64 | E42: 157 | F42: 65.41666667 | G42: 55 | H42: 0.859375 | I42: 33 | J42: 0.5044585987 | K42: 59 | L42: 0.921875 | M42: 60 | N42: 0.9375 | O42: 68 | P42: 1.0625 | Q42: 59 | R42: 0.921875 | S42: 37 | T42: 0.5656050955 | U42: 55 | V42: 0.8407643312
A43: Metropolitana | B43: João Neiva | C43: 150 | D43: 53 | E43: 142 | F43: 59.16666667 | G43: 53 | H43: 1 | I43: 66 | J43: 1.115492958 | K43: 61 | L43: 1.150943396 | M43: 59 | N43: 1.113207547 | O43: 58 | P43: 1.094339623 | Q43: 57 | R43: 1.075471698 | S43: 45 | T43: 0.7605633803 | U43: 64 | V43: 1.081690141
A44: Metropolitana | B44: Laranja da Terra | C44: 103 | D44: 43 | E44: 133 | F44: 55.41666667 | G44: 45 | H44: 1.046511628 | I44: 56 | J44: 1.010526316 | K44: 40 | L44: 0.9302325581 | M44: 42 | N44: 0.976744186 | O44: 40 | P44: 0.9302325581 | Q44: 35 | R44: 0.8139534884 | S44: 41 | T44: 0.7398496241 | U44: 50 | V44: 0.9022556391
A45: Central | B45: Linhares | C45: 2615 | D45: 1134 | E45: 2452 | F45: 1021.666667 | G45: 771 | H45: 0.6798941799 | I45: 670 | J45: 0.6557911909 | K45: 872 | L45: 0.7689594356 | M45: 906 | N45: 0.7989417989 | O45: 881 | P45: 0.7768959436 | Q45: 844 | R45: 0.7442680776 | S45: 679 | T45: 0.6646003263 | U45: 791 | V45: 0.7742251223
A46: Central | B46: Mantenópolis | C46: 136 | D46: 68 | E46: 166 | F46: 69.16666667 | G46: 57 | H46: 0.8382352941 | I46: 20 | J46: 0.2891566265 | K46: 59 | L46: 0.8676470588 | M46: 64 | N46: 0.9411764706 | O46: 54 | P46: 0.7941176471 | Q46: 47 | R46: 0.6911764706 | S46: 58 | T46: 0.8385542169 | U46: 63 | V46: 0.9108433735
A47: Sul | B47: Marataízes | C47: 556 | D47: 241 | E47: 579 | F47: 241.25 | G47: 182 | H47: 0.755186722 | I47: 198 | J47: 0.8207253886 | K47: 225 | L47: 0.9336099585 | M47: 240 | N47: 0.9958506224 | O47: 206 | P47: 0.8547717842 | Q47: 197 | R47: 0.8174273859 | S47: 146 | T47: 0.6051813472 | U47: 211 | V47: 0.874611399
A48: Metropolitana | B48: Marechal Floriano | C48: 195 | D48: 99 | E48: 236 | F48: 98.33333333 | G48: 103 | H48: 1.04040404 | I48: 68 | J48: 0.6915254237 | K48: 79 | L48: 0.797979798 | M48: 75 | N48: 0.7575757576 | O48: 102 | P48: 1.03030303 | Q48: 97 | R48: 0.9797979798 | S48: 55 | T48: 0.5593220339 | U48: 76 | V48: 0.7728813559
A49: Central | B49: Marilândia | C49: 150 | D49: 68 | E49: 164 | F49: 68.33333333 | G49: 53 | H49: 0.7794117647 | I49: 83 | J49: 1.214634146 | K49: 62 | L49: 0.9117647059 | M49: 67 | N49: 0.9852941176 | O49: 54 | P49: 0.7941176471 | Q49: 49 | R49: 0.7205882353 | S49: 59 | T49: 0.8634146341 | U49: 56 | V49: 0.8195121951
A50: Sul | B50: Mimoso do Sul | C50: 291 | D50: 139 | E50: 276 | F50: 115 | G50: 89 | H50: 0.6402877698 | I50: 61 | J50: 0.5304347826 | K50: 97 | L50: 0.6978417266 | M50: 92 | N50: 0.6618705036 | O50: 95 | P50: 0.6834532374 | Q50: 92 | R50: 0.6618705036 | S50: 83 | T50: 0.7217391304 | U50: 90 | V50: 0.7826086957
A51: Norte | B51: Montanha | C51: 226 | D51: 97 | E51: 278 | F51: 115.8333333 | G51: 114 | H51: 1.175257732 | I51: 77 | J51: 0.6647482014 | K51: 111 | L51: 1.144329897 | M51: 113 | N51: 1.164948454 | O51: 98 | P51: 1.010309278 | Q51: 94 | R51: 0.9690721649 | S51: 72 | T51: 0.6215827338 | U51: 81 | V51: 0.6992805755
A52: Norte | B52: Mucurici | C52: 69 | D52: 29 | E52: 97 | F52: 40.41666667 | G52: 41 | H52: 1.413793103 | I52: 26 | J52: 0.6432989691 | K52: 26 | L52: 0.8965517241 | M52: 23 | N52: 0.7931034483 | O52: 45 | P52: 1.551724138 | Q52: 41 | R52: 1.413793103 | S52: 26 | T52: 0.6432989691 | U52: 25 | V52: 0.618556701
A53: Sul | B53: Muniz Freire | C53: 213 | D53: 85 | E53: 275 | F53: 114.5833333 | G53: 125 | H53: 1.470588235 | I53: 8 | J53: 0.06981818182 | K53: 97 | L53: 1.141176471 | M53: 97 | N53: 1.141176471 | O53: 91 | P53: 1.070588235 | Q53: 89 | R53: 1.047058824 | S53: 68 | T53: 0.5934545455 | U53: 86 | V53: 0.7505454545
A54: Sul | B54: Muqui | C54: 144 | D54: 62 | E54: 152 | F54: 63.33333333 | G54: 48 | H54: 0.7741935484 | I54: 45 | J54: 0.7105263158 | K54: 62 | L54: 1 | M54: 63 | N54: 1.016129032 | O54: 56 | P54: 0.9032258065 | Q54: 48 | R54: 0.7741935484 | S54: 58 | T54: 0.9157894737 | U54: 61 | V54: 0.9631578947
A55: Norte | B55: Nova Venécia | C55: 664 | D55: 296 | E55: 656 | F55: 273.3333333 | G55: 213 | H55: 0.7195945946 | I55: 199 | J55: 0.7280487805 | K55: 280 | L55: 0.9459459459 | M55: 284 | N55: 0.9594594595 | O55: 285 | P55: 0.9628378378 | Q55: 248 | R55: 0.8378378378 | S55: 140 | T55: 0.512195122 | U55: 206 | V55: 0.7536585366
A56: Central | B56: Pancas | C56: 208 | D56: 101 | E56: 244 | F56: 101.6666667 | G56: 92 | H56: 0.9108910891 | I56: 88 | J56: 0.8655737705 | K56: 82 | L56: 0.8118811881 | M56: 87 | N56: 0.8613861386 | O56: 101 | P56: 1 | Q56: 92 | R56: 0.9108910891 | S56: 73 | T56: 0.7180327869 | U56: 79 | V56: 0.7770491803
A57: Norte | B57: Pedro Canário | C57: 325 | D57: 145 | E57: 338 | F57: 140.8333333 | G57: 113 | H57: 0.7793103448 | I57: 118 | J57: 0.8378698225 | K57: 136 | L57: 0.9379310345 | M57: 135 | N57: 0.9310344828 | O57: 139 | P57: 0.9586206897 | Q57: 113 | R57: 0.7793103448 | S57: 90 | T57: 0.6390532544 | U57: 127 | V57: 0.9017751479
A58: Norte | B58: Pinheiros | C58: 333 | D58: 156 | E58: 383 | F58: 159.5833333 | G58: 145 | H58: 0.9294871795 | I58: 105 | J58: 0.6579634465 | K58: 140 | L58: 0.8974358974 | M58: 139 | N58: 0.891025641 | O58: 154 | P58: 0.9871794872 | Q58: 135 | R58: 0.8653846154 | S58: 92 | T58: 0.5765013055 | U58: 126 | V58: 0.7895561358
A59: Sul | B59: Piúma | C59: 313 | D59: 141 | E59: 311 | F59: 129.5833333 | G59: 108 | H59: 0.7659574468 | I59: 87 | J59: 0.6713826367 | K59: 120 | L59: 0.8510638298 | M59: 126 | N59: 0.8936170213 | O59: 116 | P59: 0.8226950355 | Q59: 104 | R59: 0.7375886525 | S59: 84 | T59: 0.6482315113 | U59: 112 | V59: 0.8643086817
A60: Norte | B60: Ponto Belo | C60: 86 | D60: 37 | E60: 85 | F60: 35.41666667 | G60: 28 | H60: 0.7567567568 | I60: 26 | J60: 0.7341176471 | K60: 33 | L60: 0.8918918919 | M60: 34 | N60: 0.9189189189 | O60: 26 | P60: 0.7027027027 | Q60: 28 | R60: 0.7567567568 | S60: 33 | T60: 0.9317647059 | U60: 29 | V60: 0.8188235294
A61: Sul | B61: Presidente Kennedy | C61: 207 | D61: 89 | E61: 239 | F61: 99.58333333 | G61: 68 | H61: 0.7640449438 | I61: 66 | J61: 0.6627615063 | K61: 91 | L61: 1.02247191 | M61: 91 | N61: 1.02247191 | O61: 81 | P61: 0.9101123596 | Q61: 68 | R61: 0.7640449438 | S61: 94 | T61: 0.9439330544 | U61: 87 | V61: 0.8736401674
A62: Central | B62: Rio Bananal | C62: 305 | D62: 134 | E62: 229 | F62: 95.41666667 | G62: 144 | H62: 1.074626866 | I62: 70 | J62: 0.7336244541 | K62: 113 | L62: 0.8432835821 | M62: 116 | N62: 0.8656716418 | O62: 106 | P62: 0.7910447761 | Q62: 102 | R62: 0.7611940299 | S62: 104 | T62: 1.089956332 | U62: 108 | V62: 1.131877729
A63: Sul | B63: Rio Novo do Sul | C63: 110 | D63: 48 | E63: 144 | F63: 60 | G63: 35 | H63: 0.7291666667 | I63: 44 | J63: 0.7333333333 | K63: 39 | L63: 0.8125 | M63: 40 | N63: 0.8333333333 | O63: 46 | P63: 0.9583333333 | Q63: 41 | R63: 0.8541666667 | S63: 28 | T63: 0.4666666667 | U63: 39 | V63: 0.65
A64: Metropolitana | B64: Santa Leopoldina | C64: 92 | D64: 50 | E64: 155 | F64: 64.58333333 | G64: 47 | H64: 0.94 | I64: 56 | J64: 0.8670967742 | K64: 40 | L64: 0.8 | M64: 40 | N64: 0.8 | O64: 46 | P64: 0.92 | Q64: 45 | R64: 0.9 | S64: 48 | T64: 0.7432258065 | U64: 66 | V64: 1.021935484
A65: Metropolitana | B65: Santa Maria de Jetibá | C65: 658 | D65: 255 | E65: 685 | F65: 285.4166667 | G65: 246 | H65: 0.9647058824 | I65: 143 | J65: 0.5010218978 | K65: 235 | L65: 0.9215686275 | M65: 234 | N65: 0.9176470588 | O65: 257 | P65: 1.007843137 | Q65: 231 | R65: 0.9058823529 | S65: 141 | T65: 0.4940145985 | U65: 183 | V65: 0.6411678832
A66: Metropolitana | B66: Santa Teresa | C66: 296 | D66: 131 | E66: 260 | F66: 108.3333333 | G66: 113 | H66: 0.8625954198 | I66: 114 | J66: 1.052307692 | K66: 117 | L66: 0.893129771 | M66: 122 | N66: 0.9312977099 | O66: 130 | P66: 0.9923664122 | Q66: 111 | R66: 0.8473282443 | S66: 80 | T66: 0.7384615385 | U66: 94 | V66: 0.8676923077
A67: Central | B67: São Domingos do Norte | C67: 109 | D67: 43 | E67: 117 | F67: 48.75 | G67: 44 | H67: =G67/D67 -> 1.023255814 | I67: 34 | J67: =I67/F67 -> 0.6974358974 | K67: 53 | L67: =K67/D67 -> 1.23255814 | M67: 52 | N67: =M67/D67 -> 1.209302326 | O67: 57 | P67: =O67/D67 -> 1.325581395 | Q67: 46 | R67: =Q67/D67 -> 1.069767442 | S67: 34 | T67: =S67/F67 -> 0.6974358974 | U67: 38 | V67: =U67/F67 -> 0.7794871795
A68: Central | B68: São Gabriel da Palha | C68: 408 | D68: 190 | E68: 426 | F68: =($E68/12)*5 -> 177.5 | G68: 176 | H68: 0.9263157895 | I68: 142 | J68: 0.8 | K68: 160 | L68: 0.8421052632 | M68: 162 | N68: 0.8526315789 | O68: 150 | P68: 0.7894736842 | Q68: 145 | R68: 0.7631578947 | S68: 115 | T68: 0.6478873239 | U68: 112 | V68: 0.6309859155
A69: Sul | B69: São José do Calçado | C69: 95 | D69: 38 | E69: 150 | F69: 62.5 | G69: 41 | H69: 1.078947368 | I69: 37 | J69: 0.592 | K69: 36 | L69: 0.9473684211 | M69: 37 | N69: 0.9736842105 | O69: 44 | P69: 1.157894737 | Q69: 38 | R69: 1 | S69: 30 | T69: 0.48 | U69: 53 | V69: 0.848
A70: Norte | B70: São Mateus | C70: 1801 | D70: 799 | E70: 1766 | F70: 735.8333333 | G70: 541 | H70: 0.6770963705 | I70: 318 | J70: 0.4321630804 | K70: 698 | L70: 0.87359199 | M70: 708 | N70: 0.8861076345 | O70: 697 | P70: 0.8723404255 | Q70: 604 | R70: 0.7559449312 | S70: 453 | T70: 0.6156285391 | U70: 551 | V70: 0.748810872
A71: Central | B71: São Roque do Canaã | C71: 113 | D71: 48 | E71: 100 | F71: 41.66666667 | G71: 45 | H71: 0.9375 | I71: 47 | J71: 1.128 | K71: 55 | L71: 1.145833333 | M71: 57 | N71: 1.1875 | O71: 44 | P71: 0.9166666667 | Q71: 41 | R71: 0.8541666667 | S71: 22 | T71: 0.528 | U71: 36 | V71: 0.864
A72: Metropolitana | B72: Serra | C72: 7280 | D72: 3131 | E72: 7550 | F72: 3145.833333 | G72: 2265 | H72: 0.7234110508 | I72: 1913 | J72: 0.6081059603 | K72: 2707 | L72: 0.8645800064 | M72: 2717 | N72: 0.8677738742 | O72: 2678 | P72: 0.8553177898 | Q72: 2380 | R72: 0.7601405302 | S72: 2297 | T72: 0.7301721854 | U72: 2664 | V72: 0.8468344371
A73: Central | B73: Sooretama | C73: 419 | D73: 163 | E73: 415 | F73: 172.9166667 | G73: 120 | H73: 0.736196319 | I73: 84 | J73: 0.4857831325 | K73: 169 | L73: 1.036809816 | M73: 165 | N73: 1.012269939 | O73: 165 | P73: 1.012269939 | Q73: 134 | R73: 0.8220858896 | S73: 109 | T73: 0.6303614458 | U73: 134 | V73: 0.774939759
A74: Sul | B74: Vargem Alta | C74: 267 | D74: 120 | E74: 278 | F74: 115.8333333 | G74: 108 | H74: 0.9 | I74: 48 | J74: 0.4143884892 | K74: 108 | L74: 0.9 | M74: 113 | N74: 0.9416666667 | O74: 121 | P74: 1.008333333 | Q74: 104 | R74: 0.8666666667 | S74: 70 | T74: 0.6043165468 | U74: 84 | V74: 0.7251798561
A75: Metropolitana | B75: Venda Nova do Imigrante | C75: 335 | D75: 138 | E75: 328 | F75: 136.6666667 | G75: 184 | H75: 1.333333333 | I75: 65 | J75: 0.4756097561 | K75: 151 | L75: 1.094202899 | M75: 139 | N75: 1.007246377 | O75: 169 | P75: 1.224637681 | Q75: 153 | R75: 1.108695652 | S75: 108 | T75: 0.7902439024 | U75: 116 | V75: 0.8487804878
A76: Metropolitana | B76: Viana | C76: 887 | D76: 386 | E76: 1064 | F76: 443.3333333 | G76: 270 | H76: 0.6994818653 | I76: 260 | J76: 0.5864661654 | K76: 370 | L76: 0.9585492228 | M76: 368 | N76: 0.9533678756 | O76: 353 | P76: 0.914507772 | Q76: 339 | R76: 0.878238342 | S76: 254 | T76: 0.5729323308 | U76: 374 | V76: 0.8436090226
A77: Norte | B77: Vila Pavão | C77: 115 | D77: 56 | E77: 127 | F77: 52.91666667 | G77: 45 | H77: 0.8035714286 | I77: 15 | J77: 0.2834645669 | K77: 45 | L77: 0.8035714286 | M77: 47 | N77: 0.8392857143 | O77: 40 | P77: 0.7142857143 | Q77: 32 | R77: 0.5714285714 | S77: 25 | T77: 0.4724409449 | U77: 33 | V77: 0.6236220472
A78: Central | B78: Vila Valério | C78: 220 | D78: 88 | E78: 169 | F78: 70.41666667 | G78: 125 | H78: 1.420454545 | I78: 90 | J78: 1.278106509 | K78: 102 | L78: 1.159090909 | M78: 96 | N78: 1.090909091 | O78: 100 | P78: 1.136363636 | Q78: 100 | R78: 1.136363636 | S78: 63 | T78: 0.8946745562 | U78: 72 | V78: 1.022485207
A79: Metropolitana | B79: Vila Velha | C79: 5478 | D79: 2421 | E79: 5675 | F79: 2364.583333 | G79: 1701 | H79: 0.7026022305 | I79: 1718 | J79: 0.7265550661 | K79: 1881 | L79: 0.7769516729 | M79: 1742 | N79: 0.7195373812 | O79: 2000 | P79: 0.8261049153 | Q79: 1730 | R79: 0.7145807518 | S79: 1386 | T79: 0.5861497797 | U79: 1691 | V79: 0.7151365639
A80: Metropolitana | B80: Vitória | C80: 3431 | D80: 1477 | E80: 3833 | F80: 1597.083333 | G80: 1443 | H80: 0.9769803656 | I80: 1042 | J80: 0.6524393426 | K80: 1382 | L80: 0.9356804333 | M80: 1232 | N80: 0.8341232227 | O80: 1614 | P80: 1.092755586 | Q80: 1399 | R80: 0.9471902505 | S80: 870 | T80: 0.5447430211 | U80: 1241 | V80: 0.7770414819
B82: Total Norte | C82: =SUMIF($A$3:$A$80,"Norte",C$3:C$80) -> 5675 | D82: =SUMIF($A$3:$A$80,"Norte",D$3:D$80) -> 2568 | E82: =SUMIF($A$3:$A$80,"Norte",E$3:E$80) -> 5789 | F82: =SUMIF($A$3:$A$80,"Norte",F$3:F$80) -> 2412.083333 | H82: =G82/D82 -> 0 | I82: =SUMIF($A$3:$A$80,"Norte",I$3:I$80) -> 1326 | J82: =I82/F82 -> 0.5497322508 | K82: =SUMIF($A$3:$A$80,"Norte",K$3:K$80) -> 2291 | L82: =K82/D82 -> 0.8921339564 | M82: =SUMIF($A$3:$A$80,"Norte",M$3:M$80) -> 2306 | N82: =M82/D82 -> 0.8979750779 | O82: =SUMIF($A$3:$A$80,"Norte",O$3:O$80) -> 2249 | P82: =O82/D82 -> 0.8757788162 | Q82: =SUMIF($A$3:$A$80,"Norte",Q$3:Q$80) -> 1978 | R82: =Q82/D82 -> 0.7702492212 | S82: =SUMIF($A$3:$A$80,"Norte",S$3:S$80) -> 1496 | T82: =S82/F82 -> 0.6202107445 | U82: =SUMIF($A$3:$A$80,"Norte",U$3:U$80) -> 1863 | V82: =U82/F82 -> 0.772361375
B83: Total Central | C83: =SUMIF($A$3:$A$80,"Central",C$3:C$80) -> 6832 | D83: =SUMIF($A$3:$A$80,"Central",D$3:D$80) -> 2986 | E83: =SUMIF($A$3:$A$80,"Central",E$3:E$80) -> 6843 | F83: =SUMIF($A$3:$A$80,"Central",F$3:F$80) -> 2851.25 | G83: =SUMIF($A$3:$A$80,"Central",G$3:G$80) -> 2433 | H83: =G83/D83 -> 0.8148024113 | I83: =SUMIF($A$3:$A$80,"Central",I$3:I$80) -> 1891 | J83: =I83/F83 -> 0.6632178869 | K83: =SUMIF($A$3:$A$80,"Central",K$3:K$80) -> 2577 | L83: =K83/D83 -> 0.8630274615 | M83: =SUMIF($A$3:$A$80,"Central",M$3:M$80) -> 2644 | N83: =M83/D83 -> 0.8854655057 | O83: =SUMIF($A$3:$A$80,"Central",O$3:O$80) -> 2585 | P83: =O83/D83 -> 0.8657066309 | Q83: =SUMIF($A$3:$A$80,"Central",Q$3:Q$80) -> 2359 | R83: =Q83/D83 -> 0.7900200938 | S83: =SUMIF($A$3:$A$80,"Central",S$3:S$80) -> 1923 | T83: =S83/F83 -> 0.6744410346 | U83: =SUMIF($A$3:$A$80,"Central",U$3:U$80) -> 2185 | V83: =U83/F83 -> 0.7663305568
B84: Total Metropolitana | C84: =SUMIF($A$3:$A$80,"Metropolitana",C$3:C$80) -> 28997 | D84: =SUMIF($A$3:$A$80,"Metropolitana",D$3:D$80) -> 12689 | E84: =SUMIF($A$3:$A$80,"Metropolitana",E$3:E$80) -> 30197 | F84: =SUMIF($A$3:$A$80,"Metropolitana",F$3:F$80) -> 12582.08333 | G84: =SUMIF($A$3:$A$80,"Metropolitana",G$3:G$80) -> 9988 | H84: =G84/D84 -> 0.7871384664 | I84: =SUMIF($A$3:$A$80,"Metropolitana",I$3:I$80) -> 8167 | J84: =I84/F84 -> 0.6490975925 | K84: =SUMIF($A$3:$A$80,"Metropolitana",K$3:K$80) -> 10931 | L84: =K84/D84 -> 0.8614548034 | M84: =SUMIF($A$3:$A$80,"Metropolitana",M$3:M$80) -> 10644 | N84: =M84/D84 -> 0.8388367878 | O84: =SUMIF($A$3:$A$80,"Metropolitana",O$3:O$80) -> 11663 | P84: =O84/D84 -> 0.9191425644 | Q84: =SUMIF($A$3:$A$80,"Metropolitana",Q$3:Q$80) -> 10181 | R84: =Q84/D84 -> 0.8023484908 | S84: =SUMIF($A$3:$A$80,"Metropolitana",S$3:S$80) -> 8389 | T84: =S84/F84 -> 0.6667417293 | U84: =SUMIF($A$3:$A$80,"Metropolitana",U$3:U$80) -> 10327 | V84: =U84/F84 -> 0.8207702752
B85: Total Sul | C85: =SUMIF($A$3:$A$80,"sul",C$3:C$80) -> 8061 | D85: =SUMIF($A$3:$A$80,"sul",D$3:D$80) -> 3529 | E85: =SUMIF($A$3:$A$80,"sul",E$3:E$80) -> 8688 | F85: =SUMIF($A$3:$A$80,"sul",F$3:F$80) -> 3620 | G85: =SUMIF($A$3:$A$80,"sul",G$3:G$80) -> 3091 | H85: =G85/D85 -> 0.87588552 | I85: =SUMIF($A$3:$A$80,"sul",I$3:I$80) -> 2154 | J85: =I85/F85 -> 0.5950276243 | K85: =SUMIF($A$3:$A$80,"sul",K$3:K$80) -> 3254 | L85: =K85/D85 -> 0.922074242 | M85: =SUMIF($A$3:$A$80,"sul",M$3:M$80) -> 3369 | N85: =M85/D85 -> 0.9546613772 | O85: =SUMIF($A$3:$A$80,"sul",O$3:O$80) -> 3426 | P85: =O85/D85 -> 0.9708132615 | Q85: =SUMIF($A$3:$A$80,"sul",Q$3:Q$80) -> 3039 | R85: =Q85/D85 -> 0.8611504676 | S85: =SUMIF($A$3:$A$80,"sul",S$3:S$80) -> 2769 | T85: =S85/F85 -> 0.7649171271 | U85: =SUMIF($A$3:$A$80,"sul",U$3:U$80) -> 3137 | V85: =U85/F85 -> 0.8665745856
B86: Total Espírito Santo | C86: =SUM(C3:C80) -> 49565 | D86: =SUM(D3:D80) -> 21772 | E86: =SUM(E3:E80) -> 51517 | F86: =SUM(F3:F80) -> 21465.41667 | G86: =SUM(G3:G80) -> 17458 | H86: =G86/D86 -> 0.8018555943 | I86: =SUM(I3:I80) -> 13538 | J86: =I86/F86 -> 0.6306888988 | K86: =SUM(K3:K80) -> 19053 | L86: =K86/D86 -> 0.8751148264 | M86: =SUM(M3:M80) -> 18963 | N86: =M86/D86 -> 0.8709810766 | O86: =SUM(O3:O80) -> 19923 | P86: =O86/D86 -> 0.9150744075 | Q86: =SUM(Q3:Q80) -> 17557 | R86: =Q86/D86 -> 0.8064027191 | S86: =SUM(S3:S80) -> 14577 | T86: =S86/F86 -> 0.6790923385 | U86: =SUM(U3:U80) -> 17512 | V86: =U86/F86 -> 0.8158239028
A90: Fonte: Vacina e Confia, em 11 de Junho de 2025.** <https://vacinaeconfia.saude.es.gov.br/>
A91: **Dados referente às doses aplicadas no período de Janeiro a Maio 2025
A92: Cobertura Calculada por município de residência
A93: 1 População anual extraída do MS/SVS/DASIS - SINASC/DASIS/SVS/MS 2024 (hoje preliminares) referente ao período de Abril a Dezembro de 2024 e SINASC/DASIS/SVS/MS referente ao período de Janeiro e Março de 2025.
A94: ² População proporcional extraída do MS/SVS/DASIS - SINASC/DASIS/SVS/MS 2024 (hoje preliminares) referente ao período de Abril e Maio de 2024 e Janeiro a Março de 2025.
A95: Sinasc, atualizado em 10/06/2025.
A96: Homogeineidade: O cálculo da Homogeineidade entre vacinas é feito de acordo com a pactuação estabelecida no Plano Plurianual (PPA) vigente no período 2024-2027.
A98: Observações:
A99: 1. Imunobiológicos que foram recebidos parcialmente pelo estado no mês de Maio/2025, sendo distribuídos em quantidades reduzidas às regionais e municípios:
A100: SORO ANTIRRÁBICO HUMANO, IMUNOGLOBULINA ANTIRRÁBICA HUMANA, VACINA COVID-19 MODERNA (SPIKEVAX),VACINA COVID-19 PFIZER PEDIÁTRICA
A101: 2. Imunobiológicos indisponíveis no mês de Maio/2025, não sendo possível a distribuição às regionais e municípios:
A102: VACINA TRÍPLICE ACELULAR (DTPa) - CRIE,VACINA COVID-19 RECOMBINANTE SERUM/ZALIKA

Sheet Cobert. COVID-19 Menores 4 anos (hidden)
A1: Regional | B1: Município | C1: Série Histórica
A2: Região Metropolitana | B2: Afonso Cláudio
A3: Região Norte | B3: Água Doce do Norte
A4: Região Central | B4: Águia Branca
A5: Região Sul | B5: Alegre
A6: Região Sul | B6: Alfredo Chaves
A7: Região Central | B7: Alto Rio Novo
A8: Região Sul | B8: Anchieta
A9: Região Sul | B9: Apiacá
A10: Região Metropolitana | B10: Aracruz
A11: Região Sul | B11: Atilio Vivacqua
A12: Região Central | B12: Baixo Guandu
A13: Região Norte | B13: Barra de São Francisco
A14: Região Norte | B14: Boa Esperança
A15: Região Sul | B15: Bom Jesus do Norte
A16: Região Metropolitana | B16: Brejetuba
A17: Região Sul | B17: Cachoeiro de Itapemirim
A18: Região Metropolitana | B18: Cariacica
A19: Região Sul | B19: Castelo
A20: Região Central | B20: Colatina
A21: Região Norte | B21: Conceição da Barra
A22: Região Metropolitana | B22: Conceição do Castelo
A23: Região Sul | B23: Divino de São Lourenço
A24: Região Metropolitana | B24: Domingos Martins
A25: Região Sul | B25: Dores do Rio Preto
A26: Região Norte | B26: Ecoporanga
A27: Região Metropolitana | B27: Fundão
A28: Região Central | B28: Governador Lindenberg
A29: Região Sul | B29: Guaçuí
A30: Região Metropolitana | B30: Guarapari
A31: Região Metropolitana | B31: Ibatiba
A32: Região Metropolitana | B32: Ibiraçu
A33: Região Sul | B33: Ibitirama
A34: Região Sul | B34: Iconha
A35: Região Sul | B35: Irupi
A36: Região Metropolitana | B36: Itaguaçu
A37: Região Sul | B37: Itapemirim
A38: Região Metropolitana | B38: Itarana
A39: Região Sul | B39: Iúna
A40: Região Norte | B40: Jaguaré
A41: Região Sul | B41: Jerônimo Monteiro
A42: Região Metropolitana | B42: João Neiva
A43: Região Metropolitana | B43: Laranja da Terra
A44: Região Central | B44: Linhares
A45: Região Central | B45: Mantenópolis
A46: Região Sul | B46: Marataízes
A47: Região Metropolitana | B47: Marechal Floriano
A48: Região Central | B48: Marilândia
A49: Região Sul | B49: Mimoso do Sul
A50: Região Norte | B50: Montanha
A51: Região Norte | B51: Mucurici
A52: Região Sul | B52: Muniz Freire
A53: Região Sul | B53: Muqui
A54: Região Norte | B54: Nova Venécia
A55: Região Central | B55: Pancas
A56: Região Norte | B56: Pedro Canário
A57: Região Norte | B57: Pinheiros
A58: Região Sul | B58: Piúma
A59: Região Norte | B59: Ponto Belo
A60: Região Sul | B60: Presidente Kennedy
A61: Região Central | B61: Rio Bananal
A62: Região Sul | B62: Rio Novo do Sul
A63: Região Metropolitana | B63: Santa Leopoldina
A64: Região Metropolitana | B64: Santa Maria de Jetibá
A65: Região Metropolitana | B65: Santa Teresa
A66: Região Central | B66: São Domingos do Norte
A67: Região Central | B67: São Gabriel da Palha
A68: Região Sul | B68: São José do Calçado
A69: Região Norte | B69: São Mateus
A70: Região Central | B70: São Roque do Canaã
A71: Região Metropolitana | B71: Serra
A72: Região Central | B72: Sooretama
A73: Região Sul | B73: Vargem Alta
A74: Região Metropolitana | B74: Venda Nova do Imigrante
A75: Região Metropolitana | B75: Viana
A76: Região Norte | B76: Vila Pavão
A77: Região Central | B77: Vila Valério
A78: Região Metropolitana | B78: Vila Velha
A79: Região Metropolitana | B79: Vitória
B81: Espírito Santo
B82: Região Norte
B83: Região Central
B84: Região Metropolitana
B85: Região Sul
A87: Pfizer Pediátrica Menor de 5 anos e Coronavac
A88: Período avaliado: 2021-2024
A89: Fonte: https://www.vacinaeconfia.es.gov.br
A90: *Dados de janeiro/2024 extraídos do Vacina e Confia em 04/01/2024
A91: População proporcional extraída do SINASC 2022 (menores de 1 ano) e Censo IBGE 2022 (demais idades)
A92: Cobertura Calculada por município de procedência da vacinação

Sheet Cobert. Meningo C Adolescentes
A1: Regional | B1: Município | C1: Série Histórica %
A2: Metropolitana | B2: Afonso Cláudio | C2: 52.22063037
A3: Norte | B3: Água Doce do Norte | C3: 74.0203193
A4: Central | B4: Águia Branca | C4: 71.03641457
A5: Sul | B5: Alegre | C5: 79.36994093
A6: Sul | B6: Alfredo Chaves | C6: 37.63129852
A7: Central | B7: Alto Rio Novo | C7: 86.23255814
A8: Sul | B8: Anchieta | C8: 88.16548862
A9: Sul | B9: Apiacá | C9: 33.08823529
A10: Metropolitana | B10: Aracruz | C10: 87.72189616
A11: Sul | B11: Atilio Vivacqua | C11: 92.57012889
A12: Central | B12: Baixo Guandu | C12: 69.4272
A13: Norte | B13: Barra de São Francisco | C13: 67.4759737
A14: Norte | B14: Boa Esperança | C14: 64.94973144
A15: Sul | B15: Bom Jesus do Norte | C15: 76.15215801
A16: Metropolitana | B16: Brejetuba | C16: 94.86845533
A17: Sul | B17: Cachoeiro de Itapemirim | C17: 99.07266976
A18: Metropolitana | B18: Cariacica | C18: 82.15660851
A19: Sul | B19: Castelo | C19: 79.98030648
A20: Central | B20: Colatina | C20: 74.41319518
A21: Norte | B21: Conceição da Barra | C21: 64.31214262
A22: Metropolitana | B22: Conceição do Castelo | C22: 83.06478132
A23: Sul | B23: Divino de São Lourenço | C23: 66.71449067
A24: Metropolitana | B24: Domingos Martins | C24: 83.56203382
A25: Sul | B25: Dores do Rio Preto | C25: 71.41009056
A26: Norte | B26: Ecoporanga | C26: 59.46813001
A27: Metropolitana | B27: Fundão | C27: 93.9685136
A28: Central | B28: Governador Lindenberg | C28: 81.10663632
A29: Sul | B29: Guaçuí | C29: 67.68747546
A30: Metropolitana | B30: Guarapari | C30: 80.47130053
A31: Metropolitana | B31: Ibatiba | C31: 68.84348009
A32: Metropolitana | B32: Ibiraçu | C32: 91.12343967
A33: Sul | B33: Ibitirama | C33: 100.1724733
A34: Sul | B34: Iconha | C34: 77.44133232
A35: Sul | B35: Irupi | C35: 83.48765432
A36: Metropolitana | B36: Itaguaçu | C36: 66.02316602
A37: Sul | B37: Itapemirim | C37: 74.21532231
A38: Metropolitana | B38: Itarana | C38: 71.11921587
A39: Sul | B39: Iúna | C39: 68.67112101
A40: Norte | B40: Jaguaré | C40: 71.08284374
A41: Sul | B41: Jerônimo Monteiro | C41: 93.16963514
A42: Metropolitana | B42: João Neiva | C42: 95.96412556
A43: Metropolitana | B43: Laranja da Terra | C43: 107.0236869
A44: Central | B44: Linhares | C44: 82.76251529
A45: Central | B45: Mantenópolis | C45: 92.09070796
A46: Sul | B46: Marataízes | C46: 91.76012124
A47: Metropolitana | B47: Marechal Floriano | C47: 95.54740702
A48: Central | B48: Marilândia | C48: 74.22895975
A49: Sul | B49: Mimoso do Sul | C49: 87.6398822
A50: Norte | B50: Montanha | C50: 78.73099305
A51: Norte | B51: Mucurici | C51: 65.94926979
A52: Sul | B52: Muniz Freire | C52: 74.00332226
A53: Sul | B53: Muqui | C53: 74.79053359
A54: Norte | B54: Nova Venécia | C54: 82.73066836
A55: Central | B55: Pancas | C55: 68.38868389
A56: Norte | B56: Pedro Canário | C56: 79.15690867
A57: Norte | B57: Pinheiros | C57: 66.51866241
A58: Sul | B58: Piúma | C58: 90.00534474
A59: Norte | B59: Ponto Belo | C59: 62.29913473
A60: Sul | B60: Presidente Kennedy | C60: 94.59314775
A61: Central | B61: Rio Bananal | C61: 85.70574758
A62: Sul | B62: Rio Novo do Sul | C62: 68.62928933
A63: Metropolitana | B63: Santa Leopoldina | C63: 63.45369391
A64: Metropolitana | B64: Santa Maria de Jetibá | C64: 86.63732559
A65: Metropolitana | B65: Santa Teresa | C65: 106.4138316
A66: Central | B66: São Domingos do Norte | C66: 74.42748092
A67: Central | B67: São Gabriel da Palha | C67: 62.91651738
A68: Sul | B68: São José do Calçado | C68: 67.88131182
A69: Norte | B69: São Mateus | C69: 74.64267276
A70: Central | B70: São Roque do Canaã | C70: 76.66941467
A71: Metropolitana | B71: Serra | C71: 81.73201744
A72: Central | B72: Sooretama | C72: 87.51059143
A73: Sul | B73: Vargem Alta | C73: 72.92694276
A74: Metropolitana | B74: Venda Nova do Imigrante | C74: 99.37106918
A75: Metropolitana | B75: Viana | C75: 96.01301069
A76: Norte | B76: Vila Pavão | C76: 94.75728155
A77: Central | B77: Vila Valério | C77: 96.71945701
A78: Metropolitana | B78: Vila Velha | C78: 87.49439872
A79: Metropolitana | B79: Vitória | C79: 91.13996837
A80: Total | C80: 79.20020374
A83: Meningocócica Conjudada C e Meningocócica ACWY
A84: Período avaliado: 2016-2025
A85: Faixa Etária: 11 a 14 anos.
A86: Fonte: http://tabnet.datasus.gov.br/ e https://www.vacinaeconfia.es.gov.br
A87: *Dados parciais:
A88: Dados de janeiro/2022 a abril/2022 extraídos do TABNET em 27/05/2025
A89: Dados de março/2023 a maio/2025 extraídos do Vacina e Confia em 11/06/2025
A90: População proporcional extraída do Censo IBGE 2022
A91: Cobertura Calculada por município de procedência da vacinação
A93: Observações:
A94: 1. Imunobiológicos que foram recebidos parcialmente pelo estado no mês de Maio/2025, sendo distribuídos em quantidades reduzidas às regionais e municípios:
A95: SORO ANTIRRÁBICO HUMANO, IMUNOGLOBULINA ANTIRRÁBICA HUMANA, VACINA COVID-19 MODERNA (SPIKEVAX),VACINA COVID-19 PFIZER PEDIÁTRICA.
A96: 2. Imunobiológicos indisponíveis no mês de Maio/2025, não sendo possível a distribuição às regionais e municípios:
A97: VACINA TRÍPLICE ACELULAR (DTPa) - CRIE; VACINA COVID-19 RECOMBINANTE SERUM/ZALIKA

Sheet Cobert. HPV
A1: REGIONAL | B1: MUNICÍPIO | C1: HPV Feminino % | D1: HPV Masculino %
A2: Metropolitana | B2: Afonso Cláudio | C2: 93.76788553 | D2: 92.37032569
A3: Norte | B3: Água Doce do Norte | C3: 94.6806407 | D3: 91.09424181
A4: Central | B4: Águia Branca | C4: 82.57866462 | D4: 96.20615605
A5: Sul | B5: Alegre | C5: 92.60693381 | D5: 77.19869707
A6: Sul | B6: Alfredo Chaves | C6: 91.3754797 | D6: 63.74859708
A7: Central | B7: Alto Rio Novo | C7: 108.0037372 | D7: 107.9097744
A8: Sul | B8: Anchieta | C8: 103.9669019 | D8: 101.9170104
A9: Sul | B9: Apiacá | C9: 78.09199319 | D9: 66.75881133
A10: Metropolitana | B10: Aracruz | C10: 108.4725118 | D10: 104.0028214
A11: Sul | B11: Atílio Vivácqua | C11: 114.2448103 | D11: 109.394572
A12: Central | B12: Baixo Guandu | C12: 90.85564471 | D12: 93.2465419
A13: Norte | B13: Barra de São Francisco | C13: 88.84790627 | D13: 80.10805756
A14: Norte | B14: Boa Esperança | C14: 89.75810602 | D14: 60.10733453
A15: Sul | B15: Bom Jesus do Norte | C15: 95.31839361 | D15: 96.90402477
A16: Metropolitana | B16: Brejetuba | C16: 101.9289998 | D16: 111.8322516
A17: Sul | B17: Cachoeiro de Itapemirim | C17: 97.19254658 | D17: 97.40005591
A18: Metropolitana | B18: Cariacica | C18: 99.58916626 | D18: 90.34168152
A19: Sul | B19: Castelo | C19: 98.54316823 | D19: 101.2859481
A20: Central | B20: Colatina | C20: 72.86065798 | D20: 76.51761664
A21: Norte | B21: Conceição da Barra | C21: 91.22453387 | D21: 91.93548387
A22: Metropolitana | B22: Conceição do Castelo | C22: 110.8079748 | D22: 114.4592953
A23: Sul | B23: Divino de São Lourenço | C23: 95.70923776 | D23: 91.70984456
A24: Metropolitana | B24: Domingos Martins | C24: 114.200876 | D24: 100.9950249
A25: Sul | B25: Dores do Rio Preto | C25: 115.0624541 | D25: 86.74254076
A26: Norte | B26: Ecoporanga | C26: 93.12887744 | D26: 78.55385603
A27: Metropolitana | B27: Fundão | C27: 86.58399098 | D27: 118.2645956
A28: Central | B28: Governador Lindenberg | C28: 112.7775037 | D28: 99.10828025
A29: Sul | B29: Guaçuí | C29: 99.84917044 | D29: 83.49806278
A30: Metropolitana | B30: Guarapari | C30: 88.80206837 | D30: 89.66461835
A31: Metropolitana | B31: Ibatiba | C31: 101.9767442 | D31: 97.68135144
A32: Metropolitana | B32: Ibiraçu | C32: 109.7053726 | D32: 105.6694813
A33: Sul | B33: Ibitirama | C33: 65.53267681 | D33: 85.18280949
A34: Sul | B34: Iconha | C34: 110.823357 | D34: 95.33101045
A35: Sul | B35: Irupi | C35: 101.7612524 | D35: 101.7612524
A36: Metropolitana | B36: Itaguaçu | C36: 98.34847234 | D36: 79.07260525
A37: Sul | B37: Itapemirim | C37: 84.52282842 | D37: 83.81188887
A38: Metropolitana | B38: Itarana | C38: 109.613542 | D38: 93.27073552
A39: Sul | B39: Iúna | C39: 89.34543717 | D39: 95.56673856
A40: Norte | B40: Jaguaré | C40: 105.2170844 | D40: 99.40876109
A41: Sul | B41: Jerônimo Monteiro | C41: 102.4263432 | D41: 105.7460822
A42: Metropolitana | B42: João Neiva | C42: 100.0731529 | D42: 114.7763578
A43: Metropolitana | B43: Laranja da Terra | C43: 102.2421525 | D43: 90.38332213
A44: Central | B44: Linhares | C44: 93.93196118 | D44: 97.86035298
A45: Central | B45: Mantenópolis | C45: 88.71673964 | D45: 85.12990603
A46: Sul | B46: Marataízes | C46: 109.2285632 | D46: 108.8751069
A47: Metropolitana | B47: Marechal Floriano | C47: 106.1946903 | D47: 106.1946903
A48: Central | B48: Marilândia | C48: 106.4052288 | D48: 128.1045752
A49: Sul | B49: Mimoso do Sul | C49: 86.17125449 | D49: 81.0918775
A50: Norte | B50: Montanha | C50: 105.1740812 | D50: 100.2514286
A51: Norte | B51: Mucurici | C51: 106.1359867 | D51: 89.23787529
A52: Sul | B52: Muniz Freire | C52: 104.3986637 | D52: 102.084419
A53: Sul | B53: Muqui | C53: 92.52695048 | D53: 94.23041475
A54: Norte | B54: Nova Venécia | C54: 103.9888184 | D54: 94.57564048
A55: Central | B55: Pancas | C55: 101.3854931 | D55: 94.93386573
A56: Norte | B56: Pedro Canário | C56: 101.7840758 | D56: 93.89889599
A57: Norte | B57: Pinheiros | C57: 90.56603774 | D57: 79.28699974
A58: Sul | B58: Piúma | C58: 85.77272727 | D58: 78.64693446
A59: Norte | B59: Ponto Belo | C59: 100.9864365 | D59: 107.4200136
A60: Sul | B60: Presidente Kennedy | C60: 99.4744872 | D60: 95.42079208
A61: Central | B61: Rio Bananal | C61: 118.628313 | D61: 122.7960605
A62: Sul | B62: Rio Novo do Sul | C62: 86.82634731 | D62: 94.68728985
A63: Metropolitana | B63: Santa Leopoldina | C63: 66.68033627 | D63: 63.61769647
A64: Metropolitana | B64: Santa Maria de Jetibá | C64: 108.0350621 | D64: 97.98784906
A65: Metropolitana | B65: Santa Teresa | C65: 110.4047678 | D65: 100.8027923
A66: Central | B66: São Domingos do Norte | C66: 111.6193962 | D66: 111.1375819
A67: Central | B67: São Gabriel da Palha | C67: 86.43755753 | D67: 91.85466635
A68: Sul | B68: São José do Calçado | C68: 93.47482502 | D68: 93.86217594
A69: Norte | B69: São Mateus | C69: 96.79955935 | D69: 86.689036
A70: Central | B70: São Roque do Canaã | C70: 109.0362954 | D70: 111.3233288
A71: Metropolitana | B71: Serra | C71: 94.2123081 | D71: 79.25966878
A72: Central | B72: Sooretama | C72: 87.75656667 | D72: 101.4340275
A73: Sul | B73: Vargem Alta | C73: 103.6363636 | D73: 92.53901356
A74: Metropolitana | B74: Venda Nova do Imigrante | C74: 109.9824869 | D74: 107.26184
A75: Metropolitana | B75: Viana | C75: 112.2829833 | D75: 99.00232989
A76: Norte | B76: Vila Pavão | C76: 94.63519313 | D76: 94.63519313
A77: Central | B77: Vila Valério | C77: 128.5626157 | D77: 102.7229408
A78: Metropolitana | B78: Vila Velha | C78: 99.11219278 | D78: 93.6221735
A79: Metropolitana | B79: Vitória | C79: 106.7241425 | D79: 100.752308
A80: TOTAL | C80: 97.64 | D80: 80.24
A83: Vacina HPV Quadrivalente, Bivalente e Nonavalente
A84: Período avaliado: 2013-2025
A85: Faixa Etária: 9 a 14 anos.
A86: Fonte: http://tabnet.datasus.gov.br/ e https://www.vacinaeconfia.es.gov.br
A87: *Dados parciais:
A88: Dados de janeiro/2013 a dezembro/2022 extraídos do TABNET em 26/02/2025
A89: Dados de Janeiro/2023 a Maio/2025 extraídos do Vacina e Confia em 16/06/2025
A90: População proporcional extraída do Censo IBGE 2022
A91: Cobertura Calculada por município de procedência da vacinação
A93: Observações:
A94: 1. Imunobiológicos que foram recebidos parcialmente pelo estado no mês de Maio/2025, sendo distribuídos em quantidades reduzidas às regionais e municípios:
A95: SORO ANTIRRÁBICO HUMANO, IMUNOGLOBULINA ANTIRRÁBICA HUMANA, VACINA COVID-19 MODERNA (SPIKEVAX),VACINA COVID-19 PFIZER PEDIÁTRICA
A96: 2. Imunobiológicos indisponíveis no mês de Maio/2025, não sendo possível a distribuição às regionais e municípios:
A97: VACINA TRÍPLICE ACELULAR (DTPa) - CRIE; VACINA COVID-19 RECOMBINANTE SERUM/ZALIKA

Sheet Cobert. Dengue
A1: REGIONAL | B1: MUNICÍPIO | C1: DENGUE -D1 % | D1: DENGUE - D2 %
A2: Metropolitana | B2: Afonso Cláudio | C2: 65.5409273 | D2: 38.5231826
A3: Norte | B3: Água Doce do Norte | C3: 44.7135538 | D3: 20.40055892
A4: Central | B4: Águia Branca | C4: 43.52138872 | D4: 22.8766274
A5: Sul | B5: Alegre | C5: 78.47096189 | D5: 33.89292196
A6: Sul | B6: Alfredo Chaves | C6: 25.23227384 | D6: 10.41564792
A7: Central | B7: Alto Rio Novo | C7: 89.29917106 | D7: 52.90128109
A8: Sul | B8: Anchieta | C8: 82.60869565 | D8: 45.98897734
A9: Sul | B9: Apiacá | C9: 23.6440678 | D9: 8.13559322
A10: Metropolitana | B10: Aracruz | C10: 86.54537159 | D10: 47.8583243
A11: Sul | B11: Atílio Vivácqua | C11: 59.10179641 | D11: 25.1497006
A12: Central | B12: Baixo Guandu | C12: 46.99596774 | D12: 23.28629032
A13: Norte | B13: Barra de São Francisco | C13: 12.73961661 | D13: 3.39456869
A14: Norte | B14: Boa Esperança | C14: 26.3864818 | D14: 8.968804159
A15: Sul | B15: Bom Jesus do Norte | C15: 44.88468362 | D15: 13.12832643
A16: Metropolitana | B16: Brejetuba | C16: 95.80246914 | D16: 62.22222222
A17: Sul | B17: Cachoeiro de Itapemirim | C17: 56.4792176 | D17: 20.64995925
A18: Metropolitana | B18: Cariacica | C18: 61.16287041 | D18: 29.49241268
A19: Sul | B19: Castelo | C19: 56.97381183 | D19: 23.56935015
A20: Central | B20: Colatina | C20: 36.66481994 | D20: 15.12465374
A21: Norte | B21: Conceição da Barra | C21: 53.31791496 | D21: 15.63778687
A22: Metropolitana | B22: Conceição do Castelo | C22: 122.4713243 | D22: 75.39103233
A23: Sul | B23: Divino de São Lourenço | C23: 40.8 | D23: 22.28571429
A24: Metropolitana | B24: Domingos Martins | C24: 79.59842237 | D24: 49.15740409
A25: Sul | B25: Dores do Rio Preto | C25: 29.11908646 | D25: 10.76672104
A26: Norte | B26: Ecoporanga | C26: 32.13114754 | D26: 11.47540984
A27: Metropolitana | B27: Fundão | C27: 93.31395349 | D27: 56.97674419
A28: Central | B28: Governador Lindenberg | C28: 87.86681716 | D28: 51.2979684
A29: Sul | B29: Guaçuí | C29: 32.60603589 | D29: 13.88662316
A30: Metropolitana | B30: Guarapari | C30: 20.53848323 | D30: 8.133634057
A31: Metropolitana | B31: Ibatiba | C31: 85.73327426 | D31: 42.93309703
A32: Metropolitana | B32: Ibiraçu | C32: 87.62612852 | D32: 53.85023898
A33: Sul | B33: Ibitirama | C33: 58.50487541 | D33: 30.55254605
A34: Sul | B34: Iconha | C34: 62.71084337 | D34: 33.43373494
A35: Sul | B35: Irupi | C35: 60.02460025 | D35: 26.56826568
A36: Metropolitana | B36: Itaguaçu | C36: 105.4135338 | D36: 83.90977444
A37: Sul | B37: Itapemirim | C37: 23.012939 | D37: 10.33799842
A38: Metropolitana | B38: Itarana | C38: 105.4636952 | D38: 71.60316319
A39: Sul | B39: Iúna | C39: 48.6518636 | D39: 19.32989691
A40: Norte | B40: Jaguaré | C40: 23.69098712 | D40: 10.30042918
A41: Sul | B41: Jerônimo Monteiro | C41: 63.01969365 | D41: 27.40700219
A42: Metropolitana | B42: João Neiva | C42: 85.65380997 | D42: 51.92850423
A43: Metropolitana | B43: Laranja da Terra | C43: 99.24670433 | D43: 74.19962335
A44: Central | B44: Linhares | C44: 62.21421964 | D44: 28.57473239
A45: Central | B45: Mantenópolis | C45: 88.82608696 | D45: 42.39130435
A46: Sul | B46: Marataízes | C46: 38.26446281 | D46: 14.00826446
A47: Metropolitana | B47: Marechal Floriano | C47: 91.2823965 | D47: 57.35442612
A48: Central | B48: Marilândia | C48: 72.41962775 | D48: 35.8714044
A49: Sul | B49: Mimoso do Sul | C49: 29.70137207 | D49: 13.15577078
A50: Norte | B50: Montanha | C50: 59.19203747 | D50: 25.11709602
A51: Norte | B51: Mucurici | C51: 66.74816626 | D51: 41.07579462
A52: Sul | B52: Muniz Freire | C52: 60.34136546 | D52: 37.4497992
A53: Sul | B53: Muqui | C53: 26.56826568 | D53: 13.69926199
A54: Norte | B54: Nova Venécia | C54: 28.69267798 | D54: 10.79300735
A55: Central | B55: Pancas | C55: 79.77272727 | D55: 44.61038961
A56: Norte | B56: Pedro Canário | C56: 53.98666996 | D56: 24.80868921
A57: Norte | B57: Pinheiros | C57: 30.25484644 | D57: 8.429536049
A58: Sul | B58: Piúma | C58: 47.48383469 | D58: 15.09699185
A59: Norte | B59: Ponto Belo | C59: 88.0126183 | D59: 38.80126183
A60: Sul | B60: Presidente Kennedy | C60: 79.90829512 | D60: 28.88703627
A61: Central | B61: Rio Bananal | C61: 73.65158091 | D61: 42.77743335
A62: Sul | B62: Rio Novo do Sul | C62: 61.91602602 | D62: 27.6759314
A63: Metropolitana | B63: Santa Leopoldina | C63: 74.67185221 | D63: 45.50315994
A64: Metropolitana | B64: Santa Maria de Jetibá | C64: 81.20104439 | D64: 47.86771105
A65: Metropolitana | B65: Santa Teresa | C65: 81.26470588 | D65: 45.70588235
A66: Central | B66: São Domingos do Norte | C66: 58.60778443 | D66: 30.98802395
A67: Central | B67: São Gabriel da Palha | C67: 77.98041851 | D67: 31.44557497
A68: Sul | B68: São José do Calçado | C68: 47.96657382 | D68: 16.71309192
A69: Norte | B69: São Mateus | C69: 35.04862048 | D69: 11.27809054
A70: Central | B70: São Roque do Canaã | C70: 91.76470588 | D70: 54.90196078
A71: Metropolitana | B71: Serra | C71: 52.61444815 | D71: 21.99243353
A72: Central | B72: Sooretama | C72: 57.11206897 | D72: 27.26293103
A73: Sul | B73: Vargem Alta | C73: 70.32238626 | D73: 32.63031033
A74: Metropolitana | B74: Venda Nova do Imigrante | C74: 69.71539099 | D74: 41.7794971
A75: Metropolitana | B75: Viana | C75: 80.19248681 | D75: 37.20894132
A76: Norte | B76: Vila Pavão | C76: 61.94331984 | D76: 29.95951417
A77: Central | B77: Vila Valério | C77: 70.96180396 | D77: 33.27197423
A78: Metropolitana | B78: Vila Velha | C78: 51.13255034 | D78: 22.06375839
A79: Metropolitana | B79: Vitória | C79: 73.08263875 | D79: 37.48788525
A80: TOTAL | C80: 56.6580041 | D80: 26.60741451
A83: Vacina Dengue (Atenuada)
A84: Período avaliado: 2024-2025
A85: Faixa Etária: 10 a 14 anos.
A86: Fonte: https://www.vacinaeconfia.es.gov.br
A87: *Dados parciais:
A88: Dados de Janeiro/2024 a Maio/2025 extraídos do Vacina e Confia em em 11/06/2025
A89: População proporcional extraída do Censo IBGE 2022
A90: Cobertura Calculada por município de procedência da vacinação
A92: Observações:
A93: 1. Imunobiológicos que foram recebidos parcialmente pelo estado no mês de Maio/2025, sendo distribuídos em quantidades reduzidas às regionais e municípios:
A94: SORO ANTIRRÁBICO HUMANO, IMUNOGLOBULINA ANTIRRÁBICA HUMANA, VACINA COVID-19 MODERNA (SPIKEVAX),VACINA COVID-19 PFIZER PEDIÁTRICA
A95: 2. Imunobiológicos indisponíveis no mês de Maio/2025, não sendo possível a distribuição às regionais e municípios:
A96: VACINA TRÍPLICE ACELULAR (DTPa) - CRIE; VACINA COVID-19 RECOMBINANTE SERUM/ZALIKA

Sheet dTpa gestantes - procedência
A1: REGIONAL | B1: MUNICÍPIO | C1: ¹POPULAÇÃO GESTANTE ANUAL | D1: ²POPULAÇÃO PROPORCIONAL | E1: DOSES APLICADAS dTpa GESTANTES | F1: COBERTURA VACINAL dTpa GESTANTES
A2: Metropolitana | B2: Afonso Cláudio | C2: 359 | D2: 151 | E2: 145 | F2: =E2/D2 -> 0.9602649007
A3: Norte | B3: Água Doce do Norte | C3: 172 | D3: 85 | E3: 51 | F3: =E3/D3 -> 0.6
A4: Central | B4: Águia Branca | C4: 151 | D4: 79 | E4: 59 | F4: 0.746835443
A5: Sul | B5: Alegre | C5: 298 | D5: 127 | E5: 128 | F5: 1.007874016
A6: Sul | B6: Alfredo Chaves | C6: 122 | D6: 58 | E6: 50 | F6: 0.8620689655
A7: Central | B7: Alto Rio Novo | C7: 93 | D7: 42 | E7: 48 | F7: 1.142857143
A8: Sul | B8: Anchieta | C8: 352 | D8: 154 | E8: 155 | F8: 1.006493506
A9: Sul | B9: Apiacá | C9: 72 | D9: 31 | E9: 23 | F9: 0.7419354839
A10: Metropolitana | B10: Aracruz | C10: 1392 | D10: 650 | E10: 583 | F10: 0.8969230769
A11: Sul | B11: Atilio Vivacqua | C11: 173 | D11: 72 | E11: 47 | F11: 0.6527777778
A12: Central | B12: Baixo Guandu | C12: 349 | D12: 168 | E12: 150 | F12: 0.8928571429
A13: Norte | B13: Barra de São Francisco | C13: 595 | D13: 247 | E13: 228 | F13: 0.9230769231
A14: Norte | B14: Boa Esperança | C14: 207 | D14: 97 | E14: 99 | F14: 1.020618557
A15: Sul | B15: Bom Jesus do Norte | C15: 69 | D15: 29 | E15: 43 | F15: 1.482758621
A16: Metropolitana | B16: Brejetuba | C16: 199 | D16: 75 | E16: 87 | F16: 1.16
A17: Sul | B17: Cachoeiro de Itapemirim | C17: 2337 | D17: 1046 | E17: 879 | F17: 0.8403441683
A18: Metropolitana | B18: Cariacica | C18: 4824 | D18: 2178 | E18: 1659 | F18: 0.761707989
A19: Sul | B19: Castelo | C19: 415 | D19: 186 | E19: 177 | F19: 0.9516129032
A20: Central | B20: Colatina | C20: 1441 | D20: 606 | E20: 592 | F20: 0.9768976898
A21: Norte | B21: Conceição da Barra | C21: 353 | D21: 161 | E21: 166 | F21: 1.031055901
A22: Metropolitana | B22: Conceição do Castelo | C22: 161 | D22: 50 | E22: 67 | F22: 1.34
A23: Sul | B23: Divino de São Lourenço | C23: 53 | D23: 29 | E23: 28 | F23: 0.9655172414
A24: Metropolitana | B24: Domingos Martins | C24: 421 | D24: 178 | E24: 158 | F24: 0.8876404494
A25: Sul | B25: Dores do Rio Preto | C25: 108 | D25: 57 | E25: 40 | F25: 0.701754386
A26: Norte | B26: Ecoporanga | C26: 250 | D26: 124 | E26: 73 | F26: 0.5887096774
A27: Metropolitana | B27: Fundão | C27: 228 | D27: 109 | E27: 103 | F27: 0.9449541284
A28: Central | B28: Governador Lindenberg | C28: 115 | D28: 54 | E28: 79 | F28: 1.462962963
A29: Sul | B29: Guaçuí | C29: 358 | D29: 129 | E29: 131 | F29: 1.015503876
A30: Metropolitana | B30: Guarapari | C30: 1722 | D30: 758 | E30: 564 | F30: 0.7440633245
A31: Metropolitana | B31: Ibatiba | C31: 383 | D31: 164 | E31: 177 | F31: 1.079268293
A32: Metropolitana | B32: Ibiraçu | C32: 140 | D32: 60 | E32: 55 | F32: 0.9166666667
A33: Sul | B33: Ibitirama | C33: 146 | D33: 63 | E33: 59 | F33: 0.9365079365
A34: Sul | B34: Iconha | C34: 120 | D34: 46 | E34: 51 | F34: 1.108695652
A35: Sul | B35: Irupi | C35: 171 | D35: 76 | E35: 93 | F35: 1.223684211
A36: Metropolitana | B36: Itaguaçu | C36: 135 | D36: 72 | E36: 60 | F36: 0.8333333333
A37: Sul | B37: Itapemirim | C37: 536 | D37: 229 | E37: 186 | F37: 0.8122270742
A38: Metropolitana | B38: Itarana | C38: 128 | D38: 60 | E38: 54 | F38: 0.9
A39: Sul | B39: Iúna | C39: 402 | D39: 170 | E39: 159 | F39: 0.9352941176
A40: Norte | B40: Jaguaré | C40: 479 | D40: 239 | E40: 170 | F40: 0.7112970711
A41: Sul | B41: Jerônimo Monteiro | C41: 133 | D41: 64 | E41: 48 | F41: 0.75
A42: Metropolitana | B42: João Neiva | C42: 150 | D42: 53 | E42: 63 | F42: 1.188679245
A43: Metropolitana | B43: Laranja da Terra | C43: 103 | D43: 43 | E43: 46 | F43: 1.069767442
A44: Central | B44: Linhares | C44: 2615 | D44: 1134 | E44: 983 | F44: 0.8668430335
A45: Central | B45: Mantenópolis | C45: 136 | D45: 68 | E45: 50 | F45: 0.7352941176
A46: Sul | B46: Marataízes | C46: 556 | D46: 241 | E46: 213 | F46: 0.8838174274
A47: Metropolitana | B47: Marechal Floriano | C47: 195 | D47: 99 | E47: 79 | F47: 0.797979798
A48: Central | B48: Marilândia | C48: 150 | D48: 68 | E48: 71 | F48: 1.044117647
A49: Sul | B49: Mimoso do Sul | C49: 291 | D49: 139 | E49: 83 | F49: 0.5971223022
A50: Norte | B50: Montanha | C50: 226 | D50: 97 | E50: 96 | F50: 0.9896907216
A51: Norte | B51: Mucurici | C51: 69 | D51: 29 | E51: 23 | F51: 0.7931034483
A52: Sul | B52: Muniz Freire | C52: 213 | D52: 85 | E52: 120 | F52: 1.411764706
A53: Sul | B53: Muqui | C53: 144 | D53: 62 | E53: 70 | F53: 1.129032258
A54: Norte | B54: Nova Venécia | C54: 664 | D54: 296 | E54: 293 | F54: 0.9898648649
A55: Central | B55: Pancas | C55: 208 | D55: 101 | E55: 86 | F55: 0.8514851485
A56: Norte | B56: Pedro Canário | C56: 325 | D56: 145 | E56: 131 | F56: 0.9034482759
A57: Norte | B57: Pinheiros | C57: 333 | D57: 156 | E57: 125 | F57: 0.8012820513
A58: Sul | B58: Piúma | C58: 313 | D58: 141 | E58: 89 | F58: 0.6312056738
A59: Norte | B59: Ponto Belo | C59: 86 | D59: 37 | E59: 40 | F59: 1.081081081
A60: Sul | B60: Presidente Kennedy | C60: 207 | D60: 89 | E60: 79 | F60: 0.8876404494
A61: Central | B61: Rio Bananal | C61: 305 | D61: 134 | E61: 133 | F61: 0.9925373134
A62: Sul | B62: Rio Novo do Sul | C62: 110 | D62: 48 | E62: 41 | F62: 0.8541666667
A63: Metropolitana | B63: Santa Leopoldina | C63: 92 | D63: 50 | E63: 43 | F63: 0.86
A64: Metropolitana | B64: Santa Maria de Jetibá | C64: 658 | D64: 255 | E64: 265 | F64: 1.039215686
A65: Metropolitana | B65: Santa Teresa | C65: 296 | D65: 131 | E65: 110 | F65: 0.8396946565
A66: Central | B66: São Domingos do Norte | C66: 109 | D66: 43 | E66: 52 | F66: 1.209302326
A67: Central | B67: São Gabriel da Palha | C67: 408 | D67: 190 | E67: 172 | F67: =E67/D67 -> 0.9052631579
A68: Sul | B68: São José do Calçado | C68: 95 | D68: 38 | E68: 33 | F68: 0.8684210526
A69: Norte | B69: São Mateus | C69: 1801 | D69: 799 | E69: 612 | F69: 0.7659574468
A70: Central | B70: São Roque do Canaã | C70: 113 | D70: 48 | E70: 60 | F70: 1.25
A71: Metropolitana | B71: Serra | C71: 7280 | D71: 3131 | E71: 2644 | F71: 0.8444586394
A72: Central | B72: Sooretama | C72: 419 | D72: 163 | E72: 191 | F72: 1.171779141
A73: Sul | B73: Vargem Alta | C73: 267 | D73: 120 | E73: 98 | F73: 0.8166666667
A74: Metropolitana | B74: Venda Nova do Imigrante | C74: 335 | D74: 138 | E74: 147 | F74: 1.065217391
A75: Metropolitana | B75: Viana | C75: 887 | D75: 386 | E75: 359 | F75: 0.9300518135
A76: Norte | B76: Vila Pavão | C76: 115 | D76: 56 | E76: 50 | F76: 0.8928571429
A77: Central | B77: Vila Valério | C77: 220 | D77: 88 | E77: 112 | F77: 1.272727273
A78: Metropolitana | B78: Vila Velha | C78: 5478 | D78: 2421 | E78: 1889 | F78: 0.7802560925
A79: Metropolitana | B79: Vitória | C79: 3431 | D79: 1477 | E79: 1564 | F79: 1.058903182
B81: Total Norte | C81: =SUMIF($A$2:$A$79,"Norte",C$2:C$79) -> 5675 | D81: =SUMIF($A$2:$A$79,"Norte",D$2:D$79) -> 2568 | E81: =SUMIF($A$2:$A$79,"Norte",E$2:E$79) -> 2157 | F81: 0.839953271
B82: Total Central | C82: =SUMIF($A$2:$A$79,"CENTRAL",C$2:C$79) -> 6832 | D82: =SUMIF($A$2:$A$79,"CENTRAL",D$2:D$79) -> 2986 | E82: =SUMIF($A$2:$A$79,"Central",E$2:E$79) -> 2838 | F82: 0.950435365
B83: Total Metropolitana | C83: =SUMIF($A$2:$A$79,"METROPOLITANA",C$2:C$79) -> 28997 | D83: =SUMIF($A$2:$A$79,"METROPOLITANA",D$2:D$79) -> 12689 | E83: =SUMIF($A$2:$A$79,"Metropolitana",E$2:E$79) -> 10921 | F83: 0.8606667192
B84: Total Sul | C84: =SUMIF($A$2:$A$79,"SUL",C$2:C$79) -> 8061 | D84: =SUMIF($A$2:$A$79,"SUL",D$2:D$79) -> 3529 | E84: =SUMIF($A$2:$A$79,"Sul",E$2:E$79) -> 3123 | F84: 0.8849532445
B85: TOTAL ES | C85: =SUM(C2:C79) -> 49565 | D85: =SUM(D2:D79) -> 21772 | E85: =SUM(E2:E79) -> 19039 | F85: =E85/D85 -> 0.8744717986
B86: HOMOGENEIDADE ENTRE MUNICÍPIOS | F86: =COUNTIF(F2:F79,">=0,95")/78 -> 0.4230769231
A89: Cobertura Vacinal dTpa das Gestantes de Janeiro a Maio de 2025
A90: Fonte: Vacina e Confia, em 12 de Junho de 2025. <https://www.vacinaeconfia.es.gov.br>
A91: **Dados referente às doses aplicadas no período de Janeiro a Maio de 2025
A92: Cobertura Calculada por município de procedência/ocorrência da vacinação
A93: 1 População anual extraída do MS/SVS/DASIS - SINASC/DASIS/SVS/MS 2024 (hoje preliminares) referente ao período de Abril a Dezembro de 2024 e SINASC/DASIS/SVS/MS referente ao período de Janeiro e Março de 2025.
A94: ² População proporcional extraída do MS/SVS/DASIS - SINASC/DASIS/SVS/MS 2024 (hoje preliminares) referente ao período de Abril e Maio de 2024 e Janeiro a Março/ 2025.
A95: Sinasc, atualizado em 10/06/25.
A96: Homogeineidade: O cálculo da Homogeineidade entre vacinas é feito de acordo com a pactuação estabelecida no Plano Plurianual (PPA) vigente no período 2024-2027.
A98: Observações:
A99: 1. Imunobiológicos que foram recebidos parcialmente pelo estado no mês de Maio/2025, sendo distribuídos em quantidades reduzidas às regionais e municípios:
A100: SORO ANTIRRÁBICO HUMANO, IMUNOGLOBULINA ANTIRRÁBICA HUMANA, VACINA COVID-19 MODERNA (SPIKEVAX),VACINA COVID-19 PFIZER PEDIÁTRICA
A101: 2. Imunobiológicos indisponíveis no mês de Maio/2025, não sendo possível a distribuição às regionais e municípios:
A102: VACINA TRÍPLICE ACELULAR (DTPa) - CRIE; VACINA COVID-19 RECOMBINANTE SERUM/ZALIKA

Sheet dTpa gestantes - residência
A1: REGIONAL | B1: MUNICÍPIO | C1: ¹POPULAÇÃO GESTANTE ANUAL | D1: ¹POPULAÇÃO PROPORCIONAL | E1: DOSES APLICADAS dTpa GESTANTES | F1: COBERTURA VACINAL dTpa GESTANTES
A2: Metropolitana | B2: Afonso Cláudio | C2: 359 | D2: 151 | E2: 135 | F2: =E2/D2 -> 0.8940397351
A3: Norte | B3: Água Doce do Norte | C3: 172 | D3: 85 | E3: 45 | F3: =E3/D3 -> 0.5294117647
A4: Central | B4: Águia Branca | C4: 151 | D4: 79 | E4: 46 | F4: 0.582278481
A5: Sul | B5: Alegre | C5: 298 | D5: 127 | E5: 139 | F5: 1.094488189
A6: Sul | B6: Alfredo Chaves | C6: 122 | D6: 58 | E6: 51 | F6: 0.8793103448
A7: Central | B7: Alto Rio Novo | C7: 93 | D7: 42 | E7: 50 | F7: 1.19047619
A8: Sul | B8: Anchieta | C8: 352 | D8: 154 | E8: 135 | F8: 0.8766233766
A9: Sul | B9: Apiacá | C9: 72 | D9: 31 | E9: 25 | F9: 0.8064516129
A10: Metropolitana | B10: Aracruz | C10: 1392 | D10: 650 | E10: 520 | F10: 0.8
A11: Sul | B11: Atilio Vivacqua | C11: 173 | D11: 72 | E11: 52 | F11: 0.7222222222
A12: Central | B12: Baixo Guandu | C12: 349 | D12: 168 | E12: 136 | F12: 0.8095238095
A13: Norte | B13: Barra de São Francisco | C13: 595 | D13: 247 | E13: 211 | F13: 0.8542510121
A14: Norte | B14: Boa Esperança | C14: 207 | D14: 97 | E14: 91 | F14: 0.9381443299
A15: Sul | B15: Bom Jesus do Norte | C15: 69 | D15: 29 | E15: 40 | F15: 1.379310345
A16: Metropolitana | B16: Brejetuba | C16: 199 | D16: 75 | E16: 86 | F16: 1.146666667
A17: Sul | B17: Cachoeiro de Itapemirim | C17: 2337 | D17: 1046 | E17: 840 | F17: 0.8030592734
A18: Metropolitana | B18: Cariacica | C18: 4824 | D18: 2178 | E18: 1815 | F18: 0.8333333333
A19: Sul | B19: Castelo | C19: 415 | D19: 186 | E19: 191 | F19: 1.02688172
A20: Central | B20: Colatina | C20: 1441 | D20: 606 | E20: 584 | F20: 0.9636963696
A21: Norte | B21: Conceição da Barra | C21: 353 | D21: 161 | E21: 174 | F21: 1.080745342
A22: Metropolitana | B22: Conceição do Castelo | C22: 161 | D22: 50 | E22: 67 | F22: 1.34
A23: Sul | B23: Divino de São Lourenço | C23: 53 | D23: 29 | E23: 27 | F23: 0.9310344828
A24: Metropolitana | B24: Domingos Martins | C24: 421 | D24: 178 | E24: 160 | F24: 0.8988764045
A25: Sul | B25: Dores do Rio Preto | C25: 108 | D25: 57 | E25: 30 | F25: 0.5263157895
A26: Norte | B26: Ecoporanga | C26: 250 | D26: 124 | E26: 76 | F26: 0.6129032258
A27: Metropolitana | B27: Fundão | C27: 228 | D27: 109 | E27: 93 | F27: 0.8532110092
A28: Central | B28: Governador Lindenberg | C28: 115 | D28: 54 | E28: 74 | F28: 1.37037037
A29: Sul | B29: Guaçuí | C29: 358 | D29: 129 | E29: 136 | F29: 1.054263566
A30: Metropolitana | B30: Guarapari | C30: 1722 | D30: 758 | E30: 541 | F30: 0.7137203166
A31: Metropolitana | B31: Ibatiba | C31: 383 | D31: 164 | E31: 170 | F31: 1.036585366
A32: Metropolitana | B32: Ibiraçu | C32: 140 | D32: 60 | E32: 69 | F32: 1.15
A33: Sul | B33: Ibitirama | C33: 146 | D33: 63 | E33: 79 | F33: 1.253968254
A34: Sul | B34: Iconha | C34: 120 | D34: 46 | E34: 50 | F34: 1.086956522
A35: Sul | B35: Irupi | C35: 171 | D35: 76 | E35: 76 | F35: 1
A36: Metropolitana | B36: Itaguaçu | C36: 135 | D36: 72 | E36: 54 | F36: 0.75
A37: Sul | B37: Itapemirim | C37: 536 | D37: 229 | E37: 203 | F37: 0.8864628821
A38: Metropolitana | B38: Itarana | C38: 128 | D38: 60 | E38: 60 | F38: 1
A39: Sul | B39: Iúna | C39: 402 | D39: 170 | E39: 150 | F39: 0.8823529412
A40: Norte | B40: Jaguaré | C40: 479 | D40: 239 | E40: 167 | F40: 0.6987447699
A41: Sul | B41: Jerônimo Monteiro | C41: 133 | D41: 64 | E41: 47 | F41: 0.734375
A42: Metropolitana | B42: João Neiva | C42: 150 | D42: 53 | E42: 57 | F42: 1.075471698
A43: Metropolitana | B43: Laranja da Terra | C43: 103 | D43: 43 | E43: 50 | F43: 1.162790698
A44: Central | B44: Linhares | C44: 2615 | D44: 1134 | E44: 923 | F44: 0.8139329806
A45: Central | B45: Mantenópolis | C45: 136 | D45: 68 | E45: 48 | F45: 0.7058823529
A46: Sul | B46: Marataízes | C46: 556 | D46: 241 | E46: 197 | F46: 0.8174273859
A47: Metropolitana | B47: Marechal Floriano | C47: 195 | D47: 99 | E47: 78 | F47: 0.7878787879
A48: Central | B48: Marilândia | C48: 150 | D48: 68 | E48: 63 | F48: 0.9264705882
A49: Sul | B49: Mimoso do Sul | C49: 291 | D49: 139 | E49: 87 | F49: 0.6258992806
A50: Norte | B50: Montanha | C50: 226 | D50: 97 | E50: 109 | F50: 1.12371134
A51: Norte | B51: Mucurici | C51: 69 | D51: 29 | E51: 25 | F51: 0.8620689655
A52: Sul | B52: Muniz Freire | C52: 213 | D52: 85 | E52: 102 | F52: 1.2
A53: Sul | B53: Muqui | C53: 144 | D53: 62 | E53: 68 | F53: 1.096774194
A54: Norte | B54: Nova Venécia | C54: 664 | D54: 296 | E54: 304 | F54: 1.027027027
A55: Central | B55: Pancas | C55: 208 | D55: 101 | E55: 99 | F55: 0.9801980198
A56: Norte | B56: Pedro Canário | C56: 325 | D56: 145 | E56: 143 | F56: 0.9862068966
A57: Norte | B57: Pinheiros | C57: 333 | D57: 156 | E57: 146 | F57: 0.9358974359
A58: Sul | B58: Piúma | C58: 313 | D58: 141 | E58: 87 | F58: 0.6170212766
A59: Norte | B59: Ponto Belo | C59: 86 | D59: 37 | E59: 36 | F59: 0.972972973
A60: Sul | B60: Presidente Kennedy | C60: 207 | D60: 89 | E60: 88 | F60: 0.9887640449
A61: Central | B61: Rio Bananal | C61: 305 | D61: 134 | E61: 153 | F61: 1.141791045
A62: Sul | B62: Rio Novo do Sul | C62: 110 | D62: 48 | E62: 42 | F62: 0.875
A63: Metropolitana | B63: Santa Leopoldina | C63: 92 | D63: 50 | E63: 64 | F63: 1.28
A64: Metropolitana | B64: Santa Maria de Jetibá | C64: 658 | D64: 255 | E64: 217 | F64: 0.8509803922
A65: Metropolitana | B65: Santa Teresa | C65: 296 | D65: 131 | E65: 119 | F65: 0.9083969466
A66: Central | B66: São Domingos do Norte | C66: 109 | D66: 43 | E66: 61 | F66: 1.418604651
A67: Central | B67: São Gabriel da Palha | C67: 408 | D67: 190 | E67: 160 | F67: =E67/D67 -> 0.8421052632
A68: Sul | B68: São José do Calçado | C68: 95 | D68: 38 | E68: 31 | F68: 0.8157894737
A69: Norte | B69: São Mateus | C69: 1801 | D69: 799 | E69: 545 | F69: 0.6821026283
A70: Central | B70: São Roque do Canaã | C70: 113 | D70: 48 | E70: 64 | F70: 1.333333333
A71: Metropolitana | B71: Serra | C71: 7280 | D71: 3131 | E71: 2564 | F71: 0.8189076972
A72: Central | B72: Sooretama | C72: 419 | D72: 163 | E72: 203 | F72: 1.245398773
A73: Sul | B73: Vargem Alta | C73: 267 | D73: 120 | E73: 100 | F73: 0.8333333333
A74: Metropolitana | B74: Venda Nova do Imigrante | C74: 335 | D74: 138 | E74: 159 | F74: 1.152173913
A75: Metropolitana | B75: Viana | C75: 887 | D75: 386 | E75: 376 | F75: 0.9740932642
A76: Norte | B76: Vila Pavão | C76: 115 | D76: 56 | E76: 45 | F76: 0.8035714286
A77: Central | B77: Vila Valério | C77: 220 | D77: 88 | E77: 106 | F77: 1.204545455
A78: Metropolitana | B78: Vila Velha | C78: 5478 | D78: 2421 | E78: 1686 | F78: 0.6964064436
A79: Metropolitana | B79: Vitória | C79: 3431 | D79: 1477 | E79: 1394 | F79: 0.9438050102
B81: Total Norte | C81: =SUMIF($A$2:$A$79,"Norte",C$2:C$79) -> 5675 | D81: =SUMIF($A$2:$A$79,"Norte",D$2:D$79) -> 2568 | E81: =SUMIF($A$2:$A$79,"Norte",E$2:E$79) -> 2117 | F81: 0.824376947
B82: Total Central | C82: =SUMIF($A$2:$A$79,"CENTRAL",C$2:C$79) -> 6832 | D82: =SUMIF($A$2:$A$79,"CENTRAL",D$2:D$79) -> 2986 | E82: =SUMIF($A$2:$A$79,"CENTRAL",E$2:E$79) -> 2770 | F82: 0.9276624246
B83: Total Metropolitana | C83: =SUMIF($A$2:$A$79,"METROPOLITANA",C$2:C$79) -> 28997 | D83: =SUMIF($A$2:$A$79,"METROPOLITANA",D$2:D$79) -> 12689 | E83: =SUMIF($A$2:$A$79,"METROPOLITANA",E$2:E$79) -> 10534 | F83: 0.8301678619
B84: Total Sul | C84: =SUMIF($A$2:$A$79,"SUL",C$2:C$79) -> 8061 | D84: =SUMIF($A$2:$A$79,"SUL",D$2:D$79) -> 3529 | E84: =SUMIF($A$2:$A$79,"SUL",E$2:E$79) -> 3073 | F84: 0.8707849249
B85: TOTAL ES | C85: =SUM(C2:C79) -> 49565 | D85: =SUM(D2:D79) -> 21772 | E85: =SUM(E2:E79) -> 18494 | F85: =E85/D85 -> 0.8494396473
B86: HOMOGENEIDADE ENTRE MUNICÍPIOS | E86: =COUNTIF(F2:F79,">=0,95") -> 34 | F86: =COUNTIF(F2:F79,">=0,95")/78 -> 0.4358974359
A89: Cobertura Vacinal dTpa das Gestantes de Janeiro a Maio de 2025
A90: Fonte: Vacina e Confia, em 12 de Junho de 2025.** <https://vacinaeconfia.saude.es.gov.br/>
A91: **Dados referente às doses aplicadas no período de Janeiro a Maio de 2025
A92: Cobertura Calculada por município de residência do cidadão (no Vacina e Confia, a origem da informação é o endereço que consta no cadastro do cidadão preenchido manualmente por meio do autocadastro ou pelo cadastro realizado por um profissional de saúde no momento do atendimento).
A93: 1 População anual extraída do MS/SVS/DASIS - SINASC/DASIS/SVS/MS 2024 (hoje preliminares) referente ao período de Abril a Dezembro de 2024 e SINASC/DASIS/SVS/MS referente ao período de Janeiro a Março de 2025.
A94: ² População proporcional extraída do MS/SVS/DASIS - SINASC/DASIS/SVS/MS 2024 (hoje preliminares) referente ao período de Abril e Maio de 2024 e Janeiro a Março de 2025.
A95: Sinasc, atualizado em 10/06/25.
A96: Homogeineidade: O cálculo da Homogeineidade entre vacinas é feito de acordo com a pactuação estabelecida no Plano Plurianual (PPA) vigente no período 2024-2027.
A98: Observações:
A99: 1. Imunobiológicos que foram recebidos parcialmente pelo estado no mês de Maio/2025, sendo distribuídos em quantidades reduzidas às regionais e municípios:
A100: SORO ANTIRRÁBICO HUMANO, IMUNOGLOBULINA ANTIRRÁBICA HUMANA, VACINA COVID-19 MODERNA (SPIKEVAX),VACINA COVID-19 PFIZER PEDIÁTRICA
A101: 2. Imunobiológicos indisponíveis no mês de Maio/2025, não sendo possível a distribuição às regionais e municípios:
A102: VACINA TRÍPLICE ACELULAR (DTPa) - CRIE; VACINA COVID-19 RECOMBINANTE SERUM/ZALIKA

Sheet COVID-19 gestantes -Procedência
A1: REGIONAL | B1: MUNICÍPIO | C1: ¹POPULAÇÃO GESTANTE ANUAL | D1: ²POPULAÇÃO PROPORCIONAL | E1: DOSES APLICADAS COVID 19 GESTANTES | F1: COBERTURA VACINAL COVID GESTANTES
A2: Metropolitana | B2: Afonso Cláudio | C2: 359 | D2: 151 | E2: 1 | F2: =E2/D2 -> 0.006622516556
A3: Norte | B3: Água Doce do Norte | C3: 172 | D3: 85 | E3: 1 | F3: =E3/D3 -> 0.01176470588
A4: Central | B4: Águia Branca | C4: 151 | D4: 79 | E4: 0 | F4: 0
A5: Sul | B5: Alegre | C5: 298 | D5: 127 | E5: 14 | F5: 0.1102362205
A6: Sul | B6: Alfredo Chaves | C6: 122 | D6: 58 | E6: 1 | F6: 0.01724137931
A7: Central | B7: Alto Rio Novo | C7: 93 | D7: 42 | E7: 0 | F7: 0
A8: Sul | B8: Anchieta | C8: 352 | D8: 154 | E8: 28 | F8: 0.1818181818
A9: Sul | B9: Apiacá | C9: 72 | D9: 31 | E9: 0 | F9: 0
A10: Metropolitana | B10: Aracruz | C10: 1392 | D10: 650 | E10: 101 | F10: 0.1553846154
A11: Sul | B11: Atilio Vivacqua | C11: 173 | D11: 72 | E11: 0 | F11: 0
A12: Central | B12: Baixo Guandu | C12: 349 | D12: 168 | E12: 0 | F12: 0
A13: Norte | B13: Barra de São Francisco | C13: 595 | D13: 247 | E13: 0 | F13: 0
A14: Norte | B14: Boa Esperança | C14: 207 | D14: 97 | E14: 3 | F14: 0.03092783505
A15: Sul | B15: Bom Jesus do Norte | C15: 69 | D15: 29 | E15: 3 | F15: 0.1034482759
A16: Metropolitana | B16: Brejetuba | C16: 199 | D16: 75 | E16: 0 | F16: 0
A17: Sul | B17: Cachoeiro de Itapemirim | C17: 2337 | D17: 1046 | E17: 65 | F17: 0.0621414914
A18: Metropolitana | B18: Cariacica | C18: 4824 | D18: 2178 | E18: 470 | F18: 0.2157943067
A19: Sul | B19: Castelo | C19: 415 | D19: 186 | E19: 0 | F19: 0
A20: Central | B20: Colatina | C20: 1441 | D20: 606 | E20: 83 | F20: 0.1369636964
A21: Norte | B21: Conceição da Barra | C21: 353 | D21: 161 | E21: 40 | F21: 0.248447205
A22: Metropolitana | B22: Conceição do Castelo | C22: 161 | D22: 50 | E22: 15 | F22: 0.3
A23: Sul | B23: Divino de São Lourenço | C23: 53 | D23: 29 | E23: 4 | F23: 0.1379310345
A24: Metropolitana | B24: Domingos Martins | C24: 421 | D24: 178 | E24: 26 | F24: 0.1460674157
A25: Sul | B25: Dores do Rio Preto | C25: 108 | D25: 57 | E25: 8 | F25: 0.1403508772
A26: Norte | B26: Ecoporanga | C26: 250 | D26: 124 | E26: 9 | F26: 0.07258064516
A27: Metropolitana | B27: Fundão | C27: 228 | D27: 109 | E27: 8 | F27: 0.07339449541
A28: Central | B28: Governador Lindenberg | C28: 115 | D28: 54 | E28: 8 | F28: 0.1481481481
A29: Sul | B29: Guaçuí | C29: 358 | D29: 129 | E29: 1 | F29: 0.007751937984
A30: Metropolitana | B30: Guarapari | C30: 1722 | D30: 758 | E30: 57 | F30: 0.07519788918
A31: Metropolitana | B31: Ibatiba | C31: 383 | D31: 164 | E31: 7 | F31: 0.04268292683
A32: Metropolitana | B32: Ibiraçu | C32: 140 | D32: 60 | E32: 0 | F32: 0
A33: Sul | B33: Ibitirama | C33: 146 | D33: 63 | E33: 13 | F33: 0.2063492063
A34: Sul | B34: Iconha | C34: 120 | D34: 46 | E34: 3 | F34: 0.0652173913
A35: Sul | B35: Irupi | C35: 171 | D35: 76 | E35: 4 | F35: 0.05263157895
A36: Metropolitana | B36: Itaguaçu | C36: 135 | D36: 72 | E36: 2 | F36: 0.02777777778
A37: Sul | B37: Itapemirim | C37: 536 | D37: 229 | E37: 20 | F37: 0.08733624454
A38: Metropolitana | B38: Itarana | C38: 128 | D38: 60 | E38: 0 | F38: 0
A39: Sul | B39: Iúna | C39: 402 | D39: 170 | E39: 2 | F39: 0.01176470588
A40: Norte | B40: Jaguaré | C40: 479 | D40: 239 | E40: 17 | F40: 0.07112970711
A41: Sul | B41: Jerônimo Monteiro | C41: 133 | D41: 64 | E41: 12 | F41: 0.1875
A42: Metropolitana | B42: João Neiva | C42: 150 | D42: 53 | E42: 0 | F42: 0
A43: Metropolitana | B43: Laranja da Terra | C43: 103 | D43: 43 | E43: 0 | F43: 0
A44: Central | B44: Linhares | C44: 2615 | D44: 1134 | E44: 15 | F44: 0.01322751323
A45: Central | B45: Mantenópolis | C45: 136 | D45: 68 | E45: 1 | F45: 0.01470588235
A46: Sul | B46: Marataízes | C46: 556 | D46: 241 | E46: 9 | F46: 0.03734439834
A47: Metropolitana | B47: Marechal Floriano | C47: 195 | D47: 99 | E47: 16 | F47: 0.1616161616
A48: Central | B48: Marilândia | C48: 150 | D48: 68 | E48: 2 | F48: 0.02941176471
A49: Sul | B49: Mimoso do Sul | C49: 291 | D49: 139 | E49: 19 | F49: 0.1366906475
A50: Norte | B50: Montanha | C50: 226 | D50: 97 | E50: 13 | F50: 0.1340206186
A51: Norte | B51: Mucurici | C51: 69 | D51: 29 | E51: 9 | F51: 0.3103448276
A52: Sul | B52: Muniz Freire | C52: 213 | D52: 85 | E52: 2 | F52: 0.02352941176
A53: Sul | B53: Muqui | C53: 144 | D53: 62 | E53: 3 | F53: 0.04838709677
A54: Norte | B54: Nova Venécia | C54: 664 | D54: 296 | E54: 15 | F54: 0.05067567568
A55: Central | B55: Pancas | C55: 208 | D55: 101 | E55: 9 | F55: 0.08910891089
A56: Norte | B56: Pedro Canário | C56: 325 | D56: 145 | E56: 23 | F56: 0.1586206897
A57: Norte | B57: Pinheiros | C57: 333 | D57: 156 | E57: 5 | F57: 0.03205128205
A58: Sul | B58: Piúma | C58: 313 | D58: 141 | E58: 12 | F58: 0.08510638298
A59: Norte | B59: Ponto Belo | C59: 86 | D59: 37 | E59: 0 | F59: 0
A60: Sul | B60: Presidente Kennedy | C60: 207 | D60: 89 | E60: 0 | F60: 0
A61: Central | B61: Rio Bananal | C61: 305 | D61: 134 | E61: 9 | F61: 0.0671641791
A62: Sul | B62: Rio Novo do Sul | C62: 110 | D62: 48 | E62: 3 | F62: 0.0625
A63: Metropolitana | B63: Santa Leopoldina | C63: 92 | D63: 50 | E63: 1 | F63: 0.02
A64: Metropolitana | B64: Santa Maria de Jetibá | C64: 658 | D64: 255 | E64: 6 | F64: 0.02352941176
A65: Metropolitana | B65: Santa Teresa | C65: 296 | D65: 131 | E65: 12 | F65: 0.09160305344
A66: Central | B66: São Domingos do Norte | C66: 109 | D66: 43 | E66: 4 | F66: 0.09302325581
A67: Central | B67: São Gabriel da Palha | C67: 408 | D67: 190 | E67: 1 | F67: =E67/D67 -> 0.005263157895
A68: Sul | B68: São José do Calçado | C68: 95 | D68: 38 | E68: 1 | F68: 0.02631578947
A69: Norte | B69: São Mateus | C69: 1801 | D69: 799 | E69: 94 | F69: 0.1176470588
A70: Central | B70: São Roque do Canaã | C70: 113 | D70: 48 | E70: 11 | F70: 0.2291666667
A71: Metropolitana | B71: Serra | C71: 7280 | D71: 3131 | E71: 518 | F71: 0.1654423507
A72: Central | B72: Sooretama | C72: 419 | D72: 163 | E72: 29 | F72: 0.1779141104
A73: Sul | B73: Vargem Alta | C73: 267 | D73: 120 | E73: 5 | F73: 0.04166666667
A74: Metropolitana | B74: Venda Nova do Imigrante | C74: 335 | D74: 138 | E74: 14 | F74: 0.1014492754
A75: Metropolitana | B75: Viana | C75: 887 | D75: 386 | E75: 91 | F75: 0.2357512953
A76: Norte | B76: Vila Pavão | C76: 115 | D76: 56 | E76: 1 | F76: 0.01785714286
A77: Central | B77: Vila Valério | C77: 220 | D77: 88 | E77: 0 | F77: 0
A78: Metropolitana | B78: Vila Velha | C78: 5478 | D78: 2421 | E78: 369 | F78: 0.1524163569
A79: Metropolitana | B79: Vitória | C79: 3431 | D79: 1477 | E79: 313 | F79: 0.211916046
B81: Total Norte | C81: =SUMIF($A$2:$A$79,"Norte",C$2:C$79) -> 5675 | D81: =SUMIF($A$2:$A$79,"Norte",D$2:D$79) -> 2568 | E81: =SUMIF($A$2:$A$79,"Norte",E$2:E$79) -> 230 | F81: =E81/D81 -> 0.08956386293
B82: Total Central | C82: =SUMIF($A$2:$A$79,"CENTRAL",C$2:C$79) -> 6832 | D82: =SUMIF($A$2:$A$79,"CENTRAL",D$2:D$79) -> 2986 | E82: =SUMIF($A$2:$A$79,"cENTRAL",E$2:E$79) -> 172 | F82: 0.05760214334
B83: Total Metropolitana | C83: =SUMIF($A$2:$A$79,"METROPOLITANA",C$2:C$79) -> 28997 | D83: =SUMIF($A$2:$A$79,"METROPOLITANA",D$2:D$79) -> 12689 | E83: =SUMIF($A$2:$A$79,"Metropolitana",E$2:E$79) -> 2027 | F83: 0.1597446607
B84: Total Sul | C84: =SUMIF($A$2:$A$79,"SUL",C$2:C$79) -> 8061 | D84: =SUMIF($A$2:$A$79,"SUL",D$2:D$79) -> 3529 | E84: =SUMIF($A$2:$A$79,"sul",E$2:E$79) -> 232 | F84: 0.06574100312
B85: TOTAL ES | C85: =SUM(C2:C79) -> 49565 | D85: =SUM(D2:D79) -> 21772 | E85: =SUM(E2:E79) -> 2661 | F85: =E85/D85 -> 0.1222212015
B86: HOMOGENEIDADE ENTRE MUNICÍPIOS | F86: =COUNTIF(F2:F79,">=0,90")/78 -> 0
A89: Cobertura Vacinal Covid-19 das Gestantes de Janeiro a Maio de 2025
A90: Fonte: Vacina e Confia, em 16 de Junho de 2025.** <https://vacinaeconfia.saude.es.gov.br/>
A91: **Dados referente às doses aplicadas no período de Janeiro a Maio de 2025
A92: Cobertura Calculada por município de procedência/ocorrência da vacinação
A93: 1 População anual extraída do MS/SVS/DASIS - SINASC/DASIS/SVS/MS 2024 (hoje preliminares) referente ao período de Abril a Dezembro/ 2024 e SINASC/DASIS/SVS/MS 2025 referente ao período de Janeiro a Março/2025.
A94: ² População proporcional extraída do MS/SVS/DASIS - SINASC/DASIS/SVS/MS 2024 (hoje preliminares) referente ao período de Abril a Maio/2024 e Janeiro a Março/2025.
A95: Sinasc, atualizado em 10/06/2025.
A96: Homogeineidade: O cálculo da Homogeineidade entre vacinas é feito de acordo com a pactuação estabelecida no Plano Plurianual (PPA) vigente no período 2024-2027.
A98: Observações:
A99: 1. Imunobiológicos que foram recebidos parcialmente pelo estado no mês de Maio/2025, sendo distribuídos em quantidades reduzidas às regionais e municípios:
A100: SORO ANTIRRÁBICO HUMANO, IMUNOGLOBULINA ANTIRRÁBICA HUMANA, VACINA COVID-19 MODERNA (SPIKEVAX),VACINA COVID-19 PFIZER PEDIÁTRICA
A101: 2. Imunobiológicos indisponíveis no mês de Maio/2025, não sendo possível a distribuição às regionais e municípios:
A102: VACINA TRÍPLICE ACELULAR (DTPa) - CRIE; VACINA COVID-19 RECOMBINANTE SERUM/ZALIKA

Sheet COVID-19 gestantes -Residência
A1: REGIONAL | B1: MUNICÍPIO | C1: ¹POPULAÇÃO GESTANTE ANUAL | D1: ²POPULAÇÃO PROPORCIONAL | E1: DOSES APLICADAS COVID GESTANTES | F1: COBERTURA VACINAL COVID GESTANTES
A2: Metropolitana | B2: Afonso Cláudio | C2: 359 | D2: 151 | E2: 4 | F2: =E2/D2 -> 0.02649006623
A3: Norte | B3: Água Doce do Norte | C3: 172 | D3: 85 | E3: 0 | F3: =E3/D3 -> 0
A4: Central | B4: Águia Branca | C4: 151 | D4: 79 | E4: 1 | F4: 0.01265822785
A5: Sul | B5: Alegre | C5: 298 | D5: 127 | E5: 15 | F5: 0.1181102362
A6: Sul | B6: Alfredo Chaves | C6: 122 | D6: 58 | E6: 1 | F6: 0.01724137931
A7: Central | B7: Alto Rio Novo | C7: 93 | D7: 42 | E7: 1 | F7: 0.02380952381
A8: Sul | B8: Anchieta | C8: 352 | D8: 154 | E8: 27 | F8: 0.1753246753
A9: Sul | B9: Apiacá | C9: 72 | D9: 31 | E9: 1 | F9: 0.03225806452
A10: Metropolitana | B10: Aracruz | C10: 1392 | D10: 650 | E10: 89 | F10: 0.1369230769
A11: Sul | B11: Atilio Vivacqua | C11: 173 | D11: 72 | E11: 0 | F11: 0
A12: Central | B12: Baixo Guandu | C12: 349 | D12: 168 | E12: 3 | F12: 0.01785714286
A13: Norte | B13: Barra de São Francisco | C13: 595 | D13: 247 | E13: 3 | F13: 0.01214574899
A14: Norte | B14: Boa Esperança | C14: 207 | D14: 97 | E14: 5 | F14: 0.05154639175
A15: Sul | B15: Bom Jesus do Norte | C15: 69 | D15: 29 | E15: 3 | F15: 0.1034482759
A16: Metropolitana | B16: Brejetuba | C16: 199 | D16: 75 | E16: 3 | F16: 0.04
A17: Sul | B17: Cachoeiro de Itapemirim | C17: 2337 | D17: 1046 | E17: 66 | F17: 0.06309751434
A18: Metropolitana | B18: Cariacica | C18: 4824 | D18: 2178 | E18: 481 | F18: 0.2208448118
A19: Sul | B19: Castelo | C19: 415 | D19: 186 | E19: 2 | F19: 0.01075268817
A20: Central | B20: Colatina | C20: 1441 | D20: 606 | E20: 78 | F20: 0.1287128713
A21: Norte | B21: Conceição da Barra | C21: 353 | D21: 161 | E21: 40 | F21: 0.248447205
A22: Metropolitana | B22: Conceição do Castelo | C22: 161 | D22: 50 | E22: 15 | F22: 0.3
A23: Sul | B23: Divino de São Lourenço | C23: 53 | D23: 29 | E23: 6 | F23: 0.2068965517
A24: Metropolitana | B24: Domingos Martins | C24: 421 | D24: 178 | E24: 23 | F24: 0.1292134831
A25: Sul | B25: Dores do Rio Preto | C25: 108 | D25: 57 | E25: 7 | F25: 0.1228070175
A26: Norte | B26: Ecoporanga | C26: 250 | D26: 124 | E26: 9 | F26: 0.07258064516
A27: Metropolitana | B27: Fundão | C27: 228 | D27: 109 | E27: 8 | F27: 0.07339449541
A28: Central | B28: Governador Lindenberg | C28: 115 | D28: 54 | E28: 6 | F28: 0.1111111111
A29: Sul | B29: Guaçuí | C29: 358 | D29: 129 | E29: 3 | F29: 0.02325581395
A30: Metropolitana | B30: Guarapari | C30: 1722 | D30: 758 | E30: 63 | F30: 0.08311345646
A31: Metropolitana | B31: Ibatiba | C31: 383 | D31: 164 | E31: 4 | F31: 0.0243902439
A32: Metropolitana | B32: Ibiraçu | C32: 140 | D32: 60 | E32: 3 | F32: 0.05
A33: Sul | B33: Ibitirama | C33: 146 | D33: 63 | E33: 12 | F33: 0.1904761905
A34: Sul | B34: Iconha | C34: 120 | D34: 46 | E34: 2 | F34: 0.04347826087
A35: Sul | B35: Irupi | C35: 171 | D35: 76 | E35: 5 | F35: 0.06578947368
A36: Metropolitana | B36: Itaguaçu | C36: 135 | D36: 72 | E36: 5 | F36: 0.06944444444
A37: Sul | B37: Itapemirim | C37: 536 | D37: 229 | E37: 20 | F37: 0.08733624454
A38: Metropolitana | B38: Itarana | C38: 128 | D38: 60 | E38: 2 | F38: 0.03333333333
A39: Sul | B39: Iúna | C39: 402 | D39: 170 | E39: 4 | F39: 0.02352941176
A40: Norte | B40: Jaguaré | C40: 479 | D40: 239 | E40: 16 | F40: 0.06694560669
A41: Sul | B41: Jerônimo Monteiro | C41: 133 | D41: 64 | E41: 7 | F41: 0.109375
A42: Metropolitana | B42: João Neiva | C42: 150 | D42: 53 | E42: 0 | F42: 0
A43: Metropolitana | B43: Laranja da Terra | C43: 103 | D43: 43 | E43: 0 | F43: 0
A44: Central | B44: Linhares | C44: 2615 | D44: 1134 | E44: 34 | F44: 0.02998236332
A45: Central | B45: Mantenópolis | C45: 136 | D45: 68 | E45: 2 | F45: 0.02941176471
A46: Sul | B46: Marataízes | C46: 556 | D46: 241 | E46: 9 | F46: 0.03734439834
A47: Metropolitana | B47: Marechal Floriano | C47: 195 | D47: 99 | E47: 21 | F47: 0.2121212121
A48: Central | B48: Marilândia | C48: 150 | D48: 68 | E48: 2 | F48: 0.02941176471
A49: Sul | B49: Mimoso do Sul | C49: 291 | D49: 139 | E49: 16 | F49: 0.1151079137
A50: Norte | B50: Montanha | C50: 226 | D50: 97 | E50: 16 | F50: 0.1649484536
A51: Norte | B51: Mucurici | C51: 69 | D51: 29 | E51: 6 | F51: 0.2068965517
A52: Sul | B52: Muniz Freire | C52: 213 | D52: 85 | E52: 3 | F52: 0.03529411765
A53: Sul | B53: Muqui | C53: 144 | D53: 62 | E53: 2 | F53: 0.03225806452
A54: Norte | B54: Nova Venécia | C54: 664 | D54: 296 | E54: 23 | F54: 0.0777027027
A55: Central | B55: Pancas | C55: 208 | D55: 101 | E55: 5 | F55: 0.0495049505
A56: Norte | B56: Pedro Canário | C56: 325 | D56: 145 | E56: 25 | F56: 0.1724137931
A57: Norte | B57: Pinheiros | C57: 333 | D57: 156 | E57: 8 | F57: 0.05128205128
A58: Sul | B58: Piúma | C58: 313 | D58: 141 | E58: 13 | F58: 0.09219858156
A59: Norte | B59: Ponto Belo | C59: 86 | D59: 37 | E59: 2 | F59: 0.05405405405
A60: Sul | B60: Presidente Kennedy | C60: 207 | D60: 89 | E60: 1 | F60: 0.01123595506
A61: Central | B61: Rio Bananal | C61: 305 | D61: 134 | E61: 10 | F61: 0.07462686567
A62: Sul | B62: Rio Novo do Sul | C62: 110 | D62: 48 | E62: 2 | F62: 0.04166666667
A63: Metropolitana | B63: Santa Leopoldina | C63: 92 | D63: 50 | E63: 3 | F63: 0.06
A64: Metropolitana | B64: Santa Maria de Jetibá | C64: 658 | D64: 255 | E64: 9 | F64: 0.03529411765
A65: Metropolitana | B65: Santa Teresa | C65: 296 | D65: 131 | E65: 12 | F65: 0.09160305344
A66: Central | B66: São Domingos do Norte | C66: 109 | D66: 43 | E66: 5 | F66: 0.1162790698
A67: Central | B67: São Gabriel da Palha | C67: 408 | D67: 190 | E67: 2 | F67: =E67/D67 -> 0.01052631579
A68: Sul | B68: São José do Calçado | C68: 95 | D68: 38 | E68: 0 | F68: 0
A69: Norte | B69: São Mateus | C69: 1801 | D69: 799 | E69: 79 | F69: 0.09887359199
A70: Central | B70: São Roque do Canaã | C70: 113 | D70: 48 | E70: 12 | F70: 0.25
A71: Metropolitana | B71: Serra | C71: 7280 | D71: 3131 | E71: 503 | F71: 0.160651549
A72: Central | B72: Sooretama | C72: 419 | D72: 163 | E72: 25 | F72: 0.1533742331
A73: Sul | B73: Vargem Alta | C73: 267 | D73: 120 | E73: 5 | F73: 0.04166666667
A74: Metropolitana | B74: Venda Nova do Imigrante | C74: 335 | D74: 138 | E74: 12 | F74: 0.08695652174
A75: Metropolitana | B75: Viana | C75: 887 | D75: 386 | E75: 83 | F75: 0.2150259067
A76: Norte | B76: Vila Pavão | C76: 115 | D76: 56 | E76: 1 | F76: 0.01785714286
A77: Central | B77: Vila Valério | C77: 220 | D77: 88 | E77: 6 | F77: 0.06818181818
A78: Metropolitana | B78: Vila Velha | C78: 5478 | D78: 2421 | E78: 330 | F78: 0.136307311
A79: Metropolitana | B79: Vitória | C79: 3431 | D79: 1477 | E79: 274 | F79: 0.1855111713
B81: Total Norte | C81: =SUMIF($A$2:$A$79,"Norte",C$2:C$79) -> 5675 | D81: =SUMIF($A$2:$A$79,"Norte",D$2:D$79) -> 2568 | E81: =SUMIF($A$2:$A$79,"Norte",E$2:E$79) -> 233 | F81: =E81/D81 -> 0.09073208723
B82: Total Central | C82: =SUMIF($A$2:$A$79,"CENTRAL",C$2:C$79) -> 6832 | D82: =SUMIF($A$2:$A$79,"CENTRAL",D$2:D$79) -> 2986 | E82: =SUMIF($A$2:$A$79,"CENTRAL",E$2:E$79) -> 192 | F82: 0.06430006698
B83: Total Metropolitana | C83: =SUMIF($A$2:$A$79,"METROPOLITANA",C$2:C$79) -> 28997 | D83: =SUMIF($A$2:$A$79,"METROPOLITANA",D$2:D$79) -> 12689 | E83: =SUMIF($A$2:$A$79,"METROPOLITANA",E$2:E$79) -> 1947 | F83: 0.1534399874
B84: Total Sul | C84: =SUMIF($A$2:$A$79,"SUL",C$2:C$79) -> 8061 | D84: =SUMIF($A$2:$A$79,"SUL",D$2:D$79) -> 3529 | E84: =SUMIF($A$2:$A$79,"SUL",E$2:E$79) -> 232 | F84: 0.06574100312
B85: TOTAL ES | C85: =SUM(C2:C79) -> 49565 | D85: =SUM(D2:D79) -> 21772 | E85: =SUM(E2:E79) -> 2604 | F85: =E85/D85 -> 0.11960316
B86: HOMOGENEIDADE ENTRE MUNICÍPIOS | E86: =COUNTIF(F2:F79,">=0,95") -> 0 | F86: =COUNTIF(F2:F79,">=0,90")/78 -> 0
A89: Cobertura Vacinal Covid-19 das Gestantes de Janeiro a Maio de 2025
A90: Fonte: Vacina e Confia, em 16 de Junho de 2025.**<https://vacinaeconfia.saude.es.gov.br/>
A91: **Dados referente às doses aplicadas no período de Janeiro a Maio de 2025
A92: Cobertura Calculada por município de residência do cidadão (no Vacina e Confia, a origem da informação é o endereço que consta no cadastro do cidadão preenchido manualmente por meio do autocadastro ou pelo cadastro realizado por um profissional de saúde no momento do atendimento).
A93: 1 População anual extraída do MS/SVS/DASIS - SINASC/DASIS/SVS/MS 2024 (hoje preliminares) referente ao período de Abril a Dezembro/ 2024 e SINASC/DASIS/SVS/MS 2025 referente ao período de Janeiro a Março/2025.
A94: ² População proporcional extraída do MS/SVS/DASIS - SINASC/DASIS/SVS/MS 2024 (hoje preliminares) referente ao período de Abril a Maio/2024 e Janeiro a Março/2025.
A95: Sinasc, atualizado em 10/06/2025.
A96: Homogeineidade: O cálculo da Homogeineidade entre vacinas é feito de acordo com a pactuação estabelecida no Plano Plurianual (PPA) vigente no período 2024-2027.
A98: Observações:
A99: 1. Imunobiológicos que foram recebidos parcialmente pelo estado no mês de Maio/2025, sendo distribuídos em quantidades reduzidas às regionais e municípios:
A100: SORO ANTIRRÁBICO HUMANO, IMUNOGLOBULINA ANTIRRÁBICA HUMANA, VACINA COVID-19 MODERNA (SPIKEVAX),VACINA COVID-19 PFIZER PEDIÁTRICA
A101: 2. Imunobiológicos indisponíveis no mês de Maio/2025, não sendo possível a distribuição às regionais e municípios:
A102: VACINA TRÍPLICE ACELULAR (DTPa) - CRIE; VACINA COVID-19 RECOMBINANTE SERUM/ZALIKA

Sheet COVID-19 idoso -Procêdencia
A1: Regional | B1: Município | C1: População 60 anos + | D1: TOTAL DE DOSES APLICADAS COVID-19 | E1: COBERTURA COVID-19
A2: Metropolitana | B2: Afonso Cláudio | C2: 5905 | D2: 23 | E2: =(D2/C2) -> 0.003895004234
A3: Norte | B3: Água Doce do Norte | C3: 2357 | D3: 12 | E3: =(D3/C3) -> 0.00509121765
A4: Central | B4: Águia Branca | C4: 1775 | D4: 30 | E4: 0.01690140845
A5: Sul | B5: Alegre | C5: 5949 | D5: 190 | E5: 0.03193814086
A6: Sul | B6: Alfredo Chaves | C6: 3040 | D6: 26 | E6: 0.008552631579
A7: Central | B7: Alto Rio Novo | C7: 1417 | D7: 0 | E7: 0
A8: Sul | B8: Anchieta | C8: 5080 | D8: 141 | E8: 0.02775590551
A9: Sul | B9: Apiacá | C9: 1536 | D9: 17 | E9: 0.01106770833
A10: Metropolitana | B10: Aracruz | C10: 13047 | D10: 566 | E10: 0.0433816203
A11: Sul | B11: Atilio Vivacqua | C11: 1843 | D11: 13 | E11: 0.007053716766
A12: Central | B12: Baixo Guandu | C12: 5706 | D12: 139 | E12: 0.02436032247
A13: Norte | B13: Barra de São Francisco | C13: 7226 | D13: 179 | E13: 0.0247716579
A14: Norte | B14: Boa Esperança | C14: 2317 | D14: 2 | E14: 0.0008631851532
A15: Sul | B15: Bom Jesus do Norte | C15: 1991 | D15: 72 | E15: 0.0361627323
A16: Metropolitana | B16: Brejetuba | C16: 1637 | D16: 6 | E16: 0.003665241295
A17: Sul | B17: Cachoeiro de Itapemirim | C17: 32906 | D17: 1317 | E17: 0.04002309609
A18: Metropolitana | B18: Cariacica | C18: 54005 | D18: 3246 | E18: 0.06010554578
A19: Sul | B19: Castelo | C19: 7171 | D19: 234 | E19: 0.03263143216
A20: Central | B20: Colatina | C20: 21491 | D20: 1175 | E20: 0.0546740496
A21: Norte | B21: Conceição da Barra | C21: 4468 | D21: 98 | E21: 0.02193375112
A22: Metropolitana | B22: Conceição do Castelo | C22: 2176 | D22: 86 | E22: 0.03952205882
A23: Sul | B23: Divino de São Lourenço | C23: 847 | D23: 12 | E23: 0.01416765053
A24: Metropolitana | B24: Domingos Martins | C24: 6358 | D24: 458 | E24: 0.0720352312
A25: Sul | B25: Dores do Rio Preto | C25: 1145 | D25: 62 | E25: 0.05414847162
A26: Norte | B26: Ecoporanga | C26: 4274 | D26: 114 | E26: 0.02667290594
A27: Metropolitana | B27: Fundão | C27: 3432 | D27: 138 | E27: 0.04020979021
A28: Central | B28: Governador Lindenberg | C28: 1987 | D28: 23 | E28: 0.01157523905
A29: Sul | B29: Guaçuí | C29: 5504 | D29: 1 | E29: 0.0001816860465
A30: Metropolitana | B30: Guarapari | C30: 21755 | D30: 776 | E30: 0.03566996093
A31: Metropolitana | B31: Ibatiba | C31: 3852 | D31: 14 | E31: 0.003634475597
A32: Metropolitana | B32: Ibiraçu | C32: 2121 | D32: 59 | E32: 0.02781706742
A33: Sul | B33: Ibitirama | C33: 1400 | D33: 22 | E33: 0.01571428571
A34: Sul | B34: Iconha | C34: 2560 | D34: 109 | E34: 0.042578125
A35: Sul | B35: Irupi | C35: 2006 | D35: 81 | E35: 0.04037886341
A36: Metropolitana | B36: Itaguaçu | C36: 3214 | D36: 40 | E36: 0.01244555072
A37: Sul | B37: Itapemirim | C37: 6549 | D37: 114 | E37: 0.01740723775
A38: Metropolitana | B38: Itarana | C38: 2389 | D38: 24 | E38: 0.01004604437
A39: Sul | B39: Iúna | C39: 4417 | D39: 55 | E39: 0.01245189042
A40: Norte | B40: Jaguaré | C40: 3734 | D40: 2 | E40: 0.0005356186395
A41: Sul | B41: Jerônimo Monteiro | C41: 2356 | D41: 151 | E41: 0.06409168081
A42: Metropolitana | B42: João Neiva | C42: 3012 | D42: 37 | E42: 0.01228419655
A43: Metropolitana | B43: Laranja da Terra | C43: 2471 | D43: 29 | E43: 0.01173613921
A44: Central | B44: Linhares | C44: 21740 | D44: 603 | E44: 0.02773689052
A45: Central | B45: Mantenópolis | C45: 2524 | D45: 0 | E45: 0
A46: Sul | B46: Marataízes | C46: 7611 | D46: 95 | E46: 0.01248193404
A47: Metropolitana | B47: Marechal Floriano | C47: 2879 | D47: 166 | E47: 0.05765890934
A48: Central | B48: Marilândia | C48: 2476 | D48: 15 | E48: 0.00605815832
A49: Sul | B49: Mimoso do Sul | C49: 5077 | D49: 68 | E49: 0.01339373646
A50: Norte | B50: Montanha | C50: 3304 | D50: 91 | E50: 0.02754237288
A51: Norte | B51: Mucurici | C51: 1090 | D51: 2 | E51: 0.001834862385
A52: Sul | B52: Muniz Freire | C52: 3309 | D52: 97 | E52: 0.02931399214
A53: Sul | B53: Muqui | C53: 2780 | D53: 53 | E53: 0.0190647482
A54: Norte | B54: Nova Venécia | C54: 8352 | D54: 102 | E54: 0.01221264368
A55: Central | B55: Pancas | C55: 3687 | D55: 96 | E55: 0.0260374288
A56: Norte | B56: Pedro Canário | C56: 3253 | D56: 44 | E56: 0.01352597602
A57: Norte | B57: Pinheiros | C57: 3762 | D57: 59 | E57: 0.01568314726
A58: Sul | B58: Piúma | C58: 3886 | D58: 103 | E58: 0.02650540401
A59: Norte | B59: Ponto Belo | C59: 1330 | D59: 16 | E59: 0.01203007519
A60: Sul | B60: Presidente Kennedy | C60: 2214 | D60: 5 | E60: 0.002258355917
A61: Central | B61: Rio Bananal | C61: 3071 | D61: 77 | E61: 0.02507326604
A62: Sul | B62: Rio Novo do Sul | C62: 2232 | D62: 38 | E62: 0.01702508961
A63: Metropolitana | B63: Santa Leopoldina | C63: 2634 | D63: 52 | E63: 0.01974183751
A64: Metropolitana | B64: Santa Maria de Jetibá | C64: 5552 | D64: 107 | E64: 0.01927233429
A65: Metropolitana | B65: Santa Teresa | C65: 4767 | D65: 165 | E65: 0.03461296413
A66: Central | B66: São Domingos do Norte | C66: 1520 | D66: 98 | E66: 0.06447368421
A67: Central | B67: São Gabriel da Palha | C67: 5456 | D67: 41 | E67: =(D67/C67) -> 0.007514662757
A68: Sul | B68: São José do Calçado | C68: 2456 | D68: 35 | E68: 0.01425081433
A69: Norte | B69: São Mateus | C69: 17649 | D69: 782 | E69: 0.0443084594
A70: Central | B70: São Roque do Canaã | C70: 2370 | D70: 115 | E70: 0.04852320675
A71: Metropolitana | B71: Serra | C71: 66481 | D71: 5303 | E71: 0.07976715152
A72: Central | B72: Sooretama | C72: 3097 | D72: 29 | E72: 0.009363900549
A73: Sul | B73: Vargem Alta | C73: 3365 | D73: 38 | E73: 0.01129271917
A74: Metropolitana | B74: Venda Nova do Imigrante | C74: 3766 | D74: 253 | E74: 0.06718003186
A75: Metropolitana | B75: Viana | C75: 9758 | D75: 359 | E75: 0.03679032589
A76: Norte | B76: Vila Pavão | C76: 1510 | D76: 45 | E76: 0.0298013245
A77: Central | B77: Vila Valério | C77: 2160 | D77: 101 | E77: 0.04675925926
A78: Metropolitana | B78: Vila Velha | C78: 81049 | D78: 3979 | E78: 0.0490937581
A79: Metropolitana | B79: Vitória | C79: 64805 | D79: 3856 | E79: 0.05950158167
B81: Total Norte | C81: =SUMIF($A$2:$A$79,"Norte",C$2:C$79) -> 64626 | D81: =SUMIF($A$2:$A$79,"Norte",D$2:D$79) -> 1548 | E81: =D81/C81 -> 0.02395320769
B82: Total Central | C82: =SUMIF($A$2:$A$79,"Central",C$2:C$79) -> 80477 | D82: =SUMIF($A$2:$A$79,"Central",D$2:D$79) -> 2542 | E82: =D82/C82 -> 0.03158666451
B83: Total Metropolitana | C83: =SUMIF($A$2:$A$79,"Metropolitana",C$2:C$79) -> 367065 | D83: =SUMIF($A$2:$A$79,"Metropolitana",D$2:D$79) -> 19742 | E83: 0.05378338986
B84: Total Sul | C84: =SUMIF($A$2:$A$79,"sul",C$2:C$79) -> 119230 | D84: =SUMIF($A$2:$A$79,"sul",D$2:D$79) -> 3149 | E84: 0.02641113814
B85: Total Espírito Santo | C85: =SUM(C2:C79) -> 631398 | D85: =SUM(D2:D79) -> 26981 | E85: 0.04273215943
B86: HOMOGENEIDADE ENTRE MUNICÍPIOS | E86: =COUNTIF(E2:E79,">=0,90")/78 -> 0
A88: Cobertura Vacinal Covid19 dos Idosos de Maio de 2025
A89: Vacina COVID-19 RECOMBINANTE SERUM/ZALIKA , COVID-19 Pfizer e COVID-19 Moderna (Spikevax)
A90: Período avaliado: Últimos 6 meses - Dez/2024 a Mai/2025
A91: Faixa Etária: 60+
A92: Fonte: Vacina e Confia, em 12 de Junho de 2025. <https://www.vacinaeconfia.es.gov.br>
A93: *Dados parciais:
A94: **Dados referente às doses aplicadas no período de Dezembro/2024 a Maio/ 2025
A95: População proporcional extraída do Censo IBGE 2022
A96: Cobertura Calculada por município de procedência da vacinação
A97: Homogeineidade: O cálculo da Homogeineidade entre vacinas é feito de acordo com a pactuação estabelecida no Plano Plurianual (PPA) vigente no período 2024-2027.
A99: Observações:
A100: 1. Imunobiológicos que foram recebidos parcialmente pelo estado no mês de Maio/2025, sendo distribuídos em quantidades reduzidas às regionais e municípios:
A101: SORO ANTIRRÁBICO HUMANO, IMUNOGLOBULINA ANTIRRÁBICA HUMANA, VACINA COVID-19 MODERNA (SPIKEVAX), VACINA COVID-19 PFIZER PEDIÁTRICA
A102: 2. Imunobiológicos indisponíveis no mês de Maio/2025, não sendo possível a distribuição às regionais e municípios:
A103: VACINA TRÍPLICE ACELULAR (DTPa) - CRIE; VACINA COVID-19 RECOMBINANTE SERUM/ZALIKA

Sheet COVID-19 idoso -Residência
A1: Regional | B1: Município | C1: População 60 anos + | D1: TOTAL DE DOSES APLICADAS COVID-19 | E1: COBERTURA COVID-19
A2: Metropolitana | B2: Afonso Cláudio | C2: 5905 | D2: 37 | E2: =(D2/C2) -> 0.006265876376
A3: Norte | B3: Água Doce do Norte | C3: 2357 | D3: 12 | E3: =(D3/C3) -> 0.00509121765
A4: Central | B4: Águia Branca | C4: 1775 | D4: 29 | E4: 0.01633802817
A5: Sul | B5: Alegre | C5: 5949 | D5: 203 | E5: 0.03412338208
A6: Sul | B6: Alfredo Chaves | C6: 3040 | D6: 31 | E6: 0.01019736842
A7: Central | B7: Alto Rio Novo | C7: 1417 | D7: 4 | E7: 0.002822865208
A8: Sul | B8: Anchieta | C8: 5080 | D8: 132 | E8: 0.02598425197
A9: Sul | B9: Apiacá | C9: 1536 | D9: 10 | E9: 0.006510416667
A10: Metropolitana | B10: Aracruz | C10: 13047 | D10: 535 | E10: 0.04100559516
A11: Sul | B11: Atilio Vivacqua | C11: 1843 | D11: 18 | E11: 0.009766684753
A12: Central | B12: Baixo Guandu | C12: 5706 | D12: 123 | E12: 0.02155625657
A13: Norte | B13: Barra de São Francisco | C13: 7226 | D13: 174 | E13: 0.02407971215
A14: Norte | B14: Boa Esperança | C14: 2317 | D14: 13 | E14: 0.005610703496
A15: Sul | B15: Bom Jesus do Norte | C15: 1991 | D15: 72 | E15: 0.0361627323
A16: Metropolitana | B16: Brejetuba | C16: 1637 | D16: 11 | E16: 0.006719609041
A17: Sul | B17: Cachoeiro de Itapemirim | C17: 32906 | D17: 1285 | E17: 0.03905062906
A18: Metropolitana | B18: Cariacica | C18: 54005 | D18: 3200 | E18: 0.0592537728
A19: Sul | B19: Castelo | C19: 7171 | D19: 232 | E19: 0.03235253103
A20: Central | B20: Colatina | C20: 21491 | D20: 1171 | E20: 0.05448792518
A21: Norte | B21: Conceição da Barra | C21: 4468 | D21: 94 | E21: 0.02103849597
A22: Metropolitana | B22: Conceição do Castelo | C22: 2176 | D22: 81 | E22: 0.03722426471
A23: Sul | B23: Divino de São Lourenço | C23: 847 | D23: 15 | E23: 0.01770956316
A24: Metropolitana | B24: Domingos Martins | C24: 6358 | D24: 433 | E24: 0.0681031771
A25: Sul | B25: Dores do Rio Preto | C25: 1145 | D25: 46 | E25: 0.04017467249
A26: Norte | B26: Ecoporanga | C26: 4274 | D26: 105 | E26: 0.02456715021
A27: Metropolitana | B27: Fundão | C27: 3432 | D27: 99 | E27: 0.02884615385
A28: Central | B28: Governador Lindenberg | C28: 1987 | D28: 33 | E28: 0.01660795169
A29: Sul | B29: Guaçuí | C29: 5504 | D29: 13 | E29: 0.002361918605
A30: Metropolitana | B30: Guarapari | C30: 21755 | D30: 634 | E30: 0.02914272581
A31: Metropolitana | B31: Ibatiba | C31: 3852 | D31: 18 | E31: 0.004672897196
A32: Metropolitana | B32: Ibiraçu | C32: 2121 | D32: 55 | E32: 0.02593116455
A33: Sul | B33: Ibitirama | C33: 1400 | D33: 23 | E33: 0.01642857143
A34: Sul | B34: Iconha | C34: 2560 | D34: 110 | E34: 0.04296875
A35: Sul | B35: Irupi | C35: 2006 | D35: 69 | E35: 0.03439680957
A36: Metropolitana | B36: Itaguaçu | C36: 3214 | D36: 50 | E36: 0.01555693839
A37: Sul | B37: Itapemirim | C37: 6549 | D37: 119 | E37: 0.01817071309
A38: Metropolitana | B38: Itarana | C38: 2389 | D38: 29 | E38: 0.01213897028
A39: Sul | B39: Iúna | C39: 4417 | D39: 69 | E39: 0.01562146253
A40: Norte | B40: Jaguaré | C40: 3734 | D40: 11 | E40: 0.002945902517
A41: Sul | B41: Jerônimo Monteiro | C41: 2356 | D41: 123 | E41: 0.05220713073
A42: Metropolitana | B42: João Neiva | C42: 3012 | D42: 48 | E42: 0.01593625498
A43: Metropolitana | B43: Laranja da Terra | C43: 2471 | D43: 31 | E43: 0.01254552813
A44: Central | B44: Linhares | C44: 21740 | D44: 605 | E44: 0.02782888684
A45: Central | B45: Mantenópolis | C45: 2524 | D45: 6 | E45: 0.002377179081
A46: Sul | B46: Marataízes | C46: 7611 | D46: 109 | E46: 0.01432137695
A47: Metropolitana | B47: Marechal Floriano | C47: 2879 | D47: 150 | E47: 0.05210142411
A48: Central | B48: Marilândia | C48: 2476 | D48: 23 | E48: 0.00928917609
A49: Sul | B49: Mimoso do Sul | C49: 5077 | D49: 76 | E49: 0.01496947016
A50: Norte | B50: Montanha | C50: 3304 | D50: 99 | E50: 0.02996368039
A51: Norte | B51: Mucurici | C51: 1090 | D51: 2 | E51: 0.001834862385
A52: Sul | B52: Muniz Freire | C52: 3309 | D52: 83 | E52: 0.02508310668
A53: Sul | B53: Muqui | C53: 2780 | D53: 56 | E53: 0.02014388489
A54: Norte | B54: Nova Venécia | C54: 8352 | D54: 131 | E54: 0.0156848659
A55: Central | B55: Pancas | C55: 3687 | D55: 102 | E55: 0.0276647681
A56: Norte | B56: Pedro Canário | C56: 3253 | D56: 51 | E56: 0.01567783584
A57: Norte | B57: Pinheiros | C57: 3762 | D57: 66 | E57: 0.01754385965
A58: Sul | B58: Piúma | C58: 3886 | D58: 94 | E58: 0.02418939784
A59: Norte | B59: Ponto Belo | C59: 1330 | D59: 13 | E59: 0.00977443609
A60: Sul | B60: Presidente Kennedy | C60: 2214 | D60: 10 | E60: 0.004516711834
A61: Central | B61: Rio Bananal | C61: 3071 | D61: 80 | E61: 0.02605014653
A62: Sul | B62: Rio Novo do Sul | C62: 2232 | D62: 40 | E62: 0.01792114695
A63: Metropolitana | B63: Santa Leopoldina | C63: 2634 | D63: 64 | E63: 0.02429764617
A64: Metropolitana | B64: Santa Maria de Jetibá | C64: 5552 | D64: 103 | E64: 0.0185518732
A65: Metropolitana | B65: Santa Teresa | C65: 4767 | D65: 177 | E65: 0.03713027061
A66: Central | B66: São Domingos do Norte | C66: 1520 | D66: 90 | E66: 0.05921052632
A67: Central | B67: São Gabriel da Palha | C67: 5456 | D67: 57 | E67: =(D67/C67) -> 0.01044721408
A68: Sul | B68: São José do Calçado | C68: 2456 | D68: 31 | E68: 0.01262214984
A69: Norte | B69: São Mateus | C69: 17649 | D69: 685 | E69: 0.0388123973
A70: Central | B70: São Roque do Canaã | C70: 2370 | D70: 103 | E70: 0.04345991561
A71: Metropolitana | B71: Serra | C71: 66481 | D71: 4928 | E71: 0.07412644214
A72: Central | B72: Sooretama | C72: 3097 | D72: 31 | E72: 0.01000968679
A73: Sul | B73: Vargem Alta | C73: 3365 | D73: 42 | E73: 0.01248142645
A74: Metropolitana | B74: Venda Nova do Imigrante | C74: 3766 | D74: 245 | E74: 0.06505576208
A75: Metropolitana | B75: Viana | C75: 9758 | D75: 367 | E75: 0.03761016602
A76: Norte | B76: Vila Pavão | C76: 1510 | D76: 37 | E76: 0.02450331126
A77: Central | B77: Vila Valério | C77: 2160 | D77: 89 | E77: 0.0412037037
A78: Metropolitana | B78: Vila Velha | C78: 81049 | D78: 3738 | E78: 0.04612024824
A79: Metropolitana | B79: Vitória | C79: 64805 | D79: 3991 | E79: 0.06158475426
B81: Total Norte | C81: =SUMIF($A$2:$A$79,"Norte",C$2:C$79) -> 64626 | D81: =SUMIF($A$2:$A$79,"Norte",D$2:D$79) -> 1493 | E81: =D81/C81 -> 0.02310215703
B82: Total Central | C82: =SUMIF($A$2:$A$79,"Central",C$2:C$79) -> 80477 | D82: =SUMIF($A$2:$A$79,"Central",D$2:D$79) -> 2546 | E82: =D82/C82 -> 0.03163636815
B83: Total Metropolitana | C83: =SUMIF($A$2:$A$79,"Metropolitana",C$2:C$79) -> 367065 | D83: =SUMIF($A$2:$A$79,"Metropolitana",D$2:D$79) -> 19024 | E83: 0.05182733303
B84: Total Sul | C84: =SUMIF($A$2:$A$79,"sul",C$2:C$79) -> 119230 | D84: =SUMIF($A$2:$A$79,"Sul",D$2:D$79) -> 3111 | E84: 0.0260924264
B85: Total Espírito Santo | C85: =SUM(C2:C79) -> 631398 | D85: =SUM(D81:D84) -> 26174 | E85: 0.04145404325
B86: HOMOGENEIDADE ENTRE MUNICÍPIOS | E86: =COUNTIF(E2:E79,">=0,90")/78 -> 0
A88: Cobertura Vacinal Covid19 dos Idosos de Maio de 2025
A89: Vacina COVID-19 RECOMBINANTE SERUM/ZALIKA , COVID-19 Pfizer e COVID-19 Moderna (Spikevax)
A90: Período avaliado: Últimos 6 meses - Dez/2024 a Mai/2025
A91: Faixa Etária: 60+
A92: Fonte: Vacina e Confia, em 12 de Junho de 2025. <https://www.vacinaeconfia.es.gov.br>
A93: *Dados parciais:
A94: **Dados referente às doses aplicadas no período de Dezembro/2024 a Maio/ 2025
A95: População proporcional extraída do Censo IBGE 2022
A96: Cobertura Calculada por município de residência do cidadão (no Vacina e Confia, a origem da informação é o endereço que consta no cadastro do cidadão preenchido manualmente por meio do autocadastro ou pelo cadastro realizado por um profissional de saúde no momento do atendimento).
A97: Homogeineidade: O cálculo da Homogeineidade entre vacinas é feito de acordo com a pactuação estabelecida no Plano Plurianual (PPA) vigente no período 2024-2027.
A99: Observações:
A100: 1. Imunobiológicos que foram recebidos parcialmente pelo estado no mês de Maio/2025, sendo distribuídos em quantidades reduzidas às regionais e municípios:
A101: SORO ANTIRRÁBICO HUMANO, IMUNOGLOBULINA ANTIRRÁBICA HUMANA, VACINA COVID-19 MODERNA (SPIKEVAX), VACINA COVID-19 PFIZER PEDIÁTRICA
A102: 2. Imunobiológicos indisponíveis no mês de Maio/2025, não sendo possível a distribuição às regionais e municípios:
A103: VACINA TRÍPLICE ACELULAR (DTPa) - CRIE; VACINA COVID-19 RECOMBINANTE SERUM/ZALIKA

Sheet PROTEÇÃO

Sheet cálculos1 (hidden)
C1: 0.9 | E1: 0.95
A2: Regional | B2: Município | C2: Cobertura Vacinal BCG | D2: Cobertura Vacinal Rotavírus | E2: Cobertura Vacinal Pentavalente | F2: Cobertura Vacinal Poliomielite | G2: Cobertura Vacinal Pneumo 10 | H2: Cobertura Vacinal Tríplice Viral | I2: Cobertura Vacinal Meningo C | J2: Cobertura Vacinal Febre Amarela | K2: Cobertura Vacinal Hepatite A | L2: Cobertura Varicela | M2: META 90% | N2: META 95% | O2: ATINGIRAM META | P2: PQA-VS
A3: Metropolitana | B3: Afonso Cláudio | C3: ='CV Rotina <2A - procedência'!H3 -> 1.013245033 | D3: ='CV Rotina <2A - procedência'!P3 -> 0.8476821192 | E3: ='CV Rotina <2A - procedência'!J3 -> 0.9072847682 | F3: ='CV Rotina <2A - procedência'!L3 -> 0.8874172185 | G3: ='CV Rotina <2A - procedência'!N3 -> 0.7947019868 | H3: ='CV Rotina <2A - procedência'!X3 -> 1.006622517 | I3: ='CV Rotina <2A - procedência'!R3 -> 0.8741721854 | J3: ='CV Rotina <2A - procedência'!T3 -> 0.8476821192 | K3: ='CV Rotina <2A - procedência'!V3 -> 0.9867549669 | L3: ='CV Rotina <2A - procedência'!Z3 -> 1.185430464 | M3: =COUNTIF(C3:D3,">=0,9") -> 1 | N3: =COUNTIFS(E3:L3,">=0,95") -> 3 | O3: =SUM(M3:N3) -> 4 | P3: =COUNTIF(E3:H3,">=0,95") -> 1
A4: Norte | B4: Água Doce do Norte | C4: ='CV Rotina <2A - procedência'!H4 -> 0.2117647059 | D4: ='CV Rotina <2A - procedência'!P4 -> 0.6 | E4: ='CV Rotina <2A - procedência'!J4 -> 0.7529411765 | F4: ='CV Rotina <2A - procedência'!L4 -> 0.7176470588 | G4: ='CV Rotina <2A - procedência'!N4 -> 0.6235294118 | H4: ='CV Rotina <2A - procedência'!X4 -> 0.8 | I4: ='CV Rotina <2A - procedência'!R4 -> 0.7294117647 | J4: ='CV Rotina <2A - procedência'!T4 -> 0.8588235294 | K4: ='CV Rotina <2A - procedência'!V4 -> 0.6352941176 | L4: ='CV Rotina <2A - procedência'!Z4 -> 0.3529411765 | M4: 0 | N4: 0 | O4: =SUM(M4:N4) -> 0 | P4: =COUNTIF(E4:H4,">=0,95") -> 0
A5: Central | B5: Águia Branca | C5: ='CV Rotina <2A - procedência'!H5 -> 0.4556962025 | D5: ='CV Rotina <2A - procedência'!P5 -> 0.5316455696 | E5: ='CV Rotina <2A - procedência'!J5 -> 0.6455696203 | F5: ='CV Rotina <2A - procedência'!L5 -> 0.6708860759 | G5: ='CV Rotina <2A - procedência'!N5 -> 0.5443037975 | H5: ='CV Rotina <2A - procedência'!X5 -> 0.8860759494 | I5: ='CV Rotina <2A - procedência'!R5 -> 0.6962025316 | J5: ='CV Rotina <2A - procedência'!T5 -> 0.8987341772 | K5: ='CV Rotina <2A - procedência'!V5 -> 0.6962025316 | L5: ='CV Rotina <2A - procedência'!Z5 -> 0.7974683544 | M5: 0 | N5: 0 | O5: 0 | P5: 0
A6: Sul | B6: Alegre | C6: ='CV Rotina <2A - procedência'!H6 -> 0.4409448819 | D6: ='CV Rotina <2A - procedência'!P6 -> 0.8582677165 | E6: ='CV Rotina <2A - procedência'!J6 -> 0.9133858268 | F6: ='CV Rotina <2A - procedência'!L6 -> 0.8346456693 | G6: ='CV Rotina <2A - procedência'!N6 -> 0.7165354331 | H6: ='CV Rotina <2A - procedência'!X6 -> 1.149606299 | I6: ='CV Rotina <2A - procedência'!R6 -> 0.9448818898 | J6: ='CV Rotina <2A - procedência'!T6 -> 0.9527559055 | K6: ='CV Rotina <2A - procedência'!V6 -> 1.102362205 | L6: ='CV Rotina <2A - procedência'!Z6 -> 1.31496063 | M6: 0 | N6: 4 | O6: 4 | P6: 1
A7: Sul | B7: Alfredo Chaves | C7: ='CV Rotina <2A - procedência'!H7 -> 0.3793103448 | D7: ='CV Rotina <2A - procedência'!P7 -> 0.6551724138 | E7: ='CV Rotina <2A - procedência'!J7 -> 0.6896551724 | F7: ='CV Rotina <2A - procedência'!L7 -> 0.6379310345 | G7: ='CV Rotina <2A - procedência'!N7 -> 0.5517241379 | H7: ='CV Rotina <2A - procedência'!X7 -> 0.9482758621 | I7: ='CV Rotina <2A - procedência'!R7 -> 0.6206896552 | J7: ='CV Rotina <2A - procedência'!T7 -> 0.7413793103 | K7: ='CV Rotina <2A - procedência'!V7 -> 1.051724138 | L7: ='CV Rotina <2A - procedência'!Z7 -> 0.9310344828 | M7: 0 | N7: 1 | O7: 1 | P7: 0
A8: Central | B8: Alto Rio Novo | C8: ='CV Rotina <2A - procedência'!H8 -> 0.3571428571 | D8: ='CV Rotina <2A - procedência'!P8 -> 0.9523809524 | E8: ='CV Rotina <2A - procedência'!J8 -> 0.9047619048 | F8: ='CV Rotina <2A - procedência'!L8 -> 0.9047619048 | G8: ='CV Rotina <2A - procedência'!N8 -> 0.9285714286 | H8: ='CV Rotina <2A - procedência'!X8 -> 0.9523809524 | I8: ='CV Rotina <2A - procedência'!R8 -> 0.9523809524 | J8: ='CV Rotina <2A - procedência'!T8 -> 0.9047619048 | K8: ='CV Rotina <2A - procedência'!V8 -> 0.9523809524 | L8: ='CV Rotina <2A - procedência'!Z8 -> 1 | M8: 1 | N8: 4 | O8: 5 | P8: 1
A9: Sul | B9: Anchieta | C9: ='CV Rotina <2A - procedência'!H9 -> 0.4090909091 | D9: ='CV Rotina <2A - procedência'!P9 -> 0.974025974 | E9: ='CV Rotina <2A - procedência'!J9 -> 1.058441558 | F9: ='CV Rotina <2A - procedência'!L9 -> 1.045454545 | G9: ='CV Rotina <2A - procedência'!N9 -> 0.9155844156 | H9: ='CV Rotina <2A - procedência'!X9 -> 1.032467532 | I9: ='CV Rotina <2A - procedência'!R9 -> 0.8896103896 | J9: ='CV Rotina <2A - procedência'!T9 -> 0.8376623377 | K9: ='CV Rotina <2A - procedência'!V9 -> 0.974025974 | L9: ='CV Rotina <2A - procedência'!Z9 -> 1.038961039 | M9: 1 | N9: 5 | O9: 6 | P9: 3
A10: Sul | B10: Apiacá | C10: ='CV Rotina <2A - procedência'!H10 -> 0.9032258065 | D10: ='CV Rotina <2A - procedência'!P10 -> 1.129032258 | E10: ='CV Rotina <2A - procedência'!J10 -> 0.8709677419 | F10: ='CV Rotina <2A - procedência'!L10 -> 0.7741935484 | G10: ='CV Rotina <2A - procedência'!N10 -> 1.096774194 | H10: ='CV Rotina <2A - procedência'!X10 -> 0.9677419355 | I10: ='CV Rotina <2A - procedência'!R10 -> 0.9677419355 | J10: ='CV Rotina <2A - procedência'!T10 -> 0.8064516129 | K10: ='CV Rotina <2A - procedência'!V10 -> 0.8064516129 | L10: ='CV Rotina <2A - procedência'!Z10 -> 0.8064516129 | M10: 2 | N10: 3 | O10: 5 | P10: 2
A11: Metropolitana | B11: Aracruz | C11: ='CV Rotina <2A - procedência'!H11 -> 0.8215384615 | D11: ='CV Rotina <2A - procedência'!P11 -> 0.7569230769 | E11: ='CV Rotina <2A - procedência'!J11 -> 0.7769230769 | F11: ='CV Rotina <2A - procedência'!L11 -> 0.7676923077 | G11: ='CV Rotina <2A - procedência'!N11 -> 0.6646153846 | H11: ='CV Rotina <2A - procedência'!X11 -> 0.9492307692 | I11: ='CV Rotina <2A - procedência'!R11 -> 0.7384615385 | J11: ='CV Rotina <2A - procedência'!T11 -> 0.7030769231 | K11: ='CV Rotina <2A - procedência'!V11 -> 0.9215384615 | L11: ='CV Rotina <2A - procedência'!Z11 -> 0.9384615385 | M11: 0 | N11: 0 | O11: 0 | P11: 0
A12: Sul | B12: Atilio Vivacqua | C12: ='CV Rotina <2A - procedência'!H12 -> 0.08333333333 | D12: ='CV Rotina <2A - procedência'!P12 -> 0.9444444444 | E12: ='CV Rotina <2A - procedência'!J12 -> 0.9305555556 | F12: ='CV Rotina <2A - procedência'!L12 -> 0.9166666667 | G12: ='CV Rotina <2A - procedência'!N12 -> 0.9166666667 | H12: ='CV Rotina <2A - procedência'!X12 -> 0.7916666667 | I12: ='CV Rotina <2A - procedência'!R12 -> 1 | J12: ='CV Rotina <2A - procedência'!T12 -> 0.7777777778 | K12: ='CV Rotina <2A - procedência'!V12 -> 0.7638888889 | L12: ='CV Rotina <2A - procedência'!Z12 -> 0.4861111111 | M12: 1 | N12: 1 | O12: 2 | P12: 0
A13: Central | B13: Baixo Guandu | C13: ='CV Rotina <2A - procedência'!H13 -> 0.4166666667 | D13: ='CV Rotina <2A - procedência'!P13 -> 0.6964285714 | E13: ='CV Rotina <2A - procedência'!J13 -> 0.7023809524 | F13: ='CV Rotina <2A - procedência'!L13 -> 0.6964285714 | G13: ='CV Rotina <2A - procedência'!N13 -> 0.6666666667 | H13: ='CV Rotina <2A - procedência'!X13 -> 0.9285714286 | I13: ='CV Rotina <2A - procedência'!R13 -> 0.6845238095 | J13: ='CV Rotina <2A - procedência'!T13 -> 0.8452380952 | K13: ='CV Rotina <2A - procedência'!V13 -> 0.9166666667 | L13: ='CV Rotina <2A - procedência'!Z13 -> 0.8392857143 | M13: 0 | N13: 0 | O13: 0 | P13: 0
A14: Norte | B14: Barra de São Francisco | C14: ='CV Rotina <2A - procedência'!H14 -> 0.8016194332 | D14: ='CV Rotina <2A - procedência'!P14 -> 0.7530364372 | E14: ='CV Rotina <2A - procedência'!J14 -> 0.8866396761 | F14: ='CV Rotina <2A - procedência'!L14 -> 0.8016194332 | G14: ='CV Rotina <2A - procedência'!N14 -> 0.7530364372 | H14: ='CV Rotina <2A - procedência'!X14 -> 0.8744939271 | I14: ='CV Rotina <2A - procedência'!R14 -> 0.7692307692 | J14: ='CV Rotina <2A - procedência'!T14 -> 0.7044534413 | K14: ='CV Rotina <2A - procedência'!V14 -> 0.7530364372 | L14: ='CV Rotina <2A - procedência'!Z14 -> 0.8825910931 | M14: 0 | N14: 0 | O14: 0 | P14: 0
A15: Norte | B15: Boa Esperança | C15: ='CV Rotina <2A - procedência'!H15 -> 0.3608247423 | D15: ='CV Rotina <2A - procedência'!P15 -> 0.793814433 | E15: ='CV Rotina <2A - procedência'!J15 -> 0.8556701031 | F15: ='CV Rotina <2A - procedência'!L15 -> 0.8144329897 | G15: ='CV Rotina <2A - procedência'!N15 -> 0.7835051546 | H15: ='CV Rotina <2A - procedência'!X15 -> 0.8350515464 | I15: ='CV Rotina <2A - procedência'!R15 -> 0.7835051546 | J15: ='CV Rotina <2A - procedência'!T15 -> 0.8144329897 | K15: ='CV Rotina <2A - procedência'!V15 -> 0.8144329897 | L15: ='CV Rotina <2A - procedência'!Z15 -> 0.7835051546 | M15: 0 | N15: 0 | O15: 0 | P15: 0
A16: Sul | B16: Bom Jesus do Norte | C16: ='CV Rotina <2A - procedência'!H16 -> 1.379310345 | D16: ='CV Rotina <2A - procedência'!P16 -> 1.517241379 | E16: ='CV Rotina <2A - procedência'!J16 -> 1.448275862 | F16: ='CV Rotina <2A - procedência'!L16 -> 1.448275862 | G16: ='CV Rotina <2A - procedência'!N16 -> 1.517241379 | H16: ='CV Rotina <2A - procedência'!X16 -> 1.482758621 | I16: ='CV Rotina <2A - procedência'!R16 -> 1.24137931 | J16: ='CV Rotina <2A - procedência'!T16 -> 1.586206897 | K16: ='CV Rotina <2A - procedência'!V16 -> 1.482758621 | L16: ='CV Rotina <2A - procedência'!Z16 -> 1.103448276 | M16: 2 | N16: 8 | O16: 10 | P16: 4
A17: Metropolitana | B17: Brejetuba | C17: ='CV Rotina <2A - procedência'!H17 -> 0.6933333333 | D17: ='CV Rotina <2A - procedência'!P17 -> 1.253333333 | E17: ='CV Rotina <2A - procedência'!J17 -> 0.9066666667 | F17: ='CV Rotina <2A - procedência'!L17 -> 1.013333333 | G17: ='CV Rotina <2A - procedência'!N17 -> 1.106666667 | H17: ='CV Rotina <2A - procedência'!X17 -> 1.186666667 | I17: ='CV Rotina <2A - procedência'!R17 -> 1.186666667 | J17: ='CV Rotina <2A - procedência'!T17 -> 0.8 | K17: ='CV Rotina <2A - procedência'!V17 -> 1.24 | L17: ='CV Rotina <2A - procedência'!Z17 -> 1.266666667 | M17: 1 | N17: 6 | O17: 7 | P17: 3
A18: Sul | B18: Cachoeiro de Itapemirim | C18: ='CV Rotina <2A - procedência'!H18 -> 2.146271511 | D18: ='CV Rotina <2A - procedência'!P18 -> 0.8632887189 | E18: ='CV Rotina <2A - procedência'!J18 -> 0.8632887189 | F18: ='CV Rotina <2A - procedência'!L18 -> 0.8518164436 | G18: ='CV Rotina <2A - procedência'!N18 -> 0.7466539197 | H18: ='CV Rotina <2A - procedência'!X18 -> 0.9770554493 | I18: ='CV Rotina <2A - procedência'!R18 -> 0.8499043977 | J18: ='CV Rotina <2A - procedência'!T18 -> 0.6778202677 | K18: ='CV Rotina <2A - procedência'!V18 -> 0.8489483748 | L18: ='CV Rotina <2A - procedência'!Z18 -> 0.826959847 | M18: 1 | N18: 1 | O18: 2 | P18: 1
A19: Metropolitana | B19: Cariacica | C19: ='CV Rotina <2A - procedência'!H19 -> 0.5252525253 | D19: ='CV Rotina <2A - procedência'!P19 -> 0.7653810836 | E19: ='CV Rotina <2A - procedência'!J19 -> 0.7704315886 | F19: ='CV Rotina <2A - procedência'!L19 -> 0.7584940312 | G19: ='CV Rotina <2A - procedência'!N19 -> 0.6620752984 | H19: ='CV Rotina <2A - procedência'!X19 -> 0.8645546373 | I19: ='CV Rotina <2A - procedência'!R19 -> 0.7548209366 | J19: ='CV Rotina <2A - procedência'!T19 -> 0.6359044995 | K19: ='CV Rotina <2A - procedência'!V19 -> 0.8425160698 | L19: ='CV Rotina <2A - procedência'!Z19 -> 0.6804407713 | M19: 0 | N19: 0 | O19: 0 | P19: 0
A20: Sul | B20: Castelo | C20: ='CV Rotina <2A - procedência'!H20 -> 0.5913978495 | D20: ='CV Rotina <2A - procedência'!P20 -> 0.8978494624 | E20: ='CV Rotina <2A - procedência'!J20 -> 0.8602150538 | F20: ='CV Rotina <2A - procedência'!L20 -> 0.8387096774 | G20: ='CV Rotina <2A - procedência'!N20 -> 0.6451612903 | H20: ='CV Rotina <2A - procedência'!X20 -> 1.080645161 | I20: ='CV Rotina <2A - procedência'!R20 -> 0.8817204301 | J20: ='CV Rotina <2A - procedência'!T20 -> 0.8440860215 | K20: ='CV Rotina <2A - procedência'!V20 -> 1 | L20: ='CV Rotina <2A - procedência'!Z20 -> 0.8225806452 | M20: 0 | N20: 2 | O20: 2 | P20: 1
A21: Central | B21: Colatina | C21: ='CV Rotina <2A - procedência'!H21 -> 2.424092409 | D21: ='CV Rotina <2A - procedência'!P21 -> 0.8712871287 | E21: ='CV Rotina <2A - procedência'!J21 -> 0.9735973597 | F21: ='CV Rotina <2A - procedência'!L21 -> 0.9752475248 | G21: ='CV Rotina <2A - procedência'!N21 -> 0.7079207921 | H21: ='CV Rotina <2A - procedência'!X21 -> 0.9735973597 | I21: ='CV Rotina <2A - procedência'!R21 -> 0.9785478548 | J21: ='CV Rotina <2A - procedência'!T21 -> 0.7607260726 | K21: ='CV Rotina <2A - procedência'!V21 -> 0.9224422442 | L21: ='CV Rotina <2A - procedência'!Z21 -> 0.795379538 | M21: 1 | N21: 4 | O21: 5 | P21: 3
A22: Norte | B22: Conceição da Barra | C22: ='CV Rotina <2A - procedência'!H22 -> 0.05590062112 | D22: ='CV Rotina <2A - procedência'!P22 -> 0.7639751553 | E22: ='CV Rotina <2A - procedência'!J22 -> 0.8695652174 | F22: ='CV Rotina <2A - procedência'!L22 -> 0.850931677 | G22: ='CV Rotina <2A - procedência'!N22 -> 0.7329192547 | H22: ='CV Rotina <2A - procedência'!X22 -> 1.130434783 | I22: ='CV Rotina <2A - procedência'!R22 -> 0.7888198758 | J22: ='CV Rotina <2A - procedência'!T22 -> 0.9254658385 | K22: ='CV Rotina <2A - procedência'!V22 -> 1.02484472 | L22: ='CV Rotina <2A - procedência'!Z22 -> 0.950310559 | M22: 0 | N22: 3 | O22: 3 | P22: 1
A23: Metropolitana | B23: Conceição do Castelo | C23: ='CV Rotina <2A - procedência'!H23 -> 0 | D23: ='CV Rotina <2A - procedência'!P23 -> 1.4 | E23: ='CV Rotina <2A - procedência'!J23 -> 1.3 | F23: ='CV Rotina <2A - procedência'!L23 -> 1.28 | G23: ='CV Rotina <2A - procedência'!N23 -> 1 | H23: ='CV Rotina <2A - procedência'!X23 -> 1.12 | I23: ='CV Rotina <2A - procedência'!R23 -> 1.24 | J23: ='CV Rotina <2A - procedência'!T23 -> 1.22 | K23: ='CV Rotina <2A - procedência'!V23 -> 1.02 | L23: ='CV Rotina <2A - procedência'!Z23 -> 0.88 | M23: 1 | N23: 7 | O23: 8 | P23: 4
A24: Sul | B24: Divino de São Lourenço | C24: ='CV Rotina <2A - procedência'!H24 -> 0.5862068966 | D24: ='CV Rotina <2A - procedência'!P24 -> 0.5517241379 | E24: ='CV Rotina <2A - procedência'!J24 -> 0.5172413793 | F24: ='CV Rotina <2A - procedência'!L24 -> 0.5172413793 | G24: ='CV Rotina <2A - procedência'!N24 -> 0.5172413793 | H24: ='CV Rotina <2A - procedência'!X24 -> 1.379310345 | I24: ='CV Rotina <2A - procedência'!R24 -> 0.5172413793 | J24: ='CV Rotina <2A - procedência'!T24 -> 1.068965517 | K24: ='CV Rotina <2A - procedência'!V24 -> 0.9310344828 | L24: ='CV Rotina <2A - procedência'!Z24 -> 1.068965517 | M24: 0 | N24: 3 | O24: 3 | P24: 1
A25: Metropolitana | B25: Domingos Martins | C25: ='CV Rotina <2A - procedência'!H25 -> 0.1853932584 | D25: ='CV Rotina <2A - procedência'!P25 -> 0.9719101124 | E25: ='CV Rotina <2A - procedência'!J25 -> 0.9719101124 | F25: ='CV Rotina <2A - procedência'!L25 -> 0.9550561798 | G25: ='CV Rotina <2A - procedência'!N25 -> 0.8370786517 | H25: ='CV Rotina <2A - procedência'!X25 -> 0.9662921348 | I25: ='CV Rotina <2A - procedência'!R25 -> 0.9719101124 | J25: ='CV Rotina <2A - procedência'!T25 -> 0.904494382 | K25: ='CV Rotina <2A - procedência'!V25 -> 1 | L25: ='CV Rotina <2A - procedência'!Z25 -> 1.101123596 | M25: 1 | N25: 6 | O25: 7 | P25: 3
A26: Sul | B26: Dores do Rio Preto | C26: ='CV Rotina <2A - procedência'!H26 -> 0.5438596491 | D26: ='CV Rotina <2A - procedência'!P26 -> 0.7719298246 | E26: ='CV Rotina <2A - procedência'!J26 -> 0.8596491228 | F26: ='CV Rotina <2A - procedência'!L26 -> 0.8596491228 | G26: ='CV Rotina <2A - procedência'!N26 -> 0.5263157895 | H26: ='CV Rotina <2A - procedência'!X26 -> 0.8070175439 | I26: ='CV Rotina <2A - procedência'!R26 -> 0.5964912281 | J26: ='CV Rotina <2A - procedência'!T26 -> 0.7192982456 | K26: ='CV Rotina <2A - procedência'!V26 -> 0.7368421053 | L26: ='CV Rotina <2A - procedência'!Z26 -> 0.5789473684 | M26: 0 | N26: 0 | O26: 0 | P26: 0
A27: Norte | B27: Ecoporanga | C27: ='CV Rotina <2A - procedência'!H27 -> 0.2741935484 | D27: ='CV Rotina <2A - procedência'!P27 -> 0.7661290323 | E27: ='CV Rotina <2A - procedência'!J27 -> 0.7258064516 | F27: ='CV Rotina <2A - procedência'!L27 -> 0.6935483871 | G27: ='CV Rotina <2A - procedência'!N27 -> 0.7419354839 | H27: ='CV Rotina <2A - procedência'!X27 -> 0.9112903226 | I27: ='CV Rotina <2A - procedência'!R27 -> 0.7258064516 | J27: ='CV Rotina <2A - procedência'!T27 -> 0.7258064516 | K27: ='CV Rotina <2A - procedência'!V27 -> 0.7096774194 | L27: ='CV Rotina <2A - procedência'!Z27 -> 0.6048387097 | M27: 0 | N27: 0 | O27: 0 | P27: 0
A28: Metropolitana | B28: Fundão | C28: ='CV Rotina <2A - procedência'!H28 -> 0.1651376147 | D28: ='CV Rotina <2A - procedência'!P28 -> 0.9174311927 | E28: ='CV Rotina <2A - procedência'!J28 -> 0.871559633 | F28: ='CV Rotina <2A - procedência'!L28 -> 0.8623853211 | G28: ='CV Rotina <2A - procedência'!N28 -> 0.7614678899 | H28: ='CV Rotina <2A - procedência'!X28 -> 0.8990825688 | I28: ='CV Rotina <2A - procedência'!R28 -> 0.8256880734 | J28: ='CV Rotina <2A - procedência'!T28 -> 0.4770642202 | K28: ='CV Rotina <2A - procedência'!V28 -> 0.8348623853 | L28: ='CV Rotina <2A - procedência'!Z28 -> 0.8256880734 | M28: 1 | N28: 0 | O28: 1 | P28: 0
A29: Central | B29: Governador Lindenberg | C29: ='CV Rotina <2A - procedência'!H29 -> 0.2777777778 | D29: ='CV Rotina <2A - procedência'!P29 -> 0.7037037037 | E29: ='CV Rotina <2A - procedência'!J29 -> 0.6851851852 | F29: ='CV Rotina <2A - procedência'!L29 -> 0.7037037037 | G29: ='CV Rotina <2A - procedência'!N29 -> 0.5925925926 | H29: ='CV Rotina <2A - procedência'!X29 -> 0.9814814815 | I29: ='CV Rotina <2A - procedência'!R29 -> 0.6851851852 | J29: ='CV Rotina <2A - procedência'!T29 -> 0.6851851852 | K29: ='CV Rotina <2A - procedência'!V29 -> 0.8703703704 | L29: ='CV Rotina <2A - procedência'!Z29 -> 0.7037037037 | M29: 0 | N29: 1 | O29: 1 | P29: 1
A30: Sul | B30: Guaçuí | C30: ='CV Rotina <2A - procedência'!H30 -> 0.976744186 | D30: ='CV Rotina <2A - procedência'!P30 -> 1.108527132 | E30: ='CV Rotina <2A - procedência'!J30 -> 0.9689922481 | F30: ='CV Rotina <2A - procedência'!L30 -> 0.9302325581 | G30: ='CV Rotina <2A - procedência'!N30 -> 1.093023256 | H30: ='CV Rotina <2A - procedência'!X30 -> 1.186046512 | I30: ='CV Rotina <2A - procedência'!R30 -> 1.046511628 | J30: ='CV Rotina <2A - procedência'!T30 -> 0.8604651163 | K30: ='CV Rotina <2A - procedência'!V30 -> 0.992248062 | L30: ='CV Rotina <2A - procedência'!Z30 -> 1 | M30: 2 | N30: 6 | O30: 8 | P30: 3
A31: Metropolitana | B31: Guarapari | C31: ='CV Rotina <2A - procedência'!H31 -> 0.8997361478 | D31: ='CV Rotina <2A - procedência'!P31 -> 0.7730870712 | E31: ='CV Rotina <2A - procedência'!J31 -> 0.7414248021 | F31: ='CV Rotina <2A - procedência'!L31 -> 0.7321899736 | G31: ='CV Rotina <2A - procedência'!N31 -> 0.7401055409 | H31: ='CV Rotina <2A - procedência'!X31 -> 0.765171504 | I31: ='CV Rotina <2A - procedência'!R31 -> 0.765171504 | J31: ='CV Rotina <2A - procedência'!T31 -> 0.5686015831 | K31: ='CV Rotina <2A - procedência'!V31 -> 0.7427440633 | L31: ='CV Rotina <2A - procedência'!Z31 -> 0.6345646438 | M31: 0 | N31: 0 | O31: 0 | P31: 0
A32: Metropolitana | B32: Ibatiba | C32: ='CV Rotina <2A - procedência'!H32 -> 0.8536585366 | D32: ='CV Rotina <2A - procedência'!P32 -> 0.9695121951 | E32: ='CV Rotina <2A - procedência'!J32 -> 0.9512195122 | F32: ='CV Rotina <2A - procedência'!L32 -> 0.9085365854 | G32: ='CV Rotina <2A - procedência'!N32 -> 0.8780487805 | H32: ='CV Rotina <2A - procedência'!X32 -> 0.9756097561 | I32: ='CV Rotina <2A - procedência'!R32 -> 0.9512195122 | J32: ='CV Rotina <2A - procedência'!T32 -> 0.8414634146 | K32: ='CV Rotina <2A - procedência'!V32 -> 0.9817073171 | L32: ='CV Rotina <2A - procedência'!Z32 -> 0.9329268293 | M32: 1 | N32: 4 | O32: 5 | P32: 2
A33: Metropolitana | B33: Ibiraçu | C33: ='CV Rotina <2A - procedência'!H33 -> 0.1833333333 | D33: ='CV Rotina <2A - procedência'!P33 -> 0.8166666667 | E33: ='CV Rotina <2A - procedência'!J33 -> 0.9333333333 | F33: ='CV Rotina <2A - procedência'!L33 -> 0.9333333333 | G33: ='CV Rotina <2A - procedência'!N33 -> 0.7833333333 | H33: ='CV Rotina <2A - procedência'!X33 -> 1.033333333 | I33: ='CV Rotina <2A - procedência'!R33 -> 0.9333333333 | J33: ='CV Rotina <2A - procedência'!T33 -> 0.8333333333 | K33: ='CV Rotina <2A - procedência'!V33 -> 0.7166666667 | L33: ='CV Rotina <2A - procedência'!Z33 -> 0.6833333333 | M33: 0 | N33: 1 | O33: 1 | P33: 1
A34: Sul | B34: Ibitirama | C34: ='CV Rotina <2A - procedência'!H34 -> 0.7142857143 | D34: ='CV Rotina <2A - procedência'!P34 -> 1.047619048 | E34: ='CV Rotina <2A - procedência'!J34 -> 1.095238095 | F34: ='CV Rotina <2A - procedência'!L34 -> 1 | G34: ='CV Rotina <2A - procedência'!N34 -> 1 | H34: ='CV Rotina <2A - procedência'!X34 -> 0.9841269841 | I34: ='CV Rotina <2A - procedência'!R34 -> 1.031746032 | J34: ='CV Rotina <2A - procedência'!T34 -> 0.7619047619 | K34: ='CV Rotina <2A - procedência'!V34 -> 0.8571428571 | L34: ='CV Rotina <2A - procedência'!Z34 -> 0.9206349206 | M34: 1 | N34: 5 | O34: 6 | P34: 4
A35: Sul | B35: Iconha | C35: ='CV Rotina <2A - procedência'!H35 -> 0.6304347826 | D35: ='CV Rotina <2A - procedência'!P35 -> 0.9347826087 | E35: ='CV Rotina <2A - procedência'!J35 -> 1 | F35: ='CV Rotina <2A - procedência'!L35 -> 1 | G35: ='CV Rotina <2A - procedência'!N35 -> 0.8043478261 | H35: ='CV Rotina <2A - procedência'!X35 -> 1.02173913 | I35: ='CV Rotina <2A - procedência'!R35 -> 1.108695652 | J35: ='CV Rotina <2A - procedência'!T35 -> 0.847826087 | K35: ='CV Rotina <2A - procedência'!V35 -> 0.9782608696 | L35: ='CV Rotina <2A - procedência'!Z35 -> 1.434782609 | M35: =COUNTIF(C35:D35,">=0,9") -> 1 | N35: =COUNTIFS(E35:L35,">=0,95") -> 6 | O35: 7 | P35: 3
A36: Sul | B36: Irupi | C36: ='CV Rotina <2A - procedência'!H36 -> 0.5921052632 | D36: ='CV Rotina <2A - procedência'!P36 -> 0.8552631579 | E36: ='CV Rotina <2A - procedência'!J36 -> 0.9868421053 | F36: ='CV Rotina <2A - procedência'!L36 -> 1.013157895 | G36: ='CV Rotina <2A - procedência'!N36 -> 0.7763157895 | H36: ='CV Rotina <2A - procedência'!X36 -> 1.144736842 | I36: ='CV Rotina <2A - procedência'!R36 -> 0.9342105263 | J36: ='CV Rotina <2A - procedência'!T36 -> 1.223684211 | K36: ='CV Rotina <2A - procedência'!V36 -> 1.131578947 | L36: ='CV Rotina <2A - procedência'!Z36 -> 1.026315789 | M36: 0 | N36: 6 | O36: 6 | P36: 3
A37: Metropolitana | B37: Itaguaçu | C37: ='CV Rotina <2A - procedência'!H37 -> 0.1666666667 | D37: ='CV Rotina <2A - procedência'!P37 -> 0.6805555556 | E37: ='CV Rotina <2A - procedência'!J37 -> 0.7083333333 | F37: ='CV Rotina <2A - procedência'!L37 -> 0.7083333333 | G37: ='CV Rotina <2A - procedência'!N37 -> 0.5277777778 | H37: ='CV Rotina <2A - procedência'!X37 -> 0.9444444444 | I37: ='CV Rotina <2A - procedência'!R37 -> 0.5833333333 | J37: ='CV Rotina <2A - procedência'!T37 -> 0.9166666667 | K37: ='CV Rotina <2A - procedência'!V37 -> 0.6388888889 | L37: ='CV Rotina <2A - procedência'!Z37 -> 0.6805555556 | M37: 0 | N37: 0 | O37: 0 | P37: 0
A38: Sul | B38: Itapemirim | C38: ='CV Rotina <2A - procedência'!H38 -> 0.384279476 | D38: ='CV Rotina <2A - procedência'!P38 -> 0.7641921397 | E38: ='CV Rotina <2A - procedência'!J38 -> 0.6593886463 | F38: ='CV Rotina <2A - procedência'!L38 -> 0.6026200873 | G38: ='CV Rotina <2A - procedência'!N38 -> 0.7860262009 | H38: ='CV Rotina <2A - procedência'!X38 -> 0.7816593886 | I38: ='CV Rotina <2A - procedência'!R38 -> 0.7510917031 | J38: ='CV Rotina <2A - procedência'!T38 -> 0.5502183406 | K38: ='CV Rotina <2A - procedência'!V38 -> 0.768558952 | L38: ='CV Rotina <2A - procedência'!Z38 -> 0.5851528384 | M38: 0 | N38: 0 | O38: 0 | P38: 0
A39: Metropolitana | B39: Itarana | C39: ='CV Rotina <2A - procedência'!H39 -> 0.1833333333 | D39: ='CV Rotina <2A - procedência'!P39 -> 0.5666666667 | E39: ='CV Rotina <2A - procedência'!J39 -> 0.7333333333 | F39: ='CV Rotina <2A - procedência'!L39 -> 0.7333333333 | G39: ='CV Rotina <2A - procedência'!N39 -> 0.4833333333 | H39: ='CV Rotina <2A - procedência'!X39 -> 0.9666666667 | I39: ='CV Rotina <2A - procedência'!R39 -> 0.6666666667 | J39: ='CV Rotina <2A - procedência'!T39 -> 0.9333333333 | K39: ='CV Rotina <2A - procedência'!V39 -> 0.8666666667 | L39: ='CV Rotina <2A - procedência'!Z39 -> 0.8666666667 | M39: 0 | N39: 1 | O39: 1 | P39: 1
A40: Sul | B40: Iúna | C40: ='CV Rotina <2A - procedência'!H40 -> 0.7235294118 | D40: ='CV Rotina <2A - procedência'!P40 -> 0.8411764706 | E40: ='CV Rotina <2A - procedência'!J40 -> 0.9 | F40: ='CV Rotina <2A - procedência'!L40 -> 0.8764705882 | G40: ='CV Rotina <2A - procedência'!N40 -> 0.7647058824 | H40: ='CV Rotina <2A - procedência'!X40 -> 1.058823529 | I40: ='CV Rotina <2A - procedência'!R40 -> 0.8588235294 | J40: ='CV Rotina <2A - procedência'!T40 -> 0.9294117647 | K40: ='CV Rotina <2A - procedência'!V40 -> 1.064705882 | L40: ='CV Rotina <2A - procedência'!Z40 -> 0.9823529412 | M40: 0 | N40: 3 | O40: 3 | P40: 1
A41: Norte | B41: Jaguaré | C41: ='CV Rotina <2A - procedência'!H41 -> 0.6066945607 | D41: ='CV Rotina <2A - procedência'!P41 -> 0.6317991632 | E41: ='CV Rotina <2A - procedência'!J41 -> 0.6987447699 | F41: ='CV Rotina <2A - procedência'!L41 -> 0.6778242678 | G41: ='CV Rotina <2A - procedência'!N41 -> 0.6317991632 | H41: ='CV Rotina <2A - procedência'!X41 -> 0.7907949791 | I41: ='CV Rotina <2A - procedência'!R41 -> 0.6820083682 | J41: ='CV Rotina <2A - procedência'!T41 -> 0.6192468619 | K41: ='CV Rotina <2A - procedência'!V41 -> 0.7573221757 | L41: ='CV Rotina <2A - procedência'!Z41 -> 0.5481171548 | M41: 0 | N41: 0 | O41: 0 | P41: 0
A42: Sul | B42: Jerônimo Monteiro | C42: ='CV Rotina <2A - procedência'!H42 -> 0.046875 | D42: ='CV Rotina <2A - procedência'!P42 -> 0.75 | E42: ='CV Rotina <2A - procedência'!J42 -> 0.796875 | F42: ='CV Rotina <2A - procedência'!L42 -> 0.8125 | G42: ='CV Rotina <2A - procedência'!N42 -> 0.6875 | H42: ='CV Rotina <2A - procedência'!X42 -> 1 | I42: ='CV Rotina <2A - procedência'!R42 -> 0.734375 | J42: ='CV Rotina <2A - procedência'!T42 -> 0.6875 | K42: ='CV Rotina <2A - procedência'!V42 -> 0.921875 | L42: ='CV Rotina <2A - procedência'!Z42 -> 0.8125 | M42: 0 | N42: 1 | O42: 1 | P42: 1
A43: Metropolitana | B43: João Neiva | C43: ='CV Rotina <2A - procedência'!H43 -> 0.2264150943 | D43: ='CV Rotina <2A - procedência'!P43 -> 1.056603774 | E43: ='CV Rotina <2A - procedência'!J43 -> 1.283018868 | F43: ='CV Rotina <2A - procedência'!L43 -> 1.20754717 | G43: ='CV Rotina <2A - procedência'!N43 -> 1 | H43: ='CV Rotina <2A - procedência'!X43 -> 1.150943396 | I43: ='CV Rotina <2A - procedência'!R43 -> 1.113207547 | J43: ='CV Rotina <2A - procedência'!T43 -> 1.113207547 | K43: ='CV Rotina <2A - procedência'!V43 -> 1 | L43: ='CV Rotina <2A - procedência'!Z43 -> 1.132075472 | M43: 1 | N43: 8 | O43: 9 | P43: 4
A44: Metropolitana | B44: Laranja da Terra | C44: ='CV Rotina <2A - procedência'!H44 -> 0.2325581395 | D44: ='CV Rotina <2A - procedência'!P44 -> 1.255813953 | E44: ='CV Rotina <2A - procedência'!J44 -> 1.11627907 | F44: ='CV Rotina <2A - procedência'!L44 -> 1.139534884 | G44: ='CV Rotina <2A - procedência'!N44 -> 1.23255814 | H44: ='CV Rotina <2A - procedência'!X44 -> 1.069767442 | I44: ='CV Rotina <2A - procedência'!R44 -> 1.186046512 | J44: ='CV Rotina <2A - procedência'!T44 -> 0.7906976744 | K44: ='CV Rotina <2A - procedência'!V44 -> 0.976744186 | L44: ='CV Rotina <2A - procedência'!Z44 -> 1.186046512 | M44: 1 | N44: 7 | O44: 8 | P44: 4
A45: Central | B45: Linhares | C45: ='CV Rotina <2A - procedência'!H45 -> 1.249559083 | D45: ='CV Rotina <2A - procedência'!P45 -> 0.8686067019 | E45: ='CV Rotina <2A - procedência'!J45 -> 0.8324514991 | F45: ='CV Rotina <2A - procedência'!L45 -> 0.8077601411 | G45: ='CV Rotina <2A - procedência'!N45 -> 0.7151675485 | H45: ='CV Rotina <2A - procedência'!X45 -> 0.8068783069 | I45: ='CV Rotina <2A - procedência'!R45 -> 0.8650793651 | J45: ='CV Rotina <2A - procedência'!T45 -> 0.7081128748 | K45: ='CV Rotina <2A - procedência'!V45 -> 0.741622575 | L45: ='CV Rotina <2A - procedência'!Z45 -> 0.6596119929 | M45: 1 | N45: 0 | O45: 1 | P45: 0
A46: Central | B46: Mantenópolis | C46: ='CV Rotina <2A - procedência'!H46 -> 0.2058823529 | D46: ='CV Rotina <2A - procedência'!P46 -> 0.6176470588 | E46: ='CV Rotina <2A - procedência'!J46 -> 0.7941176471 | F46: ='CV Rotina <2A - procedência'!L46 -> 0.7647058824 | G46: ='CV Rotina <2A - procedência'!N46 -> 0.5294117647 | H46: ='CV Rotina <2A - procedência'!X46 -> 0.9852941176 | I46: ='CV Rotina <2A - procedência'!R46 -> 0.8235294118 | J46: ='CV Rotina <2A - procedência'!T46 -> 0.9852941176 | K46: ='CV Rotina <2A - procedência'!V46 -> 0.6470588235 | L46: ='CV Rotina <2A - procedência'!Z46 -> 0.8529411765 | M46: 0 | N46: 2 | O46: 2 | P46: 1
A47: Sul | B47: Marataízes | C47: ='CV Rotina <2A - procedência'!H47 -> 0.4232365145 | D47: ='CV Rotina <2A - procedência'!P47 -> 1.012448133 | E47: ='CV Rotina <2A - procedência'!J47 -> 0.9087136929 | F47: ='CV Rotina <2A - procedência'!L47 -> 0.77593361 | G47: ='CV Rotina <2A - procedência'!N47 -> 0.9626556017 | H47: ='CV Rotina <2A - procedência'!X47 -> 1.024896266 | I47: ='CV Rotina <2A - procedência'!R47 -> 0.9543568465 | J47: ='CV Rotina <2A - procedência'!T47 -> 0.6265560166 | K47: ='CV Rotina <2A - procedência'!V47 -> 0.9004149378 | L47: ='CV Rotina <2A - procedência'!Z47 -> 0.7261410788 | M47: 1 | N47: 3 | O47: 4 | P47: 2
A48: Metropolitana | B48: Marechal Floriano | C48: ='CV Rotina <2A - procedência'!H48 -> 0.101010101 | D48: ='CV Rotina <2A - procedência'!P48 -> 0.7171717172 | E48: ='CV Rotina <2A - procedência'!J48 -> 0.7272727273 | F48: ='CV Rotina <2A - procedência'!L48 -> 0.7272727273 | G48: ='CV Rotina <2A - procedência'!N48 -> 0.6868686869 | H48: ='CV Rotina <2A - procedência'!X48 -> 0.8282828283 | I48: ='CV Rotina <2A - procedência'!R48 -> 0.7676767677 | J48: ='CV Rotina <2A - procedência'!T48 -> 0.7373737374 | K48: ='CV Rotina <2A - procedência'!V48 -> 1 | L48: ='CV Rotina <2A - procedência'!Z48 -> 1.03030303 | M48: 0 | N48: 2 | O48: 2 | P48: 0
A49: Central | B49: Marilândia | C49: ='CV Rotina <2A - procedência'!H49 -> 0.3970588235 | D49: ='CV Rotina <2A - procedência'!P49 -> 0.8088235294 | E49: ='CV Rotina <2A - procedência'!J49 -> 0.7941176471 | F49: ='CV Rotina <2A - procedência'!L49 -> 0.7941176471 | G49: ='CV Rotina <2A - procedência'!N49 -> 0.6617647059 | H49: ='CV Rotina <2A - procedência'!X49 -> 1.044117647 | I49: ='CV Rotina <2A - procedência'!R49 -> 0.6764705882 | J49: ='CV Rotina <2A - procedência'!T49 -> 0.9558823529 | K49: ='CV Rotina <2A - procedência'!V49 -> 0.8088235294 | L49: ='CV Rotina <2A - procedência'!Z49 -> 0.8823529412 | M49: 0 | N49: 2 | O49: 2 | P49: 1
A50: Sul | B50: Mimoso do Sul | C50: ='CV Rotina <2A - procedência'!H50 -> 0.1438848921 | D50: ='CV Rotina <2A - procedência'!P50 -> 0.690647482 | E50: ='CV Rotina <2A - procedência'!J50 -> 0.654676259 | F50: ='CV Rotina <2A - procedência'!L50 -> 0.5611510791 | G50: ='CV Rotina <2A - procedência'!N50 -> 0.6474820144 | H50: ='CV Rotina <2A - procedência'!X50 -> 0.618705036 | I50: ='CV Rotina <2A - procedência'!R50 -> 0.6330935252 | J50: ='CV Rotina <2A - procedência'!T50 -> 0.5971223022 | K50: ='CV Rotina <2A - procedência'!V50 -> 0.5035971223 | L50: ='CV Rotina <2A - procedência'!Z50 -> 0.5755395683 | M50: 0 | N50: 0 | O50: 0 | P50: 0
A51: Norte | B51: Montanha | C51: ='CV Rotina <2A - procedência'!H51 -> 0.4226804124 | D51: ='CV Rotina <2A - procedência'!P51 -> 1.041237113 | E51: ='CV Rotina <2A - procedência'!J51 -> 1.113402062 | F51: ='CV Rotina <2A - procedência'!L51 -> 1.092783505 | G51: ='CV Rotina <2A - procedência'!N51 -> 0.8865979381 | H51: ='CV Rotina <2A - procedência'!X51 -> 1.082474227 | I51: ='CV Rotina <2A - procedência'!R51 -> 1.072164948 | J51: ='CV Rotina <2A - procedência'!T51 -> 0.9896907216 | K51: ='CV Rotina <2A - procedência'!V51 -> 0.9793814433 | L51: ='CV Rotina <2A - procedência'!Z51 -> 1.175257732 | M51: 1 | N51: 7 | O51: 8 | P51: 3
A52: Norte | B52: Mucurici | C52: ='CV Rotina <2A - procedência'!H52 -> 0.06896551724 | D52: ='CV Rotina <2A - procedência'!P52 -> 0.8275862069 | E52: ='CV Rotina <2A - procedência'!J52 -> 0.8620689655 | F52: ='CV Rotina <2A - procedência'!L52 -> 0.8965517241 | G52: ='CV Rotina <2A - procedência'!N52 -> 0.8275862069 | H52: ='CV Rotina <2A - procedência'!X52 -> 0.8965517241 | I52: ='CV Rotina <2A - procedência'!R52 -> 0.8620689655 | J52: ='CV Rotina <2A - procedência'!T52 -> 1.137931034 | K52: ='CV Rotina <2A - procedência'!V52 -> 1.24137931 | L52: ='CV Rotina <2A - procedência'!Z52 -> 1.275862069 | M52: 0 | N52: 3 | O52: 3 | P52: 0
A53: Sul | B53: Muniz Freire | C53: ='CV Rotina <2A - procedência'!H53 -> 0.6705882353 | D53: ='CV Rotina <2A - procedência'!P53 -> 1.152941176 | E53: ='CV Rotina <2A - procedência'!J53 -> 1.141176471 | F53: ='CV Rotina <2A - procedência'!L53 -> 1.105882353 | G53: ='CV Rotina <2A - procedência'!N53 -> 1.129411765 | H53: ='CV Rotina <2A - procedência'!X53 -> 1.317647059 | I53: ='CV Rotina <2A - procedência'!R53 -> 1.058823529 | J53: ='CV Rotina <2A - procedência'!T53 -> 1.129411765 | K53: ='CV Rotina <2A - procedência'!V53 -> 1.094117647 | L53: ='CV Rotina <2A - procedência'!Z53 -> 1.317647059 | M53: 1 | N53: 8 | O53: 9 | P53: 4
A54: Sul | B54: Muqui | C54: ='CV Rotina <2A - procedência'!H54 -> 0.1612903226 | D54: ='CV Rotina <2A - procedência'!P54 -> 0.9677419355 | E54: ='CV Rotina <2A - procedência'!J54 -> 0.9838709677 | F54: ='CV Rotina <2A - procedência'!L54 -> 0.9838709677 | G54: ='CV Rotina <2A - procedência'!N54 -> 0.9516129032 | H54: ='CV Rotina <2A - procedência'!X54 -> 1.064516129 | I54: ='CV Rotina <2A - procedência'!R54 -> 0.8225806452 | J54: ='CV Rotina <2A - procedência'!T54 -> 1.112903226 | K54: ='CV Rotina <2A - procedência'!V54 -> 0.8709677419 | L54: ='CV Rotina <2A - procedência'!Z54 -> 0.9193548387 | M54: 1 | N54: 5 | O54: 6 | P54: 4
A55: Norte | B55: Nova Venécia | C55: ='CV Rotina <2A - procedência'!H55 -> 0.6216216216 | D55: ='CV Rotina <2A - procedência'!P55 -> 0.8885135135 | E55: ='CV Rotina <2A - procedência'!J55 -> 0.847972973 | F55: ='CV Rotina <2A - procedência'!L55 -> 0.8310810811 | G55: ='CV Rotina <2A - procedência'!N55 -> 0.7263513514 | H55: ='CV Rotina <2A - procedência'!X55 -> 0.972972973 | I55: ='CV Rotina <2A - procedência'!R55 -> 0.9155405405 | J55: ='CV Rotina <2A - procedência'!T55 -> 0.7635135135 | K55: ='CV Rotina <2A - procedência'!V55 -> 0.8175675676 | L55: ='CV Rotina <2A - procedência'!Z55 -> 0.6858108108 | M55: 0 | N55: 1 | O55: 1 | P55: 1
A56: Central | B56: Pancas | C56: ='CV Rotina <2A - procedência'!H56 -> 0.495049505 | D56: ='CV Rotina <2A - procedência'!P56 -> 0.7623762376 | E56: ='CV Rotina <2A - procedência'!J56 -> 0.7326732673 | F56: ='CV Rotina <2A - procedência'!L56 -> 0.7425742574 | G56: ='CV Rotina <2A - procedência'!N56 -> 0.7623762376 | H56: ='CV Rotina <2A - procedência'!X56 -> 0.9108910891 | I56: ='CV Rotina <2A - procedência'!R56 -> 0.7821782178 | J56: ='CV Rotina <2A - procedência'!T56 -> 0.7920792079 | K56: ='CV Rotina <2A - procedência'!V56 -> 0.8712871287 | L56: ='CV Rotina <2A - procedência'!Z56 -> 0.9405940594 | M56: 0 | N56: 0 | O56: 0 | P56: 0
A57: Norte | B57: Pedro Canário | C57: ='CV Rotina <2A - procedência'!H57 -> 0.1034482759 | D57: ='CV Rotina <2A - procedência'!P57 -> 0.7931034483 | E57: ='CV Rotina <2A - procedência'!J57 -> 0.8551724138 | F57: ='CV Rotina <2A - procedência'!L57 -> 0.8482758621 | G57: ='CV Rotina <2A - procedência'!N57 -> 0.7931034483 | H57: ='CV Rotina <2A - procedência'!X57 -> 1.131034483 | I57: ='CV Rotina <2A - procedência'!R57 -> 0.7862068966 | J57: ='CV Rotina <2A - procedência'!T57 -> 0.7103448276 | K57: ='CV Rotina <2A - procedência'!V57 -> 0.9103448276 | L57: ='CV Rotina <2A - procedência'!Z57 -> 0.7103448276 | M57: 0 | N57: 1 | O57: 1 | P57: 1
A58: Norte | B58: Pinheiros | C58: ='CV Rotina <2A - procedência'!H58 -> 0.04487179487 | D58: ='CV Rotina <2A - procedência'!P58 -> 0.6730769231 | E58: ='CV Rotina <2A - procedência'!J58 -> 0.7371794872 | F58: ='CV Rotina <2A - procedência'!L58 -> 0.7435897436 | G58: ='CV Rotina <2A - procedência'!N58 -> 0.6217948718 | H58: ='CV Rotina <2A - procedência'!X58 -> 0.7179487179 | I58: ='CV Rotina <2A - procedência'!R58 -> 0.6923076923 | J58: ='CV Rotina <2A - procedência'!T58 -> 0.6858974359 | K58: ='CV Rotina <2A - procedência'!V58 -> 0.7371794872 | L58: ='CV Rotina <2A - procedência'!Z58 -> 0.6730769231 | M58: 0 | N58: 0 | O58: 0 | P58: 0
A59: Sul | B59: Piúma | C59: ='CV Rotina <2A - procedência'!H59 -> 0.4468085106 | D59: ='CV Rotina <2A - procedência'!P59 -> 0.8794326241 | E59: ='CV Rotina <2A - procedência'!J59 -> 0.829787234 | F59: ='CV Rotina <2A - procedência'!L59 -> 0.7659574468 | G59: ='CV Rotina <2A - procedência'!N59 -> 0.8085106383 | H59: ='CV Rotina <2A - procedência'!X59 -> 0.9716312057 | I59: ='CV Rotina <2A - procedência'!R59 -> 0.8368794326 | J59: ='CV Rotina <2A - procedência'!T59 -> 0.6382978723 | K59: ='CV Rotina <2A - procedência'!V59 -> 0.8936170213 | L59: ='CV Rotina <2A - procedência'!Z59 -> 0.7021276596 | M59: 0 | N59: 1 | O59: 1 | P59: 1
A60: Norte | B60: Ponto Belo | C60: ='CV Rotina <2A - procedência'!H60 -> 0.1081081081 | D60: ='CV Rotina <2A - procedência'!P60 -> 0.972972973 | E60: ='CV Rotina <2A - procedência'!J60 -> 1.054054054 | F60: ='CV Rotina <2A - procedência'!L60 -> 1.054054054 | G60: ='CV Rotina <2A - procedência'!N60 -> 0.9189189189 | H60: ='CV Rotina <2A - procedência'!X60 -> 0.9459459459 | I60: ='CV Rotina <2A - procedência'!R60 -> 0.9189189189 | J60: ='CV Rotina <2A - procedência'!T60 -> 1.081081081 | K60: ='CV Rotina <2A - procedência'!V60 -> 1 | L60: ='CV Rotina <2A - procedência'!Z60 -> 0.8108108108 | M60: 1 | N60: 4 | O60: 5 | P60: 2
A61: Sul | B61: Presidente Kennedy | C61: ='CV Rotina <2A - procedência'!H61 -> 0.1123595506 | D61: ='CV Rotina <2A - procedência'!P61 -> 0.9325842697 | E61: ='CV Rotina <2A - procedência'!J61 -> 0.797752809 | F61: ='CV Rotina <2A - procedência'!L61 -> 0.797752809 | G61: ='CV Rotina <2A - procedência'!N61 -> 0.8988764045 | H61: ='CV Rotina <2A - procedência'!X61 -> 1.157303371 | I61: ='CV Rotina <2A - procedência'!R61 -> 0.8988764045 | J61: ='CV Rotina <2A - procedência'!T61 -> 1 | K61: ='CV Rotina <2A - procedência'!V61 -> 0.797752809 | L61: ='CV Rotina <2A - procedência'!Z61 -> 0.8988764045 | M61: 1 | N61: 2 | O61: 3 | P61: 1
A62: Central | B62: Rio Bananal | C62: ='CV Rotina <2A - procedência'!H62 -> 0.1791044776 | D62: ='CV Rotina <2A - procedência'!P62 -> 0.8059701493 | E62: ='CV Rotina <2A - procedência'!J62 -> 0.8134328358 | F62: ='CV Rotina <2A - procedência'!L62 -> 0.8059701493 | G62: ='CV Rotina <2A - procedência'!N62 -> 0.7164179104 | H62: ='CV Rotina <2A - procedência'!X62 -> 0.9402985075 | I62: ='CV Rotina <2A - procedência'!R62 -> 0.8358208955 | J62: ='CV Rotina <2A - procedência'!T62 -> 0.8507462687 | K62: ='CV Rotina <2A - procedência'!V62 -> 0.828358209 | L62: ='CV Rotina <2A - procedência'!Z62 -> 0.6791044776 | M62: 0 | N62: 0 | O62: 0 | P62: 0
A63: Sul | B63: Rio Novo do Sul | C63: ='CV Rotina <2A - procedência'!H63 -> 0.3541666667 | D63: ='CV Rotina <2A - procedência'!P63 -> 0.875 | E63: ='CV Rotina <2A - procedência'!J63 -> 0.9375 | F63: ='CV Rotina <2A - procedência'!L63 -> 0.9375 | G63: ='CV Rotina <2A - procedência'!N63 -> 0.8125 | H63: ='CV Rotina <2A - procedência'!X63 -> 0.7708333333 | I63: ='CV Rotina <2A - procedência'!R63 -> 0.8333333333 | J63: ='CV Rotina <2A - procedência'!T63 -> 0.6875 | K63: ='CV Rotina <2A - procedência'!V63 -> 0.8541666667 | L63: ='CV Rotina <2A - procedência'!Z63 -> 0.7916666667 | M63: 0 | N63: 0 | O63: 0 | P63: 0
A64: Metropolitana | B64: Santa Leopoldina | C64: ='CV Rotina <2A - procedência'!H64 -> 0.16 | D64: ='CV Rotina <2A - procedência'!P64 -> 0.6 | E64: ='CV Rotina <2A - procedência'!J64 -> 0.62 | F64: ='CV Rotina <2A - procedência'!L64 -> 0.6 | G64: ='CV Rotina <2A - procedência'!N64 -> 0.54 | H64: ='CV Rotina <2A - procedência'!X64 -> 0.5 | I64: ='CV Rotina <2A - procedência'!R64 -> 0.56 | J64: ='CV Rotina <2A - procedência'!T64 -> 0.66 | K64: ='CV Rotina <2A - procedência'!V64 -> 0.76 | L64: ='CV Rotina <2A - procedência'!Z64 -> 0.54 | M64: 0 | N64: 0 | O64: 0 | P64: 0
A65: Metropolitana | B65: Santa Maria de Jetibá | C65: ='CV Rotina <2A - procedência'!H65 -> 0.7647058824 | D65: ='CV Rotina <2A - procedência'!P65 -> 1.082352941 | E65: ='CV Rotina <2A - procedência'!J65 -> 0.9019607843 | F65: ='CV Rotina <2A - procedência'!L65 -> 0.8980392157 | G65: ='CV Rotina <2A - procedência'!N65 -> 1.02745098 | H65: ='CV Rotina <2A - procedência'!X65 -> 1.011764706 | I65: ='CV Rotina <2A - procedência'!R65 -> 1.054901961 | J65: ='CV Rotina <2A - procedência'!T65 -> 0.7803921569 | K65: ='CV Rotina <2A - procedência'!V65 -> 1 | L65: ='CV Rotina <2A - procedência'!Z65 -> 0.8470588235 | M65: 1 | N65: 4 | O65: 5 | P65: 2
A66: Metropolitana | B66: Santa Teresa | C66: ='CV Rotina <2A - procedência'!H66 -> 2.519083969 | D66: ='CV Rotina <2A - procedência'!P66 -> 0.7557251908 | E66: ='CV Rotina <2A - procedência'!J66 -> 0.7938931298 | F66: ='CV Rotina <2A - procedência'!L66 -> 0.7938931298 | G66: ='CV Rotina <2A - procedência'!N66 -> 0.6488549618 | H66: ='CV Rotina <2A - procedência'!X66 -> 0.8015267176 | I66: ='CV Rotina <2A - procedência'!R66 -> 0.8244274809 | J66: ='CV Rotina <2A - procedência'!T66 -> 0.7099236641 | K66: ='CV Rotina <2A - procedência'!V66 -> 0.8015267176 | L66: ='CV Rotina <2A - procedência'!Z66 -> 0.8015267176 | M66: 1 | N66: 0 | O66: 1 | P66: 0
A67: Central | B67: São Domingos do Norte | C67: ='CV Rotina <2A - procedência'!H67 -> 0.4186046512 | D67: ='CV Rotina <2A - procedência'!P67 -> 0.8372093023 | E67: ='CV Rotina <2A - procedência'!J67 -> 0.8604651163 | F67: ='CV Rotina <2A - procedência'!L67 -> 0.9069767442 | G67: ='CV Rotina <2A - procedência'!N67 -> 0.8139534884 | H67: ='CV Rotina <2A - procedência'!X67 -> 1.023255814 | I67: ='CV Rotina <2A - procedência'!R67 -> 0.7674418605 | J67: ='CV Rotina <2A - procedência'!T67 -> 1.023255814 | K67: ='CV Rotina <2A - procedência'!V67 -> 1.255813953 | L67: ='CV Rotina <2A - procedência'!Z67 -> 1.023255814 | M67: =COUNTIF(C67:D67,">=0,9") -> 0 | N67: =COUNTIFS(E67:L67,">=0,95") -> 4 | O67: 4 | P67: 1
A68: Central | B68: São Gabriel da Palha | C68: ='CV Rotina <2A - procedência'!H68 -> 0.3421052632 | D68: ='CV Rotina <2A - procedência'!P68 -> 0.7631578947 | E68: ='CV Rotina <2A - procedência'!J68 -> 0.8368421053 | F68: ='CV Rotina <2A - procedência'!L68 -> 0.8368421053 | G68: ='CV Rotina <2A - procedência'!N68 -> 0.6473684211 | H68: ='CV Rotina <2A - procedência'!X68 -> 0.8789473684 | I68: ='CV Rotina <2A - procedência'!R68 -> 0.8157894737 | J68: ='CV Rotina <2A - procedência'!T68 -> 0.9052631579 | K68: ='CV Rotina <2A - procedência'!V68 -> 0.7842105263 | L68: ='CV Rotina <2A - procedência'!Z68 -> 0.7684210526 | M68: 0 | N68: 0 | O68: =SUM(M68:N68) -> 0 | P68: =COUNTIF(E68:H68,">=0,95") -> 0
A69: Sul | B69: São José do Calçado | C69: ='CV Rotina <2A - procedência'!H69 -> 0.9210526316 | D69: ='CV Rotina <2A - procedência'!P69 -> 0.9210526316 | E69: ='CV Rotina <2A - procedência'!J69 -> 1.052631579 | F69: ='CV Rotina <2A - procedência'!L69 -> 1.052631579 | G69: ='CV Rotina <2A - procedência'!N69 -> 0.9210526316 | H69: ='CV Rotina <2A - procedência'!X69 -> 1 | I69: ='CV Rotina <2A - procedência'!R69 -> 0.9210526316 | J69: ='CV Rotina <2A - procedência'!T69 -> 0.7368421053 | K69: ='CV Rotina <2A - procedência'!V69 -> 1.157894737 | L69: ='CV Rotina <2A - procedência'!Z69 -> 1.184210526 | M69: 2 | N69: 5 | O69: 7 | P69: 3
A70: Norte | B70: São Mateus | C70: ='CV Rotina <2A - procedência'!H70 -> 1.307884856 | D70: ='CV Rotina <2A - procedência'!P70 -> 0.7659574468 | E70: ='CV Rotina <2A - procedência'!J70 -> 0.7834793492 | F70: ='CV Rotina <2A - procedência'!L70 -> 0.7709637046 | G70: ='CV Rotina <2A - procedência'!N70 -> 0.6733416771 | H70: ='CV Rotina <2A - procedência'!X70 -> 0.8673341677 | I70: ='CV Rotina <2A - procedência'!R70 -> 0.774718398 | J70: ='CV Rotina <2A - procedência'!T70 -> 0.6645807259 | K70: ='CV Rotina <2A - procedência'!V70 -> 0.7934918648 | L70: ='CV Rotina <2A - procedência'!Z70 -> 0.6683354193 | M70: 1 | N70: 0 | O70: 1 | P70: 0
A71: Central | B71: São Roque do Canaã | C71: ='CV Rotina <2A - procedência'!H71 -> 0.4166666667 | D71: ='CV Rotina <2A - procedência'!P71 -> 1.041666667 | E71: ='CV Rotina <2A - procedência'!J71 -> 0.9375 | F71: ='CV Rotina <2A - procedência'!L71 -> 0.875 | G71: ='CV Rotina <2A - procedência'!N71 -> 0.8958333333 | H71: ='CV Rotina <2A - procedência'!X71 -> 1.208333333 | I71: ='CV Rotina <2A - procedência'!R71 -> 0.8333333333 | J71: ='CV Rotina <2A - procedência'!T71 -> 0.8958333333 | K71: ='CV Rotina <2A - procedência'!V71 -> 0.875 | L71: ='CV Rotina <2A - procedência'!Z71 -> 1 | M71: 1 | N71: 2 | O71: 3 | P71: 1
A72: Metropolitana | B72: Serra | C72: ='CV Rotina <2A - procedência'!H72 -> 1.151708719 | D72: ='CV Rotina <2A - procedência'!P72 -> 0.8227403385 | E72: ='CV Rotina <2A - procedência'!J72 -> 0.8022995848 | F72: ='CV Rotina <2A - procedência'!L72 -> 0.7805812839 | G72: ='CV Rotina <2A - procedência'!N72 -> 0.7630150112 | H72: ='CV Rotina <2A - procedência'!X72 -> 0.8607473651 | I72: ='CV Rotina <2A - procedência'!R72 -> 0.7978281699 | J72: ='CV Rotina <2A - procedência'!T72 -> 0.6662408176 | K72: ='CV Rotina <2A - procedência'!V72 -> 0.8412647716 | L72: ='CV Rotina <2A - procedência'!Z72 -> 0.7167039285 | M72: 1 | N72: 0 | O72: 1 | P72: 0
A73: Central | B73: Sooretama | C73: ='CV Rotina <2A - procedência'!H73 -> 0.1104294479 | D73: ='CV Rotina <2A - procedência'!P73 -> 0.9018404908 | E73: ='CV Rotina <2A - procedência'!J73 -> 1.018404908 | F73: ='CV Rotina <2A - procedência'!L73 -> 0.981595092 | G73: ='CV Rotina <2A - procedência'!N73 -> 0.8588957055 | H73: ='CV Rotina <2A - procedência'!X73 -> 1.104294479 | I73: ='CV Rotina <2A - procedência'!R73 -> 1 | J73: ='CV Rotina <2A - procedência'!T73 -> 0.9202453988 | K73: ='CV Rotina <2A - procedência'!V73 -> 0.9202453988 | L73: ='CV Rotina <2A - procedência'!Z73 -> 0.7423312883 | M73: 1 | N73: 4 | O73: 5 | P73: 3
A74: Sul | B74: Vargem Alta | C74: ='CV Rotina <2A - procedência'!H74 -> 0.1416666667 | D74: ='CV Rotina <2A - procedência'!P74 -> 0.8333333333 | E74: ='CV Rotina <2A - procedência'!J74 -> 0.7916666667 | F74: ='CV Rotina <2A - procedência'!L74 -> 0.75 | G74: ='CV Rotina <2A - procedência'!N74 -> 0.85 | H74: ='CV Rotina <2A - procedência'!X74 -> 0.8666666667 | I74: ='CV Rotina <2A - procedência'!R74 -> 0.825 | J74: ='CV Rotina <2A - procedência'!T74 -> 0.7583333333 | K74: ='CV Rotina <2A - procedência'!V74 -> 0.775 | L74: ='CV Rotina <2A - procedência'!Z74 -> 0.9333333333 | M74: 0 | N74: 0 | O74: 0 | P74: 0
A75: Metropolitana | B75: Venda Nova do Imigrante | C75: ='CV Rotina <2A - procedência'!H75 -> 1.391304348 | D75: ='CV Rotina <2A - procedência'!P75 -> 1.123188406 | E75: ='CV Rotina <2A - procedência'!J75 -> 1.094202899 | F75: ='CV Rotina <2A - procedência'!L75 -> 1.094202899 | G75: ='CV Rotina <2A - procedência'!N75 -> 0.9492753623 | H75: ='CV Rotina <2A - procedência'!X75 -> 1.202898551 | I75: ='CV Rotina <2A - procedência'!R75 -> 1.028985507 | J75: ='CV Rotina <2A - procedência'!T75 -> 0.8550724638 | K75: ='CV Rotina <2A - procedência'!V75 -> 1.224637681 | L75: ='CV Rotina <2A - procedência'!Z75 -> 1.362318841 | M75: 2 | N75: 6 | O75: 8 | P75: 3
A76: Metropolitana | B76: Viana | C76: ='CV Rotina <2A - procedência'!H76 -> 0.189119171 | D76: ='CV Rotina <2A - procedência'!P76 -> 0.9170984456 | E76: ='CV Rotina <2A - procedência'!J76 -> 0.9170984456 | F76: ='CV Rotina <2A - procedência'!L76 -> 0.8367875648 | G76: ='CV Rotina <2A - procedência'!N76 -> 0.8886010363 | H76: ='CV Rotina <2A - procedência'!X76 -> 1.054404145 | I76: ='CV Rotina <2A - procedência'!R76 -> 0.8886010363 | J76: ='CV Rotina <2A - procedência'!T76 -> 0.6010362694 | K76: ='CV Rotina <2A - procedência'!V76 -> 0.8808290155 | L76: ='CV Rotina <2A - procedência'!Z76 -> 0.6062176166 | M76: 1 | N76: 1 | O76: 2 | P76: 1
A77: Norte | B77: Vila Pavão | C77: ='CV Rotina <2A - procedência'!H77 -> 0.3928571429 | D77: ='CV Rotina <2A - procedência'!P77 -> 0.8035714286 | E77: ='CV Rotina <2A - procedência'!J77 -> 1.071428571 | F77: ='CV Rotina <2A - procedência'!L77 -> 1.017857143 | G77: ='CV Rotina <2A - procedência'!N77 -> 0.7857142857 | H77: ='CV Rotina <2A - procedência'!X77 -> 0.8571428571 | I77: ='CV Rotina <2A - procedência'!R77 -> 1 | J77: ='CV Rotina <2A - procedência'!T77 -> 0.9821428571 | K77: ='CV Rotina <2A - procedência'!V77 -> 0.6071428571 | L77: ='CV Rotina <2A - procedência'!Z77 -> 0.7321428571 | M77: 0 | N77: 4 | O77: 4 | P77: 2
A78: Central | B78: Vila Valério | C78: ='CV Rotina <2A - procedência'!H78 -> 0.3068181818 | D78: ='CV Rotina <2A - procedência'!P78 -> 0.7386363636 | E78: ='CV Rotina <2A - procedência'!J78 -> 1 | F78: ='CV Rotina <2A - procedência'!L78 -> 0.9886363636 | G78: ='CV Rotina <2A - procedência'!N78 -> 0.7727272727 | H78: ='CV Rotina <2A - procedência'!X78 -> 1.227272727 | I78: ='CV Rotina <2A - procedência'!R78 -> 0.9431818182 | J78: ='CV Rotina <2A - procedência'!T78 -> 1.045454545 | K78: ='CV Rotina <2A - procedência'!V78 -> 1.261363636 | L78: ='CV Rotina <2A - procedência'!Z78 -> 1.181818182 | M78: 0 | N78: 6 | O78: 6 | P78: 3
A79: Metropolitana | B79: Vila Velha | C79: ='CV Rotina <2A - procedência'!H79 -> 0.7513424205 | D79: ='CV Rotina <2A - procedência'!P79 -> 0.760842627 | E79: ='CV Rotina <2A - procedência'!J79 -> 0.7344072697 | F79: ='CV Rotina <2A - procedência'!L79 -> 0.7360594796 | G79: ='CV Rotina <2A - procedência'!N79 -> 0.6505576208 | H79: ='CV Rotina <2A - procedência'!X79 -> 0.7992565056 | I79: ='CV Rotina <2A - procedência'!R79 -> 0.7558859975 | J79: ='CV Rotina <2A - procedência'!T79 -> 0.5716646014 | K79: ='CV Rotina <2A - procedência'!V79 -> 0.7773647253 | L79: ='CV Rotina <2A - procedência'!Z79 -> 0.7430813713 | M79: 0 | N79: 0 | O79: 0 | P79: 0
A80: Metropolitana | B80: Vitória | C80: ='CV Rotina <2A - procedência'!H80 -> 1.785375762 | D80: ='CV Rotina <2A - procedência'!P80 -> 1.088693297 | E80: ='CV Rotina <2A - procedência'!J80 -> 1.144211239 | F80: ='CV Rotina <2A - procedência'!L80 -> 1.142857143 | G80: ='CV Rotina <2A - procedência'!N80 -> 0.7752200406 | H80: ='CV Rotina <2A - procedência'!X80 -> 1.229519296 | I80: ='CV Rotina <2A - procedência'!R80 -> 1.128639133 | J80: ='CV Rotina <2A - procedência'!T80 -> 0.6797562627 | K80: ='CV Rotina <2A - procedência'!V80 -> 1.094109682 | L80: ='CV Rotina <2A - procedência'!Z80 -> 1.095463778 | M80: 2 | N80: 6 | O80: 8 | P80: 3
B82: Total Norte | C82: ='CV Rotina <2A - procedência'!H82 -> 0.6849688474 | D82: ='CV Rotina <2A - procedência'!P82 -> 0.7725856698 | E82: ='CV Rotina <2A - procedência'!J82 -> 0.8220404984 | F82: ='CV Rotina <2A - procedência'!L82 -> 0.7990654206 | G82: ='CV Rotina <2A - procedência'!N82 -> 0.7122274143 | H82: ='CV Rotina <2A - procedência'!X82 -> 0.9034267913 | I82: ='CV Rotina <2A - procedência'!R82 -> 0.7940031153 | J82: ='CV Rotina <2A - procedência'!T82 -> 0.7414330218 | K82: ='CV Rotina <2A - procedência'!V82 -> 0.8091900312 | L82: ='CV Rotina <2A - procedência'!Z82 -> 0.7204049844 | M82: =COUNTIF(C82:D82,">=0,9") -> 0 | N82: =COUNTIFS(E82:L82,">=0,95") -> 0 | O82: =SUM(M82:N82) -> 0 | P82: =COUNTIF(E82:H82,">=0,95") -> 0
B83: Total Central | C83: ='CV Rotina <2A - procedência'!H83 -> 1.100133958 | D83: ='CV Rotina <2A - procedência'!P83 -> 0.8288680509 | E83: ='CV Rotina <2A - procedência'!J83 -> 0.8586738111 | F83: ='CV Rotina <2A - procedência'!L83 -> 0.8469524447 | G83: ='CV Rotina <2A - procedência'!N83 -> 0.7129939719 | H83: ='CV Rotina <2A - procedência'!X83 -> 0.9166108506 | I83: ='CV Rotina <2A - procedência'!R83 -> 0.8667113195 | J83: ='CV Rotina <2A - procedência'!T83 -> 0.7967180174 | K83: ='CV Rotina <2A - procedência'!V83 -> 0.8372404555 | L83: ='CV Rotina <2A - procedência'!Z83 -> 0.7638981916 | M83: =COUNTIF(C83:D83,">=0,9") -> 1 | N83: =COUNTIFS(E83:L83,">=0,95") -> 0 | O83: =SUM(M83:N83) -> 1 | P83: =COUNTIF(E83:H83,">=0,95") -> 0
B84: Total Metropolitana | C84: ='CV Rotina <2A - procedência'!H84 -> 0.9206399243 | D84: ='CV Rotina <2A - procedência'!P84 -> 0.8449838443 | E84: ='CV Rotina <2A - procedência'!J84 -> 0.8375758531 | F84: ='CV Rotina <2A - procedência'!L84 -> 0.8259122074 | G84: ='CV Rotina <2A - procedência'!N84 -> 0.7336275514 | H84: ='CV Rotina <2A - procedência'!X84 -> 0.9134683584 | I84: ='CV Rotina <2A - procedência'!R84 -> 0.8365513437 | J84: ='CV Rotina <2A - procedência'!T84 -> 0.6588383639 | K84: ='CV Rotina <2A - procedência'!V84 -> 0.8743005753 | L84: ='CV Rotina <2A - procedência'!Z84 -> 0.7972259437 | M84: =COUNTIF(C84:D84,">=0,9") -> 1 | N84: =COUNTIFS(E84:L84,">=0,95") -> 0 | O84: =SUM(M84:N84) -> 1 | P84: =COUNTIF(E84:H84,">=0,95") -> 0
B85: Total Sul | C85: ='CV Rotina <2A - procedência'!H85 -> 0.9657126665 | D85: ='CV Rotina <2A - procedência'!P85 -> 0.8894871068 | E85: ='CV Rotina <2A - procedência'!J85 -> 0.8750354208 | F85: ='CV Rotina <2A - procedência'!L85 -> 0.8404647209 | G85: ='CV Rotina <2A - procedência'!N85 -> 0.8090110513 | H85: ='CV Rotina <2A - procedência'!X85 -> 0.992065741 | I85: ='CV Rotina <2A - procedência'!R85 -> 0.8645508643 | J85: ='CV Rotina <2A - procedência'!T85 -> 0.7670728252 | K85: ='CV Rotina <2A - procedência'!V85 -> 0.8940209691 | L85: ='CV Rotina <2A - procedência'!Z85 -> 0.8605837348 | M85: =COUNTIF(C85:D85,">=0,9") -> 1 | N85: =COUNTIFS(E85:L85,">=0,95") -> 1 | O85: =SUM(M85:N85) -> 2 | P85: =COUNTIF(E85:H85,">=0,95") -> 1
B86: Total Espírito Santo | C86: ='CV Rotina <2A - procedência'!H86 -> 0.9247657542 | D86: ='CV Rotina <2A - procedência'!P86 -> 0.841447731 | E86: ='CV Rotina <2A - procedência'!J86 -> 0.8447088003 | F86: ='CV Rotina <2A - procedência'!L86 -> 0.827990079 | G86: ='CV Rotina <2A - procedência'!N86 -> 0.7404923755 | H86: ='CV Rotina <2A - procedência'!X86 -> 0.9254547125 | I86: ='CV Rotina <2A - procedência'!R86 -> 0.8402076061 | J86: ='CV Rotina <2A - procedência'!T86 -> 0.7050339886 | K86: ='CV Rotina <2A - procedência'!V86 -> 0.8647345214 | L86: ='CV Rotina <2A - procedência'!Z86 -> 0.7938636781 | M86: =COUNTIF(C86:D86,">=0,9") -> 1 | N86: =COUNTIFS(E86:L86,">=0,95") -> 0 | O86: =SUM(M86:N86) -> 1 | P86: =COUNTIF(E86:H86,">=0,95") -> 0
A89: Fonte: SIPNI/DATASUS, em 09 de junho de 2023.*
A90: Vacina e Confia, em 12 de junho de 2023.**
A91: *Dados referentes às doses aplicadas pelas clínicas particulares de janeiro a maio de 2023
A92: **Dados referente às doses aplicadas no período de janeiro a maio de 2023
A93: Cobertura Calculada por município de vacinação
A94: 1 População proporcional extraída do MS/SVS/DASIS - Sistema de Informações sobre Nascidos Vivos - SINASC
A95: 2000 a 2021 – Estimativas preliminares elaboradas pelo Ministério da Saúde/SVS/DASNT/CGIAE
A96: Nota: Dados preliminares 2021

Sheet cálculos2 (hidden)
C1: 0.9 | E1: 0.95
A2: Regional | B2: Município | C2: Cobertura Vacinal BCG | D2: Cobertura Vacinal Rotavírus | E2: Cobertura Vacinal Pentavalente | F2: Cobertura Vacinal Poliomielite | G2: Cobertura Vacinal Pneumo 10 | H2: Cobertura Vacinal Tríplice Viral | I2: Cobertura Vacinal Meningo C | J2: Cobertura Vacinal Febre Amarela | K2: Cobertura Vacinal Hepatite A | L2: Cobertura Varicela | M2: META 90% | N2: META 95% | O2: ATINGIRAM META | P2: PQA-VS
A3: Metropolitana | B3: Afonso Cláudio | C3: ='CV Rotina <2A - residência'!H3 -> 1.046357616 | D3: ='CV Rotina <2A - residência'!P3 -> 0.8940397351 | E3: ='CV Rotina <2A - residência'!J3 -> 0.9006622517 | F3: ='CV Rotina <2A - residência'!L3 -> 0.8874172185 | G3: ='CV Rotina <2A - residência'!N3 -> 0.8609271523 | H3: ='CV Rotina <2A - residência'!X3 -> 1.079470199 | I3: ='CV Rotina <2A - residência'!R3 -> 0.8940397351 | J3: ='CV Rotina <2A - residência'!T3 -> 0.9006622517 | K3: ='CV Rotina <2A - residência'!V3 -> 1.119205298 | L3: ='CV Rotina <2A - residência'!Z3 -> 1.271523179 | M3: =COUNTIF(C3:D3,">=0,9") -> 1 | N3: =COUNTIFS(E3:L3,">=0,95") -> 3 | O3: =SUM(M3:N3) -> 4 | P3: =COUNTIF(E3:H3,">=0,95") -> 1
A4: Norte | B4: Água Doce do Norte | C4: ='CV Rotina <2A - residência'!H4 -> 0.6941176471 | D4: ='CV Rotina <2A - residência'!P4 -> 0.5764705882 | E4: ='CV Rotina <2A - residência'!J4 -> 0.7294117647 | F4: ='CV Rotina <2A - residência'!L4 -> 0.7176470588 | G4: ='CV Rotina <2A - residência'!N4 -> 0.6117647059 | H4: ='CV Rotina <2A - residência'!X4 -> 0.7764705882 | I4: ='CV Rotina <2A - residência'!R4 -> 0.6941176471 | J4: ='CV Rotina <2A - residência'!T4 -> 0.8588235294 | K4: ='CV Rotina <2A - residência'!V4 -> 0.6 | L4: ='CV Rotina <2A - residência'!Z4 -> 0.3529411765 | M4: 0 | N4: 0 | O4: =SUM(M4:N4) -> 0 | P4: =COUNTIF(E4:H4,">=0,95") -> 0
A5: Central | B5: Águia Branca | C5: ='CV Rotina <2A - residência'!H5 -> 0.9746835443 | D5: ='CV Rotina <2A - residência'!P5 -> 0.5189873418 | E5: ='CV Rotina <2A - residência'!J5 -> 0.6582278481 | F5: ='CV Rotina <2A - residência'!L5 -> 0.6835443038 | G5: ='CV Rotina <2A - residência'!N5 -> 0.5443037975 | H5: ='CV Rotina <2A - residência'!X5 -> 0.8734177215 | I5: ='CV Rotina <2A - residência'!R5 -> 0.6708860759 | J5: ='CV Rotina <2A - residência'!T5 -> 0.8607594937 | K5: ='CV Rotina <2A - residência'!V5 -> 0.6962025316 | L5: ='CV Rotina <2A - residência'!Z5 -> 0.7721518987 | M5: 1 | N5: 0 | O5: 1 | P5: 0
A6: Sul | B6: Alegre | C6: ='CV Rotina <2A - residência'!H6 -> 0.8897637795 | D6: ='CV Rotina <2A - residência'!P6 -> 0.8031496063 | E6: ='CV Rotina <2A - residência'!J6 -> 0.8897637795 | F6: ='CV Rotina <2A - residência'!L6 -> 0.811023622 | G6: ='CV Rotina <2A - residência'!N6 -> 0.7244094488 | H6: ='CV Rotina <2A - residência'!X6 -> 1.125984252 | I6: ='CV Rotina <2A - residência'!R6 -> 0.905511811 | J6: ='CV Rotina <2A - residência'!T6 -> 0.9133858268 | K6: ='CV Rotina <2A - residência'!V6 -> 1.094488189 | L6: ='CV Rotina <2A - residência'!Z6 -> 1.275590551 | M6: 0 | N6: 3 | O6: 3 | P6: 1
A7: Sul | B7: Alfredo Chaves | C7: ='CV Rotina <2A - residência'!H7 -> 0.7931034483 | D7: ='CV Rotina <2A - residência'!P7 -> 0.6724137931 | E7: ='CV Rotina <2A - residência'!J7 -> 0.7586206897 | F7: ='CV Rotina <2A - residência'!L7 -> 0.7413793103 | G7: ='CV Rotina <2A - residência'!N7 -> 0.6379310345 | H7: ='CV Rotina <2A - residência'!X7 -> 0.8793103448 | I7: ='CV Rotina <2A - residência'!R7 -> 0.724137931 | J7: ='CV Rotina <2A - residência'!T7 -> 0.724137931 | K7: ='CV Rotina <2A - residência'!V7 -> 0.9310344828 | L7: ='CV Rotina <2A - residência'!Z7 -> 0.9310344828 | M7: 0 | N7: 0 | O7: 0 | P7: 0
A8: Central | B8: Alto Rio Novo | C8: ='CV Rotina <2A - residência'!H8 -> 0.9047619048 | D8: ='CV Rotina <2A - residência'!P8 -> 0.880952381 | E8: ='CV Rotina <2A - residência'!J8 -> 0.880952381 | F8: ='CV Rotina <2A - residência'!L8 -> 0.9047619048 | G8: ='CV Rotina <2A - residência'!N8 -> 0.880952381 | H8: ='CV Rotina <2A - residência'!X8 -> 0.9523809524 | I8: ='CV Rotina <2A - residência'!R8 -> 1 | J8: ='CV Rotina <2A - residência'!T8 -> 0.9047619048 | K8: ='CV Rotina <2A - residência'!V8 -> 0.9047619048 | L8: ='CV Rotina <2A - residência'!Z8 -> 0.9523809524 | M8: 1 | N8: 3 | O8: 4 | P8: 1
A9: Sul | B9: Anchieta | C9: ='CV Rotina <2A - residência'!H9 -> 1.019480519 | D9: ='CV Rotina <2A - residência'!P9 -> 0.974025974 | E9: ='CV Rotina <2A - residência'!J9 -> 1.064935065 | F9: ='CV Rotina <2A - residência'!L9 -> 1.045454545 | G9: ='CV Rotina <2A - residência'!N9 -> 0.961038961 | H9: ='CV Rotina <2A - residência'!X9 -> 1.097402597 | I9: ='CV Rotina <2A - residência'!R9 -> 0.9415584416 | J9: ='CV Rotina <2A - residência'!T9 -> 0.8311688312 | K9: ='CV Rotina <2A - residência'!V9 -> 1.019480519 | L9: ='CV Rotina <2A - residência'!Z9 -> 1.097402597 | M9: 2 | N9: 6 | O9: 8 | P9: 4
A10: Sul | B10: Apiacá | C10: ='CV Rotina <2A - residência'!H10 -> 1.032258065 | D10: ='CV Rotina <2A - residência'!P10 -> 0.9677419355 | E10: ='CV Rotina <2A - residência'!J10 -> 0.8709677419 | F10: ='CV Rotina <2A - residência'!L10 -> 0.7741935484 | G10: ='CV Rotina <2A - residência'!N10 -> 0.935483871 | H10: ='CV Rotina <2A - residência'!X10 -> 0.9032258065 | I10: ='CV Rotina <2A - residência'!R10 -> 0.8387096774 | J10: ='CV Rotina <2A - residência'!T10 -> 0.8064516129 | K10: ='CV Rotina <2A - residência'!V10 -> 0.6774193548 | L10: ='CV Rotina <2A - residência'!Z10 -> 0.7419354839 | M10: 2 | N10: 0 | O10: 2 | P10: 0
A11: Metropolitana | B11: Aracruz | C11: ='CV Rotina <2A - residência'!H11 -> 0.94 | D11: ='CV Rotina <2A - residência'!P11 -> 0.7646153846 | E11: ='CV Rotina <2A - residência'!J11 -> 0.7692307692 | F11: ='CV Rotina <2A - residência'!L11 -> 0.7661538462 | G11: ='CV Rotina <2A - residência'!N11 -> 0.7046153846 | H11: ='CV Rotina <2A - residência'!X11 -> 0.9507692308 | I11: ='CV Rotina <2A - residência'!R11 -> 0.7492307692 | J11: ='CV Rotina <2A - residência'!T11 -> 0.7107692308 | K11: ='CV Rotina <2A - residência'!V11 -> 0.8953846154 | L11: ='CV Rotina <2A - residência'!Z11 -> 0.9061538462 | M11: 1 | N11: 1 | O11: 2 | P11: 1
A12: Sul | B12: Atilio Vivacqua | C12: ='CV Rotina <2A - residência'!H12 -> 0.875 | D12: ='CV Rotina <2A - residência'!P12 -> 1.111111111 | E12: ='CV Rotina <2A - residência'!J12 -> 1.083333333 | F12: ='CV Rotina <2A - residência'!L12 -> 1.069444444 | G12: ='CV Rotina <2A - residência'!N12 -> 1.083333333 | H12: ='CV Rotina <2A - residência'!X12 -> 0.8333333333 | I12: ='CV Rotina <2A - residência'!R12 -> 1.111111111 | J12: ='CV Rotina <2A - residência'!T12 -> 0.8194444444 | K12: ='CV Rotina <2A - residência'!V12 -> 0.7916666667 | L12: ='CV Rotina <2A - residência'!Z12 -> 0.5833333333 | M12: 1 | N12: 4 | O12: 5 | P12: 3
A13: Central | B13: Baixo Guandu | C13: ='CV Rotina <2A - residência'!H13 -> 0.9821428571 | D13: ='CV Rotina <2A - residência'!P13 -> 0.6726190476 | E13: ='CV Rotina <2A - residência'!J13 -> 0.6666666667 | F13: ='CV Rotina <2A - residência'!L13 -> 0.6607142857 | G13: ='CV Rotina <2A - residência'!N13 -> 0.6428571429 | H13: ='CV Rotina <2A - residência'!X13 -> 0.9166666667 | I13: ='CV Rotina <2A - residência'!R13 -> 0.6547619048 | J13: ='CV Rotina <2A - residência'!T13 -> 0.8154761905 | K13: ='CV Rotina <2A - residência'!V13 -> 0.8988095238 | L13: ='CV Rotina <2A - residência'!Z13 -> 0.7738095238 | M13: 1 | N13: 0 | O13: 1 | P13: 0
A14: Norte | B14: Barra de São Francisco | C14: ='CV Rotina <2A - residência'!H14 -> 0.967611336 | D14: ='CV Rotina <2A - residência'!P14 -> 0.7449392713 | E14: ='CV Rotina <2A - residência'!J14 -> 0.8744939271 | F14: ='CV Rotina <2A - residência'!L14 -> 0.7854251012 | G14: ='CV Rotina <2A - residência'!N14 -> 0.7489878543 | H14: ='CV Rotina <2A - residência'!X14 -> 0.8744939271 | I14: ='CV Rotina <2A - residência'!R14 -> 0.7692307692 | J14: ='CV Rotina <2A - residência'!T14 -> 0.7165991903 | K14: ='CV Rotina <2A - residência'!V14 -> 0.7489878543 | L14: ='CV Rotina <2A - residência'!Z14 -> 0.8502024291 | M14: 1 | N14: 0 | O14: 1 | P14: 0
A15: Norte | B15: Boa Esperança | C15: ='CV Rotina <2A - residência'!H15 -> 0.8144329897 | D15: ='CV Rotina <2A - residência'!P15 -> 0.7628865979 | E15: ='CV Rotina <2A - residência'!J15 -> 0.8350515464 | F15: ='CV Rotina <2A - residência'!L15 -> 0.8041237113 | G15: ='CV Rotina <2A - residência'!N15 -> 0.8144329897 | H15: ='CV Rotina <2A - residência'!X15 -> 0.8041237113 | I15: ='CV Rotina <2A - residência'!R15 -> 0.7835051546 | J15: ='CV Rotina <2A - residência'!T15 -> 0.7835051546 | K15: ='CV Rotina <2A - residência'!V15 -> 0.793814433 | L15: ='CV Rotina <2A - residência'!Z15 -> 0.7525773196 | M15: 0 | N15: 0 | O15: 0 | P15: 0
A16: Sul | B16: Bom Jesus do Norte | C16: ='CV Rotina <2A - residência'!H16 -> 1.517241379 | D16: ='CV Rotina <2A - residência'!P16 -> 1.482758621 | E16: ='CV Rotina <2A - residência'!J16 -> 1.310344828 | F16: ='CV Rotina <2A - residência'!L16 -> 1.310344828 | G16: ='CV Rotina <2A - residência'!N16 -> 1.482758621 | H16: ='CV Rotina <2A - residência'!X16 -> 1.379310345 | I16: ='CV Rotina <2A - residência'!R16 -> 1.172413793 | J16: ='CV Rotina <2A - residência'!T16 -> 1.310344828 | K16: ='CV Rotina <2A - residência'!V16 -> 1.482758621 | L16: ='CV Rotina <2A - residência'!Z16 -> 1.103448276 | M16: 2 | N16: 8 | O16: 10 | P16: 4
